Workbook

Sheet Лист1
A1: Reporter Code | B1: Commodity Code | F1: Всего стран по заданным критериям | I1: =SUBTOTAL(3,A2:A77501) -> 167
A2: 450 | B2: 0907
A3: 450 | B3: 0905
A4: 28 | B4: 6306
A5: 116 | B5: 4907
A6: 233 | B6: 5006
A7: 328 | B7: 4404
A8: 144 | B8: 0906
A9: 454 | B9: 2401
A10: 320 | B10: 0908
A11: 894 | B11: 2822
A12: 90 | B12: 4403
A13: 834 | B13: 0907
A14: 144 | B14: 0902
A15: 242 | B15: 2201
A16: 388 | B16: 2818
A17: 132 | B17: 1604
A18: 51 | B18: 8102
A19: 716 | B19: 2401
A20: 132 | B20: 0303
A21: 646 | B21: 1102
A22: 242 | B22: 1703
A23: 400 | B23: 6114
A24: 854 | B24: 1207
A25: 508 | B25: 7604
A26: 646 | B26: 0902
A27: 768 | B27: 2523
A28: 144 | B28: 0907
A29: 450 | B29: 7502
A30: 422 | B30: 7804
A31: 68 | B31: 1008
A32: 454 | B32: 1404
A33: 450 | B33: 1401
A34: 450 | B34: 8105
A35: 818 | B35: 3807
A36: 454 | B36: 0902
A37: 268 | B37: 2201
A38: 400 | B38: 2834
A39: 620 | B39: 4503
A40: 450 | B40: 6213
A41: 270 | B41: 0801
A42: 480 | B42: 7015
A43: 591 | B43: 0803
A44: 52 | B44: 3210
A45: 428 | B45: 2703
A46: 84 | B46: 0803
A47: 222 | B47: 1102
A48: 44 | B48: 2501
A49: 44 | B49: 3903
A50: 807 | B50: 3815
A51: 834 | B51: 0801
A52: 188 | B52: 0804
A53: 84 | B53: 1703
A54: 480 | B54: 1604
A55: 818 | B55: 7603
A56: 422 | B56: 3103
A57: 132 | B57: 6406
A58: 894 | B58: 7403
A59: 800 | B59: 1102
A60: 218 | B60: 0803
A61: 51 | B61: 2512
A62: 328 | B62: 1006
A63: 84 | B63: 2009
A64: 268 | B64: 2820
A65: 320 | B65: 6106
A66: 478 | B66: 0307
A67: 328 | B67: 1703
A68: 834 | B68: 1207
A69: 480 | B69: 0106
A70: 499 | B70: 2716
A71: 646 | B71: 7311
A72: 8 | B72: 6406
A73: 600 | B73: 2716
A74: 428 | B74: 4404
A75: 388 | B75: 2205
A76: 591 | B76: 0804
A77: 222 | B77: 1703
A78: 646 | B78: 7405
A79: 352 | B79: 7601
A80: 352 | B80: 7605
A81: 768 | B81: 6704
A82: 28 | B82: 8903
A83: 788 | B83: 3103
A84: 188 | B84: 0803
A85: 800 | B85: 0901
A86: 268 | B86: 2837
A87: 450 | B87: 2504
A88: 586 | B88: 5205
A89: 152 | B89: 2801
A90: 320 | B90: 0803
A91: 84 | B91: 0306
A92: 116 | B92: 6103
A93: 882 | B93: 2203
A94: 450 | B94: 6214
A95: 52 | B95: 4821
A96: 288 | B96: 0801
A97: 800 | B97: 0902
A98: 84 | B98: 1103
A99: 586 | B99: 5209
A100: 352 | B100: 8902
A101: 508 | B101: 3802
A102: 858 | B102: 1107
A103: 558 | B103: 6206
A104: 586 | B104: 6302
A105: 144 | B105: 6116
A106: 428 | B106: 5109
A107: 688 | B107: 0811
A108: 800 | B108: 0905
A109: 800 | B109: 8107
A110: 70 | B110: 2842
A111: 320 | B111: 4413
A112: 144 | B112: 6212
A113: 804 | B113: 1512
A114: 400 | B114: 3104
A115: 894 | B115: 8105
A116: 508 | B116: 2401
A117: 144 | B117: 2824
A118: 442 | B118: 7216
A119: 480 | B119: 6205
A120: 270 | B120: 1515
A121: 858 | B121: 1505
A122: 44 | B122: 0306
A123: 558 | B123: 1703
A124: 894 | B124: 1703
A125: 51 | B125: 7607
A126: 352 | B126: 0303
A127: 28 | B127: 9007
A128: 768 | B128: 7305
A129: 144 | B129: 6108
A130: 191 | B130: 4413
A131: 608 | B131: 9008
A132: 188 | B132: 9007
A133: 32 | B133: 2304
A134: 450 | B134: 3301
A135: 807 | B135: 5207
A136: 678 | B136: 0801
A137: 470 | B137: 4907
A138: 28 | B138: 7316
A139: 854 | B139: 0801
A140: 480 | B140: 1701
A141: 400 | B141: 2801
A142: 376 | B142: 2908
A143: 84 | B143: 1701
A144: 678 | B144: 6309
A145: 51 | B145: 2208
A146: 499 | B146: 7601
A147: 600 | B147: 4402
A148: 68 | B148: 8001
A149: 116 | B149: 8712
A150: 498 | B150: 2520
A151: 887 | B151: 2707
A152: 516 | B152: 4402
A153: 882 | B153: 8544
A154: 28 | B154: 7212
A155: 646 | B155: 1101
A156: 516 | B156: 7901
A157: 268 | B157: 0802
A158: 28 | B158: 9206
A159: 768 | B159: 6305
A160: 591 | B160: 0306
A161: 328 | B161: 1701
A162: 818 | B162: 5207
A163: 807 | B163: 7202
A164: 804 | B164: 8606
A165: 608 | B165: 1513
A166: 152 | B166: 2834
A167: 242 | B167: 7311
A168: 70 | B168: 4413
A169: 188 | B169: 6207
A170: 144 | B170: 5808
A171: 586 | B171: 3605
A172: 586 | B172: 5513
A173: 144 | B173: 0904
A174: 800 | B174: 2523
A175: 586 | B175: 2526
A176: 52 | B176: 2523
A177: 800 | B177: 2401
A178: 196 | B178: 8907
A179: 591 | B179: 4104
A180: 112 | B180: 3104
A181: 288 | B181: 4408
A182: 400 | B182: 2827
A183: 222 | B183: 6109
A184: 478 | B184: 2601
A185: 422 | B185: 1105
A186: 242 | B186: 0303
A187: 450 | B187: 0906
A188: 586 | B188: 1006
A189: 320 | B189: 1703
A190: 44 | B190: 7611
A191: 608 | B191: 4418
A192: 52 | B192: 1517
A193: 144 | B193: 3802
A194: 152 | B194: 7403
A195: 52 | B195: 2208
A196: 328 | B196: 8609
A197: 144 | B197: 0908
A198: 562 | B198: 6309
A199: 516 | B199: 0303
A200: 8 | B200: 1211
... 4300 more rows

Sheet Лист3
C1: 0105 | D1: 0106 | E1: 0206 | F1: 0207 | G1: 0301 | H1: 0303 | I1: 0306 | J1: 0307 | K1: 0406 | L1: 0407 | M1: 0409 | N1: 0504 | O1: 0709 | P1: 0710 | Q1: 0711 | R1: 0712 | S1: 0713 | T1: 0801 | U1: 0802 | V1: 0803 | W1: 0804 | X1: 0805 | Y1: 0806 | Z1: 0808 | AA1: 0810 | AB1: 0811 | AC1: 0813 | AD1: 0901 | AE1: 0902 | AF1: 0904 | AG1: 0905 | AH1: 0906 | AI1: 0907 | AJ1: 0908 | AK1: 0909 | AL1: 0910 | AM1: 1001 | AN1: 1002 | AO1: 1003 | AP1: 1005 | AQ1: 1006 | AR1: 1008 | AS1: 1101 | AT1: 1102 | AU1: 1103 | AV1: 1104 | AW1: 1105 | AX1: 1107 | AY1: 1108 | AZ1: 1109 | BA1: 1204 | BB1: 1205 | BC1: 1207 | BD1: 1208 | BE1: 1209 | BF1: 1211 | BG1: 1212 | BH1: 1213 | BI1: 1301 | BJ1: 1302 | BK1: 1401 | BL1: 1404 | BM1: 1505 | BN1: 1512 | BO1: 1513 | BP1: 1514 | BQ1: 1515 | BR1: 1517 | BS1: 1518 | BT1: 1520 | BU1: 1601 | BV1: 1602 | BW1: 1604 | BX1: 1605 | BY1: 1701 | BZ1: 1702 | CA1: 1703 | CB1: 1704 | CC1: 1804 | CD1: 1805 | CE1: 1806 | CF1: 1901 | CG1: 1902 | CH1: 1904 | CI1: 1905 | CJ1: 2001 | CK1: 2002 | CL1: 2003 | CM1: 2004 | CN1: 2005 | CO1: 2006 | CP1: 2007 | CQ1: 2008 | CR1: 2009 | CS1: 2101 | CT1: 2102 | CU1: 2103 | CV1: 2104 | CW1: 2105 | CX1: 2106 | CY1: 2201 | CZ1: 2202 | DA1: 2203 | DB1: 2204 | DC1: 2205 | DD1: 2206 | DE1: 2208 | DF1: 2209 | DG1: 2302 | DH1: 2303 | DI1: 2304 | DJ1: 2306 | DK1: 2309 | DL1: 2401 | DM1: 2402 | DN1: 2403 | DO1: 2501 | DP1: 2503 | DQ1: 2504 | DR1: 2505 | DS1: 2506 | DT1: 2508 | DU1: 2509 | DV1: 2512 | DW1: 2513 | DX1: 2514 | DY1: 2516 | DZ1: 2517 | EA1: 2518 | EB1: 2519 | EC1: 2520 | ED1: 2523 | EE1: 2524 | EF1: 2526 | EG1: 2530 | EH1: 2601 | EI1: 2602 | EJ1: 2619 | EK1: 2703 | EL1: 2707 | EM1: 2709 | EN1: 2710 | EO1: 2711 | EP1: 2712 | EQ1: 2715 | ER1: 2716 | ES1: 2801 | ET1: 2803 | EU1: 2804 | EV1: 2809 | EW1: 2811 | EX1: 2814 | EY1: 2815 | EZ1: 2817 | FA1: 2818 | FB1: 2820 | FC1: 2821 | FD1: 2822 | FE1: 2823 | FF1: 2824 | FG1: 2825 | FH1: 2827 | FI1: 2828 | FJ1: 2832 | FK1: 2833 | FL1: 2834 | FM1: 2835 | FN1: 2836 | FO1: 2837 | FP1: 2839 | FQ1: 2840 | FR1: 2841 | FS1: 2842 | FT1: 2845 | FU1: 2850 | FV1: 2852 | FW1: 2901 | FX1: 2902 | FY1: 2903 | FZ1: 2904 | GA1: 2905 | GB1: 2906 | GC1: 2907 | GD1: 2908 | GE1: 2909 | GF1: 2910 | GG1: 2911 | GH1: 2912 | GI1: 2913 | GJ1: 2914 | GK1: 2915 | GL1: 2916 | GM1: 2917 | GN1: 2918 | GO1: 2920 | GP1: 2921 | GQ1: 2922 | GR1: 2923 | GS1: 2924 | GT1: 2925 | GU1: 2926 | GV1: 2927 | GW1: 2928 | GX1: 2929 | GY1: 2930 | GZ1: 2931 | HA1: 2932 | HB1: 2933 | HC1: 2934 | HD1: 2935 | HE1: 2936 | HF1: 2942 | HG1: 3001 | HH1: 3002 | HI1: 3003 | HJ1: 3004 | HK1: 3005 | HL1: 3006 | HM1: 3101 | HN1: 3102 | HO1: 3103 | HP1: 3104 | HQ1: 3105 | HR1: 3203 | HS1: 3204 | HT1: 3206 | HU1: 3207 | HV1: 3208 | HW1: 3209 | HX1: 3210 | HY1: 3211 | HZ1: 3212 | IA1: 3213 | IB1: 3214 | IC1: 3215 | ID1: 3301 | IE1: 3302 | IF1: 3303 | IG1: 3304 | IH1: 3305 | II1: 3306 | IJ1: 3307 | IK1: 3401 | IL1: 3402 | IM1: 3403 | IN1: 3404 | IO1: 3405 | IP1: 3406 | IQ1: 3407 | IR1: 3503 | IS1: 3505 | IT1: 3506 | IU1: 3507 | IV1: 3602 | IW1: 3604 | IX1: 3605 | IY1: 3701 | IZ1: 3702 | JA1: 3703 | JB1: 3705 | JC1: 3707 | JD1: 3801 | JE1: 3802 | JF1: 3803 | JG1: 3804 | JH1: 3805 | JI1: 3806 | JJ1: 3807 | JK1: 3808 | JL1: 3809 | JM1: 3810 | JN1: 3811 | JO1: 3813 | JP1: 3814 | JQ1: 3815 | JR1: 3816 | JS1: 3818 | JT1: 3819 | JU1: 3820 | JV1: 3821 | JW1: 3822 | JX1: 3823 | JY1: 3824 | JZ1: 3901 | KA1: 3902 | KB1: 3903 | KC1: 3904 | KD1: 3906 | KE1: 3907 | KF1: 3908 | KG1: 3909 | KH1: 3910 | KI1: 3913 | KJ1: 3914 | KK1: 3915 | KL1: 3916 | KM1: 3917 | KN1: 3918 | KO1: 3919 | KP1: 3920 | KQ1: 3921 | KR1: 3922 | KS1: 3923 | KT1: 3924 | KU1: 3925 | KV1: 3926 | KW1: 4002 | KX1: 4005 | KY1: 4006 | KZ1: 4007 | LA1: 4008 | LB1: 4009 | LC1: 4010 | LD1: 4011 | LE1: 4013 | LF1: 4014 | LG1: 4015 | LH1: 4016 | LI1: 4017 | LJ1: 4104 | LK1: 4107 | LL1: 4114 | LM1: 4201 | LN1: 4202 | LO1: 4203 | LP1: 4205 | LQ1: 4301 | LR1: 4302 | LS1: 4303 | LT1: 4304 | LU1: 4401 | LV1: 4402 | LW1: 4403 | LX1: 4404 | LY1: 4406 | LZ1: 4407 | MA1: 4408 | MB1: 4409 | MC1: 4410 | MD1: 4411 | ME1: 4412 | MF1: 4413 | MG1: 4414 | MH1: 4415 | MI1: 4416 | MJ1: 4417 | MK1: 4418 | ML1: 4419 | MM1: 4420 | MN1: 4421 | MO1: 4503 | MP1: 4703 | MQ1: 4707 | MR1: 4801 | MS1: 4802 | MT1: 4804 | MU1: 4805 | MV1: 4806 | MW1: 4807 | MX1: 4808 | MY1: 4810 | MZ1: 4811 | NA1: 4812 | NB1: 4813 | NC1: 4816 | ND1: 4817 | NE1: 4818 | NF1: 4819 | NG1: 4820 | NH1: 4821 | NI1: 4823 | NJ1: 4901 | NK1: 4902 | NL1: 4903 | NM1: 4904 | NN1: 4905 | NO1: 4906 | NP1: 4907 | NQ1: 4908 | NR1: 4909 | NS1: 4910 | NT1: 4911 | NU1: 5006 | NV1: 5109 | NW1: 5204 | NX1: 5205 | NY1: 5207 | NZ1: 5208 | OA1: 5209 | OB1: 5211 | OC1: 5301 | OD1: 5306 | OE1: 5309 | OF1: 5401 | OG1: 5402 | OH1: 5404 | OI1: 5406 | OJ1: 5407 | OK1: 5502 | OL1: 5503 | OM1: 5508 | ON1: 5511 | OO1: 5512 | OP1: 5513 | OQ1: 5514 | OR1: 5515 | OS1: 5516 | OT1: 5601 | OU1: 5602 | OV1: 5603 | OW1: 5604 | OX1: 5607 | OY1: 5608 | OZ1: 5609 | PA1: 5703 | PB1: 5801 | PC1: 5806 | PD1: 5807 | PE1: 5808 | PF1: 5810 | PG1: 5901 | PH1: 5903 | PI1: 5904 | PJ1: 5906 | PK1: 5907 | PL1: 5909 | PM1: 5910 | PN1: 5911 | PO1: 6002 | PP1: 6006 | PQ1: 6101 | PR1: 6102 | PS1: 6103 | PT1: 6104 | PU1: 6105 | PV1: 6106 | PW1: 6107 | PX1: 6108 | PY1: 6109 | PZ1: 6110 | QA1: 6111 | QB1: 6112 | QC1: 6114 | QD1: 6115 | QE1: 6116 | QF1: 6117 | QG1: 6201 | QH1: 6202 | QI1: 6203 | QJ1: 6204 | QK1: 6205 | QL1: 6206 | QM1: 6207 | QN1: 6208 | QO1: 6209 | QP1: 6210 | QQ1: 6211 | QR1: 6212 | QS1: 6213 | QT1: 6214 | QU1: 6215 | QV1: 6216 | QW1: 6217 | QX1: 6301 | QY1: 6302 | QZ1: 6303 | RA1: 6304 | RB1: 6305 | RC1: 6306 | RD1: 6307 | RE1: 6308 | RF1: 6309 | RG1: 6310 | RH1: 6401 | RI1: 6402 | RJ1: 6403 | RK1: 6404 | RL1: 6405 | RM1: 6406 | RN1: 6504 | RO1: 6505 | RP1: 6506 | RQ1: 6601 | RR1: 6702 | RS1: 6704 | RT1: 6801 | RU1: 6802 | RV1: 6803 | RW1: 6804 | RX1: 6805 | RY1: 6806 | RZ1: 6807 | SA1: 6808 | SB1: 6809 | SC1: 6810 | SD1: 6812 | SE1: 6813 | SF1: 6814 | SG1: 6815 | SH1: 6902 | SI1: 6903 | SJ1: 6907 | SK1: 6908 | SL1: 6909 | SM1: 6910 | SN1: 6911 | SO1: 6912 | SP1: 6913 | SQ1: 6914 | SR1: 7001 | SS1: 7002 | ST1: 7005 | SU1: 7006 | SV1: 7007 | SW1: 7008 | SX1: 7009 | SY1: 7010 | SZ1: 7013 | TA1: 7014 | TB1: 7015 | TC1: 7016 | TD1: 7017 | TE1: 7018 | TF1: 7019 | TG1: 7020 | TH1: 7201 | TI1: 7202 | TJ1: 7204 | TK1: 7205 | TL1: 7207 | TM1: 7208 | TN1: 7209 | TO1: 7210 | TP1: 7211 | TQ1: 7212 | TR1: 7214 | TS1: 7215 | TT1: 7216 | TU1: 7217 | TV1: 7218 | TW1: 7219 | TX1: 7220 | TY1: 7222 | TZ1: 7223 | UA1: 7224 | UB1: 7225 | UC1: 7226 | UD1: 7228 | UE1: 7229 | UF1: 7302 | UG1: 7303 | UH1: 7304 | UI1: 7305 | UJ1: 7306 | UK1: 7307 | UL1: 7308 | UM1: 7309 | UN1: 7310 | UO1: 7311 | UP1: 7312 | UQ1: 7314 | UR1: 7315 | US1: 7316 | UT1: 7317 | UU1: 7318 | UV1: 7319 | UW1: 7320 | UX1: 7321 | UY1: 7322 | UZ1: 7323 | VA1: 7324 | VB1: 7325 | VC1: 7326 | VD1: 7403 | VE1: 7405 | VF1: 7406 | VG1: 7407 | VH1: 7408 | VI1: 7409 | VJ1: 7410 | VK1: 7411 | VL1: 7412 | VM1: 7413 | VN1: 7415 | VO1: 7419 | VP1: 7502 | VQ1: 7505 | VR1: 7506 | VS1: 7507 | VT1: 7508 | VU1: 7601 | VV1: 7603 | VW1: 7604 | VX1: 7605 | VY1: 7606 | VZ1: 7607 | WA1: 7608 | WB1: 7609 | WC1: 7610 | WD1: 7611 | WE1: 7612 | WF1: 7613 | WG1: 7614 | WH1: 7615 | WI1: 7616 | WJ1: 7801 | WK1: 7804 | WL1: 7806 | WM1: 7901 | WN1: 7903 | WO1: 7907 | WP1: 8001 | WQ1: 8003 | WR1: 8007 | WS1: 8101 | WT1: 8102 | WU1: 8103 | WV1: 8104 | WW1: 8105 | WX1: 8107 | WY1: 8108 | WZ1: 8112 | XA1: 8113 | XB1: 8201 | XC1: 8202 | XD1: 8203 | XE1: 8204 | XF1: 8205 | XG1: 8206 | XH1: 8207 | XI1: 8208 | XJ1: 8209 | XK1: 8211 | XL1: 8212 | XM1: 8213 | XN1: 8214 | XO1: 8215 | XP1: 8301 | XQ1: 8302 | XR1: 8303 | XS1: 8304 | XT1: 8305 | XU1: 8306 | XV1: 8307 | XW1: 8308 | XX1: 8309 | XY1: 8310 | XZ1: 8311 | YA1: 8401 | YB1: 8402 | YC1: 8403 | YD1: 8404 | YE1: 8405 | YF1: 8406 | YG1: 8407 | YH1: 8408 | YI1: 8409 | YJ1: 8410 | YK1: 8411 | YL1: 8412 | YM1: 8413 | YN1: 8414 | YO1: 8415 | YP1: 8416 | YQ1: 8417 | YR1: 8418 | YS1: 8419 | YT1: 8420 | YU1: 8421 | YV1: 8422 | YW1: 8423 | YX1: 8424 | YY1: 8425 | YZ1: 8426 | ZA1: 8427 | ZB1: 8428 | ZC1: 8429 | ZD1: 8430 | ZE1: 8431 | ZF1: 8432 | ZG1: 8433 | ZH1: 8436 | ZI1: 8438 | ZJ1: 8439 | ZK1: 8440 | ZL1: 8441 | ZM1: 8442 | ZN1: 8443 | ZO1: 8445 | ZP1: 8446 | ZQ1: 8448 | ZR1: 8449 | ZS1: 8450 | ZT1: 8451 | ZU1: 8452 | ZV1: 8455 | ZW1: 8456 | ZX1: 8457 | ZY1: 8458 | ZZ1: 8459 | AAA1: 8460 | AAB1: 8461 | AAC1: 8462 | AAD1: 8463 | AAE1: 8464 | AAF1: 8465 | AAG1: 8466 | AAH1: 8467 | AAI1: 8468 | AAJ1: 8470 | AAK1: 8471 | AAL1: 8472 | AAM1: 8473 | AAN1: 8474 | AAO1: 8475 | AAP1: 8476 | AAQ1: 8477 | AAR1: 8478 | AAS1: 8479 | AAT1: 8480 | AAU1: 8481 | AAV1: 8482 | AAW1: 8483 | AAX1: 8484 | AAY1: 8486 | AAZ1: 8487 | ABA1: 8501 | ABB1: 8502 | ABC1: 8503 | ABD1: 8504 | ABE1: 8505 | ABF1: 8506 | ABG1: 8507 | ABH1: 8508 | ABI1: 8511 | ABJ1: 8512 | ABK1: 8513 | ABL1: 8514 | ABM1: 8515 | ABN1: 8516 | ABO1: 8517 | ABP1: 8518 | ABQ1: 8519 | ABR1: 8521 | ABS1: 8522 | ABT1: 8523 | ABU1: 8525 | ABV1: 8526 | ABW1: 8527 | ABX1: 8528 | ABY1: 8529 | ABZ1: 8530 | ACA1: 8531 | ACB1: 8532 | ACC1: 8533 | ACD1: 8534 | ACE1: 8535 | ACF1: 8536 | ACG1: 8537 | ACH1: 8538 | ACI1: 8539 | ACJ1: 8540 | ACK1: 8541 | ACL1: 8542 | ACM1: 8543 | ACN1: 8544 | ACO1: 8545 | ACP1: 8546 | ACQ1: 8547 | ACR1: 8548 | ACS1: 8602 | ACT1: 8603 | ACU1: 8604 | ACV1: 8606 | ACW1: 8607 | ACX1: 8608 | ACY1: 8609 | ACZ1: 8701 | ADA1: 8702 | ADB1: 8703 | ADC1: 8704 | ADD1: 8705 | ADE1: 8707 | ADF1: 8708 | ADG1: 8711 | ADH1: 8712 | ADI1: 8714 | ADJ1: 8716 | ADK1: 8901 | ADL1: 8902 | ADM1: 8903 | ADN1: 8905 | ADO1: 8907 | ADP1: 9001 | ADQ1: 9002 | ADR1: 9004 | ADS1: 9005 | ADT1: 9007 | ADU1: 9008 | ADV1: 9010 | ADW1: 9011 | ADX1: 9013 | ADY1: 9014 | ADZ1: 9015 | AEA1: 9016 | AEB1: 9017 | AEC1: 9018 | AED1: 9019 | AEE1: 9020 | AEF1: 9021 | AEG1: 9022 | AEH1: 9023 | AEI1: 9024 | AEJ1: 9025 | AEK1: 9026 | AEL1: 9027 | AEM1: 9028 | AEN1: 9029 | AEO1: 9030 | AEP1: 9031 | AEQ1: 9032 | AER1: 9102 | AES1: 9103 | AET1: 9104 | AEU1: 9105 | AEV1: 9106 | AEW1: 9202 | AEX1: 9206 | AEY1: 9208 | AEZ1: 9209 | AFA1: 9401 | AFB1: 9402 | AFC1: 9403 | AFD1: 9404 | AFE1: 9405 | AFF1: 9406 | AFG1: 9503 | AFH1: 9504 | AFI1: 9505 | AFJ1: 9506 | AFK1: 9507 | AFL1: 9508 | AFM1: 9602 | AFN1: 9603 | AFO1: 9604 | AFP1: 9606 | AFQ1: 9607 | AFR1: 9609 | AFS1: 9610 | AFT1: 9611 | AFU1: 9612 | AFV1: 9613 | AFW1: 9615 | AFX1: 9616 | AFY1: 9617 | AFZ1: 9618 | AGA1: 9619 | AGB1: 9701 | AGC1: 9703 | AGD1: 9705 | AGE1: Общий итог
C2: =COUNTIF(Лист1!$B$2:$B$77501,C1) -> 83 | D2: =COUNTIF(Лист1!$B$2:$B$77501,D1) -> 100 | E2: =COUNTIF(Лист1!$B$2:$B$77501,E1) -> 83 | F2: =COUNTIF(Лист1!$B$2:$B$77501,F1) -> 97 | G2: =COUNTIF(Лист1!$B$2:$B$77501,G1) -> 96 | H2: =COUNTIF(Лист1!$B$2:$B$77501,H1) -> 108 | I2: =COUNTIF(Лист1!$B$2:$B$77501,I1) -> 102 | J2: =COUNTIF(Лист1!$B$2:$B$77501,J1) -> 96 | K2: =COUNTIF(Лист1!$B$2:$B$77501,K1) -> 99 | L2: =COUNTIF(Лист1!$B$2:$B$77501,L1) -> 85 | M2: =COUNTIF(Лист1!$B$2:$B$77501,M1) -> 97 | N2: =COUNTIF(Лист1!$B$2:$B$77501,N1) -> 80 | O2: =COUNTIF(Лист1!$B$2:$B$77501,O1) -> 107 | P2: =COUNTIF(Лист1!$B$2:$B$77501,P1) -> 103 | Q2: =COUNTIF(Лист1!$B$2:$B$77501,Q1) -> 95 | R2: =COUNTIF(Лист1!$B$2:$B$77501,R1) -> 102 | S2: =COUNTIF(Лист1!$B$2:$B$77501,S1) -> 102 | T2: =COUNTIF(Лист1!$B$2:$B$77501,T1) -> 97 | U2: =COUNTIF(Лист1!$B$2:$B$77501,U1) -> 105 | V2: =COUNTIF(Лист1!$B$2:$B$77501,V1) -> 90 | W2: =COUNTIF(Лист1!$B$2:$B$77501,W1) -> 107 | X2: =COUNTIF(Лист1!$B$2:$B$77501,X1) -> 103 | Y2: =COUNTIF(Лист1!$B$2:$B$77501,Y1) -> 90 | Z2: =COUNTIF(Лист1!$B$2:$B$77501,Z1) -> 94 | AA2: =COUNTIF(Лист1!$B$2:$B$77501,AA1) -> 100 | AB2: =COUNTIF(Лист1!$B$2:$B$77501,AB1) -> 94 | AC2: =COUNTIF(Лист1!$B$2:$B$77501,AC1) -> 95 | AD2: =COUNTIF(Лист1!$B$2:$B$77501,AD1) -> 108 | AE2: =COUNTIF(Лист1!$B$2:$B$77501,AE1) -> 105 | AF2: =COUNTIF(Лист1!$B$2:$B$77501,AF1) -> 99 | AG2: =COUNTIF(Лист1!$B$2:$B$77501,AG1) -> 64 | AH2: =COUNTIF(Лист1!$B$2:$B$77501,AH1) -> 81 | AI2: =COUNTIF(Лист1!$B$2:$B$77501,AI1) -> 71 | AJ2: =COUNTIF(Лист1!$B$2:$B$77501,AJ1) -> 74 | AK2: =COUNTIF(Лист1!$B$2:$B$77501,AK1) -> 85 | AL2: =COUNTIF(Лист1!$B$2:$B$77501,AL1) -> 105 | AM2: =COUNTIF(Лист1!$B$2:$B$77501,AM1) -> 85 | AN2: =COUNTIF(Лист1!$B$2:$B$77501,AN1) -> 44 | AO2: =COUNTIF(Лист1!$B$2:$B$77501,AO1) -> 76 | AP2: =COUNTIF(Лист1!$B$2:$B$77501,AP1) -> 94 | AQ2: =COUNTIF(Лист1!$B$2:$B$77501,AQ1) -> 108 | AR2: =COUNTIF(Лист1!$B$2:$B$77501,AR1) -> 87 | AS2: =COUNTIF(Лист1!$B$2:$B$77501,AS1) -> 104 | AT2: =COUNTIF(Лист1!$B$2:$B$77501,AT1) -> 102 | AU2: =COUNTIF(Лист1!$B$2:$B$77501,AU1) -> 93 | AV2: =COUNTIF(Лист1!$B$2:$B$77501,AV1) -> 98 | AW2: =COUNTIF(Лист1!$B$2:$B$77501,AW1) -> 78 | AX2: =COUNTIF(Лист1!$B$2:$B$77501,AX1) -> 66 | AY2: =COUNTIF(Лист1!$B$2:$B$77501,AY1) -> 96 | AZ2: =COUNTIF(Лист1!$B$2:$B$77501,AZ1) -> 58 | BA2: =COUNTIF(Лист1!$B$2:$B$77501,BA1) -> 59 | BB2: =COUNTIF(Лист1!$B$2:$B$77501,BB1) -> 63 | BC2: =COUNTIF(Лист1!$B$2:$B$77501,BC1) -> 99 | BD2: =COUNTIF(Лист1!$B$2:$B$77501,BD1) -> 78 | BE2: =COUNTIF(Лист1!$B$2:$B$77501,BE1) -> 101 | BF2: =COUNTIF(Лист1!$B$2:$B$77501,BF1) -> 101 | BG2: =COUNTIF(Лист1!$B$2:$B$77501,BG1) -> 100 | BH2: =COUNTIF(Лист1!$B$2:$B$77501,BH1) -> 70 | BI2: =COUNTIF(Лист1!$B$2:$B$77501,BI1) -> 84 | BJ2: =COUNTIF(Лист1!$B$2:$B$77501,BJ1) -> 89 | BK2: =COUNTIF(Лист1!$B$2:$B$77501,BK1) -> 79 | BL2: =COUNTIF(Лист1!$B$2:$B$77501,BL1) -> 94 | BM2: =COUNTIF(Лист1!$B$2:$B$77501,BM1) -> 59 | BN2: =COUNTIF(Лист1!$B$2:$B$77501,BN1) -> 94 | BO2: =COUNTIF(Лист1!$B$2:$B$77501,BO1) -> 89 | BP2: =COUNTIF(Лист1!$B$2:$B$77501,BP1) -> 70 | BQ2: =COUNTIF(Лист1!$B$2:$B$77501,BQ1) -> 102 | BR2: =COUNTIF(Лист1!$B$2:$B$77501,BR1) -> 102 | BS2: =COUNTIF(Лист1!$B$2:$B$77501,BS1) -> 83 | BT2: =COUNTIF(Лист1!$B$2:$B$77501,BT1) -> 65 | BU2: =COUNTIF(Лист1!$B$2:$B$77501,BU1) -> 94 | BV2: =COUNTIF(Лист1!$B$2:$B$77501,BV1) -> 105 | BW2: =COUNTIF(Лист1!$B$2:$B$77501,BW1) -> 103 | BX2: =COUNTIF(Лист1!$B$2:$B$77501,BX1) -> 89 | BY2: =COUNTIF(Лист1!$B$2:$B$77501,BY1) -> 110 | BZ2: =COUNTIF(Лист1!$B$2:$B$77501,BZ1) -> 100 | CA2: =COUNTIF(Лист1!$B$2:$B$77501,CA1) -> 85 | CB2: =COUNTIF(Лист1!$B$2:$B$77501,CB1) -> 108 | CC2: =COUNTIF(Лист1!$B$2:$B$77501,CC1) -> 77 | CD2: =COUNTIF(Лист1!$B$2:$B$77501,CD1) -> 87 | CE2: =COUNTIF(Лист1!$B$2:$B$77501,CE1) -> 107 | CF2: =COUNTIF(Лист1!$B$2:$B$77501,CF1) -> 102 | CG2: =COUNTIF(Лист1!$B$2:$B$77501,CG1) -> 108 | CH2: =COUNTIF(Лист1!$B$2:$B$77501,CH1) -> 100 | CI2: =COUNTIF(Лист1!$B$2:$B$77501,CI1) -> 114 | CJ2: =COUNTIF(Лист1!$B$2:$B$77501,CJ1) -> 93 | CK2: =COUNTIF(Лист1!$B$2:$B$77501,CK1) -> 99 | CL2: =COUNTIF(Лист1!$B$2:$B$77501,CL1) -> 78 | CM2: =COUNTIF(Лист1!$B$2:$B$77501,CM1) -> 91 | CN2: =COUNTIF(Лист1!$B$2:$B$77501,CN1) -> 104 | CO2: =COUNTIF(Лист1!$B$2:$B$77501,CO1) -> 83 | CP2: =COUNTIF(Лист1!$B$2:$B$77501,CP1) -> 103 | CQ2: =COUNTIF(Лист1!$B$2:$B$77501,CQ1) -> 108 | CR2: =COUNTIF(Лист1!$B$2:$B$77501,CR1) -> 110 | CS2: =COUNTIF(Лист1!$B$2:$B$77501,CS1) -> 98 | CT2: =COUNTIF(Лист1!$B$2:$B$77501,CT1) -> 99 | CU2: =COUNTIF(Лист1!$B$2:$B$77501,CU1) -> 108 | CV2: =COUNTIF(Лист1!$B$2:$B$77501,CV1) -> 101 | CW2: =COUNTIF(Лист1!$B$2:$B$77501,CW1) -> 93 | CX2: =COUNTIF(Лист1!$B$2:$B$77501,CX1) -> 112 | CY2: =COUNTIF(Лист1!$B$2:$B$77501,CY1) -> 112 | CZ2: =COUNTIF(Лист1!$B$2:$B$77501,CZ1) -> 114 | DA2: =COUNTIF(Лист1!$B$2:$B$77501,DA1) -> 104 | DB2: =COUNTIF(Лист1!$B$2:$B$77501,DB1) -> 100 | DC2: =COUNTIF(Лист1!$B$2:$B$77501,DC1) -> 80 | DD2: =COUNTIF(Лист1!$B$2:$B$77501,DD1) -> 85 | DE2: =COUNTIF(Лист1!$B$2:$B$77501,DE1) -> 104 | DF2: =COUNTIF(Лист1!$B$2:$B$77501,DF1) -> 97 | DG2: =COUNTIF(Лист1!$B$2:$B$77501,DG1) -> 96 | DH2: =COUNTIF(Лист1!$B$2:$B$77501,DH1) -> 73 | DI2: =COUNTIF(Лист1!$B$2:$B$77501,DI1) -> 80 | DJ2: =COUNTIF(Лист1!$B$2:$B$77501,DJ1) -> 91 | DK2: =COUNTIF(Лист1!$B$2:$B$77501,DK1) -> 101 | DL2: =COUNTIF(Лист1!$B$2:$B$77501,DL1) -> 90 | DM2: =COUNTIF(Лист1!$B$2:$B$77501,DM1) -> 104 | DN2: =COUNTIF(Лист1!$B$2:$B$77501,DN1) -> 86 | DO2: =COUNTIF(Лист1!$B$2:$B$77501,DO1) -> 103 | DP2: =COUNTIF(Лист1!$B$2:$B$77501,DP1) -> 62 | DQ2: =COUNTIF(Лист1!$B$2:$B$77501,DQ1) -> 62 | DR2: =COUNTIF(Лист1!$B$2:$B$77501,DR1) -> 104 | DS2: =COUNTIF(Лист1!$B$2:$B$77501,DS1) -> 74 | DT2: =COUNTIF(Лист1!$B$2:$B$77501,DT1) -> 99 | DU2: =COUNTIF(Лист1!$B$2:$B$77501,DU1) -> 65 | DV2: =COUNTIF(Лист1!$B$2:$B$77501,DV1) -> 68 | DW2: =COUNTIF(Лист1!$B$2:$B$77501,DW1) -> 83 | DX2: =COUNTIF(Лист1!$B$2:$B$77501,DX1) -> 49 | DY2: =COUNTIF(Лист1!$B$2:$B$77501,DY1) -> 99 | DZ2: =COUNTIF(Лист1!$B$2:$B$77501,DZ1) -> 103 | EA2: =COUNTIF(Лист1!$B$2:$B$77501,EA1) -> 67 | EB2: =COUNTIF(Лист1!$B$2:$B$77501,EB1) -> 64 | EC2: =COUNTIF(Лист1!$B$2:$B$77501,EC1) -> 90 | ED2: =COUNTIF(Лист1!$B$2:$B$77501,ED1) -> 105 | EE2: =COUNTIF(Лист1!$B$2:$B$77501,EE1) -> 26 | EF2: =COUNTIF(Лист1!$B$2:$B$77501,EF1) -> 69 | EG2: =COUNTIF(Лист1!$B$2:$B$77501,EG1) -> 95 | EH2: =COUNTIF(Лист1!$B$2:$B$77501,EH1) -> 76 | EI2: =COUNTIF(Лист1!$B$2:$B$77501,EI1) -> 55 | EJ2: =COUNTIF(Лист1!$B$2:$B$77501,EJ1) -> 66 | EK2: =COUNTIF(Лист1!$B$2:$B$77501,EK1) -> 67 | EL2: =COUNTIF(Лист1!$B$2:$B$77501,EL1) -> 88 | EM2: =COUNTIF(Лист1!$B$2:$B$77501,EM1) -> 83 | EN2: =COUNTIF(Лист1!$B$2:$B$77501,EN1) -> 113 | EO2: =COUNTIF(Лист1!$B$2:$B$77501,EO1) -> 98 | EP2: =COUNTIF(Лист1!$B$2:$B$77501,EP1) -> 89 | EQ2: =COUNTIF(Лист1!$B$2:$B$77501,EQ1) -> 91 | ER2: =COUNTIF(Лист1!$B$2:$B$77501,ER1) -> 67 | ES2: =COUNTIF(Лист1!$B$2:$B$77501,ES1) -> 77 | ET2: =COUNTIF(Лист1!$B$2:$B$77501,ET1) -> 69 | EU2: =COUNTIF(Лист1!$B$2:$B$77501,EU1) -> 99 | EV2: =COUNTIF(Лист1!$B$2:$B$77501,EV1) -> 73 | EW2: =COUNTIF(Лист1!$B$2:$B$77501,EW1) -> 99 | EX2: =COUNTIF(Лист1!$B$2:$B$77501,EX1) -> 77 | EY2: =COUNTIF(Лист1!$B$2:$B$77501,EY1) -> 95 | EZ2: =COUNTIF(Лист1!$B$2:$B$77501,EZ1) -> 76 | FA2: =COUNTIF(Лист1!$B$2:$B$77501,FA1) -> 79 | FB2: =COUNTIF(Лист1!$B$2:$B$77501,FB1) -> 54 | FC2: =COUNTIF(Лист1!$B$2:$B$77501,FC1) -> 79 | FD2: =COUNTIF(Лист1!$B$2:$B$77501,FD1) -> 43 | FE2: =COUNTIF(Лист1!$B$2:$B$77501,FE1) -> 69 | FF2: =COUNTIF(Лист1!$B$2:$B$77501,FF1) -> 54 | FG2: =COUNTIF(Лист1!$B$2:$B$77501,FG1) -> 73 | FH2: =COUNTIF(Лист1!$B$2:$B$77501,FH1) -> 89 | FI2: =COUNTIF(Лист1!$B$2:$B$77501,FI1) -> 83 | FJ2: =COUNTIF(Лист1!$B$2:$B$77501,FJ1) -> 74 | FK2: =COUNTIF(Лист1!$B$2:$B$77501,FK1) -> 89 | FL2: =COUNTIF(Лист1!$B$2:$B$77501,FL1) -> 71 | FM2: =COUNTIF(Лист1!$B$2:$B$77501,FM1) -> 85 | FN2: =COUNTIF(Лист1!$B$2:$B$77501,FN1) -> 92 | FO2: =COUNTIF(Лист1!$B$2:$B$77501,FO1) -> 55 | FP2: =COUNTIF(Лист1!$B$2:$B$77501,FP1) -> 81 | FQ2: =COUNTIF(Лист1!$B$2:$B$77501,FQ1) -> 69 | FR2: =COUNTIF(Лист1!$B$2:$B$77501,FR1) -> 75 | FS2: =COUNTIF(Лист1!$B$2:$B$77501,FS1) -> 77 | FT2: =COUNTIF(Лист1!$B$2:$B$77501,FT1) -> 42 | FU2: =COUNTIF(Лист1!$B$2:$B$77501,FU1) -> 50 | FV2: =COUNTIF(Лист1!$B$2:$B$77501,FV1) -> 48 | FW2: =COUNTIF(Лист1!$B$2:$B$77501,FW1) -> 80 | FX2: =COUNTIF(Лист1!$B$2:$B$77501,FX1) -> 76 | FY2: =COUNTIF(Лист1!$B$2:$B$77501,FY1) -> 88 | FZ2: =COUNTIF(Лист1!$B$2:$B$77501,FZ1) -> 74 | GA2: =COUNTIF(Лист1!$B$2:$B$77501,GA1) -> 94 | GB2: =COUNTIF(Лист1!$B$2:$B$77501,GB1) -> 73 | GC2: =COUNTIF(Лист1!$B$2:$B$77501,GC1) -> 72 | GD2: =COUNTIF(Лист1!$B$2:$B$77501,GD1) -> 49 | GE2: =COUNTIF(Лист1!$B$2:$B$77501,GE1) -> 82 | GF2: =COUNTIF(Лист1!$B$2:$B$77501,GF1) -> 59 | GG2: =COUNTIF(Лист1!$B$2:$B$77501,GG1) -> 46 | GH2: =COUNTIF(Лист1!$B$2:$B$77501,GH1) -> 75 | GI2: =COUNTIF(Лист1!$B$2:$B$77501,GI1) -> 32 | GJ2: =COUNTIF(Лист1!$B$2:$B$77501,GJ1) -> 82 | GK2: =COUNTIF(Лист1!$B$2:$B$77501,GK1) -> 89 | GL2: =COUNTIF(Лист1!$B$2:$B$77501,GL1) -> 81 | GM2: =COUNTIF(Лист1!$B$2:$B$77501,GM1) -> 77 | GN2: =COUNTIF(Лист1!$B$2:$B$77501,GN1) -> 91 | GO2: =COUNTIF(Лист1!$B$2:$B$77501,GO1) -> 58 | GP2: =COUNTIF(Лист1!$B$2:$B$77501,GP1) -> 76 | GQ2: =COUNTIF(Лист1!$B$2:$B$77501,GQ1) -> 93 | GR2: =COUNTIF(Лист1!$B$2:$B$77501,GR1) -> 80 | GS2: =COUNTIF(Лист1!$B$2:$B$77501,GS1) -> 71 | GT2: =COUNTIF(Лист1!$B$2:$B$77501,GT1) -> 65 | GU2: =COUNTIF(Лист1!$B$2:$B$77501,GU1) -> 61 | GV2: =COUNTIF(Лист1!$B$2:$B$77501,GV1) -> 51 | GW2: =COUNTIF(Лист1!$B$2:$B$77501,GW1) -> 62 | GX2: =COUNTIF(Лист1!$B$2:$B$77501,GX1) -> 73 | GY2: =COUNTIF(Лист1!$B$2:$B$77501,GY1) -> 78 | GZ2: =COUNTIF(Лист1!$B$2:$B$77501,GZ1) -> 75 | HA2: =COUNTIF(Лист1!$B$2:$B$77501,HA1) -> 77 | HB2: =COUNTIF(Лист1!$B$2:$B$77501,HB1) -> 87 | HC2: =COUNTIF(Лист1!$B$2:$B$77501,HC1) -> 74 | HD2: =COUNTIF(Лист1!$B$2:$B$77501,HD1) -> 63 | HE2: =COUNTIF(Лист1!$B$2:$B$77501,HE1) -> 85 | HF2: =COUNTIF(Лист1!$B$2:$B$77501,HF1) -> 82 | HG2: =COUNTIF(Лист1!$B$2:$B$77501,HG1) -> 79 | HH2: =COUNTIF(Лист1!$B$2:$B$77501,HH1) -> 101 | HI2: =COUNTIF(Лист1!$B$2:$B$77501,HI1) -> 95 | HJ2: =COUNTIF(Лист1!$B$2:$B$77501,HJ1) -> 111 | HK2: =COUNTIF(Лист1!$B$2:$B$77501,HK1) -> 103 | HL2: =COUNTIF(Лист1!$B$2:$B$77501,HL1) -> 103 | HM2: =COUNTIF(Лист1!$B$2:$B$77501,HM1) -> 82 | HN2: =COUNTIF(Лист1!$B$2:$B$77501,HN1) -> 92 | HO2: =COUNTIF(Лист1!$B$2:$B$77501,HO1) -> 67 | HP2: =COUNTIF(Лист1!$B$2:$B$77501,HP1) -> 80 | HQ2: =COUNTIF(Лист1!$B$2:$B$77501,HQ1) -> 96 | HR2: =COUNTIF(Лист1!$B$2:$B$77501,HR1) -> 81 | HS2: =COUNTIF(Лист1!$B$2:$B$77501,HS1) -> 99 | HT2: =COUNTIF(Лист1!$B$2:$B$77501,HT1) -> 92 | HU2: =COUNTIF(Лист1!$B$2:$B$77501,HU1) -> 86 | HV2: =COUNTIF(Лист1!$B$2:$B$77501,HV1) -> 104 | HW2: =COUNTIF(Лист1!$B$2:$B$77501,HW1) -> 103 | HX2: =COUNTIF(Лист1!$B$2:$B$77501,HX1) -> 95 | HY2: =COUNTIF(Лист1!$B$2:$B$77501,HY1) -> 69 | HZ2: =COUNTIF(Лист1!$B$2:$B$77501,HZ1) -> 93 | IA2: =COUNTIF(Лист1!$B$2:$B$77501,IA1) -> 81 | IB2: =COUNTIF(Лист1!$B$2:$B$77501,IB1) -> 102 | IC2: =COUNTIF(Лист1!$B$2:$B$77501,IC1) -> 100 | ID2: =COUNTIF(Лист1!$B$2:$B$77501,ID1) -> 102 | IE2: =COUNTIF(Лист1!$B$2:$B$77501,IE1) -> 103 | IF2: =COUNTIF(Лист1!$B$2:$B$77501,IF1) -> 106 | IG2: =COUNTIF(Лист1!$B$2:$B$77501,IG1) -> 109 | IH2: =COUNTIF(Лист1!$B$2:$B$77501,IH1) -> 106 | II2: =COUNTIF(Лист1!$B$2:$B$77501,II1) -> 97 | IJ2: =COUNTIF(Лист1!$B$2:$B$77501,IJ1) -> 108 | IK2: =COUNTIF(Лист1!$B$2:$B$77501,IK1) -> 112 | IL2: =COUNTIF(Лист1!$B$2:$B$77501,IL1) -> 112 | IM2: =COUNTIF(Лист1!$B$2:$B$77501,IM1) -> 102 | IN2: =COUNTIF(Лист1!$B$2:$B$77501,IN1) -> 85 | IO2: =COUNTIF(Лист1!$B$2:$B$77501,IO1) -> 99 | IP2: =COUNTIF(Лист1!$B$2:$B$77501,IP1) -> 93 | IQ2: =COUNTIF(Лист1!$B$2:$B$77501,IQ1) -> 81 | IR2: =COUNTIF(Лист1!$B$2:$B$77501,IR1) -> 72 | IS2: =COUNTIF(Лист1!$B$2:$B$77501,IS1) -> 91 | IT2: =COUNTIF(Лист1!$B$2:$B$77501,IT1) -> 105 | IU2: =COUNTIF(Лист1!$B$2:$B$77501,IU1) -> 83 | IV2: =COUNTIF(Лист1!$B$2:$B$77501,IV1) -> 65 | IW2: =COUNTIF(Лист1!$B$2:$B$77501,IW1) -> 77 | IX2: =COUNTIF(Лист1!$B$2:$B$77501,IX1) -> 78 | IY2: =COUNTIF(Лист1!$B$2:$B$77501,IY1) -> 84 | IZ2: =COUNTIF(Лист1!$B$2:$B$77501,IZ1) -> 78 | JA2: =COUNTIF(Лист1!$B$2:$B$77501,JA1) -> 80 | JB2: =COUNTIF(Лист1!$B$2:$B$77501,JB1) -> 72 | JC2: =COUNTIF(Лист1!$B$2:$B$77501,JC1) -> 90 | JD2: =COUNTIF(Лист1!$B$2:$B$77501,JD1) -> 76 | JE2: =COUNTIF(Лист1!$B$2:$B$77501,JE1) -> 83 | JF2: =COUNTIF(Лист1!$B$2:$B$77501,JF1) -> 40 | JG2: =COUNTIF(Лист1!$B$2:$B$77501,JG1) -> 63 | JH2: =COUNTIF(Лист1!$B$2:$B$77501,JH1) -> 69 | JI2: =COUNTIF(Лист1!$B$2:$B$77501,JI1) -> 71 | JJ2: =COUNTIF(Лист1!$B$2:$B$77501,JJ1) -> 50 | JK2: =COUNTIF(Лист1!$B$2:$B$77501,JK1) -> 106 | JL2: =COUNTIF(Лист1!$B$2:$B$77501,JL1) -> 83 | JM2: =COUNTIF(Лист1!$B$2:$B$77501,JM1) -> 85 | JN2: =COUNTIF(Лист1!$B$2:$B$77501,JN1) -> 95 | JO2: =COUNTIF(Лист1!$B$2:$B$77501,JO1) -> 77 | JP2: =COUNTIF(Лист1!$B$2:$B$77501,JP1) -> 96 | JQ2: =COUNTIF(Лист1!$B$2:$B$77501,JQ1) -> 88 | JR2: =COUNTIF(Лист1!$B$2:$B$77501,JR1) -> 89 | JS2: =COUNTIF(Лист1!$B$2:$B$77501,JS1) -> 61 | JT2: =COUNTIF(Лист1!$B$2:$B$77501,JT1) -> 90 | JU2: =COUNTIF(Лист1!$B$2:$B$77501,JU1) -> 87 | JV2: =COUNTIF(Лист1!$B$2:$B$77501,JV1) -> 74 | JW2: =COUNTIF(Лист1!$B$2:$B$77501,JW1) -> 100 | JX2: =COUNTIF(Лист1!$B$2:$B$77501,JX1) -> 90 | JY2: =COUNTIF(Лист1!$B$2:$B$77501,JY1) -> 104 | JZ2: =COUNTIF(Лист1!$B$2:$B$77501,JZ1) -> 95 | KA2: =COUNTIF(Лист1!$B$2:$B$77501,KA1) -> 100 | KB2: =COUNTIF(Лист1!$B$2:$B$77501,KB1) -> 92 | KC2: =COUNTIF(Лист1!$B$2:$B$77501,KC1) -> 94 | KD2: =COUNTIF(Лист1!$B$2:$B$77501,KD1) -> 88 | KE2: =COUNTIF(Лист1!$B$2:$B$77501,KE1) -> 99 | KF2: =COUNTIF(Лист1!$B$2:$B$77501,KF1) -> 72 | KG2: =COUNTIF(Лист1!$B$2:$B$77501,KG1) -> 88 | KH2: =COUNTIF(Лист1!$B$2:$B$77501,KH1) -> 84 | KI2: =COUNTIF(Лист1!$B$2:$B$77501,KI1) -> 79 | KJ2: =COUNTIF(Лист1!$B$2:$B$77501,KJ1) -> 65 | KK2: =COUNTIF(Лист1!$B$2:$B$77501,KK1) -> 109 | KL2: =COUNTIF(Лист1!$B$2:$B$77501,KL1) -> 94 | KM2: =COUNTIF(Лист1!$B$2:$B$77501,KM1) -> 111 | KN2: =COUNTIF(Лист1!$B$2:$B$77501,KN1) -> 92 | KO2: =COUNTIF(Лист1!$B$2:$B$77501,KO1) -> 107 | KP2: =COUNTIF(Лист1!$B$2:$B$77501,KP1) -> 105 | KQ2: =COUNTIF(Лист1!$B$2:$B$77501,KQ1) -> 102 | KR2: =COUNTIF(Лист1!$B$2:$B$77501,KR1) -> 100 | KS2: =COUNTIF(Лист1!$B$2:$B$77501,KS1) -> 111 | KT2: =COUNTIF(Лист1!$B$2:$B$77501,KT1) -> 110 | KU2: =COUNTIF(Лист1!$B$2:$B$77501,KU1) -> 109 | KV2: =COUNTIF(Лист1!$B$2:$B$77501,KV1) -> 111 | KW2: =COUNTIF(Лист1!$B$2:$B$77501,KW1) -> 91 | KX2: =COUNTIF(Лист1!$B$2:$B$77501,KX1) -> 87 | KY2: =COUNTIF(Лист1!$B$2:$B$77501,KY1) -> 83 | KZ2: =COUNTIF(Лист1!$B$2:$B$77501,KZ1) -> 70 | LA2: =COUNTIF(Лист1!$B$2:$B$77501,LA1) -> 95 | LB2: =COUNTIF(Лист1!$B$2:$B$77501,LB1) -> 106 | LC2: =COUNTIF(Лист1!$B$2:$B$77501,LC1) -> 104 | LD2: =COUNTIF(Лист1!$B$2:$B$77501,LD1) -> 110 | LE2: =COUNTIF(Лист1!$B$2:$B$77501,LE1) -> 97 | LF2: =COUNTIF(Лист1!$B$2:$B$77501,LF1) -> 90 | LG2: =COUNTIF(Лист1!$B$2:$B$77501,LG1) -> 96 | LH2: =COUNTIF(Лист1!$B$2:$B$77501,LH1) -> 106 | LI2: =COUNTIF(Лист1!$B$2:$B$77501,LI1) -> 93 | LJ2: =COUNTIF(Лист1!$B$2:$B$77501,LJ1) -> 92 | LK2: =COUNTIF(Лист1!$B$2:$B$77501,LK1) -> 88 | LL2: =COUNTIF(Лист1!$B$2:$B$77501,LL1) -> 64 | LM2: =COUNTIF(Лист1!$B$2:$B$77501,LM1) -> 82 | LN2: =COUNTIF(Лист1!$B$2:$B$77501,LN1) -> 113 | LO2: =COUNTIF(Лист1!$B$2:$B$77501,LO1) -> 108 | LP2: =COUNTIF(Лист1!$B$2:$B$77501,LP1) -> 94 | LQ2: =COUNTIF(Лист1!$B$2:$B$77501,LQ1) -> 58 | LR2: =COUNTIF(Лист1!$B$2:$B$77501,LR1) -> 71 | LS2: =COUNTIF(Лист1!$B$2:$B$77501,LS1) -> 83 | LT2: =COUNTIF(Лист1!$B$2:$B$77501,LT1) -> 61 | LU2: =COUNTIF(Лист1!$B$2:$B$77501,LU1) -> 96 | LV2: =COUNTIF(Лист1!$B$2:$B$77501,LV1) -> 92 | LW2: =COUNTIF(Лист1!$B$2:$B$77501,LW1) -> 94 | LX2: =COUNTIF(Лист1!$B$2:$B$77501,LX1) -> 83 | LY2: =COUNTIF(Лист1!$B$2:$B$77501,LY1) -> 68 | LZ2: =COUNTIF(Лист1!$B$2:$B$77501,LZ1) -> 107 | MA2: =COUNTIF(Лист1!$B$2:$B$77501,MA1) -> 86 | MB2: =COUNTIF(Лист1!$B$2:$B$77501,MB1) -> 99 | MC2: =COUNTIF(Лист1!$B$2:$B$77501,MC1) -> 94 | MD2: =COUNTIF(Лист1!$B$2:$B$77501,MD1) -> 91 | ME2: =COUNTIF(Лист1!$B$2:$B$77501,ME1) -> 101 | MF2: =COUNTIF(Лист1!$B$2:$B$77501,MF1) -> 84 | MG2: =COUNTIF(Лист1!$B$2:$B$77501,MG1) -> 97 | MH2: =COUNTIF(Лист1!$B$2:$B$77501,MH1) -> 106 | MI2: =COUNTIF(Лист1!$B$2:$B$77501,MI1) -> 72 | MJ2: =COUNTIF(Лист1!$B$2:$B$77501,MJ1) -> 93 | MK2: =COUNTIF(Лист1!$B$2:$B$77501,MK1) -> 106 | ML2: =COUNTIF(Лист1!$B$2:$B$77501,ML1) -> 99 | MM2: =COUNTIF(Лист1!$B$2:$B$77501,MM1) -> 107 | MN2: =COUNTIF(Лист1!$B$2:$B$77501,MN1) -> 106 | MO2: =COUNTIF(Лист1!$B$2:$B$77501,MO1) -> 74 | MP2: =COUNTIF(Лист1!$B$2:$B$77501,MP1) -> 55 | MQ2: =COUNTIF(Лист1!$B$2:$B$77501,MQ1) -> 105 | MR2: =COUNTIF(Лист1!$B$2:$B$77501,MR1) -> 87 | MS2: =COUNTIF(Лист1!$B$2:$B$77501,MS1) -> 99 | MT2: =COUNTIF(Лист1!$B$2:$B$77501,MT1) -> 90 | MU2: =COUNTIF(Лист1!$B$2:$B$77501,MU1) -> 93 | MV2: =COUNTIF(Лист1!$B$2:$B$77501,MV1) -> 84 | MW2: =COUNTIF(Лист1!$B$2:$B$77501,MW1) -> 82 | MX2: =COUNTIF(Лист1!$B$2:$B$77501,MX1) -> 94 | MY2: =COUNTIF(Лист1!$B$2:$B$77501,MY1) -> 102 | MZ2: =COUNTIF(Лист1!$B$2:$B$77501,MZ1) -> 95 | NA2: =COUNTIF(Лист1!$B$2:$B$77501,NA1) -> 65 | NB2: =COUNTIF(Лист1!$B$2:$B$77501,NB1) -> 85 | NC2: =COUNTIF(Лист1!$B$2:$B$77501,NC1) -> 86 | ND2: =COUNTIF(Лист1!$B$2:$B$77501,ND1) -> 98 | NE2: =COUNTIF(Лист1!$B$2:$B$77501,NE1) -> 109 | NF2: =COUNTIF(Лист1!$B$2:$B$77501,NF1) -> 111 | NG2: =COUNTIF(Лист1!$B$2:$B$77501,NG1) -> 110 | NH2: =COUNTIF(Лист1!$B$2:$B$77501,NH1) -> 106 | NI2: =COUNTIF(Лист1!$B$2:$B$77501,NI1) -> 108 | NJ2: =COUNTIF(Лист1!$B$2:$B$77501,NJ1) -> 111 | NK2: =COUNTIF(Лист1!$B$2:$B$77501,NK1) -> 96 | NL2: =COUNTIF(Лист1!$B$2:$B$77501,NL1) -> 81 | NM2: =COUNTIF(Лист1!$B$2:$B$77501,NM1) -> 57 | NN2: =COUNTIF(Лист1!$B$2:$B$77501,NN1) -> 93 | NO2: =COUNTIF(Лист1!$B$2:$B$77501,NO1) -> 78 | NP2: =COUNTIF(Лист1!$B$2:$B$77501,NP1) -> 87 | NQ2: =COUNTIF(Лист1!$B$2:$B$77501,NQ1) -> 88 | NR2: =COUNTIF(Лист1!$B$2:$B$77501,NR1) -> 93 | NS2: =COUNTIF(Лист1!$B$2:$B$77501,NS1) -> 101 | NT2: =COUNTIF(Лист1!$B$2:$B$77501,NT1) -> 110 | NU2: =COUNTIF(Лист1!$B$2:$B$77501,NU1) -> 42 | NV2: =COUNTIF(Лист1!$B$2:$B$77501,NV1) -> 66 | NW2: =COUNTIF(Лист1!$B$2:$B$77501,NW1) -> 87 | NX2: =COUNTIF(Лист1!$B$2:$B$77501,NX1) -> 85 | NY2: =COUNTIF(Лист1!$B$2:$B$77501,NY1) -> 74 | NZ2: =COUNTIF(Лист1!$B$2:$B$77501,NZ1) -> 99 | OA2: =COUNTIF(Лист1!$B$2:$B$77501,OA1) -> 93 | OB2: =COUNTIF(Лист1!$B$2:$B$77501,OB1) -> 86 | OC2: =COUNTIF(Лист1!$B$2:$B$77501,OC1) -> 57 | OD2: =COUNTIF(Лист1!$B$2:$B$77501,OD1) -> 53 | OE2: =COUNTIF(Лист1!$B$2:$B$77501,OE1) -> 64 | OF2: =COUNTIF(Лист1!$B$2:$B$77501,OF1) -> 90 | OG2: =COUNTIF(Лист1!$B$2:$B$77501,OG1) -> 88 | OH2: =COUNTIF(Лист1!$B$2:$B$77501,OH1) -> 76 | OI2: =COUNTIF(Лист1!$B$2:$B$77501,OI1) -> 64 | OJ2: =COUNTIF(Лист1!$B$2:$B$77501,OJ1) -> 100 | OK2: =COUNTIF(Лист1!$B$2:$B$77501,OK1) -> 54 | OL2: =COUNTIF(Лист1!$B$2:$B$77501,OL1) -> 79 | OM2: =COUNTIF(Лист1!$B$2:$B$77501,OM1) -> 80 | ON2: =COUNTIF(Лист1!$B$2:$B$77501,ON1) -> 66 | OO2: =COUNTIF(Лист1!$B$2:$B$77501,OO1) -> 84 | OP2: =COUNTIF(Лист1!$B$2:$B$77501,OP1) -> 81 | OQ2: =COUNTIF(Лист1!$B$2:$B$77501,OQ1) -> 84 | OR2: =COUNTIF(Лист1!$B$2:$B$77501,OR1) -> 85 | OS2: =COUNTIF(Лист1!$B$2:$B$77501,OS1) -> 88 | OT2: =COUNTIF(Лист1!$B$2:$B$77501,OT1) -> 96 | OU2: =COUNTIF(Лист1!$B$2:$B$77501,OU1) -> 79 | OV2: =COUNTIF(Лист1!$B$2:$B$77501,OV1) -> 85 | OW2: =COUNTIF(Лист1!$B$2:$B$77501,OW1) -> 80 | OX2: =COUNTIF(Лист1!$B$2:$B$77501,OX1) -> 102 | OY2: =COUNTIF(Лист1!$B$2:$B$77501,OY1) -> 97 | OZ2: =COUNTIF(Лист1!$B$2:$B$77501,OZ1) -> 92 | PA2: =COUNTIF(Лист1!$B$2:$B$77501,PA1) -> 94 | PB2: =COUNTIF(Лист1!$B$2:$B$77501,PB1) -> 83 | PC2: =COUNTIF(Лист1!$B$2:$B$77501,PC1) -> 95 | PD2: =COUNTIF(Лист1!$B$2:$B$77501,PD1) -> 93 | PE2: =COUNTIF(Лист1!$B$2:$B$77501,PE1) -> 81 | PF2: =COUNTIF(Лист1!$B$2:$B$77501,PF1) -> 84 | PG2: =COUNTIF(Лист1!$B$2:$B$77501,PG1) -> 80 | PH2: =COUNTIF(Лист1!$B$2:$B$77501,PH1) -> 87 | PI2: =COUNTIF(Лист1!$B$2:$B$77501,PI1) -> 62 | PJ2: =COUNTIF(Лист1!$B$2:$B$77501,PJ1) -> 89 | PK2: =COUNTIF(Лист1!$B$2:$B$77501,PK1) -> 83 | PL2: =COUNTIF(Лист1!$B$2:$B$77501,PL1) -> 74 | PM2: =COUNTIF(Лист1!$B$2:$B$77501,PM1) -> 79 | PN2: =COUNTIF(Лист1!$B$2:$B$77501,PN1) -> 94 | PO2: =COUNTIF(Лист1!$B$2:$B$77501,PO1) -> 78 | PP2: =COUNTIF(Лист1!$B$2:$B$77501,PP1) -> 93 | PQ2: =COUNTIF(Лист1!$B$2:$B$77501,PQ1) -> 98 | PR2: =COUNTIF(Лист1!$B$2:$B$77501,PR1) -> 94 | PS2: =COUNTIF(Лист1!$B$2:$B$77501,PS1) -> 104 | PT2: =COUNTIF(Лист1!$B$2:$B$77501,PT1) -> 104 | PU2: =COUNTIF(Лист1!$B$2:$B$77501,PU1) -> 104 | PV2: =COUNTIF(Лист1!$B$2:$B$77501,PV1) -> 100 | PW2: =COUNTIF(Лист1!$B$2:$B$77501,PW1) -> 99 | PX2: =COUNTIF(Лист1!$B$2:$B$77501,PX1) -> 96 | PY2: =COUNTIF(Лист1!$B$2:$B$77501,PY1) -> 111 | PZ2: =COUNTIF(Лист1!$B$2:$B$77501,PZ1) -> 105 | QA2: =COUNTIF(Лист1!$B$2:$B$77501,QA1) -> 96 | QB2: =COUNTIF(Лист1!$B$2:$B$77501,QB1) -> 96 | QC2: =COUNTIF(Лист1!$B$2:$B$77501,QC1) -> 100 | QD2: =COUNTIF(Лист1!$B$2:$B$77501,QD1) -> 100 | QE2: =COUNTIF(Лист1!$B$2:$B$77501,QE1) -> 94 | QF2: =COUNTIF(Лист1!$B$2:$B$77501,QF1) -> 98 | QG2: =COUNTIF(Лист1!$B$2:$B$77501,QG1) -> 100 | QH2: =COUNTIF(Лист1!$B$2:$B$77501,QH1) -> 98 | QI2: =COUNTIF(Лист1!$B$2:$B$77501,QI1) -> 108 | QJ2: =COUNTIF(Лист1!$B$2:$B$77501,QJ1) -> 108 | QK2: =COUNTIF(Лист1!$B$2:$B$77501,QK1) -> 106 | QL2: =COUNTIF(Лист1!$B$2:$B$77501,QL1) -> 106 | QM2: =COUNTIF(Лист1!$B$2:$B$77501,QM1) -> 101 | QN2: =COUNTIF(Лист1!$B$2:$B$77501,QN1) -> 97 | QO2: =COUNTIF(Лист1!$B$2:$B$77501,QO1) -> 98 | QP2: =COUNTIF(Лист1!$B$2:$B$77501,QP1) -> 101 | QQ2: =COUNTIF(Лист1!$B$2:$B$77501,QQ1) -> 107 | QR2: =COUNTIF(Лист1!$B$2:$B$77501,QR1) -> 97 | QS2: =COUNTIF(Лист1!$B$2:$B$77501,QS1) -> 79 | QT2: =COUNTIF(Лист1!$B$2:$B$77501,QT1) -> 102 | QU2: =COUNTIF(Лист1!$B$2:$B$77501,QU1) -> 91 | QV2: =COUNTIF(Лист1!$B$2:$B$77501,QV1) -> 97 | QW2: =COUNTIF(Лист1!$B$2:$B$77501,QW1) -> 102 | QX2: =COUNTIF(Лист1!$B$2:$B$77501,QX1) -> 108 | QY2: =COUNTIF(Лист1!$B$2:$B$77501,QY1) -> 108 | QZ2: =COUNTIF(Лист1!$B$2:$B$77501,QZ1) -> 100 | RA2: =COUNTIF(Лист1!$B$2:$B$77501,RA1) -> 103 | RB2: =COUNTIF(Лист1!$B$2:$B$77501,RB1) -> 106 | RC2: =COUNTIF(Лист1!$B$2:$B$77501,RC1) -> 106 | RD2: =COUNTIF(Лист1!$B$2:$B$77501,RD1) -> 108 | RE2: =COUNTIF(Лист1!$B$2:$B$77501,RE1) -> 81 | RF2: =COUNTIF(Лист1!$B$2:$B$77501,RF1) -> 106 | RG2: =COUNTIF(Лист1!$B$2:$B$77501,RG1) -> 101 | RH2: =COUNTIF(Лист1!$B$2:$B$77501,RH1) -> 104 | RI2: =COUNTIF(Лист1!$B$2:$B$77501,RI1) -> 107 | RJ2: =COUNTIF(Лист1!$B$2:$B$77501,RJ1) -> 106 | RK2: =COUNTIF(Лист1!$B$2:$B$77501,RK1) -> 103 | RL2: =COUNTIF(Лист1!$B$2:$B$77501,RL1) -> 106 | RM2: =COUNTIF(Лист1!$B$2:$B$77501,RM1) -> 101 | RN2: =COUNTIF(Лист1!$B$2:$B$77501,RN1) -> 92 | RO2: =COUNTIF(Лист1!$B$2:$B$77501,RO1) -> 105 | RP2: =COUNTIF(Лист1!$B$2:$B$77501,RP1) -> 106 | RQ2: =COUNTIF(Лист1!$B$2:$B$77501,RQ1) -> 101 | RR2: =COUNTIF(Лист1!$B$2:$B$77501,RR1) -> 92 | RS2: =COUNTIF(Лист1!$B$2:$B$77501,RS1) -> 85 | RT2: =COUNTIF(Лист1!$B$2:$B$77501,RT1) -> 79 | RU2: =COUNTIF(Лист1!$B$2:$B$77501,RU1) -> 107 | RV2: =COUNTIF(Лист1!$B$2:$B$77501,RV1) -> 68 | RW2: =COUNTIF(Лист1!$B$2:$B$77501,RW1) -> 95 | RX2: =COUNTIF(Лист1!$B$2:$B$77501,RX1) -> 91 | RY2: =COUNTIF(Лист1!$B$2:$B$77501,RY1) -> 90 | RZ2: =COUNTIF(Лист1!$B$2:$B$77501,RZ1) -> 81 | SA2: =COUNTIF(Лист1!$B$2:$B$77501,SA1) -> 77 | SB2: =COUNTIF(Лист1!$B$2:$B$77501,SB1) -> 93 | SC2: =COUNTIF(Лист1!$B$2:$B$77501,SC1) -> 102 | SD2: =COUNTIF(Лист1!$B$2:$B$77501,SD1) -> 83 | SE2: =COUNTIF(Лист1!$B$2:$B$77501,SE1) -> 85 | SF2: =COUNTIF(Лист1!$B$2:$B$77501,SF1) -> 62 | SG2: =COUNTIF(Лист1!$B$2:$B$77501,SG1) -> 93 | SH2: =COUNTIF(Лист1!$B$2:$B$77501,SH1) -> 85 | SI2: =COUNTIF(Лист1!$B$2:$B$77501,SI1) -> 88 | SJ2: =COUNTIF(Лист1!$B$2:$B$77501,SJ1) -> 93 | SK2: =COUNTIF(Лист1!$B$2:$B$77501,SK1) -> 100 | SL2: =COUNTIF(Лист1!$B$2:$B$77501,SL1) -> 84 | SM2: =COUNTIF(Лист1!$B$2:$B$77501,SM1) -> 97 | SN2: =COUNTIF(Лист1!$B$2:$B$77501,SN1) -> 104 | SO2: =COUNTIF(Лист1!$B$2:$B$77501,SO1) -> 105 | SP2: =COUNTIF(Лист1!$B$2:$B$77501,SP1) -> 100 | SQ2: =COUNTIF(Лист1!$B$2:$B$77501,SQ1) -> 99 | SR2: =COUNTIF(Лист1!$B$2:$B$77501,SR1) -> 83 | SS2: =COUNTIF(Лист1!$B$2:$B$77501,SS1) -> 77 | ST2: =COUNTIF(Лист1!$B$2:$B$77501,ST1) -> 89 | SU2: =COUNTIF(Лист1!$B$2:$B$77501,SU1) -> 76 | SV2: =COUNTIF(Лист1!$B$2:$B$77501,SV1) -> 106 | SW2: =COUNTIF(Лист1!$B$2:$B$77501,SW1) -> 77 | SX2: =COUNTIF(Лист1!$B$2:$B$77501,SX1) -> 101 | SY2: =COUNTIF(Лист1!$B$2:$B$77501,SY1) -> 107 | SZ2: =COUNTIF(Лист1!$B$2:$B$77501,SZ1) -> 107 | TA2: =COUNTIF(Лист1!$B$2:$B$77501,TA1) -> 66 | TB2: =COUNTIF(Лист1!$B$2:$B$77501,TB1) -> 71 | TC2: =COUNTIF(Лист1!$B$2:$B$77501,TC1) -> 85 | TD2: =COUNTIF(Лист1!$B$2:$B$77501,TD1) -> 90 | TE2: =COUNTIF(Лист1!$B$2:$B$77501,TE1) -> 88 | TF2: =COUNTIF(Лист1!$B$2:$B$77501,TF1) -> 97 | TG2: =COUNTIF(Лист1!$B$2:$B$77501,TG1) -> 101 | TH2: =COUNTIF(Лист1!$B$2:$B$77501,TH1) -> 66 | TI2: =COUNTIF(Лист1!$B$2:$B$77501,TI1) -> 78 | TJ2: =COUNTIF(Лист1!$B$2:$B$77501,TJ1) -> 111 | TK2: =COUNTIF(Лист1!$B$2:$B$77501,TK1) -> 70 | TL2: =COUNTIF(Лист1!$B$2:$B$77501,TL1) -> 77 | TM2: =COUNTIF(Лист1!$B$2:$B$77501,TM1) -> 94 | TN2: =COUNTIF(Лист1!$B$2:$B$77501,TN1) -> 86 | TO2: =COUNTIF(Лист1!$B$2:$B$77501,TO1) -> 104 | TP2: =COUNTIF(Лист1!$B$2:$B$77501,TP1) -> 83 | TQ2: =COUNTIF(Лист1!$B$2:$B$77501,TQ1) -> 88 | TR2: =COUNTIF(Лист1!$B$2:$B$77501,TR1) -> 95 | TS2: =COUNTIF(Лист1!$B$2:$B$77501,TS1) -> 88 | TT2: =COUNTIF(Лист1!$B$2:$B$77501,TT1) -> 99 | TU2: =COUNTIF(Лист1!$B$2:$B$77501,TU1) -> 95 | TV2: =COUNTIF(Лист1!$B$2:$B$77501,TV1) -> 81 | TW2: =COUNTIF(Лист1!$B$2:$B$77501,TW1) -> 85 | TX2: =COUNTIF(Лист1!$B$2:$B$77501,TX1) -> 79 | TY2: =COUNTIF(Лист1!$B$2:$B$77501,TY1) -> 89 | TZ2: =COUNTIF(Лист1!$B$2:$B$77501,TZ1) -> 80 | UA2: =COUNTIF(Лист1!$B$2:$B$77501,UA1) -> 68 | UB2: =COUNTIF(Лист1!$B$2:$B$77501,UB1) -> 76 | UC2: =COUNTIF(Лист1!$B$2:$B$77501,UC1) -> 72 | UD2: =COUNTIF(Лист1!$B$2:$B$77501,UD1) -> 90 | UE2: =COUNTIF(Лист1!$B$2:$B$77501,UE1) -> 79 | UF2: =COUNTIF(Лист1!$B$2:$B$77501,UF1) -> 84 | UG2: =COUNTIF(Лист1!$B$2:$B$77501,UG1) -> 88 | UH2: =COUNTIF(Лист1!$B$2:$B$77501,UH1) -> 106 | UI2: =COUNTIF(Лист1!$B$2:$B$77501,UI1) -> 94 | UJ2: =COUNTIF(Лист1!$B$2:$B$77501,UJ1) -> 105 | UK2: =COUNTIF(Лист1!$B$2:$B$77501,UK1) -> 107 | UL2: =COUNTIF(Лист1!$B$2:$B$77501,UL1) -> 109 | UM2: =COUNTIF(Лист1!$B$2:$B$77501,UM1) -> 104 | UN2: =COUNTIF(Лист1!$B$2:$B$77501,UN1) -> 110 | UO2: =COUNTIF(Лист1!$B$2:$B$77501,UO1) -> 111 | UP2: =COUNTIF(Лист1!$B$2:$B$77501,UP1) -> 106 | UQ2: =COUNTIF(Лист1!$B$2:$B$77501,UQ1) -> 105 | UR2: =COUNTIF(Лист1!$B$2:$B$77501,UR1) -> 103 | US2: =COUNTIF(Лист1!$B$2:$B$77501,US1) -> 78 | UT2: =COUNTIF(Лист1!$B$2:$B$77501,UT1) -> 102 | UU2: =COUNTIF(Лист1!$B$2:$B$77501,UU1) -> 108 | UV2: =COUNTIF(Лист1!$B$2:$B$77501,UV1) -> 88 | UW2: =COUNTIF(Лист1!$B$2:$B$77501,UW1) -> 100 | UX2: =COUNTIF(Лист1!$B$2:$B$77501,UX1) -> 105 | UY2: =COUNTIF(Лист1!$B$2:$B$77501,UY1) -> 89 | UZ2: =COUNTIF(Лист1!$B$2:$B$77501,UZ1) -> 109 | VA2: =COUNTIF(Лист1!$B$2:$B$77501,VA1) -> 97 | VB2: =COUNTIF(Лист1!$B$2:$B$77501,VB1) -> 100 | VC2: =COUNTIF(Лист1!$B$2:$B$77501,VC1) -> 109 | VD2: =COUNTIF(Лист1!$B$2:$B$77501,VD1) -> 88 | VE2: =COUNTIF(Лист1!$B$2:$B$77501,VE1) -> 54 | VF2: =COUNTIF(Лист1!$B$2:$B$77501,VF1) -> 59 | VG2: =COUNTIF(Лист1!$B$2:$B$77501,VG1) -> 88 | VH2: =COUNTIF(Лист1!$B$2:$B$77501,VH1) -> 88 | VI2: =COUNTIF(Лист1!$B$2:$B$77501,VI1) -> 88 | VJ2: =COUNTIF(Лист1!$B$2:$B$77501,VJ1) -> 66 | VK2: =COUNTIF(Лист1!$B$2:$B$77501,VK1) -> 90 | VL2: =COUNTIF(Лист1!$B$2:$B$77501,VL1) -> 94 | VM2: =COUNTIF(Лист1!$B$2:$B$77501,VM1) -> 79 | VN2: =COUNTIF(Лист1!$B$2:$B$77501,VN1) -> 88 | VO2: =COUNTIF(Лист1!$B$2:$B$77501,VO1) -> 97 | VP2: =COUNTIF(Лист1!$B$2:$B$77501,VP1) -> 58 | VQ2: =COUNTIF(Лист1!$B$2:$B$77501,VQ1) -> 62 | VR2: =COUNTIF(Лист1!$B$2:$B$77501,VR1) -> 52 | VS2: =COUNTIF(Лист1!$B$2:$B$77501,VS1) -> 65 | VT2: =COUNTIF(Лист1!$B$2:$B$77501,VT1) -> 74 | VU2: =COUNTIF(Лист1!$B$2:$B$77501,VU1) -> 83 | VV2: =COUNTIF(Лист1!$B$2:$B$77501,VV1) -> 58 | VW2: =COUNTIF(Лист1!$B$2:$B$77501,VW1) -> 102 | VX2: =COUNTIF(Лист1!$B$2:$B$77501,VX1) -> 79 | VY2: =COUNTIF(Лист1!$B$2:$B$77501,VY1) -> 100 | VZ2: =COUNTIF(Лист1!$B$2:$B$77501,VZ1) -> 98 | WA2: =COUNTIF(Лист1!$B$2:$B$77501,WA1) -> 89 | WB2: =COUNTIF(Лист1!$B$2:$B$77501,WB1) -> 86 | WC2: =COUNTIF(Лист1!$B$2:$B$77501,WC1) -> 105 | WD2: =COUNTIF(Лист1!$B$2:$B$77501,WD1) -> 79 | WE2: =COUNTIF(Лист1!$B$2:$B$77501,WE1) -> 99 | WF2: =COUNTIF(Лист1!$B$2:$B$77501,WF1) -> 84 | WG2: =COUNTIF(Лист1!$B$2:$B$77501,WG1) -> 83 | WH2: =COUNTIF(Лист1!$B$2:$B$77501,WH1) -> 103 | WI2: =COUNTIF(Лист1!$B$2:$B$77501,WI1) -> 107 | WJ2: =COUNTIF(Лист1!$B$2:$B$77501,WJ1) -> 83 | WK2: =COUNTIF(Лист1!$B$2:$B$77501,WK1) -> 74 | WL2: =COUNTIF(Лист1!$B$2:$B$77501,WL1) -> 79 | WM2: =COUNTIF(Лист1!$B$2:$B$77501,WM1) -> 75 | WN2: =COUNTIF(Лист1!$B$2:$B$77501,WN1) -> 70 | WO2: =COUNTIF(Лист1!$B$2:$B$77501,WO1) -> 88 | WP2: =COUNTIF(Лист1!$B$2:$B$77501,WP1) -> 59 | WQ2: =COUNTIF(Лист1!$B$2:$B$77501,WQ1) -> 67 | WR2: =COUNTIF(Лист1!$B$2:$B$77501,WR1) -> 76 | WS2: =COUNTIF(Лист1!$B$2:$B$77501,WS1) -> 68 | WT2: =COUNTIF(Лист1!$B$2:$B$77501,WT1) -> 47 | WU2: =COUNTIF(Лист1!$B$2:$B$77501,WU1) -> 44 | WV2: =COUNTIF(Лист1!$B$2:$B$77501,WV1) -> 67 | WW2: =COUNTIF(Лист1!$B$2:$B$77501,WW1) -> 64 | WX2: =COUNTIF(Лист1!$B$2:$B$77501,WX1) -> 41 | WY2: =COUNTIF(Лист1!$B$2:$B$77501,WY1) -> 69 | WZ2: =COUNTIF(Лист1!$B$2:$B$77501,WZ1) -> 69 | XA2: =COUNTIF(Лист1!$B$2:$B$77501,XA1) -> 54 | XB2: =COUNTIF(Лист1!$B$2:$B$77501,XB1) -> 102 | XC2: =COUNTIF(Лист1!$B$2:$B$77501,XC1) -> 103 | XD2: =COUNTIF(Лист1!$B$2:$B$77501,XD1) -> 105 | XE2: =COUNTIF(Лист1!$B$2:$B$77501,XE1) -> 103 | XF2: =COUNTIF(Лист1!$B$2:$B$77501,XF1) -> 111 | XG2: =COUNTIF(Лист1!$B$2:$B$77501,XG1) -> 104 | XH2: =COUNTIF(Лист1!$B$2:$B$77501,XH1) -> 108 | XI2: =COUNTIF(Лист1!$B$2:$B$77501,XI1) -> 101 | XJ2: =COUNTIF(Лист1!$B$2:$B$77501,XJ1) -> 71 | XK2: =COUNTIF(Лист1!$B$2:$B$77501,XK1) -> 97 | XL2: =COUNTIF(Лист1!$B$2:$B$77501,XL1) -> 92 | XM2: =COUNTIF(Лист1!$B$2:$B$77501,XM1) -> 94 | XN2: =COUNTIF(Лист1!$B$2:$B$77501,XN1) -> 91 | XO2: =COUNTIF(Лист1!$B$2:$B$77501,XO1) -> 101 | XP2: =COUNTIF(Лист1!$B$2:$B$77501,XP1) -> 101 | XQ2: =COUNTIF(Лист1!$B$2:$B$77501,XQ1) -> 109 | XR2: =COUNTIF(Лист1!$B$2:$B$77501,XR1) -> 94 | XS2: =COUNTIF(Лист1!$B$2:$B$77501,XS1) -> 82 | XT2: =COUNTIF(Лист1!$B$2:$B$77501,XT1) -> 91 | XU2: =COUNTIF(Лист1!$B$2:$B$77501,XU1) -> 100 | XV2: =COUNTIF(Лист1!$B$2:$B$77501,XV1) -> 87 | XW2: =COUNTIF(Лист1!$B$2:$B$77501,XW1) -> 96 | XX2: =COUNTIF(Лист1!$B$2:$B$77501,XX1) -> 101 | XY2: =COUNTIF(Лист1!$B$2:$B$77501,XY1) -> 97 | XZ2: =COUNTIF(Лист1!$B$2:$B$77501,XZ1) -> 99 | YA2: =COUNTIF(Лист1!$B$2:$B$77501,YA1) -> 54 | YB2: =COUNTIF(Лист1!$B$2:$B$77501,YB1) -> 92 | YC2: =COUNTIF(Лист1!$B$2:$B$77501,YC1) -> 79 | YD2: =COUNTIF(Лист1!$B$2:$B$77501,YD1) -> 86 | YE2: =COUNTIF(Лист1!$B$2:$B$77501,YE1) -> 86 | YF2: =COUNTIF(Лист1!$B$2:$B$77501,YF1) -> 78 | YG2: =COUNTIF(Лист1!$B$2:$B$77501,YG1) -> 107 | YH2: =COUNTIF(Лист1!$B$2:$B$77501,YH1) -> 107 | YI2: =COUNTIF(Лист1!$B$2:$B$77501,YI1) -> 108 | YJ2: =COUNTIF(Лист1!$B$2:$B$77501,YJ1) -> 83 | YK2: =COUNTIF(Лист1!$B$2:$B$77501,YK1) -> 98 | YL2: =COUNTIF(Лист1!$B$2:$B$77501,YL1) -> 106 | YM2: =COUNTIF(Лист1!$B$2:$B$77501,YM1) -> 110 | YN2: =COUNTIF(Лист1!$B$2:$B$77501,YN1) -> 109 | YO2: =COUNTIF(Лист1!$B$2:$B$77501,YO1) -> 106 | YP2: =COUNTIF(Лист1!$B$2:$B$77501,YP1) -> 90 | YQ2: =COUNTIF(Лист1!$B$2:$B$77501,YQ1) -> 93 | YR2: =COUNTIF(Лист1!$B$2:$B$77501,YR1) -> 110 | YS2: =COUNTIF(Лист1!$B$2:$B$77501,YS1) -> 106 | YT2: =COUNTIF(Лист1!$B$2:$B$77501,YT1) -> 85 | YU2: =COUNTIF(Лист1!$B$2:$B$77501,YU1) -> 109 | YV2: =COUNTIF(Лист1!$B$2:$B$77501,YV1) -> 108 | YW2: =COUNTIF(Лист1!$B$2:$B$77501,YW1) -> 105 | YX2: =COUNTIF(Лист1!$B$2:$B$77501,YX1) -> 108 | YY2: =COUNTIF(Лист1!$B$2:$B$77501,YY1) -> 106 | YZ2: =COUNTIF(Лист1!$B$2:$B$77501,YZ1) -> 104 | ZA2: =COUNTIF(Лист1!$B$2:$B$77501,ZA1) -> 102 | ZB2: =COUNTIF(Лист1!$B$2:$B$77501,ZB1) -> 105 | ZC2: =COUNTIF(Лист1!$B$2:$B$77501,ZC1) -> 109 | ZD2: =COUNTIF(Лист1!$B$2:$B$77501,ZD1) -> 104 | ZE2: =COUNTIF(Лист1!$B$2:$B$77501,ZE1) -> 110 | ZF2: =COUNTIF(Лист1!$B$2:$B$77501,ZF1) -> 95 | ZG2: =COUNTIF(Лист1!$B$2:$B$77501,ZG1) -> 100 | ZH2: =COUNTIF(Лист1!$B$2:$B$77501,ZH1) -> 93 | ZI2: =COUNTIF(Лист1!$B$2:$B$77501,ZI1) -> 106 | ZJ2: =COUNTIF(Лист1!$B$2:$B$77501,ZJ1) -> 84 | ZK2: =COUNTIF(Лист1!$B$2:$B$77501,ZK1) -> 84 | ZL2: =COUNTIF(Лист1!$B$2:$B$77501,ZL1) -> 98 | ZM2: =COUNTIF(Лист1!$B$2:$B$77501,ZM1) -> 90 | ZN2: =COUNTIF(Лист1!$B$2:$B$77501,ZN1) -> 110 | ZO2: =COUNTIF(Лист1!$B$2:$B$77501,ZO1) -> 82 | ZP2: =COUNTIF(Лист1!$B$2:$B$77501,ZP1) -> 69 | ZQ2: =COUNTIF(Лист1!$B$2:$B$77501,ZQ1) -> 94 | ZR2: =COUNTIF(Лист1!$B$2:$B$77501,ZR1) -> 48 | ZS2: =COUNTIF(Лист1!$B$2:$B$77501,ZS1) -> 101 | ZT2: =COUNTIF(Лист1!$B$2:$B$77501,ZT1) -> 100 | ZU2: =COUNTIF(Лист1!$B$2:$B$77501,ZU1) -> 103 | ZV2: =COUNTIF(Лист1!$B$2:$B$77501,ZV1) -> 79 | ZW2: =COUNTIF(Лист1!$B$2:$B$77501,ZW1) -> 85 | ZX2: =COUNTIF(Лист1!$B$2:$B$77501,ZX1) -> 72 | ZY2: =COUNTIF(Лист1!$B$2:$B$77501,ZY1) -> 84 | ZZ2: =COUNTIF(Лист1!$B$2:$B$77501,ZZ1) -> 97 | AAA2: =COUNTIF(Лист1!$B$2:$B$77501,AAA1) -> 99 | AAB2: =COUNTIF(Лист1!$B$2:$B$77501,AAB1) -> 98 | AAC2: =COUNTIF(Лист1!$B$2:$B$77501,AAC1) -> 99 | AAD2: =COUNTIF(Лист1!$B$2:$B$77501,AAD1) -> 94 | AAE2: =COUNTIF(Лист1!$B$2:$B$77501,AAE1) -> 95 | AAF2: =COUNTIF(Лист1!$B$2:$B$77501,AAF1) -> 104 | AAG2: =COUNTIF(Лист1!$B$2:$B$77501,AAG1) -> 99 | AAH2: =COUNTIF(Лист1!$B$2:$B$77501,AAH1) -> 106 | AAI2: =COUNTIF(Лист1!$B$2:$B$77501,AAI1) -> 99 | AAJ2: =COUNTIF(Лист1!$B$2:$B$77501,AAJ1) -> 103 | AAK2: =COUNTIF(Лист1!$B$2:$B$77501,AAK1) -> 110 | AAL2: =COUNTIF(Лист1!$B$2:$B$77501,AAL1) -> 101 | AAM2: =COUNTIF(Лист1!$B$2:$B$77501,AAM1) -> 106 | AAN2: =COUNTIF(Лист1!$B$2:$B$77501,AAN1) -> 110 | AAO2: =COUNTIF(Лист1!$B$2:$B$77501,AAO1) -> 77 | AAP2: =COUNTIF(Лист1!$B$2:$B$77501,AAP1) -> 79 | AAQ2: =COUNTIF(Лист1!$B$2:$B$77501,AAQ1) -> 101 | AAR2: =COUNTIF(Лист1!$B$2:$B$77501,AAR1) -> 77 | AAS2: =COUNTIF(Лист1!$B$2:$B$77501,AAS1) -> 108 | AAT2: =COUNTIF(Лист1!$B$2:$B$77501,AAT1) -> 101 | AAU2: =COUNTIF(Лист1!$B$2:$B$77501,AAU1) -> 108 | AAV2: =COUNTIF(Лист1!$B$2:$B$77501,AAV1) -> 106 | AAW2: =COUNTIF(Лист1!$B$2:$B$77501,AAW1) -> 107 | AAX2: =COUNTIF(Лист1!$B$2:$B$77501,AAX1) -> 101 | AAY2: =COUNTIF(Лист1!$B$2:$B$77501,AAY1) -> 78 | AAZ2: =COUNTIF(Лист1!$B$2:$B$77501,AAZ1) -> 99 | ABA2: =COUNTIF(Лист1!$B$2:$B$77501,ABA1) -> 108 | ABB2: =COUNTIF(Лист1!$B$2:$B$77501,ABB1) -> 108 | ABC2: =COUNTIF(Лист1!$B$2:$B$77501,ABC1) -> 105 | ABD2: =COUNTIF(Лист1!$B$2:$B$77501,ABD1) -> 109 | ABE2: =COUNTIF(Лист1!$B$2:$B$77501,ABE1) -> 97 | ABF2: =COUNTIF(Лист1!$B$2:$B$77501,ABF1) -> 107 | ABG2: =COUNTIF(Лист1!$B$2:$B$77501,ABG1) -> 108 | ABH2: =COUNTIF(Лист1!$B$2:$B$77501,ABH1) -> 101 | ABI2: =COUNTIF(Лист1!$B$2:$B$77501,ABI1) -> 108 | ABJ2: =COUNTIF(Лист1!$B$2:$B$77501,ABJ1) -> 105 | ABK2: =COUNTIF(Лист1!$B$2:$B$77501,ABK1) -> 104 | ABL2: =COUNTIF(Лист1!$B$2:$B$77501,ABL1) -> 94 | ABM2: =COUNTIF(Лист1!$B$2:$B$77501,ABM1) -> 107 | ABN2: =COUNTIF(Лист1!$B$2:$B$77501,ABN1) -> 108 | ABO2: =COUNTIF(Лист1!$B$2:$B$77501,ABO1) -> 110 | ABP2: =COUNTIF(Лист1!$B$2:$B$77501,ABP1) -> 108 | ABQ2: =COUNTIF(Лист1!$B$2:$B$77501,ABQ1) -> 98 | ABR2: =COUNTIF(Лист1!$B$2:$B$77501,ABR1) -> 103 | ABS2: =COUNTIF(Лист1!$B$2:$B$77501,ABS1) -> 86 | ABT2: =COUNTIF(Лист1!$B$2:$B$77501,ABT1) -> 108 | ABU2: =COUNTIF(Лист1!$B$2:$B$77501,ABU1) -> 106 | ABV2: =COUNTIF(Лист1!$B$2:$B$77501,ABV1) -> 103 | ABW2: =COUNTIF(Лист1!$B$2:$B$77501,ABW1) -> 101 | ABX2: =COUNTIF(Лист1!$B$2:$B$77501,ABX1) -> 109 | ABY2: =COUNTIF(Лист1!$B$2:$B$77501,ABY1) -> 106 | ABZ2: =COUNTIF(Лист1!$B$2:$B$77501,ABZ1) -> 83 | ACA2: =COUNTIF(Лист1!$B$2:$B$77501,ACA1) -> 104 | ACB2: =COUNTIF(Лист1!$B$2:$B$77501,ACB1) -> 92 | ACC2: =COUNTIF(Лист1!$B$2:$B$77501,ACC1) -> 94 | ACD2: =COUNTIF(Лист1!$B$2:$B$77501,ACD1) -> 87 | ACE2: =COUNTIF(Лист1!$B$2:$B$77501,ACE1) -> 105 | ACF2: =COUNTIF(Лист1!$B$2:$B$77501,ACF1) -> 110 | ACG2: =COUNTIF(Лист1!$B$2:$B$77501,ACG1) -> 107 | ACH2: =COUNTIF(Лист1!$B$2:$B$77501,ACH1) -> 101 | ACI2: =COUNTIF(Лист1!$B$2:$B$77501,ACI1) -> 107 | ACJ2: =COUNTIF(Лист1!$B$2:$B$77501,ACJ1) -> 86 | ACK2: =COUNTIF(Лист1!$B$2:$B$77501,ACK1) -> 103 | ACL2: =COUNTIF(Лист1!$B$2:$B$77501,ACL1) -> 103 | ACM2: =COUNTIF(Лист1!$B$2:$B$77501,ACM1) -> 106 | ACN2: =COUNTIF(Лист1!$B$2:$B$77501,ACN1) -> 110 | ACO2: =COUNTIF(Лист1!$B$2:$B$77501,ACO1) -> 94 | ACP2: =COUNTIF(Лист1!$B$2:$B$77501,ACP1) -> 88 | ACQ2: =COUNTIF(Лист1!$B$2:$B$77501,ACQ1) -> 88 | ACR2: =COUNTIF(Лист1!$B$2:$B$77501,ACR1) -> 99 | ACS2: =COUNTIF(Лист1!$B$2:$B$77501,ACS1) -> 51 | ACT2: =COUNTIF(Лист1!$B$2:$B$77501,ACT1) -> 41 | ACU2: =COUNTIF(Лист1!$B$2:$B$77501,ACU1) -> 57 | ACV2: =COUNTIF(Лист1!$B$2:$B$77501,ACV1) -> 60 | ACW2: =COUNTIF(Лист1!$B$2:$B$77501,ACW1) -> 87 | ACX2: =COUNTIF(Лист1!$B$2:$B$77501,ACX1) -> 72 | ACY2: =COUNTIF(Лист1!$B$2:$B$77501,ACY1) -> 102 | ACZ2: =COUNTIF(Лист1!$B$2:$B$77501,ACZ1) -> 100 | ADA2: =COUNTIF(Лист1!$B$2:$B$77501,ADA1) -> 95 | ADB2: =COUNTIF(Лист1!$B$2:$B$77501,ADB1) -> 107 | ADC2: =COUNTIF(Лист1!$B$2:$B$77501,ADC1) -> 108 | ADD2: =COUNTIF(Лист1!$B$2:$B$77501,ADD1) -> 99 | ADE2: =COUNTIF(Лист1!$B$2:$B$77501,ADE1) -> 92 | ADF2: =COUNTIF(Лист1!$B$2:$B$77501,ADF1) -> 109 | ADG2: =COUNTIF(Лист1!$B$2:$B$77501,ADG1) -> 104 | ADH2: =COUNTIF(Лист1!$B$2:$B$77501,ADH1) -> 99 | ADI2: =COUNTIF(Лист1!$B$2:$B$77501,ADI1) -> 101 | ADJ2: =COUNTIF(Лист1!$B$2:$B$77501,ADJ1) -> 107 | ADK2: =COUNTIF(Лист1!$B$2:$B$77501,ADK1) -> 79 | ADL2: =COUNTIF(Лист1!$B$2:$B$77501,ADL1) -> 59 | ADM2: =COUNTIF(Лист1!$B$2:$B$77501,ADM1) -> 101 | ADN2: =COUNTIF(Лист1!$B$2:$B$77501,ADN1) -> 72 | ADO2: =COUNTIF(Лист1!$B$2:$B$77501,ADO1) -> 85 | ADP2: =COUNTIF(Лист1!$B$2:$B$77501,ADP1) -> 93 | ADQ2: =COUNTIF(Лист1!$B$2:$B$77501,ADQ1) -> 96 | ADR2: =COUNTIF(Лист1!$B$2:$B$77501,ADR1) -> 102 | ADS2: =COUNTIF(Лист1!$B$2:$B$77501,ADS1) -> 94 | ADT2: =COUNTIF(Лист1!$B$2:$B$77501,ADT1) -> 90 | ADU2: =COUNTIF(Лист1!$B$2:$B$77501,ADU1) -> 75 | ADV2: =COUNTIF(Лист1!$B$2:$B$77501,ADV1) -> 87 | ADW2: =COUNTIF(Лист1!$B$2:$B$77501,ADW1) -> 83 | ADX2: =COUNTIF(Лист1!$B$2:$B$77501,ADX1) -> 90 | ADY2: =COUNTIF(Лист1!$B$2:$B$77501,ADY1) -> 99 | ADZ2: =COUNTIF(Лист1!$B$2:$B$77501,ADZ1) -> 107 | AEA2: =COUNTIF(Лист1!$B$2:$B$77501,AEA1) -> 78 | AEB2: =COUNTIF(Лист1!$B$2:$B$77501,AEB1) -> 105 | AEC2: =COUNTIF(Лист1!$B$2:$B$77501,AEC1) -> 109 | AED2: =COUNTIF(Лист1!$B$2:$B$77501,AED1) -> 91 | AEE2: =COUNTIF(Лист1!$B$2:$B$77501,AEE1) -> 98 | AEF2: =COUNTIF(Лист1!$B$2:$B$77501,AEF1) -> 97 | AEG2: =COUNTIF(Лист1!$B$2:$B$77501,AEG1) -> 100 | AEH2: =COUNTIF(Лист1!$B$2:$B$77501,AEH1) -> 97 | AEI2: =COUNTIF(Лист1!$B$2:$B$77501,AEI1) -> 99 | AEJ2: =COUNTIF(Лист1!$B$2:$B$77501,AEJ1) -> 107 | AEK2: =COUNTIF(Лист1!$B$2:$B$77501,AEK1) -> 108 | AEL2: =COUNTIF(Лист1!$B$2:$B$77501,AEL1) -> 108 | AEM2: =COUNTIF(Лист1!$B$2:$B$77501,AEM1) -> 99 | AEN2: =COUNTIF(Лист1!$B$2:$B$77501,AEN1) -> 92 | AEO2: =COUNTIF(Лист1!$B$2:$B$77501,AEO1) -> 106 | AEP2: =COUNTIF(Лист1!$B$2:$B$77501,AEP1) -> 106 | AEQ2: =COUNTIF(Лист1!$B$2:$B$77501,AEQ1) -> 105 | AER2: =COUNTIF(Лист1!$B$2:$B$77501,AER1) -> 100 | AES2: =COUNTIF(Лист1!$B$2:$B$77501,AES1) -> 80 | AET2: =COUNTIF(Лист1!$B$2:$B$77501,AET1) -> 69 | AEU2: =COUNTIF(Лист1!$B$2:$B$77501,AEU1) -> 96 | AEV2: =COUNTIF(Лист1!$B$2:$B$77501,AEV1) -> 89 | AEW2: =COUNTIF(Лист1!$B$2:$B$77501,AEW1) -> 90 | AEX2: =COUNTIF(Лист1!$B$2:$B$77501,AEX1) -> 91 | AEY2: =COUNTIF(Лист1!$B$2:$B$77501,AEY1) -> 84 | AEZ2: =COUNTIF(Лист1!$B$2:$B$77501,AEZ1) -> 89 | AFA2: =COUNTIF(Лист1!$B$2:$B$77501,AFA1) -> 111 | AFB2: =COUNTIF(Лист1!$B$2:$B$77501,AFB1) -> 98 | AFC2: =COUNTIF(Лист1!$B$2:$B$77501,AFC1) -> 113 | AFD2: =COUNTIF(Лист1!$B$2:$B$77501,AFD1) -> 111 | AFE2: =COUNTIF(Лист1!$B$2:$B$77501,AFE1) -> 109 | AFF2: =COUNTIF(Лист1!$B$2:$B$77501,AFF1) -> 104 | AFG2: =COUNTIF(Лист1!$B$2:$B$77501,AFG1) -> 107 | AFH2: =COUNTIF(Лист1!$B$2:$B$77501,AFH1) -> 109 | AFI2: =COUNTIF(Лист1!$B$2:$B$77501,AFI1) -> 98 | AFJ2: =COUNTIF(Лист1!$B$2:$B$77501,AFJ1) -> 107 | AFK2: =COUNTIF(Лист1!$B$2:$B$77501,AFK1) -> 92 | AFL2: =COUNTIF(Лист1!$B$2:$B$77501,AFL1) -> 88 | AFM2: =COUNTIF(Лист1!$B$2:$B$77501,AFM1) -> 87 | AFN2: =COUNTIF(Лист1!$B$2:$B$77501,AFN1) -> 106 | AFO2: =COUNTIF(Лист1!$B$2:$B$77501,AFO1) -> 71 | AFP2: =COUNTIF(Лист1!$B$2:$B$77501,AFP1) -> 93 | AFQ2: =COUNTIF(Лист1!$B$2:$B$77501,AFQ1) -> 90 | AFR2: =COUNTIF(Лист1!$B$2:$B$77501,AFR1) -> 96 | AFS2: =COUNTIF(Лист1!$B$2:$B$77501,AFS1) -> 84 | AFT2: =COUNTIF(Лист1!$B$2:$B$77501,AFT1) -> 81 | AFU2: =COUNTIF(Лист1!$B$2:$B$77501,AFU1) -> 89 | AFV2: =COUNTIF(Лист1!$B$2:$B$77501,AFV1) -> 90 | AFW2: =COUNTIF(Лист1!$B$2:$B$77501,AFW1) -> 96 | AFX2: =COUNTIF(Лист1!$B$2:$B$77501,AFX1) -> 87 | AFY2: =COUNTIF(Лист1!$B$2:$B$77501,AFY1) -> 92 | AFZ2: =COUNTIF(Лист1!$B$2:$B$77501,AFZ1) -> 87 | AGA2: =COUNTIF(Лист1!$B$2:$B$77501,AGA1) -> 87 | AGB2: =COUNTIF(Лист1!$B$2:$B$77501,AGB1) -> 107 | AGC2: =COUNTIF(Лист1!$B$2:$B$77501,AGC1) -> 99 | AGD2: =COUNTIF(Лист1!$B$2:$B$77501,AGD1) -> 72
A3: 0105 | B3: =COUNTIF(Лист1!$B$2:$B$77501,A3) -> 83 | C3: =IF(C$1=$A3,,C$2+$B3) -> 0 | D3: =IF(D$1=$A3,,D$2+$B3) -> 183 | E3: 166 | F3: 180 | G3: 179 | H3: 191 | I3: 185 | J3: 179 | K3: 182 | L3: 168 | M3: 180 | N3: 163 | O3: 190 | P3: 186 | Q3: 178 | R3: 185 | S3: 185 | T3: 180 | U3: 188 | V3: 173 | W3: 190 | X3: 186 | Y3: 173 | Z3: 177 | AA3: 183 | AB3: 177 | AC3: 178 | AD3: 191 | AE3: 188 | AF3: 182 | AG3: 147 | AH3: 164 | AI3: 154 | AJ3: 157 | AK3: 168 | AL3: 188 | AM3: 168 | AN3: 127 | AO3: 159 | AP3: 177 | AQ3: 191 | AR3: 170 | AS3: 187 | AT3: 185 | AU3: 176 | AV3: 181 | AW3: 161 | AX3: 149 | AY3: 179 | AZ3: 141 | BA3: 142 | BB3: 146 | BC3: 182 | BD3: 161 | BE3: 184 | BF3: 184 | BG3: 183 | BH3: 153 | BI3: 167 | BJ3: 172 | BK3: 162 | BL3: 177 | BM3: 142 | BN3: 177 | BO3: 172 | BP3: =IF(BP$1=$A3,,BP$2+$B3) -> 153 | BQ3: 185 | BR3: 185 | BS3: 166 | BT3: 148 | BU3: 177 | BV3: 188 | BW3: 186 | BX3: 172 | BY3: 193 | BZ3: 183 | CA3: 168 | CB3: 191 | CC3: 160 | CD3: 170 | CE3: 190 | CF3: 185 | CG3: 191 | CH3: 183 | CI3: 197 | CJ3: 176 | CK3: 182 | CL3: 161 | CM3: 174 | CN3: 187 | CO3: 166 | CP3: 186 | CQ3: 191 | CR3: 193 | CS3: 181 | CT3: 182 | CU3: 191 | CV3: 184 | CW3: 176 | CX3: 195 | CY3: 195 | CZ3: 197 | DA3: 187 | DB3: 183 | DC3: 163 | DD3: 168 | DE3: 187 | DF3: 180 | DG3: 179 | DH3: 156 | DI3: 163 | DJ3: 174 | DK3: 184 | DL3: 173 | DM3: 187 | DN3: 169 | DO3: 186 | DP3: 145 | DQ3: 145 | DR3: 187 | DS3: 157 | DT3: 182 | DU3: 148 | DV3: 151 | DW3: 166 | DX3: 132 | DY3: 182 | DZ3: 186 | EA3: 150 | EB3: =IF(EB$1=$A3,,EB$2+$B3) -> 147 | EC3: 173 | ED3: 188 | EE3: 109 | EF3: 152 | EG3: 178 | EH3: 159 | EI3: 138 | EJ3: 149 | EK3: 150 | EL3: 171 | EM3: 166 | EN3: 196 | EO3: 181 | EP3: 172 | EQ3: 174 | ER3: 150 | ES3: 160 | ET3: 152 | EU3: 182 | EV3: 156 | EW3: 182 | EX3: 160 | EY3: 178 | EZ3: 159 | FA3: 162 | FB3: 137 | FC3: 162 | FD3: 126 | FE3: 152 | FF3: 137 | FG3: 156 | FH3: 172 | FI3: 166 | FJ3: 157 | FK3: 172 | FL3: 154 | FM3: 168 | FN3: 175 | FO3: 138 | FP3: 164 | FQ3: 152 | FR3: 158 | FS3: 160 | FT3: 125 | FU3: 133 | FV3: 131 | FW3: 163 | FX3: 159 | FY3: 171 | FZ3: 157 | GA3: 177 | GB3: 156 | GC3: 155 | GD3: 132 | GE3: 165 | GF3: 142 | GG3: 129 | GH3: 158 | GI3: 115 | GJ3: 165 | GK3: 172 | GL3: 164 | GM3: 160 | GN3: =IF(GN$1=$A3,,GN$2+$B3) -> 174 | GO3: 141 | GP3: 159 | GQ3: 176 | GR3: 163 | GS3: 154 | GT3: 148 | GU3: 144 | GV3: 134 | GW3: 145 | GX3: 156 | GY3: 161 | GZ3: 158 | HA3: 160 | HB3: 170 | HC3: 157 | HD3: 146 | HE3: 168 | HF3: 165 | HG3: 162 | HH3: 184 | HI3: 178 | HJ3: 194 | HK3: 186 | HL3: 186 | HM3: 165 | HN3: 175 | HO3: 150 | HP3: 163 | HQ3: 179 | HR3: 164 | HS3: 182 | HT3: 175 | HU3: 169 | HV3: 187 | HW3: 186 | HX3: 178 | HY3: 152 | HZ3: 176 | IA3: 164 | IB3: 185 | IC3: 183 | ID3: 185 | IE3: 186 | IF3: 189 | IG3: 192 | IH3: 189 | II3: 180 | IJ3: 191 | IK3: 195 | IL3: 195 | IM3: 185 | IN3: 168 | IO3: 182 | IP3: 176 | IQ3: 164 | IR3: 155 | IS3: 174 | IT3: 188 | IU3: 166 | IV3: 148 | IW3: 160 | IX3: 161 | IY3: 167 | IZ3: =IF(IZ$1=$A3,,IZ$2+$B3) -> 161 | JA3: 163 | JB3: 155 | JC3: 173 | JD3: 159 | JE3: 166 | JF3: 123 | JG3: 146 | JH3: 152 | JI3: 154 | JJ3: 133 | JK3: 189 | JL3: 166 | JM3: 168 | JN3: 178 | JO3: 160 | JP3: 179 | JQ3: 171 | JR3: 172 | JS3: 144 | JT3: 173 | JU3: 170 | JV3: 157 | JW3: 183 | JX3: 173 | JY3: 187 | JZ3: 178 | KA3: 183 | KB3: 175 | KC3: 177 | KD3: 171 | KE3: 182 | KF3: 155 | KG3: 171 | KH3: 167 | KI3: 162 | KJ3: 148 | KK3: 192 | KL3: 177 | KM3: 194 | KN3: 175 | KO3: 190 | KP3: 188 | KQ3: 185 | KR3: 183 | KS3: 194 | KT3: 193 | KU3: 192 | KV3: 194 | KW3: 174 | KX3: 170 | KY3: 166 | KZ3: 153 | LA3: 178 | LB3: 189 | LC3: 187 | LD3: 193 | LE3: 180 | LF3: 173 | LG3: 179 | LH3: 189 | LI3: 176 | LJ3: 175 | LK3: 171 | LL3: =IF(LL$1=$A3,,LL$2+$B3) -> 147 | LM3: 165 | LN3: 196 | LO3: 191 | LP3: 177 | LQ3: 141 | LR3: 154 | LS3: 166 | LT3: 144 | LU3: 179 | LV3: 175 | LW3: 177 | LX3: 166 | LY3: 151 | LZ3: 190 | MA3: 169 | MB3: 182 | MC3: 177 | MD3: 174 | ME3: 184 | MF3: 167 | MG3: 180 | MH3: 189 | MI3: 155 | MJ3: 176 | MK3: 189 | ML3: 182 | MM3: 190 | MN3: 189 | MO3: 157 | MP3: 138 | MQ3: 188 | MR3: 170 | MS3: 182 | MT3: 173 | MU3: 176 | MV3: 167 | MW3: 165 | MX3: 177 | MY3: 185 | MZ3: 178 | NA3: 148 | NB3: 168 | NC3: 169 | ND3: 181 | NE3: 192 | NF3: 194 | NG3: 193 | NH3: 189 | NI3: 191 | NJ3: 194 | NK3: 179 | NL3: 164 | NM3: 140 | NN3: 176 | NO3: 161 | NP3: 170 | NQ3: 171 | NR3: 176 | NS3: 184 | NT3: 193 | NU3: 125 | NV3: 149 | NW3: 170 | NX3: =IF(NX$1=$A3,,NX$2+$B3) -> 168 | NY3: 157 | NZ3: 182 | OA3: 176 | OB3: 169 | OC3: 140 | OD3: 136 | OE3: 147 | OF3: 173 | OG3: 171 | OH3: 159 | OI3: 147 | OJ3: 183 | OK3: 137 | OL3: 162 | OM3: 163 | ON3: 149 | OO3: 167 | OP3: 164 | OQ3: 167 | OR3: 168 | OS3: 171 | OT3: 179 | OU3: 162 | OV3: 168 | OW3: 163 | OX3: 185 | OY3: 180 | OZ3: 175 | PA3: 177 | PB3: 166 | PC3: 178 | PD3: 176 | PE3: 164 | PF3: 167 | PG3: 163 | PH3: 170 | PI3: 145 | PJ3: 172 | PK3: 166 | PL3: 157 | PM3: 162 | PN3: 177 | PO3: 161 | PP3: 176 | PQ3: 181 | PR3: 177 | PS3: 187 | PT3: 187 | PU3: 187 | PV3: 183 | PW3: 182 | PX3: 179 | PY3: 194 | PZ3: 188 | QA3: 179 | QB3: 179 | QC3: 183 | QD3: 183 | QE3: 177 | QF3: 181 | QG3: 183 | QH3: 181 | QI3: 191 | QJ3: =IF(QJ$1=$A3,,QJ$2+$B3) -> 191 | QK3: 189 | QL3: 189 | QM3: 184 | QN3: 180 | QO3: 181 | QP3: 184 | QQ3: 190 | QR3: 180 | QS3: 162 | QT3: 185 | QU3: 174 | QV3: 180 | QW3: 185 | QX3: 191 | QY3: 191 | QZ3: 183 | RA3: 186 | RB3: 189 | RC3: 189 | RD3: 191 | RE3: 164 | RF3: 189 | RG3: 184 | RH3: 187 | RI3: 190 | RJ3: 189 | RK3: 186 | RL3: 189 | RM3: 184 | RN3: 175 | RO3: 188 | RP3: 189 | RQ3: 184 | RR3: 175 | RS3: 168 | RT3: 162 | RU3: 190 | RV3: 151 | RW3: 178 | RX3: 174 | RY3: 173 | RZ3: 164 | SA3: 160 | SB3: 176 | SC3: 185 | SD3: 166 | SE3: 168 | SF3: 145 | SG3: 176 | SH3: 168 | SI3: 171 | SJ3: 176 | SK3: 183 | SL3: 167 | SM3: 180 | SN3: 187 | SO3: 188 | SP3: 183 | SQ3: 182 | SR3: 166 | SS3: 160 | ST3: 172 | SU3: 159 | SV3: =IF(SV$1=$A3,,SV$2+$B3) -> 189 | SW3: 160 | SX3: 184 | SY3: 190 | SZ3: 190 | TA3: 149 | TB3: 154 | TC3: 168 | TD3: 173 | TE3: 171 | TF3: 180 | TG3: 184 | TH3: 149 | TI3: 161 | TJ3: 194 | TK3: 153 | TL3: 160 | TM3: 177 | TN3: 169 | TO3: 187 | TP3: 166 | TQ3: 171 | TR3: 178 | TS3: 171 | TT3: 182 | TU3: 178 | TV3: 164 | TW3: 168 | TX3: 162 | TY3: 172 | TZ3: 163 | UA3: 151 | UB3: 159 | UC3: 155 | UD3: 173 | UE3: 162 | UF3: 167 | UG3: 171 | UH3: 189 | UI3: 177 | UJ3: 188 | UK3: 190 | UL3: 192 | UM3: 187 | UN3: 193 | UO3: 194 | UP3: 189 | UQ3: 188 | UR3: 186 | US3: 161 | UT3: 185 | UU3: 191 | UV3: 171 | UW3: 183 | UX3: 188 | UY3: 172 | UZ3: 192 | VA3: 180 | VB3: 183 | VC3: 192 | VD3: 171 | VE3: 137 | VF3: 142 | VG3: 171 | VH3: =IF(VH$1=$A3,,VH$2+$B3) -> 171 | VI3: 171 | VJ3: 149 | VK3: 173 | VL3: 177 | VM3: 162 | VN3: 171 | VO3: 180 | VP3: 141 | VQ3: 145 | VR3: 135 | VS3: 148 | VT3: 157 | VU3: 166 | VV3: 141 | VW3: 185 | VX3: 162 | VY3: 183 | VZ3: 181 | WA3: 172 | WB3: 169 | WC3: 188 | WD3: 162 | WE3: 182 | WF3: 167 | WG3: 166 | WH3: 186 | WI3: 190 | WJ3: 166 | WK3: 157 | WL3: 162 | WM3: 158 | WN3: 153 | WO3: 171 | WP3: 142 | WQ3: 150 | WR3: 159 | WS3: 151 | WT3: 130 | WU3: 127 | WV3: 150 | WW3: 147 | WX3: 124 | WY3: 152 | WZ3: 152 | XA3: 137 | XB3: 185 | XC3: 186 | XD3: 188 | XE3: 186 | XF3: 194 | XG3: 187 | XH3: 191 | XI3: 184 | XJ3: 154 | XK3: 180 | XL3: 175 | XM3: 177 | XN3: 174 | XO3: 184 | XP3: 184 | XQ3: 192 | XR3: 177 | XS3: 165 | XT3: =IF(XT$1=$A3,,XT$2+$B3) -> 174 | XU3: 183 | XV3: 170 | XW3: 179 | XX3: 184 | XY3: 180 | XZ3: 182 | YA3: 137 | YB3: 175 | YC3: 162 | YD3: 169 | YE3: 169 | YF3: 161 | YG3: 190 | YH3: 190 | YI3: 191 | YJ3: 166 | YK3: 181 | YL3: 189 | YM3: 193 | YN3: 192 | YO3: 189 | YP3: 173 | YQ3: 176 | YR3: 193 | YS3: 189 | YT3: 168 | YU3: 192 | YV3: 191 | YW3: 188 | YX3: 191 | YY3: 189 | YZ3: 187 | ZA3: 185 | ZB3: 188 | ZC3: 192 | ZD3: 187 | ZE3: 193 | ZF3: 178 | ZG3: 183 | ZH3: 176 | ZI3: 189 | ZJ3: 167 | ZK3: 167 | ZL3: 181 | ZM3: 173 | ZN3: 193 | ZO3: 165 | ZP3: 152 | ZQ3: 177 | ZR3: 131 | ZS3: 184 | ZT3: 183 | ZU3: 186 | ZV3: 162 | ZW3: 168 | ZX3: 155 | ZY3: 167 | ZZ3: 180 | AAA3: 182 | AAB3: 181 | AAC3: 182 | AAD3: 177 | AAE3: 178 | AAF3: =IF(AAF$1=$A3,,AAF$2+$B3) -> 187 | AAG3: 182 | AAH3: 189 | AAI3: 182 | AAJ3: 186 | AAK3: 193 | AAL3: 184 | AAM3: 189 | AAN3: 193 | AAO3: 160 | AAP3: 162 | AAQ3: 184 | AAR3: 160 | AAS3: 191 | AAT3: 184 | AAU3: 191 | AAV3: 189 | AAW3: 190 | AAX3: 184 | AAY3: 161 | AAZ3: 182 | ABA3: 191 | ABB3: 191 | ABC3: 188 | ABD3: 192 | ABE3: 180 | ABF3: 190 | ABG3: 191 | ABH3: 184 | ABI3: 191 | ABJ3: 188 | ABK3: 187 | ABL3: 177 | ABM3: 190 | ABN3: 191 | ABO3: 193 | ABP3: 191 | ABQ3: 181 | ABR3: 186 | ABS3: 169 | ABT3: 191 | ABU3: 189 | ABV3: 186 | ABW3: 184 | ABX3: 192 | ABY3: 189 | ABZ3: 166 | ACA3: 187 | ACB3: 175 | ACC3: 177 | ACD3: 170 | ACE3: 188 | ACF3: 193 | ACG3: 190 | ACH3: 184 | ACI3: 190 | ACJ3: 169 | ACK3: 186 | ACL3: 186 | ACM3: 189 | ACN3: 193 | ACO3: 177 | ACP3: 171 | ACQ3: 171 | ACR3: =IF(ACR$1=$A3,,ACR$2+$B3) -> 182 | ACS3: 134 | ACT3: 124 | ACU3: 140 | ACV3: 143 | ACW3: 170 | ACX3: 155 | ACY3: 185 | ACZ3: 183 | ADA3: 178 | ADB3: 190 | ADC3: 191 | ADD3: 182 | ADE3: 175 | ADF3: 192 | ADG3: 187 | ADH3: 182 | ADI3: 184 | ADJ3: 190 | ADK3: 162 | ADL3: 142 | ADM3: 184 | ADN3: 155 | ADO3: 168 | ADP3: 176 | ADQ3: 179 | ADR3: 185 | ADS3: 177 | ADT3: 173 | ADU3: 158 | ADV3: 170 | ADW3: 166 | ADX3: 173 | ADY3: 182 | ADZ3: 190 | AEA3: 161 | AEB3: 188 | AEC3: 192 | AED3: 174 | AEE3: 181 | AEF3: 180 | AEG3: 183 | AEH3: 180 | AEI3: 182 | AEJ3: 190 | AEK3: 191 | AEL3: 191 | AEM3: 182 | AEN3: 175 | AEO3: 189 | AEP3: 189 | AEQ3: 188 | AER3: 183 | AES3: 163 | AET3: 152 | AEU3: 179 | AEV3: 172 | AEW3: 173 | AEX3: 174 | AEY3: 167 | AEZ3: 172 | AFA3: 194 | AFB3: 181 | AFC3: 196 | AFD3: =IF(AFD$1=$A3,,AFD$2+$B3) -> 194 | AFE3: 192 | AFF3: 187 | AFG3: 190 | AFH3: 192 | AFI3: 181 | AFJ3: 190 | AFK3: 175 | AFL3: 171 | AFM3: 170 | AFN3: 189 | AFO3: 154 | AFP3: 176 | AFQ3: 173 | AFR3: 179 | AFS3: 167 | AFT3: 164 | AFU3: 172 | AFV3: 173 | AFW3: 179 | AFX3: 170 | AFY3: 175 | AFZ3: 170 | AGA3: 170 | AGB3: 190 | AGC3: 182 | AGD3: 155
A4: 0106 | B4: =COUNTIF(Лист1!$B$2:$B$77501,A4) -> 100 | C4: =IF(C$1=$A4,,C$2+$B4) -> 183 | D4: 0 | E4: 183 | F4: 197 | G4: 196 | H4: 208 | I4: 202 | J4: 196 | K4: 199 | L4: 185 | M4: 197 | N4: 180 | O4: 207 | P4: 203 | Q4: 195 | R4: 202 | S4: 202 | T4: 197 | U4: 205 | V4: 190 | W4: 207 | X4: 203 | Y4: 190 | Z4: 194 | AA4: 200 | AB4: 194 | AC4: 195 | AD4: 208 | AE4: 205 | AF4: 199 | AG4: 164 | AH4: 181 | AI4: 171 | AJ4: 174 | AK4: 185 | AL4: 205 | AM4: 185 | AN4: 144 | AO4: 176 | AP4: 194 | AQ4: 208 | AR4: 187 | AS4: 204 | AT4: 202 | AU4: 193 | AV4: 198 | AW4: 178 | AX4: 166 | AY4: 196 | AZ4: 158 | BA4: 159 | BB4: 163 | BC4: 199 | BD4: 178 | BE4: 201 | BF4: 201 | BG4: 200 | BH4: 170 | BI4: 184 | BJ4: 189 | BK4: 179 | BL4: 194 | BM4: 159 | BN4: 194 | BO4: 189 | BP4: 170 | BQ4: 202 | BR4: 202 | BS4: 183 | BT4: 165 | BU4: 194 | BV4: 205 | BW4: 203 | BX4: 189 | BY4: 210 | BZ4: 200 | CA4: 185 | CB4: 208 | CC4: 177 | CD4: 187 | CE4: 207 | CF4: 202 | CG4: 208 | CH4: 200 | CI4: 214 | CJ4: 193 | CK4: 199 | CL4: 178 | CM4: 191 | CN4: 204 | CO4: 183 | CP4: 203 | CQ4: 208 | CR4: 210 | CS4: 198 | CT4: 199 | CU4: 208 | CV4: 201 | CW4: 193 | CX4: 212 | CY4: 212 | CZ4: 214 | DA4: 204 | DB4: 200 | DC4: 180 | DD4: 185 | DE4: 204 | DF4: 197 | DG4: 196 | DH4: 173 | DI4: 180 | DJ4: 191 | DK4: 201 | DL4: 190 | DM4: 204 | DN4: 186 | DO4: 203 | DP4: 162 | DQ4: 162 | DR4: 204 | DS4: 174 | DT4: 199 | DU4: 165 | DV4: 168 | DW4: 183 | DX4: 149 | DY4: 199 | DZ4: 203 | EA4: 167 | EB4: 164 | EC4: 190 | ED4: 205 | EE4: 126 | EF4: 169 | EG4: 195 | EH4: 176 | EI4: 155 | EJ4: 166 | EK4: 167 | EL4: 188 | EM4: 183 | EN4: 213 | EO4: 198 | EP4: 189 | EQ4: 191 | ER4: 167 | ES4: 177 | ET4: 169 | EU4: 199 | EV4: 173 | EW4: 199 | EX4: 177 | EY4: 195 | EZ4: 176 | FA4: 179 | FB4: 154 | FC4: 179 | FD4: 143 | FE4: 169 | FF4: 154 | FG4: 173 | FH4: 189 | FI4: 183 | FJ4: 174 | FK4: 189 | FL4: 171 | FM4: 185 | FN4: 192 | FO4: 155 | FP4: 181 | FQ4: 169 | FR4: 175 | FS4: 177 | FT4: 142 | FU4: 150 | FV4: 148 | FW4: 180 | FX4: 176 | FY4: 188 | FZ4: 174 | GA4: 194 | GB4: 173 | GC4: 172 | GD4: 149 | GE4: 182 | GF4: 159 | GG4: 146 | GH4: 175 | GI4: 132 | GJ4: 182 | GK4: 189 | GL4: 181 | GM4: 177 | GN4: 191 | GO4: 158 | GP4: 176 | GQ4: 193 | GR4: 180 | GS4: 171 | GT4: 165 | GU4: 161 | GV4: 151 | GW4: 162 | GX4: 173 | GY4: 178 | GZ4: 175 | HA4: 177 | HB4: 187 | HC4: 174 | HD4: 163 | HE4: 185 | HF4: 182 | HG4: 179 | HH4: 201 | HI4: 195 | HJ4: 211 | HK4: 203 | HL4: 203 | HM4: 182 | HN4: 192 | HO4: 167 | HP4: 180 | HQ4: 196 | HR4: 181 | HS4: 199 | HT4: 192 | HU4: 186 | HV4: 204 | HW4: 203 | HX4: 195 | HY4: 169 | HZ4: 193 | IA4: 181 | IB4: 202 | IC4: 200 | ID4: 202 | IE4: 203 | IF4: 206 | IG4: 209 | IH4: 206 | II4: 197 | IJ4: 208 | IK4: 212 | IL4: 212 | IM4: 202 | IN4: 185 | IO4: 199 | IP4: 193 | IQ4: 181 | IR4: 172 | IS4: 191 | IT4: 205 | IU4: 183 | IV4: 165 | IW4: 177 | IX4: 178 | IY4: 184 | IZ4: 178 | JA4: 180 | JB4: 172 | JC4: 190 | JD4: 176 | JE4: 183 | JF4: 140 | JG4: 163 | JH4: 169 | JI4: 171 | JJ4: 150 | JK4: 206 | JL4: 183 | JM4: 185 | JN4: 195 | JO4: 177 | JP4: 196 | JQ4: 188 | JR4: 189 | JS4: 161 | JT4: 190 | JU4: 187 | JV4: 174 | JW4: 200 | JX4: 190 | JY4: 204 | JZ4: 195 | KA4: 200 | KB4: 192 | KC4: 194 | KD4: 188 | KE4: 199 | KF4: 172 | KG4: 188 | KH4: 184 | KI4: 179 | KJ4: 165 | KK4: 209 | KL4: 194 | KM4: 211 | KN4: 192 | KO4: 207 | KP4: 205 | KQ4: 202 | KR4: 200 | KS4: 211 | KT4: 210 | KU4: 209 | KV4: 211 | KW4: 191 | KX4: 187 | KY4: 183 | KZ4: 170 | LA4: 195 | LB4: 206 | LC4: 204 | LD4: 210 | LE4: 197 | LF4: 190 | LG4: 196 | LH4: 206 | LI4: 193 | LJ4: 192 | LK4: 188 | LL4: 164 | LM4: 182 | LN4: 213 | LO4: 208 | LP4: 194 | LQ4: 158 | LR4: 171 | LS4: 183 | LT4: 161 | LU4: 196 | LV4: 192 | LW4: 194 | LX4: 183 | LY4: 168 | LZ4: 207 | MA4: 186 | MB4: 199 | MC4: 194 | MD4: 191 | ME4: 201 | MF4: 184 | MG4: 197 | MH4: 206 | MI4: 172 | MJ4: 193 | MK4: 206 | ML4: 199 | MM4: 207 | MN4: 206 | MO4: 174 | MP4: 155 | MQ4: 205 | MR4: 187 | MS4: 199 | MT4: 190 | MU4: 193 | MV4: 184 | MW4: 182 | MX4: 194 | MY4: 202 | MZ4: 195 | NA4: 165 | NB4: 185 | NC4: 186 | ND4: 198 | NE4: 209 | NF4: 211 | NG4: 210 | NH4: 206 | NI4: 208 | NJ4: 211 | NK4: 196 | NL4: 181 | NM4: 157 | NN4: 193 | NO4: 178 | NP4: 187 | NQ4: 188 | NR4: 193 | NS4: 201 | NT4: 210 | NU4: 142 | NV4: 166 | NW4: 187 | NX4: 185 | NY4: 174 | NZ4: 199 | OA4: 193 | OB4: 186 | OC4: 157 | OD4: 153 | OE4: 164 | OF4: 190 | OG4: 188 | OH4: 176 | OI4: 164 | OJ4: 200 | OK4: 154 | OL4: 179 | OM4: 180 | ON4: 166 | OO4: 184 | OP4: 181 | OQ4: 184 | OR4: 185 | OS4: 188 | OT4: 196 | OU4: 179 | OV4: 185 | OW4: 180 | OX4: 202 | OY4: 197 | OZ4: 192 | PA4: 194 | PB4: 183 | PC4: 195 | PD4: 193 | PE4: 181 | PF4: 184 | PG4: 180 | PH4: 187 | PI4: 162 | PJ4: 189 | PK4: 183 | PL4: 174 | PM4: 179 | PN4: 194 | PO4: 178 | PP4: 193 | PQ4: 198 | PR4: 194 | PS4: 204 | PT4: 204 | PU4: 204 | PV4: 200 | PW4: 199 | PX4: 196 | PY4: 211 | PZ4: 205 | QA4: 196 | QB4: 196 | QC4: 200 | QD4: 200 | QE4: 194 | QF4: 198 | QG4: 200 | QH4: 198 | QI4: 208 | QJ4: 208 | QK4: 206 | QL4: 206 | QM4: 201 | QN4: 197 | QO4: 198 | QP4: 201 | QQ4: 207 | QR4: 197 | QS4: 179 | QT4: 202 | QU4: 191 | QV4: 197 | QW4: 202 | QX4: 208 | QY4: 208 | QZ4: 200 | RA4: 203 | RB4: 206 | RC4: 206 | RD4: 208 | RE4: 181 | RF4: 206 | RG4: 201 | RH4: 204 | RI4: 207 | RJ4: 206 | RK4: 203 | RL4: 206 | RM4: 201 | RN4: 192 | RO4: 205 | RP4: 206 | RQ4: 201 | RR4: 192 | RS4: 185 | RT4: 179 | RU4: 207 | RV4: 168 | RW4: 195 | RX4: 191 | RY4: 190 | RZ4: 181 | SA4: 177 | SB4: 193 | SC4: 202 | SD4: 183 | SE4: 185 | SF4: 162 | SG4: 193 | SH4: 185 | SI4: 188 | SJ4: 193 | SK4: 200 | SL4: 184 | SM4: 197 | SN4: 204 | SO4: 205 | SP4: 200 | SQ4: 199 | SR4: 183 | SS4: 177 | ST4: 189 | SU4: 176 | SV4: 206 | SW4: 177 | SX4: 201 | SY4: 207 | SZ4: 207 | TA4: 166 | TB4: 171 | TC4: 185 | TD4: 190 | TE4: 188 | TF4: 197 | TG4: 201 | TH4: 166 | TI4: 178 | TJ4: 211 | TK4: 170 | TL4: 177 | TM4: 194 | TN4: 186 | TO4: 204 | TP4: 183 | TQ4: 188 | TR4: 195 | TS4: 188 | TT4: 199 | TU4: 195 | TV4: 181 | TW4: 185 | TX4: 179 | TY4: 189 | TZ4: 180 | UA4: 168 | UB4: 176 | UC4: 172 | UD4: 190 | UE4: 179 | UF4: 184 | UG4: 188 | UH4: 206 | UI4: 194 | UJ4: 205 | UK4: 207 | UL4: 209 | UM4: 204 | UN4: 210 | UO4: 211 | UP4: 206 | UQ4: 205 | UR4: 203 | US4: 178 | UT4: 202 | UU4: 208 | UV4: 188 | UW4: 200 | UX4: 205 | UY4: 189 | UZ4: 209 | VA4: 197 | VB4: 200 | VC4: 209 | VD4: 188 | VE4: 154 | VF4: 159 | VG4: 188 | VH4: 188 | VI4: 188 | VJ4: 166 | VK4: 190 | VL4: 194 | VM4: 179 | VN4: 188 | VO4: 197 | VP4: 158 | VQ4: 162 | VR4: 152 | VS4: 165 | VT4: 174 | VU4: 183 | VV4: 158 | VW4: 202 | VX4: 179 | VY4: 200 | VZ4: 198 | WA4: 189 | WB4: 186 | WC4: 205 | WD4: 179 | WE4: 199 | WF4: 184 | WG4: 183 | WH4: 203 | WI4: 207 | WJ4: 183 | WK4: 174 | WL4: 179 | WM4: 175 | WN4: 170 | WO4: 188 | WP4: 159 | WQ4: 167 | WR4: 176 | WS4: 168 | WT4: 147 | WU4: 144 | WV4: 167 | WW4: 164 | WX4: 141 | WY4: 169 | WZ4: 169 | XA4: 154 | XB4: 202 | XC4: 203 | XD4: 205 | XE4: 203 | XF4: 211 | XG4: 204 | XH4: 208 | XI4: 201 | XJ4: 171 | XK4: 197 | XL4: 192 | XM4: 194 | XN4: 191 | XO4: 201 | XP4: 201 | XQ4: 209 | XR4: 194 | XS4: 182 | XT4: 191 | XU4: 200 | XV4: 187 | XW4: 196 | XX4: 201 | XY4: 197 | XZ4: 199 | YA4: 154 | YB4: 192 | YC4: 179 | YD4: 186 | YE4: 186 | YF4: 178 | YG4: 207 | YH4: 207 | YI4: 208 | YJ4: 183 | YK4: 198 | YL4: 206 | YM4: 210 | YN4: 209 | YO4: 206 | YP4: 190 | YQ4: 193 | YR4: 210 | YS4: 206 | YT4: 185 | YU4: 209 | YV4: 208 | YW4: 205 | YX4: 208 | YY4: 206 | YZ4: 204 | ZA4: 202 | ZB4: 205 | ZC4: 209 | ZD4: 204 | ZE4: 210 | ZF4: 195 | ZG4: 200 | ZH4: 193 | ZI4: 206 | ZJ4: 184 | ZK4: 184 | ZL4: 198 | ZM4: 190 | ZN4: 210 | ZO4: 182 | ZP4: 169 | ZQ4: 194 | ZR4: 148 | ZS4: 201 | ZT4: 200 | ZU4: 203 | ZV4: 179 | ZW4: 185 | ZX4: 172 | ZY4: 184 | ZZ4: 197 | AAA4: 199 | AAB4: 198 | AAC4: 199 | AAD4: 194 | AAE4: 195 | AAF4: 204 | AAG4: 199 | AAH4: 206 | AAI4: 199 | AAJ4: 203 | AAK4: 210 | AAL4: 201 | AAM4: 206 | AAN4: 210 | AAO4: 177 | AAP4: 179 | AAQ4: 201 | AAR4: 177 | AAS4: 208 | AAT4: 201 | AAU4: 208 | AAV4: 206 | AAW4: 207 | AAX4: 201 | AAY4: 178 | AAZ4: 199 | ABA4: 208 | ABB4: 208 | ABC4: 205 | ABD4: 209 | ABE4: 197 | ABF4: 207 | ABG4: 208 | ABH4: 201 | ABI4: 208 | ABJ4: 205 | ABK4: 204 | ABL4: 194 | ABM4: 207 | ABN4: 208 | ABO4: 210 | ABP4: 208 | ABQ4: 198 | ABR4: 203 | ABS4: 186 | ABT4: 208 | ABU4: 206 | ABV4: 203 | ABW4: 201 | ABX4: 209 | ABY4: 206 | ABZ4: 183 | ACA4: 204 | ACB4: 192 | ACC4: 194 | ACD4: 187 | ACE4: 205 | ACF4: 210 | ACG4: 207 | ACH4: 201 | ACI4: 207 | ACJ4: 186 | ACK4: 203 | ACL4: 203 | ACM4: 206 | ACN4: 210 | ACO4: 194 | ACP4: 188 | ACQ4: 188 | ACR4: 199 | ACS4: 151 | ACT4: 141 | ACU4: 157 | ACV4: 160 | ACW4: 187 | ACX4: 172 | ACY4: 202 | ACZ4: 200 | ADA4: 195 | ADB4: 207 | ADC4: 208 | ADD4: 199 | ADE4: 192 | ADF4: 209 | ADG4: 204 | ADH4: 199 | ADI4: 201 | ADJ4: 207 | ADK4: 179 | ADL4: 159 | ADM4: 201 | ADN4: 172 | ADO4: 185 | ADP4: 193 | ADQ4: 196 | ADR4: 202 | ADS4: 194 | ADT4: 190 | ADU4: 175 | ADV4: 187 | ADW4: 183 | ADX4: 190 | ADY4: 199 | ADZ4: 207 | AEA4: 178 | AEB4: 205 | AEC4: 209 | AED4: 191 | AEE4: 198 | AEF4: 197 | AEG4: 200 | AEH4: 197 | AEI4: 199 | AEJ4: 207 | AEK4: 208 | AEL4: 208 | AEM4: 199 | AEN4: 192 | AEO4: 206 | AEP4: 206 | AEQ4: 205 | AER4: 200 | AES4: 180 | AET4: 169 | AEU4: 196 | AEV4: 189 | AEW4: 190 | AEX4: 191 | AEY4: 184 | AEZ4: 189 | AFA4: 211 | AFB4: 198 | AFC4: 213 | AFD4: 211 | AFE4: 209 | AFF4: 204 | AFG4: 207 | AFH4: 209 | AFI4: 198 | AFJ4: 207 | AFK4: 192 | AFL4: 188 | AFM4: 187 | AFN4: 206 | AFO4: 171 | AFP4: 193 | AFQ4: 190 | AFR4: 196 | AFS4: 184 | AFT4: 181 | AFU4: 189 | AFV4: 190 | AFW4: 196 | AFX4: 187 | AFY4: 192 | AFZ4: 187 | AGA4: 187 | AGB4: 207 | AGC4: 199 | AGD4: 172
A5: 0206 | B5: =COUNTIF(Лист1!$B$2:$B$77501,A5) -> 83 | C5: 166 | D5: =IF(D$1=$A5,,D$2+$B5) -> 183 | E5: 0 | F5: 180 | G5: 179 | H5: 191 | I5: 185 | J5: 179 | K5: 182 | L5: 168 | M5: 180 | N5: 163 | O5: 190 | P5: 186 | Q5: 178 | R5: 185 | S5: 185 | T5: 180 | U5: 188 | V5: 173 | W5: 190 | X5: 186 | Y5: 173 | Z5: 177 | AA5: 183 | AB5: 177 | AC5: 178 | AD5: 191 | AE5: 188 | AF5: 182 | AG5: 147 | AH5: 164 | AI5: 154 | AJ5: 157 | AK5: 168 | AL5: 188 | AM5: 168 | AN5: 127 | AO5: 159 | AP5: 177 | AQ5: 191 | AR5: 170 | AS5: 187 | AT5: 185 | AU5: 176 | AV5: 181 | AW5: 161 | AX5: 149 | AY5: 179 | AZ5: 141 | BA5: 142 | BB5: 146 | BC5: 182 | BD5: 161 | BE5: 184 | BF5: 184 | BG5: 183 | BH5: 153 | BI5: 167 | BJ5: 172 | BK5: 162 | BL5: 177 | BM5: 142 | BN5: 177 | BO5: 172 | BP5: 153 | BQ5: 185 | BR5: 185 | BS5: 166 | BT5: 148 | BU5: 177 | BV5: 188 | BW5: 186 | BX5: 172 | BY5: 193 | BZ5: 183 | CA5: 168 | CB5: 191 | CC5: 160 | CD5: 170 | CE5: 190 | CF5: 185 | CG5: 191 | CH5: 183 | CI5: 197 | CJ5: 176 | CK5: 182 | CL5: 161 | CM5: 174 | CN5: 187 | CO5: 166 | CP5: 186 | CQ5: 191 | CR5: 193 | CS5: 181 | CT5: 182 | CU5: 191 | CV5: 184 | CW5: 176 | CX5: 195 | CY5: 195 | CZ5: 197 | DA5: 187 | DB5: 183 | DC5: 163 | DD5: 168 | DE5: 187 | DF5: 180 | DG5: 179 | DH5: 156 | DI5: 163 | DJ5: 174 | DK5: 184 | DL5: 173 | DM5: 187 | DN5: 169 | DO5: 186 | DP5: 145 | DQ5: 145 | DR5: 187 | DS5: 157 | DT5: 182 | DU5: 148 | DV5: 151 | DW5: 166 | DX5: 132 | DY5: 182 | DZ5: 186 | EA5: 150 | EB5: 147 | EC5: 173 | ED5: 188 | EE5: 109 | EF5: 152 | EG5: 178 | EH5: 159 | EI5: 138 | EJ5: 149 | EK5: 150 | EL5: 171 | EM5: 166 | EN5: 196 | EO5: 181 | EP5: 172 | EQ5: 174 | ER5: 150 | ES5: 160 | ET5: 152 | EU5: 182 | EV5: 156 | EW5: 182 | EX5: 160 | EY5: 178 | EZ5: 159 | FA5: 162 | FB5: 137 | FC5: 162 | FD5: 126 | FE5: 152 | FF5: 137 | FG5: 156 | FH5: 172 | FI5: 166 | FJ5: 157 | FK5: 172 | FL5: 154 | FM5: 168 | FN5: 175 | FO5: 138 | FP5: 164 | FQ5: 152 | FR5: 158 | FS5: 160 | FT5: 125 | FU5: 133 | FV5: 131 | FW5: 163 | FX5: 159 | FY5: 171 | FZ5: 157 | GA5: 177 | GB5: 156 | GC5: 155 | GD5: 132 | GE5: 165 | GF5: 142 | GG5: 129 | GH5: 158 | GI5: 115 | GJ5: 165 | GK5: 172 | GL5: 164 | GM5: 160 | GN5: 174 | GO5: 141 | GP5: 159 | GQ5: 176 | GR5: 163 | GS5: 154 | GT5: 148 | GU5: 144 | GV5: 134 | GW5: 145 | GX5: 156 | GY5: 161 | GZ5: 158 | HA5: 160 | HB5: 170 | HC5: 157 | HD5: 146 | HE5: 168 | HF5: 165 | HG5: 162 | HH5: 184 | HI5: 178 | HJ5: 194 | HK5: 186 | HL5: 186 | HM5: 165 | HN5: 175 | HO5: 150 | HP5: 163 | HQ5: 179 | HR5: 164 | HS5: 182 | HT5: 175 | HU5: 169 | HV5: 187 | HW5: 186 | HX5: 178 | HY5: 152 | HZ5: 176 | IA5: 164 | IB5: 185 | IC5: 183 | ID5: 185 | IE5: 186 | IF5: 189 | IG5: 192 | IH5: 189 | II5: 180 | IJ5: 191 | IK5: 195 | IL5: 195 | IM5: 185 | IN5: 168 | IO5: 182 | IP5: 176 | IQ5: 164 | IR5: 155 | IS5: 174 | IT5: 188 | IU5: 166 | IV5: 148 | IW5: 160 | IX5: 161 | IY5: 167 | IZ5: 161 | JA5: 163 | JB5: 155 | JC5: 173 | JD5: 159 | JE5: 166 | JF5: 123 | JG5: 146 | JH5: 152 | JI5: 154 | JJ5: 133 | JK5: 189 | JL5: 166 | JM5: 168 | JN5: 178 | JO5: 160 | JP5: 179 | JQ5: 171 | JR5: 172 | JS5: 144 | JT5: 173 | JU5: 170 | JV5: 157 | JW5: 183 | JX5: 173 | JY5: 187 | JZ5: 178 | KA5: 183 | KB5: 175 | KC5: 177 | KD5: 171 | KE5: 182 | KF5: 155 | KG5: 171 | KH5: 167 | KI5: 162 | KJ5: 148 | KK5: 192 | KL5: 177 | KM5: 194 | KN5: 175 | KO5: 190 | KP5: 188 | KQ5: 185 | KR5: 183 | KS5: 194 | KT5: 193 | KU5: 192 | KV5: 194 | KW5: 174 | KX5: 170 | KY5: 166 | KZ5: 153 | LA5: 178 | LB5: 189 | LC5: 187 | LD5: 193 | LE5: 180 | LF5: 173 | LG5: 179 | LH5: 189 | LI5: 176 | LJ5: 175 | LK5: 171 | LL5: 147 | LM5: 165 | LN5: 196 | LO5: 191 | LP5: 177 | LQ5: 141 | LR5: 154 | LS5: 166 | LT5: 144 | LU5: 179 | LV5: 175 | LW5: 177 | LX5: 166 | LY5: 151 | LZ5: 190 | MA5: 169 | MB5: 182 | MC5: 177 | MD5: 174 | ME5: 184 | MF5: 167 | MG5: 180 | MH5: 189 | MI5: 155 | MJ5: 176 | MK5: 189 | ML5: 182 | MM5: 190 | MN5: 189 | MO5: 157 | MP5: 138 | MQ5: 188 | MR5: 170 | MS5: 182 | MT5: 173 | MU5: 176 | MV5: 167 | MW5: 165 | MX5: 177 | MY5: 185 | MZ5: 178 | NA5: 148 | NB5: 168 | NC5: 169 | ND5: 181 | NE5: 192 | NF5: 194 | NG5: 193 | NH5: 189 | NI5: 191 | NJ5: 194 | NK5: 179 | NL5: 164 | NM5: 140 | NN5: 176 | NO5: 161 | NP5: 170 | NQ5: 171 | NR5: 176 | NS5: 184 | NT5: 193 | NU5: 125 | NV5: 149 | NW5: 170 | NX5: 168 | NY5: 157 | NZ5: 182 | OA5: 176 | OB5: 169 | OC5: 140 | OD5: 136 | OE5: 147 | OF5: 173 | OG5: 171 | OH5: 159 | OI5: 147 | OJ5: 183 | OK5: 137 | OL5: 162 | OM5: 163 | ON5: 149 | OO5: 167 | OP5: 164 | OQ5: 167 | OR5: 168 | OS5: 171 | OT5: 179 | OU5: 162 | OV5: 168 | OW5: 163 | OX5: 185 | OY5: 180 | OZ5: 175 | PA5: 177 | PB5: 166 | PC5: 178 | PD5: 176 | PE5: 164 | PF5: 167 | PG5: 163 | PH5: 170 | PI5: 145 | PJ5: 172 | PK5: 166 | PL5: 157 | PM5: 162 | PN5: 177 | PO5: 161 | PP5: 176 | PQ5: 181 | PR5: 177 | PS5: 187 | PT5: 187 | PU5: 187 | PV5: 183 | PW5: 182 | PX5: 179 | PY5: 194 | PZ5: 188 | QA5: 179 | QB5: 179 | QC5: 183 | QD5: 183 | QE5: 177 | QF5: 181 | QG5: 183 | QH5: 181 | QI5: 191 | QJ5: 191 | QK5: 189 | QL5: 189 | QM5: 184 | QN5: 180 | QO5: 181 | QP5: 184 | QQ5: 190 | QR5: 180 | QS5: 162 | QT5: 185 | QU5: 174 | QV5: 180 | QW5: 185 | QX5: 191 | QY5: 191 | QZ5: 183 | RA5: 186 | RB5: 189 | RC5: 189 | RD5: 191 | RE5: 164 | RF5: 189 | RG5: 184 | RH5: 187 | RI5: 190 | RJ5: 189 | RK5: 186 | RL5: 189 | RM5: 184 | RN5: 175 | RO5: 188 | RP5: 189 | RQ5: 184 | RR5: 175 | RS5: 168 | RT5: 162 | RU5: 190 | RV5: 151 | RW5: 178 | RX5: 174 | RY5: 173 | RZ5: 164 | SA5: 160 | SB5: 176 | SC5: 185 | SD5: 166 | SE5: 168 | SF5: 145 | SG5: 176 | SH5: 168 | SI5: 171 | SJ5: 176 | SK5: 183 | SL5: 167 | SM5: 180 | SN5: 187 | SO5: 188 | SP5: 183 | SQ5: 182 | SR5: 166 | SS5: 160 | ST5: 172 | SU5: 159 | SV5: 189 | SW5: 160 | SX5: 184 | SY5: 190 | SZ5: 190 | TA5: 149 | TB5: 154 | TC5: 168 | TD5: 173 | TE5: 171 | TF5: 180 | TG5: 184 | TH5: 149 | TI5: 161 | TJ5: 194 | TK5: 153 | TL5: 160 | TM5: 177 | TN5: 169 | TO5: 187 | TP5: 166 | TQ5: 171 | TR5: 178 | TS5: 171 | TT5: 182 | TU5: 178 | TV5: 164 | TW5: 168 | TX5: 162 | TY5: 172 | TZ5: 163 | UA5: 151 | UB5: 159 | UC5: 155 | UD5: 173 | UE5: 162 | UF5: 167 | UG5: 171 | UH5: 189 | UI5: 177 | UJ5: 188 | UK5: 190 | UL5: 192 | UM5: 187 | UN5: 193 | UO5: 194 | UP5: 189 | UQ5: 188 | UR5: 186 | US5: 161 | UT5: 185 | UU5: 191 | UV5: 171 | UW5: 183 | UX5: 188 | UY5: 172 | UZ5: 192 | VA5: 180 | VB5: 183 | VC5: 192 | VD5: 171 | VE5: 137 | VF5: 142 | VG5: 171 | VH5: 171 | VI5: 171 | VJ5: 149 | VK5: 173 | VL5: 177 | VM5: 162 | VN5: 171 | VO5: 180 | VP5: 141 | VQ5: 145 | VR5: 135 | VS5: 148 | VT5: 157 | VU5: 166 | VV5: 141 | VW5: 185 | VX5: 162 | VY5: 183 | VZ5: 181 | WA5: 172 | WB5: 169 | WC5: 188 | WD5: 162 | WE5: 182 | WF5: 167 | WG5: 166 | WH5: 186 | WI5: 190 | WJ5: 166 | WK5: 157 | WL5: 162 | WM5: 158 | WN5: 153 | WO5: 171 | WP5: 142 | WQ5: 150 | WR5: 159 | WS5: 151 | WT5: 130 | WU5: 127 | WV5: 150 | WW5: 147 | WX5: 124 | WY5: 152 | WZ5: 152 | XA5: 137 | XB5: 185 | XC5: 186 | XD5: 188 | XE5: 186 | XF5: 194 | XG5: 187 | XH5: 191 | XI5: 184 | XJ5: 154 | XK5: 180 | XL5: 175 | XM5: 177 | XN5: 174 | XO5: 184 | XP5: 184 | XQ5: 192 | XR5: 177 | XS5: 165 | XT5: 174 | XU5: 183 | XV5: 170 | XW5: 179 | XX5: 184 | XY5: 180 | XZ5: 182 | YA5: 137 | YB5: 175 | YC5: 162 | YD5: 169 | YE5: 169 | YF5: 161 | YG5: 190 | YH5: 190 | YI5: 191 | YJ5: 166 | YK5: 181 | YL5: 189 | YM5: 193 | YN5: 192 | YO5: 189 | YP5: 173 | YQ5: 176 | YR5: 193 | YS5: 189 | YT5: 168 | YU5: 192 | YV5: 191 | YW5: 188 | YX5: 191 | YY5: 189 | YZ5: 187 | ZA5: 185 | ZB5: 188 | ZC5: 192 | ZD5: 187 | ZE5: 193 | ZF5: 178 | ZG5: 183 | ZH5: 176 | ZI5: 189 | ZJ5: 167 | ZK5: 167 | ZL5: 181 | ZM5: 173 | ZN5: 193 | ZO5: 165 | ZP5: 152 | ZQ5: 177 | ZR5: 131 | ZS5: 184 | ZT5: 183 | ZU5: 186 | ZV5: 162 | ZW5: 168 | ZX5: 155 | ZY5: 167 | ZZ5: 180 | AAA5: 182 | AAB5: 181 | AAC5: 182 | AAD5: 177 | AAE5: 178 | AAF5: 187 | AAG5: 182 | AAH5: 189 | AAI5: 182 | AAJ5: 186 | AAK5: 193 | AAL5: 184 | AAM5: 189 | AAN5: 193 | AAO5: 160 | AAP5: 162 | AAQ5: 184 | AAR5: 160 | AAS5: 191 | AAT5: 184 | AAU5: 191 | AAV5: 189 | AAW5: 190 | AAX5: 184 | AAY5: 161 | AAZ5: 182 | ABA5: 191 | ABB5: 191 | ABC5: 188 | ABD5: 192 | ABE5: 180 | ABF5: 190 | ABG5: 191 | ABH5: 184 | ABI5: 191 | ABJ5: 188 | ABK5: 187 | ABL5: 177 | ABM5: 190 | ABN5: 191 | ABO5: 193 | ABP5: 191 | ABQ5: 181 | ABR5: 186 | ABS5: 169 | ABT5: 191 | ABU5: 189 | ABV5: 186 | ABW5: 184 | ABX5: 192 | ABY5: 189 | ABZ5: 166 | ACA5: 187 | ACB5: 175 | ACC5: 177 | ACD5: 170 | ACE5: 188 | ACF5: 193 | ACG5: 190 | ACH5: 184 | ACI5: 190 | ACJ5: 169 | ACK5: 186 | ACL5: 186 | ACM5: 189 | ACN5: 193 | ACO5: 177 | ACP5: 171 | ACQ5: 171 | ACR5: 182 | ACS5: 134 | ACT5: 124 | ACU5: 140 | ACV5: 143 | ACW5: 170 | ACX5: 155 | ACY5: 185 | ACZ5: 183 | ADA5: 178 | ADB5: 190 | ADC5: 191 | ADD5: 182 | ADE5: 175 | ADF5: 192 | ADG5: 187 | ADH5: 182 | ADI5: 184 | ADJ5: 190 | ADK5: 162 | ADL5: 142 | ADM5: 184 | ADN5: 155 | ADO5: 168 | ADP5: 176 | ADQ5: 179 | ADR5: 185 | ADS5: 177 | ADT5: 173 | ADU5: 158 | ADV5: 170 | ADW5: 166 | ADX5: 173 | ADY5: 182 | ADZ5: 190 | AEA5: 161 | AEB5: 188 | AEC5: 192 | AED5: 174 | AEE5: 181 | AEF5: 180 | AEG5: 183 | AEH5: 180 | AEI5: 182 | AEJ5: 190 | AEK5: 191 | AEL5: 191 | AEM5: 182 | AEN5: 175 | AEO5: 189 | AEP5: 189 | AEQ5: 188 | AER5: 183 | AES5: 163 | AET5: 152 | AEU5: 179 | AEV5: 172 | AEW5: 173 | AEX5: 174 | AEY5: 167 | AEZ5: 172 | AFA5: 194 | AFB5: 181 | AFC5: 196 | AFD5: 194 | AFE5: 192 | AFF5: 187 | AFG5: 190 | AFH5: 192 | AFI5: 181 | AFJ5: 190 | AFK5: 175 | AFL5: 171 | AFM5: 170 | AFN5: 189 | AFO5: 154 | AFP5: 176 | AFQ5: 173 | AFR5: 179 | AFS5: 167 | AFT5: 164 | AFU5: 172 | AFV5: 173 | AFW5: 179 | AFX5: 170 | AFY5: 175 | AFZ5: 170 | AGA5: 170 | AGB5: 190 | AGC5: 182 | AGD5: 155
A6: 0207 | B6: =COUNTIF(Лист1!$B$2:$B$77501,A6) -> 97 | C6: 180 | D6: 197 | E6: 180 | F6: 0 | G6: 193 | H6: 205 | I6: 199 | J6: 193 | K6: 196 | L6: 182 | M6: 194 | N6: 177 | O6: 204 | P6: 200 | Q6: 192 | R6: 199 | S6: 199 | T6: 194 | U6: 202 | V6: 187 | W6: 204 | X6: 200 | Y6: 187 | Z6: 191 | AA6: 197 | AB6: 191 | AC6: 192 | AD6: 205 | AE6: 202 | AF6: 196 | AG6: 161 | AH6: 178 | AI6: 168 | AJ6: 171 | AK6: 182 | AL6: 202 | AM6: 182 | AN6: 141 | AO6: 173 | AP6: 191 | AQ6: 205 | AR6: 184 | AS6: 201 | AT6: 199 | AU6: 190 | AV6: 195 | AW6: 175 | AX6: 163 | AY6: 193 | AZ6: 155 | BA6: 156 | BB6: 160 | BC6: 196 | BD6: 175 | BE6: 198 | BF6: 198 | BG6: 197 | BH6: 167 | BI6: 181 | BJ6: 186 | BK6: 176 | BL6: 191 | BM6: 156 | BN6: 191 | BO6: 186 | BP6: 167 | BQ6: 199 | BR6: 199 | BS6: 180 | BT6: 162 | BU6: 191 | BV6: 202 | BW6: 200 | BX6: 186 | BY6: 207 | BZ6: 197 | CA6: 182 | CB6: 205 | CC6: 174 | CD6: 184 | CE6: 204 | CF6: 199 | CG6: 205 | CH6: 197 | CI6: 211 | CJ6: 190 | CK6: 196 | CL6: 175 | CM6: 188 | CN6: 201 | CO6: 180 | CP6: 200 | CQ6: 205 | CR6: 207 | CS6: 195 | CT6: 196 | CU6: 205 | CV6: 198 | CW6: 190 | CX6: 209 | CY6: 209 | CZ6: 211 | DA6: 201 | DB6: 197 | DC6: 177 | DD6: 182 | DE6: 201 | DF6: 194 | DG6: 193 | DH6: 170 | DI6: 177 | DJ6: 188 | DK6: 198 | DL6: 187 | DM6: 201 | DN6: 183 | DO6: 200 | DP6: 159 | DQ6: 159 | DR6: 201 | DS6: 171 | DT6: 196 | DU6: 162 | DV6: 165 | DW6: 180 | DX6: 146 | DY6: 196 | DZ6: 200 | EA6: =IF(EA$1=$A6,,EA$2+$B6) -> 164 | EB6: 161 | EC6: 187 | ED6: 202 | EE6: 123 | EF6: 166 | EG6: 192 | EH6: 173 | EI6: 152 | EJ6: 163 | EK6: 164 | EL6: 185 | EM6: 180 | EN6: 210 | EO6: 195 | EP6: 186 | EQ6: 188 | ER6: 164 | ES6: 174 | ET6: 166 | EU6: 196 | EV6: 170 | EW6: 196 | EX6: 174 | EY6: 192 | EZ6: 173 | FA6: 176 | FB6: 151 | FC6: 176 | FD6: 140 | FE6: 166 | FF6: 151 | FG6: 170 | FH6: 186 | FI6: 180 | FJ6: 171 | FK6: 186 | FL6: 168 | FM6: 182 | FN6: 189 | FO6: 152 | FP6: 178 | FQ6: 166 | FR6: 172 | FS6: 174 | FT6: 139 | FU6: 147 | FV6: 145 | FW6: 177 | FX6: 173 | FY6: 185 | FZ6: 171 | GA6: 191 | GB6: 170 | GC6: 169 | GD6: 146 | GE6: 179 | GF6: 156 | GG6: 143 | GH6: 172 | GI6: 129 | GJ6: 179 | GK6: 186 | GL6: 178 | GM6: 174 | GN6: 188 | GO6: 155 | GP6: 173 | GQ6: 190 | GR6: 177 | GS6: 168 | GT6: 162 | GU6: 158 | GV6: 148 | GW6: 159 | GX6: 170 | GY6: 175 | GZ6: 172 | HA6: 174 | HB6: 184 | HC6: 171 | HD6: 160 | HE6: 182 | HF6: 179 | HG6: 176 | HH6: 198 | HI6: 192 | HJ6: 208 | HK6: 200 | HL6: 200 | HM6: 179 | HN6: 189 | HO6: 164 | HP6: 177 | HQ6: 193 | HR6: 178 | HS6: 196 | HT6: 189 | HU6: 183 | HV6: 201 | HW6: 200 | HX6: 192 | HY6: 166 | HZ6: 190 | IA6: 178 | IB6: 199 | IC6: 197 | ID6: 199 | IE6: 200 | IF6: 203 | IG6: 206 | IH6: 203 | II6: 194 | IJ6: 205 | IK6: 209 | IL6: 209 | IM6: 199 | IN6: 182 | IO6: 196 | IP6: 190 | IQ6: 178 | IR6: 169 | IS6: 188 | IT6: 202 | IU6: 180 | IV6: 162 | IW6: 174 | IX6: 175 | IY6: =IF(IY$1=$A6,,IY$2+$B6) -> 181 | IZ6: 175 | JA6: 177 | JB6: 169 | JC6: 187 | JD6: 173 | JE6: 180 | JF6: 137 | JG6: 160 | JH6: 166 | JI6: 168 | JJ6: 147 | JK6: 203 | JL6: 180 | JM6: 182 | JN6: 192 | JO6: 174 | JP6: 193 | JQ6: 185 | JR6: 186 | JS6: 158 | JT6: 187 | JU6: 184 | JV6: 171 | JW6: 197 | JX6: 187 | JY6: 201 | JZ6: 192 | KA6: 197 | KB6: 189 | KC6: 191 | KD6: 185 | KE6: 196 | KF6: 169 | KG6: 185 | KH6: 181 | KI6: 176 | KJ6: 162 | KK6: 206 | KL6: 191 | KM6: 208 | KN6: 189 | KO6: 204 | KP6: 202 | KQ6: 199 | KR6: 197 | KS6: 208 | KT6: 207 | KU6: 206 | KV6: 208 | KW6: 188 | KX6: 184 | KY6: 180 | KZ6: 167 | LA6: 192 | LB6: 203 | LC6: 201 | LD6: 207 | LE6: 194 | LF6: 187 | LG6: 193 | LH6: 203 | LI6: 190 | LJ6: 189 | LK6: 185 | LL6: 161 | LM6: 179 | LN6: 210 | LO6: 205 | LP6: 191 | LQ6: 155 | LR6: 168 | LS6: 180 | LT6: 158 | LU6: 193 | LV6: 189 | LW6: 191 | LX6: 180 | LY6: 165 | LZ6: 204 | MA6: 183 | MB6: 196 | MC6: 191 | MD6: 188 | ME6: 198 | MF6: 181 | MG6: 194 | MH6: 203 | MI6: 169 | MJ6: 190 | MK6: 203 | ML6: 196 | MM6: 204 | MN6: 203 | MO6: 171 | MP6: 152 | MQ6: 202 | MR6: 184 | MS6: 196 | MT6: 187 | MU6: 190 | MV6: 181 | MW6: 179 | MX6: 191 | MY6: 199 | MZ6: 192 | NA6: 162 | NB6: 182 | NC6: 183 | ND6: 195 | NE6: 206 | NF6: 208 | NG6: 207 | NH6: 203 | NI6: 205 | NJ6: 208 | NK6: 193 | NL6: 178 | NM6: 154 | NN6: 190 | NO6: 175 | NP6: 184 | NQ6: 185 | NR6: 190 | NS6: 198 | NT6: 207 | NU6: 139 | NV6: 163 | NW6: =IF(NW$1=$A6,,NW$2+$B6) -> 184 | NX6: 182 | NY6: 171 | NZ6: 196 | OA6: 190 | OB6: 183 | OC6: 154 | OD6: 150 | OE6: 161 | OF6: 187 | OG6: 185 | OH6: 173 | OI6: 161 | OJ6: 197 | OK6: 151 | OL6: 176 | OM6: 177 | ON6: 163 | OO6: 181 | OP6: 178 | OQ6: 181 | OR6: 182 | OS6: 185 | OT6: 193 | OU6: 176 | OV6: 182 | OW6: 177 | OX6: 199 | OY6: 194 | OZ6: 189 | PA6: 191 | PB6: 180 | PC6: 192 | PD6: 190 | PE6: 178 | PF6: 181 | PG6: 177 | PH6: 184 | PI6: 159 | PJ6: 186 | PK6: 180 | PL6: 171 | PM6: 176 | PN6: 191 | PO6: 175 | PP6: 190 | PQ6: 195 | PR6: 191 | PS6: 201 | PT6: 201 | PU6: 201 | PV6: 197 | PW6: 196 | PX6: 193 | PY6: 208 | PZ6: 202 | QA6: 193 | QB6: 193 | QC6: 197 | QD6: 197 | QE6: 191 | QF6: 195 | QG6: 197 | QH6: 195 | QI6: 205 | QJ6: 205 | QK6: 203 | QL6: 203 | QM6: 198 | QN6: 194 | QO6: 195 | QP6: 198 | QQ6: 204 | QR6: 194 | QS6: 176 | QT6: 199 | QU6: 188 | QV6: 194 | QW6: 199 | QX6: 205 | QY6: 205 | QZ6: 197 | RA6: 200 | RB6: 203 | RC6: 203 | RD6: 205 | RE6: 178 | RF6: 203 | RG6: 198 | RH6: 201 | RI6: 204 | RJ6: 203 | RK6: 200 | RL6: 203 | RM6: 198 | RN6: 189 | RO6: 202 | RP6: 203 | RQ6: 198 | RR6: 189 | RS6: 182 | RT6: 176 | RU6: 204 | RV6: 165 | RW6: 192 | RX6: 188 | RY6: 187 | RZ6: 178 | SA6: 174 | SB6: 190 | SC6: 199 | SD6: 180 | SE6: 182 | SF6: 159 | SG6: 190 | SH6: 182 | SI6: 185 | SJ6: 190 | SK6: 197 | SL6: 181 | SM6: 194 | SN6: 201 | SO6: 202 | SP6: 197 | SQ6: 196 | SR6: 180 | SS6: 174 | ST6: 186 | SU6: =IF(SU$1=$A6,,SU$2+$B6) -> 173 | SV6: 203 | SW6: 174 | SX6: 198 | SY6: 204 | SZ6: 204 | TA6: 163 | TB6: 168 | TC6: 182 | TD6: 187 | TE6: 185 | TF6: 194 | TG6: 198 | TH6: 163 | TI6: 175 | TJ6: 208 | TK6: 167 | TL6: 174 | TM6: 191 | TN6: 183 | TO6: 201 | TP6: 180 | TQ6: 185 | TR6: 192 | TS6: 185 | TT6: 196 | TU6: 192 | TV6: 178 | TW6: 182 | TX6: 176 | TY6: 186 | TZ6: 177 | UA6: 165 | UB6: 173 | UC6: 169 | UD6: 187 | UE6: 176 | UF6: 181 | UG6: 185 | UH6: 203 | UI6: 191 | UJ6: 202 | UK6: 204 | UL6: 206 | UM6: 201 | UN6: 207 | UO6: 208 | UP6: 203 | UQ6: 202 | UR6: 200 | US6: 175 | UT6: 199 | UU6: 205 | UV6: 185 | UW6: 197 | UX6: 202 | UY6: 186 | UZ6: 206 | VA6: 194 | VB6: 197 | VC6: 206 | VD6: 185 | VE6: 151 | VF6: 156 | VG6: 185 | VH6: 185 | VI6: 185 | VJ6: 163 | VK6: 187 | VL6: 191 | VM6: 176 | VN6: 185 | VO6: 194 | VP6: 155 | VQ6: 159 | VR6: 149 | VS6: 162 | VT6: 171 | VU6: 180 | VV6: 155 | VW6: 199 | VX6: 176 | VY6: 197 | VZ6: 195 | WA6: 186 | WB6: 183 | WC6: 202 | WD6: 176 | WE6: 196 | WF6: 181 | WG6: 180 | WH6: 200 | WI6: 204 | WJ6: 180 | WK6: 171 | WL6: 176 | WM6: 172 | WN6: 167 | WO6: 185 | WP6: 156 | WQ6: 164 | WR6: 173 | WS6: 165 | WT6: 144 | WU6: 141 | WV6: 164 | WW6: 161 | WX6: 138 | WY6: 166 | WZ6: 166 | XA6: 151 | XB6: 199 | XC6: 200 | XD6: 202 | XE6: 200 | XF6: 208 | XG6: 201 | XH6: 205 | XI6: 198 | XJ6: 168 | XK6: 194 | XL6: 189 | XM6: 191 | XN6: 188 | XO6: 198 | XP6: 198 | XQ6: 206 | XR6: 191 | XS6: =IF(XS$1=$A6,,XS$2+$B6) -> 179 | XT6: 188 | XU6: 197 | XV6: 184 | XW6: 193 | XX6: 198 | XY6: 194 | XZ6: 196 | YA6: 151 | YB6: 189 | YC6: 176 | YD6: 183 | YE6: 183 | YF6: 175 | YG6: 204 | YH6: 204 | YI6: 205 | YJ6: 180 | YK6: 195 | YL6: 203 | YM6: 207 | YN6: 206 | YO6: 203 | YP6: 187 | YQ6: 190 | YR6: 207 | YS6: 203 | YT6: 182 | YU6: 206 | YV6: 205 | YW6: 202 | YX6: 205 | YY6: 203 | YZ6: 201 | ZA6: 199 | ZB6: 202 | ZC6: 206 | ZD6: 201 | ZE6: 207 | ZF6: 192 | ZG6: 197 | ZH6: 190 | ZI6: 203 | ZJ6: 181 | ZK6: 181 | ZL6: 195 | ZM6: 187 | ZN6: 207 | ZO6: 179 | ZP6: 166 | ZQ6: 191 | ZR6: 145 | ZS6: 198 | ZT6: 197 | ZU6: 200 | ZV6: 176 | ZW6: 182 | ZX6: 169 | ZY6: 181 | ZZ6: 194 | AAA6: 196 | AAB6: 195 | AAC6: 196 | AAD6: 191 | AAE6: 192 | AAF6: 201 | AAG6: 196 | AAH6: 203 | AAI6: 196 | AAJ6: 200 | AAK6: 207 | AAL6: 198 | AAM6: 203 | AAN6: 207 | AAO6: 174 | AAP6: 176 | AAQ6: 198 | AAR6: 174 | AAS6: 205 | AAT6: 198 | AAU6: 205 | AAV6: 203 | AAW6: 204 | AAX6: 198 | AAY6: 175 | AAZ6: 196 | ABA6: 205 | ABB6: 205 | ABC6: 202 | ABD6: 206 | ABE6: 194 | ABF6: 204 | ABG6: 205 | ABH6: 198 | ABI6: 205 | ABJ6: 202 | ABK6: 201 | ABL6: 191 | ABM6: 204 | ABN6: 205 | ABO6: 207 | ABP6: 205 | ABQ6: 195 | ABR6: 200 | ABS6: 183 | ABT6: 205 | ABU6: 203 | ABV6: 200 | ABW6: 198 | ABX6: 206 | ABY6: 203 | ABZ6: 180 | ACA6: 201 | ACB6: 189 | ACC6: 191 | ACD6: 184 | ACE6: 202 | ACF6: 207 | ACG6: 204 | ACH6: 198 | ACI6: 204 | ACJ6: 183 | ACK6: 200 | ACL6: 200 | ACM6: 203 | ACN6: 207 | ACO6: 191 | ACP6: 185 | ACQ6: =IF(ACQ$1=$A6,,ACQ$2+$B6) -> 185 | ACR6: 196 | ACS6: 148 | ACT6: 138 | ACU6: 154 | ACV6: 157 | ACW6: 184 | ACX6: 169 | ACY6: 199 | ACZ6: 197 | ADA6: 192 | ADB6: 204 | ADC6: 205 | ADD6: 196 | ADE6: 189 | ADF6: 206 | ADG6: 201 | ADH6: 196 | ADI6: 198 | ADJ6: 204 | ADK6: 176 | ADL6: 156 | ADM6: 198 | ADN6: 169 | ADO6: 182 | ADP6: 190 | ADQ6: 193 | ADR6: 199 | ADS6: 191 | ADT6: 187 | ADU6: 172 | ADV6: 184 | ADW6: 180 | ADX6: 187 | ADY6: 196 | ADZ6: 204 | AEA6: 175 | AEB6: 202 | AEC6: 206 | AED6: 188 | AEE6: 195 | AEF6: 194 | AEG6: 197 | AEH6: 194 | AEI6: 196 | AEJ6: 204 | AEK6: 205 | AEL6: 205 | AEM6: 196 | AEN6: 189 | AEO6: 203 | AEP6: 203 | AEQ6: 202 | AER6: 197 | AES6: 177 | AET6: 166 | AEU6: 193 | AEV6: 186 | AEW6: 187 | AEX6: 188 | AEY6: 181 | AEZ6: 186 | AFA6: 208 | AFB6: 195 | AFC6: 210 | AFD6: 208 | AFE6: 206 | AFF6: 201 | AFG6: 204 | AFH6: 206 | AFI6: 195 | AFJ6: 204 | AFK6: 189 | AFL6: 185 | AFM6: 184 | AFN6: 203 | AFO6: 168 | AFP6: 190 | AFQ6: 187 | AFR6: 193 | AFS6: 181 | AFT6: 178 | AFU6: 186 | AFV6: 187 | AFW6: 193 | AFX6: 184 | AFY6: 189 | AFZ6: 184 | AGA6: 184 | AGB6: 204 | AGC6: 196 | AGD6: 169
A7: 0301 | B7: =COUNTIF(Лист1!$B$2:$B$77501,A7) -> 96 | C7: 179 | D7: 196 | E7: 179 | F7: 193 | G7: 0 | H7: 204 | I7: 198 | J7: 192 | K7: 195 | L7: 181 | M7: 193 | N7: 176 | O7: 203 | P7: 199 | Q7: 191 | R7: 198 | S7: 198 | T7: 193 | U7: 201 | V7: 186 | W7: 203 | X7: 199 | Y7: 186 | Z7: 190 | AA7: 196 | AB7: 190 | AC7: 191 | AD7: 204 | AE7: 201 | AF7: 195 | AG7: 160 | AH7: 177 | AI7: 167 | AJ7: 170 | AK7: 181 | AL7: 201 | AM7: 181 | AN7: 140 | AO7: 172 | AP7: 190 | AQ7: 204 | AR7: 183 | AS7: 200 | AT7: 198 | AU7: 189 | AV7: 194 | AW7: 174 | AX7: 162 | AY7: 192 | AZ7: 154 | BA7: 155 | BB7: 159 | BC7: 195 | BD7: 174 | BE7: 197 | BF7: 197 | BG7: 196 | BH7: 166 | BI7: 180 | BJ7: 185 | BK7: 175 | BL7: 190 | BM7: 155 | BN7: 190 | BO7: 185 | BP7: =IF(BP$1=$A7,,BP$2+$B7) -> 166 | BQ7: 198 | BR7: 198 | BS7: 179 | BT7: 161 | BU7: 190 | BV7: 201 | BW7: 199 | BX7: 185 | BY7: 206 | BZ7: 196 | CA7: 181 | CB7: 204 | CC7: 173 | CD7: 183 | CE7: 203 | CF7: 198 | CG7: 204 | CH7: 196 | CI7: 210 | CJ7: 189 | CK7: 195 | CL7: 174 | CM7: 187 | CN7: 200 | CO7: 179 | CP7: 199 | CQ7: 204 | CR7: 206 | CS7: 194 | CT7: 195 | CU7: 204 | CV7: 197 | CW7: 189 | CX7: 208 | CY7: 208 | CZ7: 210 | DA7: 200 | DB7: 196 | DC7: 176 | DD7: 181 | DE7: 200 | DF7: 193 | DG7: 192 | DH7: 169 | DI7: 176 | DJ7: 187 | DK7: 197 | DL7: 186 | DM7: 200 | DN7: 182 | DO7: 199 | DP7: 158 | DQ7: 158 | DR7: 200 | DS7: 170 | DT7: 195 | DU7: 161 | DV7: 164 | DW7: 179 | DX7: 145 | DY7: 195 | DZ7: 199 | EA7: 163 | EB7: 160 | EC7: 186 | ED7: 201 | EE7: 122 | EF7: 165 | EG7: 191 | EH7: 172 | EI7: 151 | EJ7: 162 | EK7: 163 | EL7: 184 | EM7: 179 | EN7: 209 | EO7: 194 | EP7: 185 | EQ7: 187 | ER7: 163 | ES7: 173 | ET7: 165 | EU7: 195 | EV7: 169 | EW7: 195 | EX7: 173 | EY7: 191 | EZ7: 172 | FA7: 175 | FB7: 150 | FC7: 175 | FD7: 139 | FE7: 165 | FF7: 150 | FG7: 169 | FH7: 185 | FI7: 179 | FJ7: 170 | FK7: 185 | FL7: 167 | FM7: 181 | FN7: 188 | FO7: 151 | FP7: 177 | FQ7: 165 | FR7: 171 | FS7: 173 | FT7: 138 | FU7: 146 | FV7: 144 | FW7: 176 | FX7: 172 | FY7: 184 | FZ7: 170 | GA7: 190 | GB7: 169 | GC7: 168 | GD7: 145 | GE7: 178 | GF7: 155 | GG7: 142 | GH7: 171 | GI7: 128 | GJ7: 178 | GK7: 185 | GL7: 177 | GM7: 173 | GN7: =IF(GN$1=$A7,,GN$2+$B7) -> 187 | GO7: 154 | GP7: 172 | GQ7: 189 | GR7: 176 | GS7: 167 | GT7: 161 | GU7: 157 | GV7: 147 | GW7: 158 | GX7: 169 | GY7: 174 | GZ7: 171 | HA7: 173 | HB7: 183 | HC7: 170 | HD7: 159 | HE7: 181 | HF7: 178 | HG7: 175 | HH7: 197 | HI7: 191 | HJ7: 207 | HK7: 199 | HL7: 199 | HM7: 178 | HN7: 188 | HO7: 163 | HP7: 176 | HQ7: 192 | HR7: 177 | HS7: 195 | HT7: 188 | HU7: 182 | HV7: 200 | HW7: 199 | HX7: 191 | HY7: 165 | HZ7: 189 | IA7: 177 | IB7: 198 | IC7: 196 | ID7: 198 | IE7: 199 | IF7: 202 | IG7: 205 | IH7: 202 | II7: 193 | IJ7: 204 | IK7: 208 | IL7: 208 | IM7: 198 | IN7: 181 | IO7: 195 | IP7: 189 | IQ7: 177 | IR7: 168 | IS7: 187 | IT7: 201 | IU7: 179 | IV7: 161 | IW7: 173 | IX7: 174 | IY7: 180 | IZ7: 174 | JA7: 176 | JB7: 168 | JC7: 186 | JD7: 172 | JE7: 179 | JF7: 136 | JG7: 159 | JH7: 165 | JI7: 167 | JJ7: 146 | JK7: 202 | JL7: 179 | JM7: 181 | JN7: 191 | JO7: 173 | JP7: 192 | JQ7: 184 | JR7: 185 | JS7: 157 | JT7: 186 | JU7: 183 | JV7: 170 | JW7: 196 | JX7: 186 | JY7: 200 | JZ7: 191 | KA7: 196 | KB7: 188 | KC7: 190 | KD7: 184 | KE7: 195 | KF7: 168 | KG7: 184 | KH7: 180 | KI7: 175 | KJ7: 161 | KK7: 205 | KL7: 190 | KM7: 207 | KN7: 188 | KO7: 203 | KP7: 201 | KQ7: 198 | KR7: 196 | KS7: 207 | KT7: 206 | KU7: 205 | KV7: 207 | KW7: 187 | KX7: 183 | KY7: 179 | KZ7: 166 | LA7: 191 | LB7: 202 | LC7: 200 | LD7: 206 | LE7: 193 | LF7: 186 | LG7: 192 | LH7: 202 | LI7: 189 | LJ7: 188 | LK7: 184 | LL7: =IF(LL$1=$A7,,LL$2+$B7) -> 160 | LM7: 178 | LN7: 209 | LO7: 204 | LP7: 190 | LQ7: 154 | LR7: 167 | LS7: 179 | LT7: 157 | LU7: 192 | LV7: 188 | LW7: 190 | LX7: 179 | LY7: 164 | LZ7: 203 | MA7: 182 | MB7: 195 | MC7: 190 | MD7: 187 | ME7: 197 | MF7: 180 | MG7: 193 | MH7: 202 | MI7: 168 | MJ7: 189 | MK7: 202 | ML7: 195 | MM7: 203 | MN7: 202 | MO7: 170 | MP7: 151 | MQ7: 201 | MR7: 183 | MS7: 195 | MT7: 186 | MU7: 189 | MV7: 180 | MW7: 178 | MX7: 190 | MY7: 198 | MZ7: 191 | NA7: 161 | NB7: 181 | NC7: 182 | ND7: 194 | NE7: 205 | NF7: 207 | NG7: 206 | NH7: 202 | NI7: 204 | NJ7: 207 | NK7: 192 | NL7: 177 | NM7: 153 | NN7: 189 | NO7: 174 | NP7: 183 | NQ7: 184 | NR7: 189 | NS7: 197 | NT7: 206 | NU7: 138 | NV7: 162 | NW7: 183 | NX7: 181 | NY7: 170 | NZ7: 195 | OA7: 189 | OB7: 182 | OC7: 153 | OD7: 149 | OE7: 160 | OF7: 186 | OG7: 184 | OH7: 172 | OI7: 160 | OJ7: 196 | OK7: 150 | OL7: 175 | OM7: 176 | ON7: 162 | OO7: 180 | OP7: 177 | OQ7: 180 | OR7: 181 | OS7: 184 | OT7: 192 | OU7: 175 | OV7: 181 | OW7: 176 | OX7: 198 | OY7: 193 | OZ7: 188 | PA7: 190 | PB7: 179 | PC7: 191 | PD7: 189 | PE7: 177 | PF7: 180 | PG7: 176 | PH7: 183 | PI7: 158 | PJ7: 185 | PK7: 179 | PL7: 170 | PM7: 175 | PN7: 190 | PO7: 174 | PP7: 189 | PQ7: 194 | PR7: 190 | PS7: 200 | PT7: 200 | PU7: 200 | PV7: 196 | PW7: 195 | PX7: 192 | PY7: 207 | PZ7: 201 | QA7: 192 | QB7: 192 | QC7: 196 | QD7: 196 | QE7: 190 | QF7: 194 | QG7: 196 | QH7: 194 | QI7: 204 | QJ7: =IF(QJ$1=$A7,,QJ$2+$B7) -> 204 | QK7: 202 | QL7: 202 | QM7: 197 | QN7: 193 | QO7: 194 | QP7: 197 | QQ7: 203 | QR7: 193 | QS7: 175 | QT7: 198 | QU7: 187 | QV7: 193 | QW7: 198 | QX7: 204 | QY7: 204 | QZ7: 196 | RA7: 199 | RB7: 202 | RC7: 202 | RD7: 204 | RE7: 177 | RF7: 202 | RG7: 197 | RH7: 200 | RI7: 203 | RJ7: 202 | RK7: 199 | RL7: 202 | RM7: 197 | RN7: 188 | RO7: 201 | RP7: 202 | RQ7: 197 | RR7: 188 | RS7: 181 | RT7: 175 | RU7: 203 | RV7: 164 | RW7: 191 | RX7: 187 | RY7: 186 | RZ7: 177 | SA7: 173 | SB7: 189 | SC7: 198 | SD7: 179 | SE7: 181 | SF7: 158 | SG7: 189 | SH7: 181 | SI7: 184 | SJ7: 189 | SK7: 196 | SL7: 180 | SM7: 193 | SN7: 200 | SO7: 201 | SP7: 196 | SQ7: 195 | SR7: 179 | SS7: 173 | ST7: 185 | SU7: 172 | SV7: 202 | SW7: 173 | SX7: 197 | SY7: 203 | SZ7: 203 | TA7: 162 | TB7: 167 | TC7: 181 | TD7: 186 | TE7: 184 | TF7: 193 | TG7: 197 | TH7: 162 | TI7: 174 | TJ7: 207 | TK7: 166 | TL7: 173 | TM7: 190 | TN7: 182 | TO7: 200 | TP7: 179 | TQ7: 184 | TR7: 191 | TS7: 184 | TT7: 195 | TU7: 191 | TV7: 177 | TW7: 181 | TX7: 175 | TY7: 185 | TZ7: 176 | UA7: 164 | UB7: 172 | UC7: 168 | UD7: 186 | UE7: 175 | UF7: 180 | UG7: 184 | UH7: 202 | UI7: 190 | UJ7: 201 | UK7: 203 | UL7: 205 | UM7: 200 | UN7: 206 | UO7: 207 | UP7: 202 | UQ7: 201 | UR7: 199 | US7: 174 | UT7: 198 | UU7: 204 | UV7: 184 | UW7: 196 | UX7: 201 | UY7: 185 | UZ7: 205 | VA7: 193 | VB7: 196 | VC7: 205 | VD7: 184 | VE7: 150 | VF7: 155 | VG7: 184 | VH7: =IF(VH$1=$A7,,VH$2+$B7) -> 184 | VI7: 184 | VJ7: 162 | VK7: 186 | VL7: 190 | VM7: 175 | VN7: 184 | VO7: 193 | VP7: 154 | VQ7: 158 | VR7: 148 | VS7: 161 | VT7: 170 | VU7: 179 | VV7: 154 | VW7: 198 | VX7: 175 | VY7: 196 | VZ7: 194 | WA7: 185 | WB7: 182 | WC7: 201 | WD7: 175 | WE7: 195 | WF7: 180 | WG7: 179 | WH7: 199 | WI7: 203 | WJ7: 179 | WK7: 170 | WL7: 175 | WM7: 171 | WN7: 166 | WO7: 184 | WP7: 155 | WQ7: 163 | WR7: 172 | WS7: 164 | WT7: 143 | WU7: 140 | WV7: 163 | WW7: 160 | WX7: 137 | WY7: 165 | WZ7: 165 | XA7: 150 | XB7: 198 | XC7: 199 | XD7: 201 | XE7: 199 | XF7: 207 | XG7: 200 | XH7: 204 | XI7: 197 | XJ7: 167 | XK7: 193 | XL7: 188 | XM7: 190 | XN7: 187 | XO7: 197 | XP7: 197 | XQ7: 205 | XR7: 190 | XS7: 178 | XT7: 187 | XU7: 196 | XV7: 183 | XW7: 192 | XX7: 197 | XY7: 193 | XZ7: 195 | YA7: 150 | YB7: 188 | YC7: 175 | YD7: 182 | YE7: 182 | YF7: 174 | YG7: 203 | YH7: 203 | YI7: 204 | YJ7: 179 | YK7: 194 | YL7: 202 | YM7: 206 | YN7: 205 | YO7: 202 | YP7: 186 | YQ7: 189 | YR7: 206 | YS7: 202 | YT7: 181 | YU7: 205 | YV7: 204 | YW7: 201 | YX7: 204 | YY7: 202 | YZ7: 200 | ZA7: 198 | ZB7: 201 | ZC7: 205 | ZD7: 200 | ZE7: 206 | ZF7: 191 | ZG7: 196 | ZH7: 189 | ZI7: 202 | ZJ7: 180 | ZK7: 180 | ZL7: 194 | ZM7: 186 | ZN7: 206 | ZO7: 178 | ZP7: 165 | ZQ7: 190 | ZR7: 144 | ZS7: 197 | ZT7: 196 | ZU7: 199 | ZV7: 175 | ZW7: 181 | ZX7: 168 | ZY7: 180 | ZZ7: 193 | AAA7: 195 | AAB7: 194 | AAC7: 195 | AAD7: 190 | AAE7: 191 | AAF7: =IF(AAF$1=$A7,,AAF$2+$B7) -> 200 | AAG7: 195 | AAH7: 202 | AAI7: 195 | AAJ7: 199 | AAK7: 206 | AAL7: 197 | AAM7: 202 | AAN7: 206 | AAO7: 173 | AAP7: 175 | AAQ7: 197 | AAR7: 173 | AAS7: 204 | AAT7: 197 | AAU7: 204 | AAV7: 202 | AAW7: 203 | AAX7: 197 | AAY7: 174 | AAZ7: 195 | ABA7: 204 | ABB7: 204 | ABC7: 201 | ABD7: 205 | ABE7: 193 | ABF7: 203 | ABG7: 204 | ABH7: 197 | ABI7: 204 | ABJ7: 201 | ABK7: 200 | ABL7: 190 | ABM7: 203 | ABN7: 204 | ABO7: 206 | ABP7: 204 | ABQ7: 194 | ABR7: 199 | ABS7: 182 | ABT7: 204 | ABU7: 202 | ABV7: 199 | ABW7: 197 | ABX7: 205 | ABY7: 202 | ABZ7: 179 | ACA7: 200 | ACB7: 188 | ACC7: 190 | ACD7: 183 | ACE7: 201 | ACF7: 206 | ACG7: 203 | ACH7: 197 | ACI7: 203 | ACJ7: 182 | ACK7: 199 | ACL7: 199 | ACM7: 202 | ACN7: 206 | ACO7: 190 | ACP7: 184 | ACQ7: 184 | ACR7: 195 | ACS7: 147 | ACT7: 137 | ACU7: 153 | ACV7: 156 | ACW7: 183 | ACX7: 168 | ACY7: 198 | ACZ7: 196 | ADA7: 191 | ADB7: 203 | ADC7: 204 | ADD7: 195 | ADE7: 188 | ADF7: 205 | ADG7: 200 | ADH7: 195 | ADI7: 197 | ADJ7: 203 | ADK7: 175 | ADL7: 155 | ADM7: 197 | ADN7: 168 | ADO7: 181 | ADP7: 189 | ADQ7: 192 | ADR7: 198 | ADS7: 190 | ADT7: 186 | ADU7: 171 | ADV7: 183 | ADW7: 179 | ADX7: 186 | ADY7: 195 | ADZ7: 203 | AEA7: 174 | AEB7: 201 | AEC7: 205 | AED7: 187 | AEE7: 194 | AEF7: 193 | AEG7: 196 | AEH7: 193 | AEI7: 195 | AEJ7: 203 | AEK7: 204 | AEL7: 204 | AEM7: 195 | AEN7: 188 | AEO7: 202 | AEP7: 202 | AEQ7: 201 | AER7: 196 | AES7: 176 | AET7: 165 | AEU7: 192 | AEV7: 185 | AEW7: 186 | AEX7: 187 | AEY7: 180 | AEZ7: 185 | AFA7: 207 | AFB7: 194 | AFC7: 209 | AFD7: =IF(AFD$1=$A7,,AFD$2+$B7) -> 207 | AFE7: 205 | AFF7: 200 | AFG7: 203 | AFH7: 205 | AFI7: 194 | AFJ7: 203 | AFK7: 188 | AFL7: 184 | AFM7: 183 | AFN7: 202 | AFO7: 167 | AFP7: 189 | AFQ7: 186 | AFR7: 192 | AFS7: 180 | AFT7: 177 | AFU7: 185 | AFV7: 186 | AFW7: 192 | AFX7: 183 | AFY7: 188 | AFZ7: 183 | AGA7: 183 | AGB7: 203 | AGC7: 195 | AGD7: 168
A8: 0303 | B8: =COUNTIF(Лист1!$B$2:$B$77501,A8) -> 108 | C8: 191 | D8: 208 | E8: 191 | F8: 205 | G8: 204 | H8: 0 | I8: 210 | J8: 204 | K8: 207 | L8: 193 | M8: 205 | N8: 188 | O8: 215 | P8: 211 | Q8: 203 | R8: 210 | S8: 210 | T8: 205 | U8: 213 | V8: 198 | W8: 215 | X8: 211 | Y8: 198 | Z8: 202 | AA8: 208 | AB8: 202 | AC8: 203 | AD8: 216 | AE8: 213 | AF8: 207 | AG8: 172 | AH8: 189 | AI8: 179 | AJ8: 182 | AK8: 193 | AL8: 213 | AM8: 193 | AN8: 152 | AO8: 184 | AP8: 202 | AQ8: 216 | AR8: 195 | AS8: 212 | AT8: 210 | AU8: 201 | AV8: 206 | AW8: 186 | AX8: 174 | AY8: 204 | AZ8: 166 | BA8: 167 | BB8: 171 | BC8: 207 | BD8: 186 | BE8: 209 | BF8: 209 | BG8: 208 | BH8: 178 | BI8: 192 | BJ8: 197 | BK8: 187 | BL8: 202 | BM8: 167 | BN8: 202 | BO8: =IF(BO$1=$A8,,BO$2+$B8) -> 197 | BP8: 178 | BQ8: 210 | BR8: 210 | BS8: 191 | BT8: 173 | BU8: 202 | BV8: 213 | BW8: 211 | BX8: 197 | BY8: 218 | BZ8: 208 | CA8: 193 | CB8: 216 | CC8: 185 | CD8: 195 | CE8: 215 | CF8: 210 | CG8: 216 | CH8: 208 | CI8: 222 | CJ8: 201 | CK8: 207 | CL8: 186 | CM8: 199 | CN8: 212 | CO8: 191 | CP8: 211 | CQ8: 216 | CR8: 218 | CS8: 206 | CT8: 207 | CU8: 216 | CV8: 209 | CW8: 201 | CX8: 220 | CY8: 220 | CZ8: 222 | DA8: 212 | DB8: 208 | DC8: 188 | DD8: 193 | DE8: 212 | DF8: 205 | DG8: 204 | DH8: 181 | DI8: 188 | DJ8: 199 | DK8: 209 | DL8: 198 | DM8: 212 | DN8: 194 | DO8: 211 | DP8: 170 | DQ8: 170 | DR8: 212 | DS8: 182 | DT8: 207 | DU8: 173 | DV8: 176 | DW8: 191 | DX8: 157 | DY8: 207 | DZ8: 211 | EA8: 175 | EB8: 172 | EC8: 198 | ED8: 213 | EE8: 134 | EF8: 177 | EG8: 203 | EH8: 184 | EI8: 163 | EJ8: 174 | EK8: 175 | EL8: 196 | EM8: 191 | EN8: 221 | EO8: 206 | EP8: 197 | EQ8: 199 | ER8: 175 | ES8: 185 | ET8: 177 | EU8: 207 | EV8: 181 | EW8: 207 | EX8: 185 | EY8: 203 | EZ8: 184 | FA8: 187 | FB8: 162 | FC8: 187 | FD8: 151 | FE8: 177 | FF8: 162 | FG8: 181 | FH8: 197 | FI8: 191 | FJ8: 182 | FK8: 197 | FL8: 179 | FM8: 193 | FN8: 200 | FO8: 163 | FP8: 189 | FQ8: 177 | FR8: 183 | FS8: 185 | FT8: 150 | FU8: 158 | FV8: 156 | FW8: 188 | FX8: 184 | FY8: 196 | FZ8: 182 | GA8: 202 | GB8: 181 | GC8: 180 | GD8: 157 | GE8: 190 | GF8: 167 | GG8: 154 | GH8: 183 | GI8: 140 | GJ8: 190 | GK8: 197 | GL8: 189 | GM8: 185 | GN8: 199 | GO8: 166 | GP8: 184 | GQ8: 201 | GR8: 188 | GS8: 179 | GT8: 173 | GU8: 169 | GV8: 159 | GW8: 170 | GX8: 181 | GY8: 186 | GZ8: 183 | HA8: 185 | HB8: 195 | HC8: 182 | HD8: 171 | HE8: 193 | HF8: 190 | HG8: 187 | HH8: 209 | HI8: 203 | HJ8: 219 | HK8: 211 | HL8: 211 | HM8: 190 | HN8: 200 | HO8: 175 | HP8: 188 | HQ8: 204 | HR8: 189 | HS8: 207 | HT8: 200 | HU8: 194 | HV8: 212 | HW8: 211 | HX8: 203 | HY8: 177 | HZ8: 201 | IA8: 189 | IB8: 210 | IC8: 208 | ID8: 210 | IE8: 211 | IF8: 214 | IG8: 217 | IH8: 214 | II8: 205 | IJ8: 216 | IK8: 220 | IL8: 220 | IM8: 210 | IN8: 193 | IO8: 207 | IP8: 201 | IQ8: 189 | IR8: 180 | IS8: 199 | IT8: 213 | IU8: 191 | IV8: 173 | IW8: 185 | IX8: 186 | IY8: 192 | IZ8: 186 | JA8: 188 | JB8: 180 | JC8: 198 | JD8: 184 | JE8: 191 | JF8: 148 | JG8: 171 | JH8: 177 | JI8: 179 | JJ8: 158 | JK8: 214 | JL8: 191 | JM8: 193 | JN8: 203 | JO8: 185 | JP8: 204 | JQ8: 196 | JR8: 197 | JS8: 169 | JT8: 198 | JU8: 195 | JV8: 182 | JW8: 208 | JX8: 198 | JY8: 212 | JZ8: 203 | KA8: 208 | KB8: 200 | KC8: 202 | KD8: 196 | KE8: 207 | KF8: 180 | KG8: 196 | KH8: 192 | KI8: 187 | KJ8: 173 | KK8: 217 | KL8: 202 | KM8: 219 | KN8: 200 | KO8: 215 | KP8: 213 | KQ8: 210 | KR8: 208 | KS8: 219 | KT8: 218 | KU8: 217 | KV8: 219 | KW8: 199 | KX8: 195 | KY8: 191 | KZ8: 178 | LA8: 203 | LB8: 214 | LC8: 212 | LD8: 218 | LE8: 205 | LF8: 198 | LG8: 204 | LH8: 214 | LI8: 201 | LJ8: 200 | LK8: 196 | LL8: 172 | LM8: 190 | LN8: 221 | LO8: 216 | LP8: 202 | LQ8: 166 | LR8: 179 | LS8: 191 | LT8: 169 | LU8: 204 | LV8: 200 | LW8: 202 | LX8: 191 | LY8: 176 | LZ8: 215 | MA8: 194 | MB8: 207 | MC8: 202 | MD8: 199 | ME8: 209 | MF8: 192 | MG8: 205 | MH8: 214 | MI8: 180 | MJ8: 201 | MK8: 214 | ML8: 207 | MM8: 215 | MN8: 214 | MO8: 182 | MP8: 163 | MQ8: 213 | MR8: 195 | MS8: 207 | MT8: 198 | MU8: 201 | MV8: 192 | MW8: 190 | MX8: 202 | MY8: 210 | MZ8: 203 | NA8: 173 | NB8: 193 | NC8: 194 | ND8: 206 | NE8: 217 | NF8: 219 | NG8: 218 | NH8: 214 | NI8: 216 | NJ8: 219 | NK8: 204 | NL8: 189 | NM8: 165 | NN8: 201 | NO8: 186 | NP8: 195 | NQ8: 196 | NR8: 201 | NS8: 209 | NT8: 218 | NU8: 150 | NV8: 174 | NW8: 195 | NX8: 193 | NY8: 182 | NZ8: 207 | OA8: 201 | OB8: 194 | OC8: 165 | OD8: 161 | OE8: 172 | OF8: 198 | OG8: 196 | OH8: 184 | OI8: 172 | OJ8: 208 | OK8: 162 | OL8: 187 | OM8: 188 | ON8: 174 | OO8: 192 | OP8: 189 | OQ8: 192 | OR8: 193 | OS8: 196 | OT8: 204 | OU8: 187 | OV8: 193 | OW8: 188 | OX8: 210 | OY8: 205 | OZ8: 200 | PA8: 202 | PB8: 191 | PC8: 203 | PD8: 201 | PE8: 189 | PF8: 192 | PG8: 188 | PH8: 195 | PI8: 170 | PJ8: 197 | PK8: 191 | PL8: 182 | PM8: 187 | PN8: 202 | PO8: 186 | PP8: 201 | PQ8: 206 | PR8: 202 | PS8: 212 | PT8: 212 | PU8: 212 | PV8: 208 | PW8: 207 | PX8: 204 | PY8: 219 | PZ8: 213 | QA8: 204 | QB8: 204 | QC8: 208 | QD8: 208 | QE8: 202 | QF8: 206 | QG8: 208 | QH8: 206 | QI8: 216 | QJ8: 216 | QK8: 214 | QL8: 214 | QM8: 209 | QN8: 205 | QO8: 206 | QP8: 209 | QQ8: 215 | QR8: 205 | QS8: 187 | QT8: 210 | QU8: 199 | QV8: 205 | QW8: 210 | QX8: 216 | QY8: 216 | QZ8: 208 | RA8: 211 | RB8: 214 | RC8: 214 | RD8: 216 | RE8: 189 | RF8: 214 | RG8: 209 | RH8: 212 | RI8: 215 | RJ8: 214 | RK8: 211 | RL8: 214 | RM8: 209 | RN8: 200 | RO8: 213 | RP8: 214 | RQ8: 209 | RR8: 200 | RS8: 193 | RT8: 187 | RU8: 215 | RV8: 176 | RW8: 203 | RX8: 199 | RY8: 198 | RZ8: 189 | SA8: 185 | SB8: 201 | SC8: 210 | SD8: 191 | SE8: 193 | SF8: 170 | SG8: 201 | SH8: 193 | SI8: 196 | SJ8: 201 | SK8: 208 | SL8: 192 | SM8: 205 | SN8: 212 | SO8: 213 | SP8: 208 | SQ8: 207 | SR8: 191 | SS8: 185 | ST8: 197 | SU8: 184 | SV8: 214 | SW8: 185 | SX8: 209 | SY8: 215 | SZ8: 215 | TA8: 174 | TB8: 179 | TC8: 193 | TD8: 198 | TE8: 196 | TF8: 205 | TG8: 209 | TH8: 174 | TI8: 186 | TJ8: 219 | TK8: 178 | TL8: 185 | TM8: 202 | TN8: 194 | TO8: 212 | TP8: 191 | TQ8: 196 | TR8: 203 | TS8: 196 | TT8: 207 | TU8: 203 | TV8: 189 | TW8: 193 | TX8: 187 | TY8: 197 | TZ8: 188 | UA8: 176 | UB8: 184 | UC8: 180 | UD8: 198 | UE8: 187 | UF8: 192 | UG8: 196 | UH8: 214 | UI8: 202 | UJ8: 213 | UK8: 215 | UL8: 217 | UM8: 212 | UN8: 218 | UO8: 219 | UP8: 214 | UQ8: 213 | UR8: 211 | US8: 186 | UT8: 210 | UU8: 216 | UV8: 196 | UW8: 208 | UX8: 213 | UY8: 197 | UZ8: 217 | VA8: 205 | VB8: 208 | VC8: 217 | VD8: 196 | VE8: 162 | VF8: 167 | VG8: 196 | VH8: 196 | VI8: 196 | VJ8: 174 | VK8: 198 | VL8: 202 | VM8: 187 | VN8: 196 | VO8: 205 | VP8: 166 | VQ8: 170 | VR8: 160 | VS8: 173 | VT8: 182 | VU8: 191 | VV8: 166 | VW8: 210 | VX8: 187 | VY8: 208 | VZ8: 206 | WA8: 197 | WB8: 194 | WC8: 213 | WD8: 187 | WE8: 207 | WF8: 192 | WG8: 191 | WH8: 211 | WI8: 215 | WJ8: 191 | WK8: 182 | WL8: 187 | WM8: 183 | WN8: 178 | WO8: 196 | WP8: 167 | WQ8: 175 | WR8: 184 | WS8: 176 | WT8: 155 | WU8: 152 | WV8: 175 | WW8: 172 | WX8: 149 | WY8: 177 | WZ8: 177 | XA8: 162 | XB8: 210 | XC8: 211 | XD8: 213 | XE8: 211 | XF8: 219 | XG8: 212 | XH8: 216 | XI8: 209 | XJ8: 179 | XK8: 205 | XL8: 200 | XM8: 202 | XN8: 199 | XO8: 209 | XP8: 209 | XQ8: 217 | XR8: 202 | XS8: 190 | XT8: 199 | XU8: 208 | XV8: 195 | XW8: 204 | XX8: 209 | XY8: 205 | XZ8: 207 | YA8: 162 | YB8: 200 | YC8: 187 | YD8: 194 | YE8: 194 | YF8: 186 | YG8: 215 | YH8: 215 | YI8: 216 | YJ8: 191 | YK8: 206 | YL8: 214 | YM8: 218 | YN8: 217 | YO8: 214 | YP8: 198 | YQ8: 201 | YR8: 218 | YS8: 214 | YT8: 193 | YU8: 217 | YV8: 216 | YW8: 213 | YX8: 216 | YY8: 214 | YZ8: 212 | ZA8: 210 | ZB8: 213 | ZC8: 217 | ZD8: 212 | ZE8: 218 | ZF8: 203 | ZG8: 208 | ZH8: 201 | ZI8: 214 | ZJ8: 192 | ZK8: 192 | ZL8: 206 | ZM8: 198 | ZN8: 218 | ZO8: 190 | ZP8: 177 | ZQ8: 202 | ZR8: 156 | ZS8: 209 | ZT8: 208 | ZU8: 211 | ZV8: 187 | ZW8: 193 | ZX8: 180 | ZY8: 192 | ZZ8: 205 | AAA8: 207 | AAB8: 206 | AAC8: 207 | AAD8: 202 | AAE8: 203 | AAF8: 212 | AAG8: 207 | AAH8: 214 | AAI8: 207 | AAJ8: 211 | AAK8: 218 | AAL8: 209 | AAM8: 214 | AAN8: 218 | AAO8: 185 | AAP8: 187 | AAQ8: 209 | AAR8: 185 | AAS8: 216 | AAT8: 209 | AAU8: 216 | AAV8: 214 | AAW8: 215 | AAX8: 209 | AAY8: 186 | AAZ8: 207 | ABA8: 216 | ABB8: 216 | ABC8: 213 | ABD8: 217 | ABE8: 205 | ABF8: 215 | ABG8: 216 | ABH8: 209 | ABI8: 216 | ABJ8: 213 | ABK8: 212 | ABL8: 202 | ABM8: 215 | ABN8: 216 | ABO8: 218 | ABP8: 216 | ABQ8: 206 | ABR8: 211 | ABS8: 194 | ABT8: 216 | ABU8: 214 | ABV8: 211 | ABW8: 209 | ABX8: 217 | ABY8: 214 | ABZ8: 191 | ACA8: 212 | ACB8: 200 | ACC8: 202 | ACD8: 195 | ACE8: 213 | ACF8: 218 | ACG8: 215 | ACH8: 209 | ACI8: 215 | ACJ8: 194 | ACK8: 211 | ACL8: 211 | ACM8: 214 | ACN8: 218 | ACO8: 202 | ACP8: 196 | ACQ8: 196 | ACR8: 207 | ACS8: 159 | ACT8: 149 | ACU8: 165 | ACV8: 168 | ACW8: 195 | ACX8: 180 | ACY8: 210 | ACZ8: 208 | ADA8: 203 | ADB8: 215 | ADC8: 216 | ADD8: 207 | ADE8: 200 | ADF8: 217 | ADG8: 212 | ADH8: 207 | ADI8: 209 | ADJ8: 215 | ADK8: 187 | ADL8: 167 | ADM8: 209 | ADN8: 180 | ADO8: 193 | ADP8: 201 | ADQ8: 204 | ADR8: 210 | ADS8: 202 | ADT8: 198 | ADU8: 183 | ADV8: 195 | ADW8: 191 | ADX8: 198 | ADY8: 207 | ADZ8: 215 | AEA8: 186 | AEB8: 213 | AEC8: 217 | AED8: 199 | AEE8: 206 | AEF8: 205 | AEG8: 208 | AEH8: 205 | AEI8: 207 | AEJ8: 215 | AEK8: 216 | AEL8: 216 | AEM8: 207 | AEN8: 200 | AEO8: 214 | AEP8: 214 | AEQ8: 213 | AER8: 208 | AES8: 188 | AET8: 177 | AEU8: 204 | AEV8: 197 | AEW8: 198 | AEX8: 199 | AEY8: 192 | AEZ8: 197 | AFA8: 219 | AFB8: 206 | AFC8: 221 | AFD8: 219 | AFE8: 217 | AFF8: 212 | AFG8: 215 | AFH8: 217 | AFI8: 206 | AFJ8: 215 | AFK8: 200 | AFL8: 196 | AFM8: 195 | AFN8: 214 | AFO8: 179 | AFP8: 201 | AFQ8: 198 | AFR8: 204 | AFS8: 192 | AFT8: 189 | AFU8: 197 | AFV8: 198 | AFW8: 204 | AFX8: 195 | AFY8: 200 | AFZ8: 195 | AGA8: 195 | AGB8: 215 | AGC8: 207 | AGD8: 180
A9: 0306 | B9: =COUNTIF(Лист1!$B$2:$B$77501,A9) -> 102 | C9: 185 | D9: =IF(D$1=$A9,,D$2+$B9) -> 202 | E9: 185 | F9: 199 | G9: 198 | H9: 210 | I9: 0 | J9: 198 | K9: 201 | L9: 187 | M9: 199 | N9: 182 | O9: 209 | P9: 205 | Q9: 197 | R9: 204 | S9: 204 | T9: 199 | U9: 207 | V9: 192 | W9: 209 | X9: 205 | Y9: 192 | Z9: 196 | AA9: 202 | AB9: 196 | AC9: 197 | AD9: 210 | AE9: 207 | AF9: 201 | AG9: 166 | AH9: 183 | AI9: 173 | AJ9: 176 | AK9: 187 | AL9: 207 | AM9: 187 | AN9: 146 | AO9: 178 | AP9: 196 | AQ9: 210 | AR9: 189 | AS9: 206 | AT9: 204 | AU9: 195 | AV9: 200 | AW9: 180 | AX9: 168 | AY9: 198 | AZ9: 160 | BA9: 161 | BB9: 165 | BC9: 201 | BD9: 180 | BE9: 203 | BF9: 203 | BG9: 202 | BH9: 172 | BI9: 186 | BJ9: 191 | BK9: 181 | BL9: 196 | BM9: 161 | BN9: 196 | BO9: 191 | BP9: 172 | BQ9: 204 | BR9: 204 | BS9: 185 | BT9: 167 | BU9: 196 | BV9: 207 | BW9: 205 | BX9: 191 | BY9: 212 | BZ9: 202 | CA9: 187 | CB9: 210 | CC9: 179 | CD9: 189 | CE9: 209 | CF9: 204 | CG9: 210 | CH9: 202 | CI9: 216 | CJ9: 195 | CK9: 201 | CL9: 180 | CM9: 193 | CN9: 206 | CO9: 185 | CP9: 205 | CQ9: 210 | CR9: 212 | CS9: 200 | CT9: 201 | CU9: 210 | CV9: 203 | CW9: 195 | CX9: 214 | CY9: 214 | CZ9: 216 | DA9: 206 | DB9: 202 | DC9: 182 | DD9: 187 | DE9: 206 | DF9: 199 | DG9: 198 | DH9: 175 | DI9: 182 | DJ9: 193 | DK9: 203 | DL9: 192 | DM9: 206 | DN9: 188 | DO9: 205 | DP9: 164 | DQ9: 164 | DR9: 206 | DS9: 176 | DT9: 201 | DU9: 167 | DV9: 170 | DW9: 185 | DX9: 151 | DY9: 201 | DZ9: 205 | EA9: 169 | EB9: 166 | EC9: 192 | ED9: 207 | EE9: 128 | EF9: 171 | EG9: 197 | EH9: 178 | EI9: 157 | EJ9: 168 | EK9: 169 | EL9: 190 | EM9: 185 | EN9: 215 | EO9: 200 | EP9: 191 | EQ9: 193 | ER9: 169 | ES9: 179 | ET9: 171 | EU9: 201 | EV9: 175 | EW9: 201 | EX9: 179 | EY9: 197 | EZ9: 178 | FA9: 181 | FB9: 156 | FC9: 181 | FD9: 145 | FE9: 171 | FF9: 156 | FG9: 175 | FH9: 191 | FI9: 185 | FJ9: 176 | FK9: 191 | FL9: 173 | FM9: 187 | FN9: 194 | FO9: 157 | FP9: 183 | FQ9: 171 | FR9: 177 | FS9: 179 | FT9: 144 | FU9: 152 | FV9: 150 | FW9: 182 | FX9: 178 | FY9: 190 | FZ9: 176 | GA9: 196 | GB9: 175 | GC9: 174 | GD9: 151 | GE9: 184 | GF9: 161 | GG9: 148 | GH9: 177 | GI9: 134 | GJ9: 184 | GK9: 191 | GL9: 183 | GM9: 179 | GN9: 193 | GO9: 160 | GP9: 178 | GQ9: 195 | GR9: 182 | GS9: 173 | GT9: 167 | GU9: 163 | GV9: 153 | GW9: 164 | GX9: 175 | GY9: 180 | GZ9: 177 | HA9: 179 | HB9: 189 | HC9: 176 | HD9: 165 | HE9: 187 | HF9: 184 | HG9: 181 | HH9: 203 | HI9: 197 | HJ9: 213 | HK9: 205 | HL9: 205 | HM9: 184 | HN9: 194 | HO9: 169 | HP9: 182 | HQ9: 198 | HR9: 183 | HS9: 201 | HT9: 194 | HU9: 188 | HV9: 206 | HW9: 205 | HX9: 197 | HY9: 171 | HZ9: 195 | IA9: 183 | IB9: 204 | IC9: 202 | ID9: 204 | IE9: 205 | IF9: 208 | IG9: 211 | IH9: 208 | II9: 199 | IJ9: 210 | IK9: 214 | IL9: 214 | IM9: 204 | IN9: 187 | IO9: 201 | IP9: 195 | IQ9: 183 | IR9: 174 | IS9: 193 | IT9: 207 | IU9: 185 | IV9: 167 | IW9: 179 | IX9: 180 | IY9: 186 | IZ9: 180 | JA9: 182 | JB9: 174 | JC9: 192 | JD9: 178 | JE9: 185 | JF9: 142 | JG9: 165 | JH9: 171 | JI9: 173 | JJ9: 152 | JK9: 208 | JL9: 185 | JM9: 187 | JN9: 197 | JO9: 179 | JP9: 198 | JQ9: 190 | JR9: 191 | JS9: 163 | JT9: 192 | JU9: 189 | JV9: 176 | JW9: 202 | JX9: 192 | JY9: 206 | JZ9: 197 | KA9: 202 | KB9: 194 | KC9: 196 | KD9: 190 | KE9: 201 | KF9: 174 | KG9: 190 | KH9: 186 | KI9: 181 | KJ9: 167 | KK9: 211 | KL9: 196 | KM9: 213 | KN9: 194 | KO9: 209 | KP9: 207 | KQ9: 204 | KR9: 202 | KS9: 213 | KT9: 212 | KU9: 211 | KV9: 213 | KW9: 193 | KX9: 189 | KY9: 185 | KZ9: 172 | LA9: 197 | LB9: 208 | LC9: 206 | LD9: 212 | LE9: 199 | LF9: 192 | LG9: 198 | LH9: 208 | LI9: 195 | LJ9: 194 | LK9: 190 | LL9: 166 | LM9: 184 | LN9: 215 | LO9: 210 | LP9: 196 | LQ9: 160 | LR9: 173 | LS9: 185 | LT9: 163 | LU9: 198 | LV9: 194 | LW9: 196 | LX9: 185 | LY9: 170 | LZ9: 209 | MA9: 188 | MB9: 201 | MC9: 196 | MD9: 193 | ME9: 203 | MF9: 186 | MG9: 199 | MH9: 208 | MI9: 174 | MJ9: 195 | MK9: 208 | ML9: 201 | MM9: 209 | MN9: 208 | MO9: 176 | MP9: 157 | MQ9: 207 | MR9: 189 | MS9: 201 | MT9: 192 | MU9: 195 | MV9: 186 | MW9: 184 | MX9: 196 | MY9: 204 | MZ9: 197 | NA9: 167 | NB9: 187 | NC9: 188 | ND9: 200 | NE9: 211 | NF9: 213 | NG9: 212 | NH9: 208 | NI9: 210 | NJ9: 213 | NK9: 198 | NL9: 183 | NM9: 159 | NN9: 195 | NO9: 180 | NP9: 189 | NQ9: 190 | NR9: 195 | NS9: 203 | NT9: 212 | NU9: 144 | NV9: 168 | NW9: 189 | NX9: 187 | NY9: 176 | NZ9: 201 | OA9: 195 | OB9: 188 | OC9: 159 | OD9: 155 | OE9: 166 | OF9: 192 | OG9: 190 | OH9: 178 | OI9: 166 | OJ9: 202 | OK9: 156 | OL9: 181 | OM9: 182 | ON9: 168 | OO9: 186 | OP9: 183 | OQ9: 186 | OR9: 187 | OS9: 190 | OT9: 198 | OU9: 181 | OV9: 187 | OW9: 182 | OX9: 204 | OY9: 199 | OZ9: 194 | PA9: 196 | PB9: 185 | PC9: 197 | PD9: 195 | PE9: 183 | PF9: 186 | PG9: 182 | PH9: 189 | PI9: 164 | PJ9: 191 | PK9: 185 | PL9: 176 | PM9: 181 | PN9: 196 | PO9: 180 | PP9: 195 | PQ9: 200 | PR9: 196 | PS9: 206 | PT9: 206 | PU9: 206 | PV9: 202 | PW9: 201 | PX9: 198 | PY9: 213 | PZ9: 207 | QA9: 198 | QB9: 198 | QC9: 202 | QD9: 202 | QE9: 196 | QF9: 200 | QG9: 202 | QH9: 200 | QI9: 210 | QJ9: 210 | QK9: 208 | QL9: 208 | QM9: 203 | QN9: 199 | QO9: 200 | QP9: 203 | QQ9: 209 | QR9: 199 | QS9: 181 | QT9: 204 | QU9: 193 | QV9: 199 | QW9: 204 | QX9: 210 | QY9: 210 | QZ9: 202 | RA9: 205 | RB9: 208 | RC9: 208 | RD9: 210 | RE9: 183 | RF9: 208 | RG9: 203 | RH9: 206 | RI9: 209 | RJ9: 208 | RK9: 205 | RL9: 208 | RM9: 203 | RN9: 194 | RO9: 207 | RP9: 208 | RQ9: 203 | RR9: 194 | RS9: 187 | RT9: 181 | RU9: 209 | RV9: 170 | RW9: 197 | RX9: 193 | RY9: 192 | RZ9: 183 | SA9: 179 | SB9: 195 | SC9: 204 | SD9: 185 | SE9: 187 | SF9: 164 | SG9: 195 | SH9: 187 | SI9: 190 | SJ9: 195 | SK9: 202 | SL9: 186 | SM9: 199 | SN9: 206 | SO9: 207 | SP9: 202 | SQ9: 201 | SR9: 185 | SS9: 179 | ST9: 191 | SU9: 178 | SV9: 208 | SW9: 179 | SX9: 203 | SY9: 209 | SZ9: 209 | TA9: 168 | TB9: 173 | TC9: 187 | TD9: 192 | TE9: 190 | TF9: 199 | TG9: 203 | TH9: 168 | TI9: 180 | TJ9: 213 | TK9: 172 | TL9: 179 | TM9: 196 | TN9: 188 | TO9: 206 | TP9: 185 | TQ9: 190 | TR9: 197 | TS9: 190 | TT9: 201 | TU9: 197 | TV9: 183 | TW9: 187 | TX9: 181 | TY9: 191 | TZ9: 182 | UA9: 170 | UB9: 178 | UC9: 174 | UD9: 192 | UE9: 181 | UF9: 186 | UG9: 190 | UH9: 208 | UI9: 196 | UJ9: 207 | UK9: 209 | UL9: 211 | UM9: 206 | UN9: 212 | UO9: 213 | UP9: 208 | UQ9: 207 | UR9: 205 | US9: 180 | UT9: 204 | UU9: 210 | UV9: 190 | UW9: 202 | UX9: 207 | UY9: 191 | UZ9: 211 | VA9: 199 | VB9: 202 | VC9: 211 | VD9: 190 | VE9: 156 | VF9: 161 | VG9: 190 | VH9: 190 | VI9: 190 | VJ9: 168 | VK9: 192 | VL9: 196 | VM9: 181 | VN9: 190 | VO9: 199 | VP9: 160 | VQ9: 164 | VR9: 154 | VS9: 167 | VT9: 176 | VU9: 185 | VV9: 160 | VW9: 204 | VX9: 181 | VY9: 202 | VZ9: 200 | WA9: 191 | WB9: 188 | WC9: 207 | WD9: 181 | WE9: 201 | WF9: 186 | WG9: 185 | WH9: 205 | WI9: 209 | WJ9: 185 | WK9: 176 | WL9: 181 | WM9: 177 | WN9: 172 | WO9: 190 | WP9: 161 | WQ9: 169 | WR9: 178 | WS9: 170 | WT9: 149 | WU9: 146 | WV9: 169 | WW9: 166 | WX9: 143 | WY9: 171 | WZ9: 171 | XA9: 156 | XB9: 204 | XC9: 205 | XD9: 207 | XE9: 205 | XF9: 213 | XG9: 206 | XH9: 210 | XI9: 203 | XJ9: 173 | XK9: 199 | XL9: 194 | XM9: 196 | XN9: 193 | XO9: 203 | XP9: 203 | XQ9: 211 | XR9: 196 | XS9: 184 | XT9: 193 | XU9: 202 | XV9: 189 | XW9: 198 | XX9: 203 | XY9: 199 | XZ9: 201 | YA9: 156 | YB9: 194 | YC9: 181 | YD9: 188 | YE9: 188 | YF9: 180 | YG9: 209 | YH9: 209 | YI9: 210 | YJ9: 185 | YK9: 200 | YL9: 208 | YM9: 212 | YN9: 211 | YO9: 208 | YP9: 192 | YQ9: 195 | YR9: 212 | YS9: 208 | YT9: 187 | YU9: 211 | YV9: 210 | YW9: 207 | YX9: 210 | YY9: 208 | YZ9: 206 | ZA9: 204 | ZB9: 207 | ZC9: 211 | ZD9: 206 | ZE9: 212 | ZF9: 197 | ZG9: 202 | ZH9: 195 | ZI9: 208 | ZJ9: 186 | ZK9: 186 | ZL9: 200 | ZM9: 192 | ZN9: 212 | ZO9: 184 | ZP9: 171 | ZQ9: 196 | ZR9: 150 | ZS9: 203 | ZT9: 202 | ZU9: 205 | ZV9: 181 | ZW9: 187 | ZX9: 174 | ZY9: 186 | ZZ9: 199 | AAA9: 201 | AAB9: 200 | AAC9: 201 | AAD9: 196 | AAE9: 197 | AAF9: 206 | AAG9: 201 | AAH9: 208 | AAI9: 201 | AAJ9: 205 | AAK9: 212 | AAL9: 203 | AAM9: 208 | AAN9: 212 | AAO9: 179 | AAP9: 181 | AAQ9: 203 | AAR9: 179 | AAS9: 210 | AAT9: 203 | AAU9: 210 | AAV9: 208 | AAW9: 209 | AAX9: 203 | AAY9: 180 | AAZ9: 201 | ABA9: 210 | ABB9: 210 | ABC9: 207 | ABD9: 211 | ABE9: 199 | ABF9: 209 | ABG9: 210 | ABH9: 203 | ABI9: 210 | ABJ9: 207 | ABK9: 206 | ABL9: 196 | ABM9: 209 | ABN9: 210 | ABO9: 212 | ABP9: 210 | ABQ9: 200 | ABR9: 205 | ABS9: 188 | ABT9: 210 | ABU9: 208 | ABV9: 205 | ABW9: 203 | ABX9: 211 | ABY9: 208 | ABZ9: 185 | ACA9: 206 | ACB9: 194 | ACC9: 196 | ACD9: 189 | ACE9: 207 | ACF9: 212 | ACG9: 209 | ACH9: 203 | ACI9: 209 | ACJ9: 188 | ACK9: 205 | ACL9: 205 | ACM9: 208 | ACN9: 212 | ACO9: 196 | ACP9: 190 | ACQ9: 190 | ACR9: 201 | ACS9: 153 | ACT9: 143 | ACU9: 159 | ACV9: 162 | ACW9: 189 | ACX9: 174 | ACY9: 204 | ACZ9: 202 | ADA9: 197 | ADB9: 209 | ADC9: 210 | ADD9: 201 | ADE9: 194 | ADF9: 211 | ADG9: 206 | ADH9: 201 | ADI9: 203 | ADJ9: 209 | ADK9: 181 | ADL9: 161 | ADM9: 203 | ADN9: 174 | ADO9: 187 | ADP9: 195 | ADQ9: 198 | ADR9: 204 | ADS9: 196 | ADT9: 192 | ADU9: 177 | ADV9: 189 | ADW9: 185 | ADX9: 192 | ADY9: 201 | ADZ9: 209 | AEA9: 180 | AEB9: 207 | AEC9: 211 | AED9: 193 | AEE9: 200 | AEF9: 199 | AEG9: 202 | AEH9: 199 | AEI9: 201 | AEJ9: 209 | AEK9: 210 | AEL9: 210 | AEM9: 201 | AEN9: 194 | AEO9: 208 | AEP9: 208 | AEQ9: 207 | AER9: 202 | AES9: 182 | AET9: 171 | AEU9: 198 | AEV9: 191 | AEW9: 192 | AEX9: 193 | AEY9: 186 | AEZ9: 191 | AFA9: 213 | AFB9: 200 | AFC9: 215 | AFD9: 213 | AFE9: 211 | AFF9: 206 | AFG9: 209 | AFH9: 211 | AFI9: 200 | AFJ9: 209 | AFK9: 194 | AFL9: 190 | AFM9: 189 | AFN9: 208 | AFO9: 173 | AFP9: 195 | AFQ9: 192 | AFR9: 198 | AFS9: 186 | AFT9: 183 | AFU9: 191 | AFV9: 192 | AFW9: 198 | AFX9: 189 | AFY9: 194 | AFZ9: 189 | AGA9: 189 | AGB9: 209 | AGC9: 201 | AGD9: 174
A10: 0307 | B10: =COUNTIF(Лист1!$B$2:$B$77501,A10) -> 96 | C10: 179 | D10: 196 | E10: 179 | F10: 193 | G10: 192 | H10: 204 | I10: 198 | J10: 0 | K10: 195 | L10: 181 | M10: 193 | N10: 176 | O10: 203 | P10: 199 | Q10: 191 | R10: 198 | S10: 198 | T10: 193 | U10: 201 | V10: 186 | W10: 203 | X10: 199 | Y10: 186 | Z10: 190 | AA10: 196 | AB10: 190 | AC10: 191 | AD10: 204 | AE10: 201 | AF10: 195 | AG10: 160 | AH10: 177 | AI10: 167 | AJ10: 170 | AK10: 181 | AL10: 201 | AM10: 181 | AN10: 140 | AO10: 172 | AP10: 190 | AQ10: 204 | AR10: 183 | AS10: 200 | AT10: 198 | AU10: 189 | AV10: 194 | AW10: 174 | AX10: 162 | AY10: 192 | AZ10: 154 | BA10: 155 | BB10: 159 | BC10: 195 | BD10: 174 | BE10: 197 | BF10: 197 | BG10: 196 | BH10: 166 | BI10: 180 | BJ10: 185 | BK10: 175 | BL10: 190 | BM10: 155 | BN10: 190 | BO10: 185 | BP10: 166 | BQ10: 198 | BR10: 198 | BS10: 179 | BT10: 161 | BU10: 190 | BV10: 201 | BW10: 199 | BX10: 185 | BY10: 206 | BZ10: 196 | CA10: 181 | CB10: 204 | CC10: 173 | CD10: 183 | CE10: 203 | CF10: 198 | CG10: 204 | CH10: 196 | CI10: 210 | CJ10: 189 | CK10: 195 | CL10: 174 | CM10: 187 | CN10: 200 | CO10: 179 | CP10: 199 | CQ10: 204 | CR10: 206 | CS10: 194 | CT10: 195 | CU10: 204 | CV10: 197 | CW10: 189 | CX10: 208 | CY10: 208 | CZ10: 210 | DA10: 200 | DB10: 196 | DC10: 176 | DD10: 181 | DE10: 200 | DF10: 193 | DG10: 192 | DH10: 169 | DI10: 176 | DJ10: 187 | DK10: 197 | DL10: 186 | DM10: 200 | DN10: 182 | DO10: 199 | DP10: 158 | DQ10: 158 | DR10: 200 | DS10: 170 | DT10: 195 | DU10: 161 | DV10: 164 | DW10: 179 | DX10: 145 | DY10: 195 | DZ10: 199 | EA10: 163 | EB10: 160 | EC10: 186 | ED10: =IF(ED$1=$A10,,ED$2+$B10) -> 201 | EE10: 122 | EF10: 165 | EG10: 191 | EH10: 172 | EI10: 151 | EJ10: 162 | EK10: 163 | EL10: 184 | EM10: 179 | EN10: 209 | EO10: 194 | EP10: 185 | EQ10: 187 | ER10: 163 | ES10: 173 | ET10: 165 | EU10: 195 | EV10: 169 | EW10: 195 | EX10: 173 | EY10: 191 | EZ10: 172 | FA10: 175 | FB10: 150 | FC10: 175 | FD10: 139 | FE10: 165 | FF10: 150 | FG10: 169 | FH10: 185 | FI10: 179 | FJ10: 170 | FK10: 185 | FL10: 167 | FM10: 181 | FN10: 188 | FO10: 151 | FP10: 177 | FQ10: 165 | FR10: 171 | FS10: 173 | FT10: 138 | FU10: 146 | FV10: 144 | FW10: 176 | FX10: 172 | FY10: 184 | FZ10: 170 | GA10: 190 | GB10: 169 | GC10: 168 | GD10: 145 | GE10: 178 | GF10: 155 | GG10: 142 | GH10: 171 | GI10: 128 | GJ10: 178 | GK10: 185 | GL10: 177 | GM10: 173 | GN10: 187 | GO10: 154 | GP10: 172 | GQ10: 189 | GR10: 176 | GS10: 167 | GT10: 161 | GU10: 157 | GV10: 147 | GW10: 158 | GX10: 169 | GY10: 174 | GZ10: 171 | HA10: 173 | HB10: 183 | HC10: 170 | HD10: 159 | HE10: 181 | HF10: 178 | HG10: 175 | HH10: 197 | HI10: 191 | HJ10: 207 | HK10: 199 | HL10: 199 | HM10: 178 | HN10: 188 | HO10: 163 | HP10: 176 | HQ10: 192 | HR10: 177 | HS10: 195 | HT10: 188 | HU10: 182 | HV10: 200 | HW10: 199 | HX10: 191 | HY10: 165 | HZ10: 189 | IA10: 177 | IB10: 198 | IC10: 196 | ID10: 198 | IE10: 199 | IF10: 202 | IG10: 205 | IH10: 202 | II10: 193 | IJ10: 204 | IK10: 208 | IL10: 208 | IM10: 198 | IN10: 181 | IO10: 195 | IP10: 189 | IQ10: 177 | IR10: 168 | IS10: 187 | IT10: 201 | IU10: 179 | IV10: 161 | IW10: 173 | IX10: 174 | IY10: 180 | IZ10: 174 | JA10: 176 | JB10: =IF(JB$1=$A10,,JB$2+$B10) -> 168 | JC10: 186 | JD10: 172 | JE10: 179 | JF10: 136 | JG10: 159 | JH10: 165 | JI10: 167 | JJ10: 146 | JK10: 202 | JL10: 179 | JM10: 181 | JN10: 191 | JO10: 173 | JP10: 192 | JQ10: 184 | JR10: 185 | JS10: 157 | JT10: 186 | JU10: 183 | JV10: 170 | JW10: 196 | JX10: 186 | JY10: 200 | JZ10: 191 | KA10: 196 | KB10: 188 | KC10: 190 | KD10: 184 | KE10: 195 | KF10: 168 | KG10: 184 | KH10: 180 | KI10: 175 | KJ10: 161 | KK10: 205 | KL10: 190 | KM10: 207 | KN10: 188 | KO10: 203 | KP10: 201 | KQ10: 198 | KR10: 196 | KS10: 207 | KT10: 206 | KU10: 205 | KV10: 207 | KW10: 187 | KX10: 183 | KY10: 179 | KZ10: 166 | LA10: 191 | LB10: 202 | LC10: 200 | LD10: 206 | LE10: 193 | LF10: 186 | LG10: 192 | LH10: 202 | LI10: 189 | LJ10: 188 | LK10: 184 | LL10: 160 | LM10: 178 | LN10: 209 | LO10: 204 | LP10: 190 | LQ10: 154 | LR10: 167 | LS10: 179 | LT10: 157 | LU10: 192 | LV10: 188 | LW10: 190 | LX10: 179 | LY10: 164 | LZ10: 203 | MA10: 182 | MB10: 195 | MC10: 190 | MD10: 187 | ME10: 197 | MF10: 180 | MG10: 193 | MH10: 202 | MI10: 168 | MJ10: 189 | MK10: 202 | ML10: 195 | MM10: 203 | MN10: 202 | MO10: 170 | MP10: 151 | MQ10: 201 | MR10: 183 | MS10: 195 | MT10: 186 | MU10: 189 | MV10: 180 | MW10: 178 | MX10: 190 | MY10: 198 | MZ10: 191 | NA10: 161 | NB10: 181 | NC10: 182 | ND10: 194 | NE10: 205 | NF10: 207 | NG10: 206 | NH10: 202 | NI10: 204 | NJ10: 207 | NK10: 192 | NL10: 177 | NM10: 153 | NN10: 189 | NO10: 174 | NP10: 183 | NQ10: 184 | NR10: 189 | NS10: 197 | NT10: 206 | NU10: 138 | NV10: 162 | NW10: 183 | NX10: 181 | NY10: 170 | NZ10: =IF(NZ$1=$A10,,NZ$2+$B10) -> 195 | OA10: 189 | OB10: 182 | OC10: 153 | OD10: 149 | OE10: 160 | OF10: 186 | OG10: 184 | OH10: 172 | OI10: 160 | OJ10: 196 | OK10: 150 | OL10: 175 | OM10: 176 | ON10: 162 | OO10: 180 | OP10: 177 | OQ10: 180 | OR10: 181 | OS10: 184 | OT10: 192 | OU10: 175 | OV10: 181 | OW10: 176 | OX10: 198 | OY10: 193 | OZ10: 188 | PA10: 190 | PB10: 179 | PC10: 191 | PD10: 189 | PE10: 177 | PF10: 180 | PG10: 176 | PH10: 183 | PI10: 158 | PJ10: 185 | PK10: 179 | PL10: 170 | PM10: 175 | PN10: 190 | PO10: 174 | PP10: 189 | PQ10: 194 | PR10: 190 | PS10: 200 | PT10: 200 | PU10: 200 | PV10: 196 | PW10: 195 | PX10: 192 | PY10: 207 | PZ10: 201 | QA10: 192 | QB10: 192 | QC10: 196 | QD10: 196 | QE10: 190 | QF10: 194 | QG10: 196 | QH10: 194 | QI10: 204 | QJ10: 204 | QK10: 202 | QL10: 202 | QM10: 197 | QN10: 193 | QO10: 194 | QP10: 197 | QQ10: 203 | QR10: 193 | QS10: 175 | QT10: 198 | QU10: 187 | QV10: 193 | QW10: 198 | QX10: 204 | QY10: 204 | QZ10: 196 | RA10: 199 | RB10: 202 | RC10: 202 | RD10: 204 | RE10: 177 | RF10: 202 | RG10: 197 | RH10: 200 | RI10: 203 | RJ10: 202 | RK10: 199 | RL10: 202 | RM10: 197 | RN10: 188 | RO10: 201 | RP10: 202 | RQ10: 197 | RR10: 188 | RS10: 181 | RT10: 175 | RU10: 203 | RV10: 164 | RW10: 191 | RX10: 187 | RY10: 186 | RZ10: 177 | SA10: 173 | SB10: 189 | SC10: 198 | SD10: 179 | SE10: 181 | SF10: 158 | SG10: 189 | SH10: 181 | SI10: 184 | SJ10: 189 | SK10: 196 | SL10: 180 | SM10: 193 | SN10: 200 | SO10: 201 | SP10: 196 | SQ10: 195 | SR10: 179 | SS10: 173 | ST10: 185 | SU10: 172 | SV10: 202 | SW10: 173 | SX10: =IF(SX$1=$A10,,SX$2+$B10) -> 197 | SY10: 203 | SZ10: 203 | TA10: 162 | TB10: 167 | TC10: 181 | TD10: 186 | TE10: 184 | TF10: 193 | TG10: 197 | TH10: 162 | TI10: 174 | TJ10: 207 | TK10: 166 | TL10: 173 | TM10: 190 | TN10: 182 | TO10: 200 | TP10: 179 | TQ10: 184 | TR10: 191 | TS10: 184 | TT10: 195 | TU10: 191 | TV10: 177 | TW10: 181 | TX10: 175 | TY10: 185 | TZ10: 176 | UA10: 164 | UB10: 172 | UC10: 168 | UD10: 186 | UE10: 175 | UF10: 180 | UG10: 184 | UH10: 202 | UI10: 190 | UJ10: 201 | UK10: 203 | UL10: 205 | UM10: 200 | UN10: 206 | UO10: 207 | UP10: 202 | UQ10: 201 | UR10: 199 | US10: 174 | UT10: 198 | UU10: 204 | UV10: 184 | UW10: 196 | UX10: 201 | UY10: 185 | UZ10: 205 | VA10: 193 | VB10: 196 | VC10: 205 | VD10: 184 | VE10: 150 | VF10: 155 | VG10: 184 | VH10: 184 | VI10: 184 | VJ10: 162 | VK10: 186 | VL10: 190 | VM10: 175 | VN10: 184 | VO10: 193 | VP10: 154 | VQ10: 158 | VR10: 148 | VS10: 161 | VT10: 170 | VU10: 179 | VV10: 154 | VW10: 198 | VX10: 175 | VY10: 196 | VZ10: 194 | WA10: 185 | WB10: 182 | WC10: 201 | WD10: 175 | WE10: 195 | WF10: 180 | WG10: 179 | WH10: 199 | WI10: 203 | WJ10: 179 | WK10: 170 | WL10: 175 | WM10: 171 | WN10: 166 | WO10: 184 | WP10: 155 | WQ10: 163 | WR10: 172 | WS10: 164 | WT10: 143 | WU10: 140 | WV10: 163 | WW10: 160 | WX10: 137 | WY10: 165 | WZ10: 165 | XA10: 150 | XB10: 198 | XC10: 199 | XD10: 201 | XE10: 199 | XF10: 207 | XG10: 200 | XH10: 204 | XI10: 197 | XJ10: 167 | XK10: 193 | XL10: 188 | XM10: 190 | XN10: 187 | XO10: 197 | XP10: 197 | XQ10: 205 | XR10: 190 | XS10: 178 | XT10: 187 | XU10: 196 | XV10: =IF(XV$1=$A10,,XV$2+$B10) -> 183 | XW10: 192 | XX10: 197 | XY10: 193 | XZ10: 195 | YA10: 150 | YB10: 188 | YC10: 175 | YD10: 182 | YE10: 182 | YF10: 174 | YG10: 203 | YH10: 203 | YI10: 204 | YJ10: 179 | YK10: 194 | YL10: 202 | YM10: 206 | YN10: 205 | YO10: 202 | YP10: 186 | YQ10: 189 | YR10: 206 | YS10: 202 | YT10: 181 | YU10: 205 | YV10: 204 | YW10: 201 | YX10: 204 | YY10: 202 | YZ10: 200 | ZA10: 198 | ZB10: 201 | ZC10: 205 | ZD10: 200 | ZE10: 206 | ZF10: 191 | ZG10: 196 | ZH10: 189 | ZI10: 202 | ZJ10: 180 | ZK10: 180 | ZL10: 194 | ZM10: 186 | ZN10: 206 | ZO10: 178 | ZP10: 165 | ZQ10: 190 | ZR10: 144 | ZS10: 197 | ZT10: 196 | ZU10: 199 | ZV10: 175 | ZW10: 181 | ZX10: 168 | ZY10: 180 | ZZ10: 193 | AAA10: 195 | AAB10: 194 | AAC10: 195 | AAD10: 190 | AAE10: 191 | AAF10: 200 | AAG10: 195 | AAH10: 202 | AAI10: 195 | AAJ10: 199 | AAK10: 206 | AAL10: 197 | AAM10: 202 | AAN10: 206 | AAO10: 173 | AAP10: 175 | AAQ10: 197 | AAR10: 173 | AAS10: 204 | AAT10: 197 | AAU10: 204 | AAV10: 202 | AAW10: 203 | AAX10: 197 | AAY10: 174 | AAZ10: 195 | ABA10: 204 | ABB10: 204 | ABC10: 201 | ABD10: 205 | ABE10: 193 | ABF10: 203 | ABG10: 204 | ABH10: 197 | ABI10: 204 | ABJ10: 201 | ABK10: 200 | ABL10: 190 | ABM10: 203 | ABN10: 204 | ABO10: 206 | ABP10: 204 | ABQ10: 194 | ABR10: 199 | ABS10: 182 | ABT10: 204 | ABU10: 202 | ABV10: 199 | ABW10: 197 | ABX10: 205 | ABY10: 202 | ABZ10: 179 | ACA10: 200 | ACB10: 188 | ACC10: 190 | ACD10: 183 | ACE10: 201 | ACF10: 206 | ACG10: 203 | ACH10: 197 | ACI10: 203 | ACJ10: 182 | ACK10: 199 | ACL10: 199 | ACM10: 202 | ACN10: 206 | ACO10: 190 | ACP10: 184 | ACQ10: 184 | ACR10: 195 | ACS10: 147 | ACT10: =IF(ACT$1=$A10,,ACT$2+$B10) -> 137 | ACU10: 153 | ACV10: 156 | ACW10: 183 | ACX10: 168 | ACY10: 198 | ACZ10: 196 | ADA10: 191 | ADB10: 203 | ADC10: 204 | ADD10: 195 | ADE10: 188 | ADF10: 205 | ADG10: 200 | ADH10: 195 | ADI10: 197 | ADJ10: 203 | ADK10: 175 | ADL10: 155 | ADM10: 197 | ADN10: 168 | ADO10: 181 | ADP10: 189 | ADQ10: 192 | ADR10: 198 | ADS10: 190 | ADT10: 186 | ADU10: 171 | ADV10: 183 | ADW10: 179 | ADX10: 186 | ADY10: 195 | ADZ10: 203 | AEA10: 174 | AEB10: 201 | AEC10: 205 | AED10: 187 | AEE10: 194 | AEF10: 193 | AEG10: 196 | AEH10: 193 | AEI10: 195 | AEJ10: 203 | AEK10: 204 | AEL10: 204 | AEM10: 195 | AEN10: 188 | AEO10: 202 | AEP10: 202 | AEQ10: 201 | AER10: 196 | AES10: 176 | AET10: 165 | AEU10: 192 | AEV10: 185 | AEW10: 186 | AEX10: 187 | AEY10: 180 | AEZ10: 185 | AFA10: 207 | AFB10: 194 | AFC10: 209 | AFD10: 207 | AFE10: 205 | AFF10: 200 | AFG10: 203 | AFH10: 205 | AFI10: 194 | AFJ10: 203 | AFK10: 188 | AFL10: 184 | AFM10: 183 | AFN10: 202 | AFO10: 167 | AFP10: 189 | AFQ10: 186 | AFR10: 192 | AFS10: 180 | AFT10: 177 | AFU10: 185 | AFV10: 186 | AFW10: 192 | AFX10: 183 | AFY10: 188 | AFZ10: 183 | AGA10: 183 | AGB10: 203 | AGC10: 195 | AGD10: 168
A11: 0406 | B11: =COUNTIF(Лист1!$B$2:$B$77501,A11) -> 99 | C11: 182 | D11: 199 | E11: 182 | F11: 196 | G11: 195 | H11: 207 | I11: 201 | J11: 195 | K11: 0 | L11: 184 | M11: 196 | N11: 179 | O11: 206 | P11: 202 | Q11: 194 | R11: 201 | S11: 201 | T11: 196 | U11: 204 | V11: 189 | W11: 206 | X11: 202 | Y11: 189 | Z11: 193 | AA11: 199 | AB11: 193 | AC11: 194 | AD11: 207 | AE11: 204 | AF11: 198 | AG11: 163 | AH11: 180 | AI11: 170 | AJ11: 173 | AK11: 184 | AL11: 204 | AM11: 184 | AN11: 143 | AO11: 175 | AP11: 193 | AQ11: 207 | AR11: 186 | AS11: 203 | AT11: 201 | AU11: 192 | AV11: 197 | AW11: 177 | AX11: 165 | AY11: 195 | AZ11: 157 | BA11: 158 | BB11: 162 | BC11: 198 | BD11: 177 | BE11: 200 | BF11: 200 | BG11: 199 | BH11: 169 | BI11: 183 | BJ11: 188 | BK11: 178 | BL11: 193 | BM11: 158 | BN11: 193 | BO11: 188 | BP11: 169 | BQ11: 201 | BR11: 201 | BS11: 182 | BT11: 164 | BU11: 193 | BV11: 204 | BW11: 202 | BX11: 188 | BY11: 209 | BZ11: 199 | CA11: 184 | CB11: 207 | CC11: 176 | CD11: 186 | CE11: 206 | CF11: 201 | CG11: 207 | CH11: 199 | CI11: 213 | CJ11: 192 | CK11: 198 | CL11: 177 | CM11: 190 | CN11: 203 | CO11: 182 | CP11: 202 | CQ11: 207 | CR11: 209 | CS11: 197 | CT11: 198 | CU11: 207 | CV11: 200 | CW11: 192 | CX11: 211 | CY11: 211 | CZ11: 213 | DA11: 203 | DB11: 199 | DC11: 179 | DD11: 184 | DE11: 203 | DF11: 196 | DG11: 195 | DH11: 172 | DI11: 179 | DJ11: 190 | DK11: 200 | DL11: 189 | DM11: 203 | DN11: 185 | DO11: 202 | DP11: 161 | DQ11: 161 | DR11: 203 | DS11: 173 | DT11: 198 | DU11: 164 | DV11: 167 | DW11: 182 | DX11: 148 | DY11: 198 | DZ11: 202 | EA11: 166 | EB11: =IF(EB$1=$A11,,EB$2+$B11) -> 163 | EC11: 189 | ED11: 204 | EE11: 125 | EF11: 168 | EG11: 194 | EH11: 175 | EI11: 154 | EJ11: 165 | EK11: 166 | EL11: 187 | EM11: 182 | EN11: 212 | EO11: 197 | EP11: 188 | EQ11: 190 | ER11: 166 | ES11: 176 | ET11: 168 | EU11: 198 | EV11: 172 | EW11: 198 | EX11: 176 | EY11: 194 | EZ11: 175 | FA11: 178 | FB11: 153 | FC11: 178 | FD11: 142 | FE11: 168 | FF11: 153 | FG11: 172 | FH11: 188 | FI11: 182 | FJ11: 173 | FK11: 188 | FL11: 170 | FM11: 184 | FN11: 191 | FO11: 154 | FP11: 180 | FQ11: 168 | FR11: 174 | FS11: 176 | FT11: 141 | FU11: 149 | FV11: 147 | FW11: 179 | FX11: 175 | FY11: 187 | FZ11: 173 | GA11: 193 | GB11: 172 | GC11: 171 | GD11: 148 | GE11: 181 | GF11: 158 | GG11: 145 | GH11: 174 | GI11: 131 | GJ11: 181 | GK11: 188 | GL11: 180 | GM11: 176 | GN11: 190 | GO11: 157 | GP11: 175 | GQ11: =IF(GQ$1=$A11,,GQ$2+$B11) -> 192 | GR11: 179 | GS11: 170 | GT11: 164 | GU11: 160 | GV11: 150 | GW11: 161 | GX11: 172 | GY11: 177 | GZ11: 174 | HA11: 176 | HB11: 186 | HC11: 173 | HD11: 162 | HE11: 184 | HF11: 181 | HG11: 178 | HH11: 200 | HI11: 194 | HJ11: 210 | HK11: 202 | HL11: 202 | HM11: 181 | HN11: 191 | HO11: 166 | HP11: 179 | HQ11: 195 | HR11: 180 | HS11: 198 | HT11: 191 | HU11: 185 | HV11: 203 | HW11: 202 | HX11: 194 | HY11: 168 | HZ11: 192 | IA11: 180 | IB11: 201 | IC11: 199 | ID11: 201 | IE11: 202 | IF11: 205 | IG11: 208 | IH11: 205 | II11: 196 | IJ11: 207 | IK11: 211 | IL11: 211 | IM11: 201 | IN11: 184 | IO11: 198 | IP11: 192 | IQ11: 180 | IR11: 171 | IS11: 190 | IT11: 204 | IU11: 182 | IV11: 164 | IW11: 176 | IX11: 177 | IY11: 183 | IZ11: 177 | JA11: 179 | JB11: 171 | JC11: 189 | JD11: 175 | JE11: 182 | JF11: 139 | JG11: 162 | JH11: 168 | JI11: 170 | JJ11: 149 | JK11: 205 | JL11: 182 | JM11: 184 | JN11: 194 | JO11: 176 | JP11: 195 | JQ11: 187 | JR11: 188 | JS11: 160 | JT11: 189 | JU11: 186 | JV11: 173 | JW11: 199 | JX11: 189 | JY11: 203 | JZ11: 194 | KA11: 199 | KB11: 191 | KC11: 193 | KD11: 187 | KE11: 198 | KF11: 171 | KG11: 187 | KH11: 183 | KI11: 178 | KJ11: 164 | KK11: 208 | KL11: 193 | KM11: 210 | KN11: 191 | KO11: 206 | KP11: 204 | KQ11: 201 | KR11: 199 | KS11: 210 | KT11: 209 | KU11: 208 | KV11: 210 | KW11: 190 | KX11: 186 | KY11: 182 | KZ11: 169 | LA11: 194 | LB11: 205 | LC11: 203 | LD11: 209 | LE11: 196 | LF11: 189 | LG11: 195 | LH11: 205 | LI11: 192 | LJ11: 191 | LK11: 187 | LL11: 163 | LM11: 181 | LN11: 212 | LO11: =IF(LO$1=$A11,,LO$2+$B11) -> 207 | LP11: 193 | LQ11: 157 | LR11: 170 | LS11: 182 | LT11: 160 | LU11: 195 | LV11: 191 | LW11: 193 | LX11: 182 | LY11: 167 | LZ11: 206 | MA11: 185 | MB11: 198 | MC11: 193 | MD11: 190 | ME11: 200 | MF11: 183 | MG11: 196 | MH11: 205 | MI11: 171 | MJ11: 192 | MK11: 205 | ML11: 198 | MM11: 206 | MN11: 205 | MO11: 173 | MP11: 154 | MQ11: 204 | MR11: 186 | MS11: 198 | MT11: 189 | MU11: 192 | MV11: 183 | MW11: 181 | MX11: 193 | MY11: 201 | MZ11: 194 | NA11: 164 | NB11: 184 | NC11: 185 | ND11: 197 | NE11: 208 | NF11: 210 | NG11: 209 | NH11: 205 | NI11: 207 | NJ11: 210 | NK11: 195 | NL11: 180 | NM11: 156 | NN11: 192 | NO11: 177 | NP11: 186 | NQ11: 187 | NR11: 192 | NS11: 200 | NT11: 209 | NU11: 141 | NV11: 165 | NW11: 186 | NX11: 184 | NY11: 173 | NZ11: 198 | OA11: 192 | OB11: 185 | OC11: 156 | OD11: 152 | OE11: 163 | OF11: 189 | OG11: 187 | OH11: 175 | OI11: 163 | OJ11: 199 | OK11: 153 | OL11: 178 | OM11: 179 | ON11: 165 | OO11: 183 | OP11: 180 | OQ11: 183 | OR11: 184 | OS11: 187 | OT11: 195 | OU11: 178 | OV11: 184 | OW11: 179 | OX11: 201 | OY11: 196 | OZ11: 191 | PA11: 193 | PB11: 182 | PC11: 194 | PD11: 192 | PE11: 180 | PF11: 183 | PG11: 179 | PH11: 186 | PI11: 161 | PJ11: 188 | PK11: 182 | PL11: 173 | PM11: 178 | PN11: 193 | PO11: 177 | PP11: 192 | PQ11: 197 | PR11: 193 | PS11: 203 | PT11: 203 | PU11: 203 | PV11: 199 | PW11: 198 | PX11: 195 | PY11: 210 | PZ11: 204 | QA11: 195 | QB11: 195 | QC11: 199 | QD11: 199 | QE11: 193 | QF11: 197 | QG11: 199 | QH11: 197 | QI11: 207 | QJ11: 207 | QK11: 205 | QL11: 205 | QM11: =IF(QM$1=$A11,,QM$2+$B11) -> 200 | QN11: 196 | QO11: 197 | QP11: 200 | QQ11: 206 | QR11: 196 | QS11: 178 | QT11: 201 | QU11: 190 | QV11: 196 | QW11: 201 | QX11: 207 | QY11: 207 | QZ11: 199 | RA11: 202 | RB11: 205 | RC11: 205 | RD11: 207 | RE11: 180 | RF11: 205 | RG11: 200 | RH11: 203 | RI11: 206 | RJ11: 205 | RK11: 202 | RL11: 205 | RM11: 200 | RN11: 191 | RO11: 204 | RP11: 205 | RQ11: 200 | RR11: 191 | RS11: 184 | RT11: 178 | RU11: 206 | RV11: 167 | RW11: 194 | RX11: 190 | RY11: 189 | RZ11: 180 | SA11: 176 | SB11: 192 | SC11: 201 | SD11: 182 | SE11: 184 | SF11: 161 | SG11: 192 | SH11: 184 | SI11: 187 | SJ11: 192 | SK11: 199 | SL11: 183 | SM11: 196 | SN11: 203 | SO11: 204 | SP11: 199 | SQ11: 198 | SR11: 182 | SS11: 176 | ST11: 188 | SU11: 175 | SV11: 205 | SW11: 176 | SX11: 200 | SY11: 206 | SZ11: 206 | TA11: 165 | TB11: 170 | TC11: 184 | TD11: 189 | TE11: 187 | TF11: 196 | TG11: 200 | TH11: 165 | TI11: 177 | TJ11: 210 | TK11: 169 | TL11: 176 | TM11: 193 | TN11: 185 | TO11: 203 | TP11: 182 | TQ11: 187 | TR11: 194 | TS11: 187 | TT11: 198 | TU11: 194 | TV11: 180 | TW11: 184 | TX11: 178 | TY11: 188 | TZ11: 179 | UA11: 167 | UB11: 175 | UC11: 171 | UD11: 189 | UE11: 178 | UF11: 183 | UG11: 187 | UH11: 205 | UI11: 193 | UJ11: 204 | UK11: 206 | UL11: 208 | UM11: 203 | UN11: 209 | UO11: 210 | UP11: 205 | UQ11: 204 | UR11: 202 | US11: 177 | UT11: 201 | UU11: 207 | UV11: 187 | UW11: 199 | UX11: 204 | UY11: 188 | UZ11: 208 | VA11: 196 | VB11: 199 | VC11: 208 | VD11: 187 | VE11: 153 | VF11: 158 | VG11: 187 | VH11: 187 | VI11: 187 | VJ11: 165 | VK11: =IF(VK$1=$A11,,VK$2+$B11) -> 189 | VL11: 193 | VM11: 178 | VN11: 187 | VO11: 196 | VP11: 157 | VQ11: 161 | VR11: 151 | VS11: 164 | VT11: 173 | VU11: 182 | VV11: 157 | VW11: 201 | VX11: 178 | VY11: 199 | VZ11: 197 | WA11: 188 | WB11: 185 | WC11: 204 | WD11: 178 | WE11: 198 | WF11: 183 | WG11: 182 | WH11: 202 | WI11: 206 | WJ11: 182 | WK11: 173 | WL11: 178 | WM11: 174 | WN11: 169 | WO11: 187 | WP11: 158 | WQ11: 166 | WR11: 175 | WS11: 167 | WT11: 146 | WU11: 143 | WV11: 166 | WW11: 163 | WX11: 140 | WY11: 168 | WZ11: 168 | XA11: 153 | XB11: 201 | XC11: 202 | XD11: 204 | XE11: 202 | XF11: 210 | XG11: 203 | XH11: 207 | XI11: 200 | XJ11: 170 | XK11: 196 | XL11: 191 | XM11: 193 | XN11: 190 | XO11: 200 | XP11: 200 | XQ11: 208 | XR11: 193 | XS11: 181 | XT11: 190 | XU11: 199 | XV11: 186 | XW11: 195 | XX11: 200 | XY11: 196 | XZ11: 198 | YA11: 153 | YB11: 191 | YC11: 178 | YD11: 185 | YE11: 185 | YF11: 177 | YG11: 206 | YH11: 206 | YI11: 207 | YJ11: 182 | YK11: 197 | YL11: 205 | YM11: 209 | YN11: 208 | YO11: 205 | YP11: 189 | YQ11: 192 | YR11: 209 | YS11: 205 | YT11: 184 | YU11: 208 | YV11: 207 | YW11: 204 | YX11: 207 | YY11: 205 | YZ11: 203 | ZA11: 201 | ZB11: 204 | ZC11: 208 | ZD11: 203 | ZE11: 209 | ZF11: 194 | ZG11: 199 | ZH11: 192 | ZI11: 205 | ZJ11: 183 | ZK11: 183 | ZL11: 197 | ZM11: 189 | ZN11: 209 | ZO11: 181 | ZP11: 168 | ZQ11: 193 | ZR11: 147 | ZS11: 200 | ZT11: 199 | ZU11: 202 | ZV11: 178 | ZW11: 184 | ZX11: 171 | ZY11: 183 | ZZ11: 196 | AAA11: 198 | AAB11: 197 | AAC11: 198 | AAD11: 193 | AAE11: 194 | AAF11: 203 | AAG11: 198 | AAH11: 205 | AAI11: =IF(AAI$1=$A11,,AAI$2+$B11) -> 198 | AAJ11: 202 | AAK11: 209 | AAL11: 200 | AAM11: 205 | AAN11: 209 | AAO11: 176 | AAP11: 178 | AAQ11: 200 | AAR11: 176 | AAS11: 207 | AAT11: 200 | AAU11: 207 | AAV11: 205 | AAW11: 206 | AAX11: 200 | AAY11: 177 | AAZ11: 198 | ABA11: 207 | ABB11: 207 | ABC11: 204 | ABD11: 208 | ABE11: 196 | ABF11: 206 | ABG11: 207 | ABH11: 200 | ABI11: 207 | ABJ11: 204 | ABK11: 203 | ABL11: 193 | ABM11: 206 | ABN11: 207 | ABO11: 209 | ABP11: 207 | ABQ11: 197 | ABR11: 202 | ABS11: 185 | ABT11: 207 | ABU11: 205 | ABV11: 202 | ABW11: 200 | ABX11: 208 | ABY11: 205 | ABZ11: 182 | ACA11: 203 | ACB11: 191 | ACC11: 193 | ACD11: 186 | ACE11: 204 | ACF11: 209 | ACG11: 206 | ACH11: 200 | ACI11: 206 | ACJ11: 185 | ACK11: 202 | ACL11: 202 | ACM11: 205 | ACN11: 209 | ACO11: 193 | ACP11: 187 | ACQ11: 187 | ACR11: 198 | ACS11: 150 | ACT11: 140 | ACU11: 156 | ACV11: 159 | ACW11: 186 | ACX11: 171 | ACY11: 201 | ACZ11: 199 | ADA11: 194 | ADB11: 206 | ADC11: 207 | ADD11: 198 | ADE11: 191 | ADF11: 208 | ADG11: 203 | ADH11: 198 | ADI11: 200 | ADJ11: 206 | ADK11: 178 | ADL11: 158 | ADM11: 200 | ADN11: 171 | ADO11: 184 | ADP11: 192 | ADQ11: 195 | ADR11: 201 | ADS11: 193 | ADT11: 189 | ADU11: 174 | ADV11: 186 | ADW11: 182 | ADX11: 189 | ADY11: 198 | ADZ11: 206 | AEA11: 177 | AEB11: 204 | AEC11: 208 | AED11: 190 | AEE11: 197 | AEF11: 196 | AEG11: 199 | AEH11: 196 | AEI11: 198 | AEJ11: 206 | AEK11: 207 | AEL11: 207 | AEM11: 198 | AEN11: 191 | AEO11: 205 | AEP11: 205 | AEQ11: 204 | AER11: 199 | AES11: 179 | AET11: 168 | AEU11: 195 | AEV11: 188 | AEW11: 189 | AEX11: 190 | AEY11: 183 | AEZ11: 188 | AFA11: 210 | AFB11: 197 | AFC11: 212 | AFD11: 210 | AFE11: 208 | AFF11: 203 | AFG11: =IF(AFG$1=$A11,,AFG$2+$B11) -> 206 | AFH11: 208 | AFI11: 197 | AFJ11: 206 | AFK11: 191 | AFL11: 187 | AFM11: 186 | AFN11: 205 | AFO11: 170 | AFP11: 192 | AFQ11: 189 | AFR11: 195 | AFS11: 183 | AFT11: 180 | AFU11: 188 | AFV11: 189 | AFW11: 195 | AFX11: 186 | AFY11: 191 | AFZ11: 186 | AGA11: 186 | AGB11: 206 | AGC11: 198 | AGD11: 171
A12: 0407 | B12: =COUNTIF(Лист1!$B$2:$B$77501,A12) -> 85 | C12: 168 | D12: 185 | E12: 168 | F12: 182 | G12: 181 | H12: 193 | I12: 187 | J12: 181 | K12: 184 | L12: 0 | M12: 182 | N12: 165 | O12: 192 | P12: 188 | Q12: 180 | R12: 187 | S12: 187 | T12: 182 | U12: 190 | V12: 175 | W12: 192 | X12: 188 | Y12: 175 | Z12: 179 | AA12: 185 | AB12: 179 | AC12: 180 | AD12: 193 | AE12: 190 | AF12: 184 | AG12: 149 | AH12: 166 | AI12: 156 | AJ12: 159 | AK12: 170 | AL12: 190 | AM12: 170 | AN12: 129 | AO12: 161 | AP12: 179 | AQ12: 193 | AR12: 172 | AS12: 189 | AT12: 187 | AU12: 178 | AV12: 183 | AW12: 163 | AX12: 151 | AY12: 181 | AZ12: 143 | BA12: 144 | BB12: 148 | BC12: 184 | BD12: 163 | BE12: 186 | BF12: 186 | BG12: 185 | BH12: 155 | BI12: 169 | BJ12: 174 | BK12: 164 | BL12: 179 | BM12: 144 | BN12: 179 | BO12: =IF(BO$1=$A12,,BO$2+$B12) -> 174 | BP12: 155 | BQ12: 187 | BR12: 187 | BS12: 168 | BT12: 150 | BU12: 179 | BV12: 190 | BW12: 188 | BX12: 174 | BY12: 195 | BZ12: 185 | CA12: 170 | CB12: 193 | CC12: 162 | CD12: 172 | CE12: 192 | CF12: 187 | CG12: 193 | CH12: 185 | CI12: 199 | CJ12: 178 | CK12: 184 | CL12: 163 | CM12: 176 | CN12: 189 | CO12: 168 | CP12: 188 | CQ12: 193 | CR12: 195 | CS12: 183 | CT12: 184 | CU12: 193 | CV12: 186 | CW12: 178 | CX12: 197 | CY12: 197 | CZ12: 199 | DA12: 189 | DB12: 185 | DC12: 165 | DD12: 170 | DE12: 189 | DF12: 182 | DG12: 181 | DH12: 158 | DI12: 165 | DJ12: 176 | DK12: 186 | DL12: 175 | DM12: 189 | DN12: 171 | DO12: 188 | DP12: 147 | DQ12: 147 | DR12: 189 | DS12: 159 | DT12: 184 | DU12: 150 | DV12: 153 | DW12: 168 | DX12: 134 | DY12: 184 | DZ12: 188 | EA12: 152 | EB12: 149 | EC12: 175 | ED12: 190 | EE12: 111 | EF12: 154 | EG12: 180 | EH12: 161 | EI12: 140 | EJ12: 151 | EK12: 152 | EL12: 173 | EM12: 168 | EN12: 198 | EO12: 183 | EP12: 174 | EQ12: 176 | ER12: 152 | ES12: 162 | ET12: 154 | EU12: 184 | EV12: 158 | EW12: 184 | EX12: 162 | EY12: 180 | EZ12: 161 | FA12: 164 | FB12: 139 | FC12: 164 | FD12: 128 | FE12: 154 | FF12: 139 | FG12: 158 | FH12: 174 | FI12: 168 | FJ12: 159 | FK12: 174 | FL12: 156 | FM12: 170 | FN12: 177 | FO12: 140 | FP12: 166 | FQ12: 154 | FR12: 160 | FS12: 162 | FT12: 127 | FU12: 135 | FV12: 133 | FW12: 165 | FX12: 161 | FY12: 173 | FZ12: 159 | GA12: 179 | GB12: 158 | GC12: 157 | GD12: 134 | GE12: 167 | GF12: 144 | GG12: 131 | GH12: 160 | GI12: 117 | GJ12: 167 | GK12: 174 | GL12: 166 | GM12: 162 | GN12: 176 | GO12: 143 | GP12: =IF(GP$1=$A12,,GP$2+$B12) -> 161 | GQ12: 178 | GR12: 165 | GS12: 156 | GT12: 150 | GU12: 146 | GV12: 136 | GW12: 147 | GX12: 158 | GY12: 163 | GZ12: 160 | HA12: 162 | HB12: 172 | HC12: 159 | HD12: 148 | HE12: 170 | HF12: 167 | HG12: 164 | HH12: 186 | HI12: 180 | HJ12: 196 | HK12: 188 | HL12: 188 | HM12: 167 | HN12: 177 | HO12: 152 | HP12: 165 | HQ12: 181 | HR12: 166 | HS12: 184 | HT12: 177 | HU12: 171 | HV12: 189 | HW12: 188 | HX12: 180 | HY12: 154 | HZ12: 178 | IA12: 166 | IB12: 187 | IC12: 185 | ID12: 187 | IE12: 188 | IF12: 191 | IG12: 194 | IH12: 191 | II12: 182 | IJ12: 193 | IK12: 197 | IL12: 197 | IM12: 187 | IN12: 170 | IO12: 184 | IP12: 178 | IQ12: 166 | IR12: 157 | IS12: 176 | IT12: 190 | IU12: 168 | IV12: 150 | IW12: 162 | IX12: 163 | IY12: 169 | IZ12: 163 | JA12: 165 | JB12: 157 | JC12: 175 | JD12: 161 | JE12: 168 | JF12: 125 | JG12: 148 | JH12: 154 | JI12: 156 | JJ12: 135 | JK12: 191 | JL12: 168 | JM12: 170 | JN12: 180 | JO12: 162 | JP12: 181 | JQ12: 173 | JR12: 174 | JS12: 146 | JT12: 175 | JU12: 172 | JV12: 159 | JW12: 185 | JX12: 175 | JY12: 189 | JZ12: 180 | KA12: 185 | KB12: 177 | KC12: 179 | KD12: 173 | KE12: 184 | KF12: 157 | KG12: 173 | KH12: 169 | KI12: 164 | KJ12: 150 | KK12: 194 | KL12: 179 | KM12: 196 | KN12: 177 | KO12: 192 | KP12: 190 | KQ12: 187 | KR12: 185 | KS12: 196 | KT12: 195 | KU12: 194 | KV12: 196 | KW12: 176 | KX12: 172 | KY12: 168 | KZ12: 155 | LA12: 180 | LB12: 191 | LC12: 189 | LD12: 195 | LE12: 182 | LF12: 175 | LG12: 181 | LH12: 191 | LI12: 178 | LJ12: 177 | LK12: 173 | LL12: 149 | LM12: 167 | LN12: =IF(LN$1=$A12,,LN$2+$B12) -> 198 | LO12: 193 | LP12: 179 | LQ12: 143 | LR12: 156 | LS12: 168 | LT12: 146 | LU12: 181 | LV12: 177 | LW12: 179 | LX12: 168 | LY12: 153 | LZ12: 192 | MA12: 171 | MB12: 184 | MC12: 179 | MD12: 176 | ME12: 186 | MF12: 169 | MG12: 182 | MH12: 191 | MI12: 157 | MJ12: 178 | MK12: 191 | ML12: 184 | MM12: 192 | MN12: 191 | MO12: 159 | MP12: 140 | MQ12: 190 | MR12: 172 | MS12: 184 | MT12: 175 | MU12: 178 | MV12: 169 | MW12: 167 | MX12: 179 | MY12: 187 | MZ12: 180 | NA12: 150 | NB12: 170 | NC12: 171 | ND12: 183 | NE12: 194 | NF12: 196 | NG12: 195 | NH12: 191 | NI12: 193 | NJ12: 196 | NK12: 181 | NL12: 166 | NM12: 142 | NN12: 178 | NO12: 163 | NP12: 172 | NQ12: 173 | NR12: 178 | NS12: 186 | NT12: 195 | NU12: 127 | NV12: 151 | NW12: 172 | NX12: 170 | NY12: 159 | NZ12: 184 | OA12: 178 | OB12: 171 | OC12: 142 | OD12: 138 | OE12: 149 | OF12: 175 | OG12: 173 | OH12: 161 | OI12: 149 | OJ12: 185 | OK12: 139 | OL12: 164 | OM12: 165 | ON12: 151 | OO12: 169 | OP12: 166 | OQ12: 169 | OR12: 170 | OS12: 173 | OT12: 181 | OU12: 164 | OV12: 170 | OW12: 165 | OX12: 187 | OY12: 182 | OZ12: 177 | PA12: 179 | PB12: 168 | PC12: 180 | PD12: 178 | PE12: 166 | PF12: 169 | PG12: 165 | PH12: 172 | PI12: 147 | PJ12: 174 | PK12: 168 | PL12: 159 | PM12: 164 | PN12: 179 | PO12: 163 | PP12: 178 | PQ12: 183 | PR12: 179 | PS12: 189 | PT12: 189 | PU12: 189 | PV12: 185 | PW12: 184 | PX12: 181 | PY12: 196 | PZ12: 190 | QA12: 181 | QB12: 181 | QC12: 185 | QD12: 185 | QE12: 179 | QF12: 183 | QG12: 185 | QH12: 183 | QI12: 193 | QJ12: 193 | QK12: 191 | QL12: =IF(QL$1=$A12,,QL$2+$B12) -> 191 | QM12: 186 | QN12: 182 | QO12: 183 | QP12: 186 | QQ12: 192 | QR12: 182 | QS12: 164 | QT12: 187 | QU12: 176 | QV12: 182 | QW12: 187 | QX12: 193 | QY12: 193 | QZ12: 185 | RA12: 188 | RB12: 191 | RC12: 191 | RD12: 193 | RE12: 166 | RF12: 191 | RG12: 186 | RH12: 189 | RI12: 192 | RJ12: 191 | RK12: 188 | RL12: 191 | RM12: 186 | RN12: 177 | RO12: 190 | RP12: 191 | RQ12: 186 | RR12: 177 | RS12: 170 | RT12: 164 | RU12: 192 | RV12: 153 | RW12: 180 | RX12: 176 | RY12: 175 | RZ12: 166 | SA12: 162 | SB12: 178 | SC12: 187 | SD12: 168 | SE12: 170 | SF12: 147 | SG12: 178 | SH12: 170 | SI12: 173 | SJ12: 178 | SK12: 185 | SL12: 169 | SM12: 182 | SN12: 189 | SO12: 190 | SP12: 185 | SQ12: 184 | SR12: 168 | SS12: 162 | ST12: 174 | SU12: 161 | SV12: 191 | SW12: 162 | SX12: 186 | SY12: 192 | SZ12: 192 | TA12: 151 | TB12: 156 | TC12: 170 | TD12: 175 | TE12: 173 | TF12: 182 | TG12: 186 | TH12: 151 | TI12: 163 | TJ12: 196 | TK12: 155 | TL12: 162 | TM12: 179 | TN12: 171 | TO12: 189 | TP12: 168 | TQ12: 173 | TR12: 180 | TS12: 173 | TT12: 184 | TU12: 180 | TV12: 166 | TW12: 170 | TX12: 164 | TY12: 174 | TZ12: 165 | UA12: 153 | UB12: 161 | UC12: 157 | UD12: 175 | UE12: 164 | UF12: 169 | UG12: 173 | UH12: 191 | UI12: 179 | UJ12: 190 | UK12: 192 | UL12: 194 | UM12: 189 | UN12: 195 | UO12: 196 | UP12: 191 | UQ12: 190 | UR12: 188 | US12: 163 | UT12: 187 | UU12: 193 | UV12: 173 | UW12: 185 | UX12: 190 | UY12: 174 | UZ12: 194 | VA12: 182 | VB12: 185 | VC12: 194 | VD12: 173 | VE12: 139 | VF12: 144 | VG12: 173 | VH12: 173 | VI12: 173 | VJ12: =IF(VJ$1=$A12,,VJ$2+$B12) -> 151 | VK12: 175 | VL12: 179 | VM12: 164 | VN12: 173 | VO12: 182 | VP12: 143 | VQ12: 147 | VR12: 137 | VS12: 150 | VT12: 159 | VU12: 168 | VV12: 143 | VW12: 187 | VX12: 164 | VY12: 185 | VZ12: 183 | WA12: 174 | WB12: 171 | WC12: 190 | WD12: 164 | WE12: 184 | WF12: 169 | WG12: 168 | WH12: 188 | WI12: 192 | WJ12: 168 | WK12: 159 | WL12: 164 | WM12: 160 | WN12: 155 | WO12: 173 | WP12: 144 | WQ12: 152 | WR12: 161 | WS12: 153 | WT12: 132 | WU12: 129 | WV12: 152 | WW12: 149 | WX12: 126 | WY12: 154 | WZ12: 154 | XA12: 139 | XB12: 187 | XC12: 188 | XD12: 190 | XE12: 188 | XF12: 196 | XG12: 189 | XH12: 193 | XI12: 186 | XJ12: 156 | XK12: 182 | XL12: 177 | XM12: 179 | XN12: 176 | XO12: 186 | XP12: 186 | XQ12: 194 | XR12: 179 | XS12: 167 | XT12: 176 | XU12: 185 | XV12: 172 | XW12: 181 | XX12: 186 | XY12: 182 | XZ12: 184 | YA12: 139 | YB12: 177 | YC12: 164 | YD12: 171 | YE12: 171 | YF12: 163 | YG12: 192 | YH12: 192 | YI12: 193 | YJ12: 168 | YK12: 183 | YL12: 191 | YM12: 195 | YN12: 194 | YO12: 191 | YP12: 175 | YQ12: 178 | YR12: 195 | YS12: 191 | YT12: 170 | YU12: 194 | YV12: 193 | YW12: 190 | YX12: 193 | YY12: 191 | YZ12: 189 | ZA12: 187 | ZB12: 190 | ZC12: 194 | ZD12: 189 | ZE12: 195 | ZF12: 180 | ZG12: 185 | ZH12: 178 | ZI12: 191 | ZJ12: 169 | ZK12: 169 | ZL12: 183 | ZM12: 175 | ZN12: 195 | ZO12: 167 | ZP12: 154 | ZQ12: 179 | ZR12: 133 | ZS12: 186 | ZT12: 185 | ZU12: 188 | ZV12: 164 | ZW12: 170 | ZX12: 157 | ZY12: 169 | ZZ12: 182 | AAA12: 184 | AAB12: 183 | AAC12: 184 | AAD12: 179 | AAE12: 180 | AAF12: 189 | AAG12: 184 | AAH12: =IF(AAH$1=$A12,,AAH$2+$B12) -> 191 | AAI12: 184 | AAJ12: 188 | AAK12: 195 | AAL12: 186 | AAM12: 191 | AAN12: 195 | AAO12: 162 | AAP12: 164 | AAQ12: 186 | AAR12: 162 | AAS12: 193 | AAT12: 186 | AAU12: 193 | AAV12: 191 | AAW12: 192 | AAX12: 186 | AAY12: 163 | AAZ12: 184 | ABA12: 193 | ABB12: 193 | ABC12: 190 | ABD12: 194 | ABE12: 182 | ABF12: 192 | ABG12: 193 | ABH12: 186 | ABI12: 193 | ABJ12: 190 | ABK12: 189 | ABL12: 179 | ABM12: 192 | ABN12: 193 | ABO12: 195 | ABP12: 193 | ABQ12: 183 | ABR12: 188 | ABS12: 171 | ABT12: 193 | ABU12: 191 | ABV12: 188 | ABW12: 186 | ABX12: 194 | ABY12: 191 | ABZ12: 168 | ACA12: 189 | ACB12: 177 | ACC12: 179 | ACD12: 172 | ACE12: 190 | ACF12: 195 | ACG12: 192 | ACH12: 186 | ACI12: 192 | ACJ12: 171 | ACK12: 188 | ACL12: 188 | ACM12: 191 | ACN12: 195 | ACO12: 179 | ACP12: 173 | ACQ12: 173 | ACR12: 184 | ACS12: 136 | ACT12: 126 | ACU12: 142 | ACV12: 145 | ACW12: 172 | ACX12: 157 | ACY12: 187 | ACZ12: 185 | ADA12: 180 | ADB12: 192 | ADC12: 193 | ADD12: 184 | ADE12: 177 | ADF12: 194 | ADG12: 189 | ADH12: 184 | ADI12: 186 | ADJ12: 192 | ADK12: 164 | ADL12: 144 | ADM12: 186 | ADN12: 157 | ADO12: 170 | ADP12: 178 | ADQ12: 181 | ADR12: 187 | ADS12: 179 | ADT12: 175 | ADU12: 160 | ADV12: 172 | ADW12: 168 | ADX12: 175 | ADY12: 184 | ADZ12: 192 | AEA12: 163 | AEB12: 190 | AEC12: 194 | AED12: 176 | AEE12: 183 | AEF12: 182 | AEG12: 185 | AEH12: 182 | AEI12: 184 | AEJ12: 192 | AEK12: 193 | AEL12: 193 | AEM12: 184 | AEN12: 177 | AEO12: 191 | AEP12: 191 | AEQ12: 190 | AER12: 185 | AES12: 165 | AET12: 154 | AEU12: 181 | AEV12: 174 | AEW12: 175 | AEX12: 176 | AEY12: 169 | AEZ12: 174 | AFA12: 196 | AFB12: 183 | AFC12: 198 | AFD12: 196 | AFE12: 194 | AFF12: =IF(AFF$1=$A12,,AFF$2+$B12) -> 189 | AFG12: 192 | AFH12: 194 | AFI12: 183 | AFJ12: 192 | AFK12: 177 | AFL12: 173 | AFM12: 172 | AFN12: 191 | AFO12: 156 | AFP12: 178 | AFQ12: 175 | AFR12: 181 | AFS12: 169 | AFT12: 166 | AFU12: 174 | AFV12: 175 | AFW12: 181 | AFX12: 172 | AFY12: 177 | AFZ12: 172 | AGA12: 172 | AGB12: 192 | AGC12: 184 | AGD12: 157
A13: 0409 | B13: =COUNTIF(Лист1!$B$2:$B$77501,A13) -> 97 | C13: 180 | D13: =IF(D$1=$A13,,D$2+$B13) -> 197 | E13: 180 | F13: 194 | G13: 193 | H13: 205 | I13: 199 | J13: 193 | K13: 196 | L13: 182 | M13: 0 | N13: 177 | O13: 204 | P13: 200 | Q13: 192 | R13: 199 | S13: 199 | T13: 194 | U13: 202 | V13: 187 | W13: 204 | X13: 200 | Y13: 187 | Z13: 191 | AA13: 197 | AB13: 191 | AC13: 192 | AD13: 205 | AE13: 202 | AF13: 196 | AG13: 161 | AH13: 178 | AI13: 168 | AJ13: 171 | AK13: 182 | AL13: 202 | AM13: 182 | AN13: 141 | AO13: 173 | AP13: 191 | AQ13: 205 | AR13: 184 | AS13: 201 | AT13: 199 | AU13: 190 | AV13: 195 | AW13: 175 | AX13: 163 | AY13: 193 | AZ13: 155 | BA13: 156 | BB13: 160 | BC13: 196 | BD13: 175 | BE13: 198 | BF13: 198 | BG13: 197 | BH13: 167 | BI13: 181 | BJ13: 186 | BK13: 176 | BL13: 191 | BM13: 156 | BN13: 191 | BO13: 186 | BP13: 167 | BQ13: 199 | BR13: 199 | BS13: 180 | BT13: 162 | BU13: 191 | BV13: 202 | BW13: 200 | BX13: 186 | BY13: 207 | BZ13: 197 | CA13: 182 | CB13: 205 | CC13: 174 | CD13: 184 | CE13: 204 | CF13: 199 | CG13: 205 | CH13: 197 | CI13: 211 | CJ13: 190 | CK13: 196 | CL13: 175 | CM13: 188 | CN13: 201 | CO13: 180 | CP13: 200 | CQ13: 205 | CR13: 207 | CS13: 195 | CT13: 196 | CU13: 205 | CV13: 198 | CW13: 190 | CX13: 209 | CY13: 209 | CZ13: 211 | DA13: 201 | DB13: 197 | DC13: 177 | DD13: 182 | DE13: 201 | DF13: 194 | DG13: 193 | DH13: 170 | DI13: 177 | DJ13: 188 | DK13: 198 | DL13: 187 | DM13: 201 | DN13: 183 | DO13: 200 | DP13: 159 | DQ13: 159 | DR13: 201 | DS13: 171 | DT13: 196 | DU13: 162 | DV13: 165 | DW13: 180 | DX13: 146 | DY13: 196 | DZ13: 200 | EA13: 164 | EB13: 161 | EC13: 187 | ED13: 202 | EE13: 123 | EF13: 166 | EG13: 192 | EH13: 173 | EI13: 152 | EJ13: 163 | EK13: 164 | EL13: 185 | EM13: 180 | EN13: 210 | EO13: 195 | EP13: 186 | EQ13: 188 | ER13: 164 | ES13: 174 | ET13: 166 | EU13: 196 | EV13: 170 | EW13: 196 | EX13: 174 | EY13: 192 | EZ13: 173 | FA13: 176 | FB13: 151 | FC13: 176 | FD13: 140 | FE13: 166 | FF13: 151 | FG13: 170 | FH13: 186 | FI13: 180 | FJ13: 171 | FK13: 186 | FL13: 168 | FM13: 182 | FN13: 189 | FO13: 152 | FP13: 178 | FQ13: 166 | FR13: 172 | FS13: 174 | FT13: 139 | FU13: 147 | FV13: 145 | FW13: 177 | FX13: 173 | FY13: 185 | FZ13: 171 | GA13: 191 | GB13: 170 | GC13: 169 | GD13: 146 | GE13: 179 | GF13: 156 | GG13: 143 | GH13: 172 | GI13: 129 | GJ13: 179 | GK13: 186 | GL13: 178 | GM13: 174 | GN13: 188 | GO13: 155 | GP13: 173 | GQ13: 190 | GR13: 177 | GS13: 168 | GT13: 162 | GU13: 158 | GV13: 148 | GW13: 159 | GX13: 170 | GY13: 175 | GZ13: 172 | HA13: 174 | HB13: 184 | HC13: 171 | HD13: 160 | HE13: 182 | HF13: 179 | HG13: 176 | HH13: 198 | HI13: 192 | HJ13: 208 | HK13: 200 | HL13: 200 | HM13: 179 | HN13: 189 | HO13: 164 | HP13: 177 | HQ13: 193 | HR13: 178 | HS13: 196 | HT13: 189 | HU13: 183 | HV13: 201 | HW13: 200 | HX13: 192 | HY13: 166 | HZ13: 190 | IA13: 178 | IB13: 199 | IC13: 197 | ID13: 199 | IE13: 200 | IF13: 203 | IG13: 206 | IH13: 203 | II13: 194 | IJ13: 205 | IK13: 209 | IL13: 209 | IM13: 199 | IN13: 182 | IO13: 196 | IP13: 190 | IQ13: 178 | IR13: 169 | IS13: 188 | IT13: 202 | IU13: 180 | IV13: 162 | IW13: 174 | IX13: 175 | IY13: 181 | IZ13: 175 | JA13: 177 | JB13: 169 | JC13: 187 | JD13: 173 | JE13: 180 | JF13: 137 | JG13: 160 | JH13: 166 | JI13: 168 | JJ13: 147 | JK13: 203 | JL13: 180 | JM13: 182 | JN13: 192 | JO13: 174 | JP13: 193 | JQ13: 185 | JR13: 186 | JS13: 158 | JT13: 187 | JU13: 184 | JV13: 171 | JW13: 197 | JX13: 187 | JY13: 201 | JZ13: 192 | KA13: 197 | KB13: 189 | KC13: 191 | KD13: 185 | KE13: 196 | KF13: 169 | KG13: 185 | KH13: 181 | KI13: 176 | KJ13: 162 | KK13: 206 | KL13: 191 | KM13: 208 | KN13: 189 | KO13: 204 | KP13: 202 | KQ13: 199 | KR13: 197 | KS13: 208 | KT13: 207 | KU13: 206 | KV13: 208 | KW13: 188 | KX13: 184 | KY13: 180 | KZ13: 167 | LA13: 192 | LB13: 203 | LC13: 201 | LD13: 207 | LE13: 194 | LF13: 187 | LG13: 193 | LH13: 203 | LI13: 190 | LJ13: 189 | LK13: 185 | LL13: 161 | LM13: 179 | LN13: 210 | LO13: 205 | LP13: 191 | LQ13: 155 | LR13: 168 | LS13: 180 | LT13: 158 | LU13: 193 | LV13: 189 | LW13: 191 | LX13: 180 | LY13: 165 | LZ13: 204 | MA13: 183 | MB13: 196 | MC13: 191 | MD13: 188 | ME13: 198 | MF13: 181 | MG13: 194 | MH13: 203 | MI13: 169 | MJ13: 190 | MK13: 203 | ML13: 196 | MM13: 204 | MN13: 203 | MO13: 171 | MP13: 152 | MQ13: 202 | MR13: 184 | MS13: 196 | MT13: 187 | MU13: 190 | MV13: 181 | MW13: 179 | MX13: 191 | MY13: 199 | MZ13: 192 | NA13: 162 | NB13: 182 | NC13: 183 | ND13: 195 | NE13: 206 | NF13: 208 | NG13: 207 | NH13: 203 | NI13: 205 | NJ13: 208 | NK13: 193 | NL13: 178 | NM13: 154 | NN13: 190 | NO13: 175 | NP13: 184 | NQ13: 185 | NR13: 190 | NS13: 198 | NT13: 207 | NU13: 139 | NV13: 163 | NW13: 184 | NX13: 182 | NY13: 171 | NZ13: 196 | OA13: 190 | OB13: 183 | OC13: 154 | OD13: 150 | OE13: 161 | OF13: 187 | OG13: 185 | OH13: 173 | OI13: 161 | OJ13: 197 | OK13: 151 | OL13: 176 | OM13: 177 | ON13: 163 | OO13: 181 | OP13: 178 | OQ13: 181 | OR13: 182 | OS13: 185 | OT13: 193 | OU13: 176 | OV13: 182 | OW13: 177 | OX13: 199 | OY13: 194 | OZ13: 189 | PA13: 191 | PB13: 180 | PC13: 192 | PD13: 190 | PE13: 178 | PF13: 181 | PG13: 177 | PH13: 184 | PI13: 159 | PJ13: 186 | PK13: 180 | PL13: 171 | PM13: 176 | PN13: 191 | PO13: 175 | PP13: 190 | PQ13: 195 | PR13: 191 | PS13: 201 | PT13: 201 | PU13: 201 | PV13: 197 | PW13: 196 | PX13: 193 | PY13: 208 | PZ13: 202 | QA13: 193 | QB13: 193 | QC13: 197 | QD13: 197 | QE13: 191 | QF13: 195 | QG13: 197 | QH13: 195 | QI13: 205 | QJ13: 205 | QK13: 203 | QL13: 203 | QM13: 198 | QN13: 194 | QO13: 195 | QP13: 198 | QQ13: 204 | QR13: 194 | QS13: 176 | QT13: 199 | QU13: 188 | QV13: 194 | QW13: 199 | QX13: 205 | QY13: 205 | QZ13: 197 | RA13: 200 | RB13: 203 | RC13: 203 | RD13: 205 | RE13: 178 | RF13: 203 | RG13: 198 | RH13: 201 | RI13: 204 | RJ13: 203 | RK13: 200 | RL13: 203 | RM13: 198 | RN13: 189 | RO13: 202 | RP13: 203 | RQ13: 198 | RR13: 189 | RS13: 182 | RT13: 176 | RU13: 204 | RV13: 165 | RW13: 192 | RX13: 188 | RY13: 187 | RZ13: 178 | SA13: 174 | SB13: 190 | SC13: 199 | SD13: 180 | SE13: 182 | SF13: 159 | SG13: 190 | SH13: 182 | SI13: 185 | SJ13: 190 | SK13: 197 | SL13: 181 | SM13: 194 | SN13: 201 | SO13: 202 | SP13: 197 | SQ13: 196 | SR13: 180 | SS13: 174 | ST13: 186 | SU13: 173 | SV13: 203 | SW13: 174 | SX13: 198 | SY13: 204 | SZ13: 204 | TA13: 163 | TB13: 168 | TC13: 182 | TD13: 187 | TE13: 185 | TF13: 194 | TG13: 198 | TH13: 163 | TI13: 175 | TJ13: 208 | TK13: 167 | TL13: 174 | TM13: 191 | TN13: 183 | TO13: 201 | TP13: 180 | TQ13: 185 | TR13: 192 | TS13: 185 | TT13: 196 | TU13: 192 | TV13: 178 | TW13: 182 | TX13: 176 | TY13: 186 | TZ13: 177 | UA13: 165 | UB13: 173 | UC13: 169 | UD13: 187 | UE13: 176 | UF13: 181 | UG13: 185 | UH13: 203 | UI13: 191 | UJ13: 202 | UK13: 204 | UL13: 206 | UM13: 201 | UN13: 207 | UO13: 208 | UP13: 203 | UQ13: 202 | UR13: 200 | US13: 175 | UT13: 199 | UU13: 205 | UV13: 185 | UW13: 197 | UX13: 202 | UY13: 186 | UZ13: 206 | VA13: 194 | VB13: 197 | VC13: 206 | VD13: 185 | VE13: 151 | VF13: 156 | VG13: 185 | VH13: 185 | VI13: 185 | VJ13: 163 | VK13: 187 | VL13: 191 | VM13: 176 | VN13: 185 | VO13: 194 | VP13: 155 | VQ13: 159 | VR13: 149 | VS13: 162 | VT13: 171 | VU13: 180 | VV13: 155 | VW13: 199 | VX13: 176 | VY13: 197 | VZ13: 195 | WA13: 186 | WB13: 183 | WC13: 202 | WD13: 176 | WE13: 196 | WF13: 181 | WG13: 180 | WH13: 200 | WI13: 204 | WJ13: 180 | WK13: 171 | WL13: 176 | WM13: 172 | WN13: 167 | WO13: 185 | WP13: 156 | WQ13: 164 | WR13: 173 | WS13: 165 | WT13: 144 | WU13: 141 | WV13: 164 | WW13: 161 | WX13: 138 | WY13: 166 | WZ13: 166 | XA13: 151 | XB13: 199 | XC13: 200 | XD13: 202 | XE13: 200 | XF13: 208 | XG13: 201 | XH13: 205 | XI13: 198 | XJ13: 168 | XK13: 194 | XL13: 189 | XM13: 191 | XN13: 188 | XO13: 198 | XP13: 198 | XQ13: 206 | XR13: 191 | XS13: 179 | XT13: 188 | XU13: 197 | XV13: 184 | XW13: 193 | XX13: 198 | XY13: 194 | XZ13: 196 | YA13: 151 | YB13: 189 | YC13: 176 | YD13: 183 | YE13: 183 | YF13: 175 | YG13: 204 | YH13: 204 | YI13: 205 | YJ13: 180 | YK13: 195 | YL13: 203 | YM13: 207 | YN13: 206 | YO13: 203 | YP13: 187 | YQ13: 190 | YR13: 207 | YS13: 203 | YT13: 182 | YU13: 206 | YV13: 205 | YW13: 202 | YX13: 205 | YY13: 203 | YZ13: 201 | ZA13: 199 | ZB13: 202 | ZC13: 206 | ZD13: 201 | ZE13: 207 | ZF13: 192 | ZG13: 197 | ZH13: 190 | ZI13: 203 | ZJ13: 181 | ZK13: 181 | ZL13: 195 | ZM13: 187 | ZN13: 207 | ZO13: 179 | ZP13: 166 | ZQ13: 191 | ZR13: 145 | ZS13: 198 | ZT13: 197 | ZU13: 200 | ZV13: 176 | ZW13: 182 | ZX13: 169 | ZY13: 181 | ZZ13: 194 | AAA13: 196 | AAB13: 195 | AAC13: 196 | AAD13: 191 | AAE13: 192 | AAF13: 201 | AAG13: 196 | AAH13: 203 | AAI13: 196 | AAJ13: 200 | AAK13: 207 | AAL13: 198 | AAM13: 203 | AAN13: 207 | AAO13: 174 | AAP13: 176 | AAQ13: 198 | AAR13: 174 | AAS13: 205 | AAT13: 198 | AAU13: 205 | AAV13: 203 | AAW13: 204 | AAX13: 198 | AAY13: 175 | AAZ13: 196 | ABA13: 205 | ABB13: 205 | ABC13: 202 | ABD13: 206 | ABE13: 194 | ABF13: 204 | ABG13: 205 | ABH13: 198 | ABI13: 205 | ABJ13: 202 | ABK13: 201 | ABL13: 191 | ABM13: 204 | ABN13: 205 | ABO13: 207 | ABP13: 205 | ABQ13: 195 | ABR13: 200 | ABS13: 183 | ABT13: 205 | ABU13: 203 | ABV13: 200 | ABW13: 198 | ABX13: 206 | ABY13: 203 | ABZ13: 180 | ACA13: 201 | ACB13: 189 | ACC13: 191 | ACD13: 184 | ACE13: 202 | ACF13: 207 | ACG13: 204 | ACH13: 198 | ACI13: 204 | ACJ13: 183 | ACK13: 200 | ACL13: 200 | ACM13: 203 | ACN13: 207 | ACO13: 191 | ACP13: 185 | ACQ13: 185 | ACR13: 196 | ACS13: 148 | ACT13: 138 | ACU13: 154 | ACV13: 157 | ACW13: 184 | ACX13: 169 | ACY13: 199 | ACZ13: 197 | ADA13: 192 | ADB13: 204 | ADC13: 205 | ADD13: 196 | ADE13: 189 | ADF13: 206 | ADG13: 201 | ADH13: 196 | ADI13: 198 | ADJ13: 204 | ADK13: 176 | ADL13: 156 | ADM13: 198 | ADN13: 169 | ADO13: 182 | ADP13: 190 | ADQ13: 193 | ADR13: 199 | ADS13: 191 | ADT13: 187 | ADU13: 172 | ADV13: 184 | ADW13: 180 | ADX13: 187 | ADY13: 196 | ADZ13: 204 | AEA13: 175 | AEB13: 202 | AEC13: 206 | AED13: 188 | AEE13: 195 | AEF13: 194 | AEG13: 197 | AEH13: 194 | AEI13: 196 | AEJ13: 204 | AEK13: 205 | AEL13: 205 | AEM13: 196 | AEN13: 189 | AEO13: 203 | AEP13: 203 | AEQ13: 202 | AER13: 197 | AES13: 177 | AET13: 166 | AEU13: 193 | AEV13: 186 | AEW13: 187 | AEX13: 188 | AEY13: 181 | AEZ13: 186 | AFA13: 208 | AFB13: 195 | AFC13: 210 | AFD13: 208 | AFE13: 206 | AFF13: 201 | AFG13: 204 | AFH13: 206 | AFI13: 195 | AFJ13: 204 | AFK13: 189 | AFL13: 185 | AFM13: 184 | AFN13: 203 | AFO13: 168 | AFP13: 190 | AFQ13: 187 | AFR13: 193 | AFS13: 181 | AFT13: 178 | AFU13: 186 | AFV13: 187 | AFW13: 193 | AFX13: 184 | AFY13: 189 | AFZ13: 184 | AGA13: 184 | AGB13: 204 | AGC13: 196 | AGD13: 169
A14: 0504 | B14: =COUNTIF(Лист1!$B$2:$B$77501,A14) -> 80 | C14: 163 | D14: 180 | E14: 163 | F14: 177 | G14: 176 | H14: 188 | I14: 182 | J14: 176 | K14: 179 | L14: 165 | M14: 177 | N14: 0 | O14: 187 | P14: 183 | Q14: 175 | R14: 182 | S14: 182 | T14: 177 | U14: 185 | V14: 170 | W14: 187 | X14: 183 | Y14: 170 | Z14: 174 | AA14: 180 | AB14: 174 | AC14: 175 | AD14: 188 | AE14: 185 | AF14: 179 | AG14: 144 | AH14: 161 | AI14: 151 | AJ14: 154 | AK14: 165 | AL14: 185 | AM14: 165 | AN14: 124 | AO14: 156 | AP14: 174 | AQ14: 188 | AR14: 167 | AS14: 184 | AT14: 182 | AU14: 173 | AV14: 178 | AW14: 158 | AX14: 146 | AY14: 176 | AZ14: 138 | BA14: 139 | BB14: 143 | BC14: 179 | BD14: 158 | BE14: 181 | BF14: 181 | BG14: 180 | BH14: 150 | BI14: 164 | BJ14: 169 | BK14: 159 | BL14: 174 | BM14: 139 | BN14: 174 | BO14: 169 | BP14: 150 | BQ14: 182 | BR14: 182 | BS14: 163 | BT14: 145 | BU14: 174 | BV14: 185 | BW14: 183 | BX14: 169 | BY14: 190 | BZ14: 180 | CA14: 165 | CB14: 188 | CC14: 157 | CD14: 167 | CE14: 187 | CF14: 182 | CG14: 188 | CH14: 180 | CI14: 194 | CJ14: 173 | CK14: 179 | CL14: 158 | CM14: 171 | CN14: 184 | CO14: 163 | CP14: 183 | CQ14: 188 | CR14: 190 | CS14: 178 | CT14: 179 | CU14: 188 | CV14: 181 | CW14: 173 | CX14: 192 | CY14: 192 | CZ14: 194 | DA14: 184 | DB14: 180 | DC14: 160 | DD14: 165 | DE14: 184 | DF14: 177 | DG14: 176 | DH14: 153 | DI14: 160 | DJ14: 171 | DK14: 181 | DL14: 170 | DM14: 184 | DN14: 166 | DO14: 183 | DP14: 142 | DQ14: 142 | DR14: 184 | DS14: 154 | DT14: 179 | DU14: 145 | DV14: 148 | DW14: 163 | DX14: 129 | DY14: 179 | DZ14: 183 | EA14: 147 | EB14: 144 | EC14: 170 | ED14: 185 | EE14: 106 | EF14: 149 | EG14: 175 | EH14: 156 | EI14: 135 | EJ14: 146 | EK14: 147 | EL14: 168 | EM14: 163 | EN14: 193 | EO14: 178 | EP14: 169 | EQ14: 171 | ER14: 147 | ES14: 157 | ET14: 149 | EU14: 179 | EV14: 153 | EW14: 179 | EX14: 157 | EY14: 175 | EZ14: 156 | FA14: 159 | FB14: 134 | FC14: 159 | FD14: 123 | FE14: 149 | FF14: 134 | FG14: 153 | FH14: 169 | FI14: 163 | FJ14: 154 | FK14: 169 | FL14: 151 | FM14: 165 | FN14: 172 | FO14: 135 | FP14: 161 | FQ14: 149 | FR14: 155 | FS14: 157 | FT14: 122 | FU14: 130 | FV14: 128 | FW14: 160 | FX14: 156 | FY14: 168 | FZ14: 154 | GA14: 174 | GB14: 153 | GC14: 152 | GD14: 129 | GE14: 162 | GF14: 139 | GG14: 126 | GH14: 155 | GI14: 112 | GJ14: 162 | GK14: 169 | GL14: 161 | GM14: =IF(GM$1=$A14,,GM$2+$B14) -> 157 | GN14: 171 | GO14: 138 | GP14: 156 | GQ14: 173 | GR14: 160 | GS14: 151 | GT14: 145 | GU14: 141 | GV14: 131 | GW14: 142 | GX14: 153 | GY14: 158 | GZ14: 155 | HA14: 157 | HB14: 167 | HC14: 154 | HD14: 143 | HE14: 165 | HF14: 162 | HG14: 159 | HH14: 181 | HI14: 175 | HJ14: 191 | HK14: 183 | HL14: 183 | HM14: 162 | HN14: 172 | HO14: 147 | HP14: 160 | HQ14: 176 | HR14: 161 | HS14: 179 | HT14: 172 | HU14: 166 | HV14: 184 | HW14: 183 | HX14: 175 | HY14: 149 | HZ14: 173 | IA14: 161 | IB14: 182 | IC14: 180 | ID14: 182 | IE14: 183 | IF14: 186 | IG14: 189 | IH14: 186 | II14: 177 | IJ14: 188 | IK14: 192 | IL14: 192 | IM14: 182 | IN14: 165 | IO14: 179 | IP14: 173 | IQ14: 161 | IR14: 152 | IS14: 171 | IT14: 185 | IU14: 163 | IV14: 145 | IW14: 157 | IX14: 158 | IY14: 164 | IZ14: 158 | JA14: 160 | JB14: 152 | JC14: 170 | JD14: 156 | JE14: =IF(JE$1=$A14,,JE$2+$B14) -> 163 | JF14: 120 | JG14: 143 | JH14: 149 | JI14: 151 | JJ14: 130 | JK14: 186 | JL14: 163 | JM14: 165 | JN14: 175 | JO14: 157 | JP14: 176 | JQ14: 168 | JR14: 169 | JS14: 141 | JT14: 170 | JU14: 167 | JV14: 154 | JW14: 180 | JX14: 170 | JY14: 184 | JZ14: 175 | KA14: 180 | KB14: 172 | KC14: 174 | KD14: 168 | KE14: 179 | KF14: 152 | KG14: 168 | KH14: 164 | KI14: 159 | KJ14: 145 | KK14: 189 | KL14: 174 | KM14: 191 | KN14: 172 | KO14: 187 | KP14: 185 | KQ14: 182 | KR14: 180 | KS14: 191 | KT14: 190 | KU14: 189 | KV14: 191 | KW14: 171 | KX14: 167 | KY14: 163 | KZ14: 150 | LA14: 175 | LB14: 186 | LC14: 184 | LD14: 190 | LE14: 177 | LF14: 170 | LG14: 176 | LH14: 186 | LI14: 173 | LJ14: 172 | LK14: 168 | LL14: 144 | LM14: 162 | LN14: 193 | LO14: 188 | LP14: 174 | LQ14: 138 | LR14: 151 | LS14: 163 | LT14: 141 | LU14: 176 | LV14: 172 | LW14: 174 | LX14: 163 | LY14: 148 | LZ14: 187 | MA14: 166 | MB14: 179 | MC14: 174 | MD14: 171 | ME14: 181 | MF14: 164 | MG14: 177 | MH14: 186 | MI14: 152 | MJ14: 173 | MK14: 186 | ML14: 179 | MM14: 187 | MN14: 186 | MO14: 154 | MP14: 135 | MQ14: 185 | MR14: 167 | MS14: 179 | MT14: 170 | MU14: 173 | MV14: 164 | MW14: 162 | MX14: 174 | MY14: 182 | MZ14: 175 | NA14: 145 | NB14: 165 | NC14: 166 | ND14: 178 | NE14: 189 | NF14: 191 | NG14: 190 | NH14: 186 | NI14: 188 | NJ14: 191 | NK14: 176 | NL14: 161 | NM14: 137 | NN14: 173 | NO14: 158 | NP14: 167 | NQ14: 168 | NR14: 173 | NS14: 181 | NT14: 190 | NU14: 122 | NV14: 146 | NW14: 167 | NX14: 165 | NY14: 154 | NZ14: 179 | OA14: 173 | OB14: 166 | OC14: =IF(OC$1=$A14,,OC$2+$B14) -> 137 | OD14: 133 | OE14: 144 | OF14: 170 | OG14: 168 | OH14: 156 | OI14: 144 | OJ14: 180 | OK14: 134 | OL14: 159 | OM14: 160 | ON14: 146 | OO14: 164 | OP14: 161 | OQ14: 164 | OR14: 165 | OS14: 168 | OT14: 176 | OU14: 159 | OV14: 165 | OW14: 160 | OX14: 182 | OY14: 177 | OZ14: 172 | PA14: 174 | PB14: 163 | PC14: 175 | PD14: 173 | PE14: 161 | PF14: 164 | PG14: 160 | PH14: 167 | PI14: 142 | PJ14: 169 | PK14: 163 | PL14: 154 | PM14: 159 | PN14: 174 | PO14: 158 | PP14: 173 | PQ14: 178 | PR14: 174 | PS14: 184 | PT14: 184 | PU14: 184 | PV14: 180 | PW14: 179 | PX14: 176 | PY14: 191 | PZ14: 185 | QA14: 176 | QB14: 176 | QC14: 180 | QD14: 180 | QE14: 174 | QF14: 178 | QG14: 180 | QH14: 178 | QI14: 188 | QJ14: 188 | QK14: 186 | QL14: 186 | QM14: 181 | QN14: 177 | QO14: 178 | QP14: 181 | QQ14: 187 | QR14: 177 | QS14: 159 | QT14: 182 | QU14: 171 | QV14: 177 | QW14: 182 | QX14: 188 | QY14: 188 | QZ14: 180 | RA14: 183 | RB14: 186 | RC14: 186 | RD14: 188 | RE14: 161 | RF14: 186 | RG14: 181 | RH14: 184 | RI14: 187 | RJ14: 186 | RK14: 183 | RL14: 186 | RM14: 181 | RN14: 172 | RO14: 185 | RP14: 186 | RQ14: 181 | RR14: 172 | RS14: 165 | RT14: 159 | RU14: 187 | RV14: 148 | RW14: 175 | RX14: 171 | RY14: 170 | RZ14: 161 | SA14: 157 | SB14: 173 | SC14: 182 | SD14: 163 | SE14: 165 | SF14: 142 | SG14: 173 | SH14: 165 | SI14: 168 | SJ14: 173 | SK14: 180 | SL14: 164 | SM14: 177 | SN14: 184 | SO14: 185 | SP14: 180 | SQ14: 179 | SR14: 163 | SS14: 157 | ST14: 169 | SU14: 156 | SV14: 186 | SW14: 157 | SX14: 181 | SY14: 187 | SZ14: 187 | TA14: =IF(TA$1=$A14,,TA$2+$B14) -> 146 | TB14: 151 | TC14: 165 | TD14: 170 | TE14: 168 | TF14: 177 | TG14: 181 | TH14: 146 | TI14: 158 | TJ14: 191 | TK14: 150 | TL14: 157 | TM14: 174 | TN14: 166 | TO14: 184 | TP14: 163 | TQ14: 168 | TR14: 175 | TS14: 168 | TT14: 179 | TU14: 175 | TV14: 161 | TW14: 165 | TX14: 159 | TY14: 169 | TZ14: 160 | UA14: 148 | UB14: 156 | UC14: 152 | UD14: 170 | UE14: 159 | UF14: 164 | UG14: 168 | UH14: 186 | UI14: 174 | UJ14: 185 | UK14: 187 | UL14: 189 | UM14: 184 | UN14: 190 | UO14: 191 | UP14: 186 | UQ14: 185 | UR14: 183 | US14: 158 | UT14: 182 | UU14: 188 | UV14: 168 | UW14: 180 | UX14: 185 | UY14: 169 | UZ14: 189 | VA14: 177 | VB14: 180 | VC14: 189 | VD14: 168 | VE14: 134 | VF14: 139 | VG14: 168 | VH14: 168 | VI14: 168 | VJ14: 146 | VK14: 170 | VL14: 174 | VM14: 159 | VN14: 168 | VO14: 177 | VP14: 138 | VQ14: 142 | VR14: 132 | VS14: 145 | VT14: 154 | VU14: 163 | VV14: 138 | VW14: 182 | VX14: 159 | VY14: 180 | VZ14: 178 | WA14: 169 | WB14: 166 | WC14: 185 | WD14: 159 | WE14: 179 | WF14: 164 | WG14: 163 | WH14: 183 | WI14: 187 | WJ14: 163 | WK14: 154 | WL14: 159 | WM14: 155 | WN14: 150 | WO14: 168 | WP14: 139 | WQ14: 147 | WR14: 156 | WS14: 148 | WT14: 127 | WU14: 124 | WV14: 147 | WW14: 144 | WX14: 121 | WY14: 149 | WZ14: 149 | XA14: 134 | XB14: 182 | XC14: 183 | XD14: 185 | XE14: 183 | XF14: 191 | XG14: 184 | XH14: 188 | XI14: 181 | XJ14: 151 | XK14: 177 | XL14: 172 | XM14: 174 | XN14: 171 | XO14: 181 | XP14: 181 | XQ14: 189 | XR14: 174 | XS14: 162 | XT14: 171 | XU14: 180 | XV14: 167 | XW14: 176 | XX14: 181 | XY14: =IF(XY$1=$A14,,XY$2+$B14) -> 177 | XZ14: 179 | YA14: 134 | YB14: 172 | YC14: 159 | YD14: 166 | YE14: 166 | YF14: 158 | YG14: 187 | YH14: 187 | YI14: 188 | YJ14: 163 | YK14: 178 | YL14: 186 | YM14: 190 | YN14: 189 | YO14: 186 | YP14: 170 | YQ14: 173 | YR14: 190 | YS14: 186 | YT14: 165 | YU14: 189 | YV14: 188 | YW14: 185 | YX14: 188 | YY14: 186 | YZ14: 184 | ZA14: 182 | ZB14: 185 | ZC14: 189 | ZD14: 184 | ZE14: 190 | ZF14: 175 | ZG14: 180 | ZH14: 173 | ZI14: 186 | ZJ14: 164 | ZK14: 164 | ZL14: 178 | ZM14: 170 | ZN14: 190 | ZO14: 162 | ZP14: 149 | ZQ14: 174 | ZR14: 128 | ZS14: 181 | ZT14: 180 | ZU14: 183 | ZV14: 159 | ZW14: 165 | ZX14: 152 | ZY14: 164 | ZZ14: 177 | AAA14: 179 | AAB14: 178 | AAC14: 179 | AAD14: 174 | AAE14: 175 | AAF14: 184 | AAG14: 179 | AAH14: 186 | AAI14: 179 | AAJ14: 183 | AAK14: 190 | AAL14: 181 | AAM14: 186 | AAN14: 190 | AAO14: 157 | AAP14: 159 | AAQ14: 181 | AAR14: 157 | AAS14: 188 | AAT14: 181 | AAU14: 188 | AAV14: 186 | AAW14: 187 | AAX14: 181 | AAY14: 158 | AAZ14: 179 | ABA14: 188 | ABB14: 188 | ABC14: 185 | ABD14: 189 | ABE14: 177 | ABF14: 187 | ABG14: 188 | ABH14: 181 | ABI14: 188 | ABJ14: 185 | ABK14: 184 | ABL14: 174 | ABM14: 187 | ABN14: 188 | ABO14: 190 | ABP14: 188 | ABQ14: 178 | ABR14: 183 | ABS14: 166 | ABT14: 188 | ABU14: 186 | ABV14: 183 | ABW14: 181 | ABX14: 189 | ABY14: 186 | ABZ14: 163 | ACA14: 184 | ACB14: 172 | ACC14: 174 | ACD14: 167 | ACE14: 185 | ACF14: 190 | ACG14: 187 | ACH14: 181 | ACI14: 187 | ACJ14: 166 | ACK14: 183 | ACL14: 183 | ACM14: 186 | ACN14: 190 | ACO14: 174 | ACP14: 168 | ACQ14: 168 | ACR14: 179 | ACS14: 131 | ACT14: 121 | ACU14: 137 | ACV14: 140 | ACW14: =IF(ACW$1=$A14,,ACW$2+$B14) -> 167 | ACX14: 152 | ACY14: 182 | ACZ14: 180 | ADA14: 175 | ADB14: 187 | ADC14: 188 | ADD14: 179 | ADE14: 172 | ADF14: 189 | ADG14: 184 | ADH14: 179 | ADI14: 181 | ADJ14: 187 | ADK14: 159 | ADL14: 139 | ADM14: 181 | ADN14: 152 | ADO14: 165 | ADP14: 173 | ADQ14: 176 | ADR14: 182 | ADS14: 174 | ADT14: 170 | ADU14: 155 | ADV14: 167 | ADW14: 163 | ADX14: 170 | ADY14: 179 | ADZ14: 187 | AEA14: 158 | AEB14: 185 | AEC14: 189 | AED14: 171 | AEE14: 178 | AEF14: 177 | AEG14: 180 | AEH14: 177 | AEI14: 179 | AEJ14: 187 | AEK14: 188 | AEL14: 188 | AEM14: 179 | AEN14: 172 | AEO14: 186 | AEP14: 186 | AEQ14: 185 | AER14: 180 | AES14: 160 | AET14: 149 | AEU14: 176 | AEV14: 169 | AEW14: 170 | AEX14: 171 | AEY14: 164 | AEZ14: 169 | AFA14: 191 | AFB14: 178 | AFC14: 193 | AFD14: 191 | AFE14: 189 | AFF14: 184 | AFG14: 187 | AFH14: 189 | AFI14: 178 | AFJ14: 187 | AFK14: 172 | AFL14: 168 | AFM14: 167 | AFN14: 186 | AFO14: 151 | AFP14: 173 | AFQ14: 170 | AFR14: 176 | AFS14: 164 | AFT14: 161 | AFU14: 169 | AFV14: 170 | AFW14: 176 | AFX14: 167 | AFY14: 172 | AFZ14: 167 | AGA14: 167 | AGB14: 187 | AGC14: 179 | AGD14: 152
A15: 0709 | B15: =COUNTIF(Лист1!$B$2:$B$77501,A15) -> 107 | C15: 190 | D15: 207 | E15: 190 | F15: 204 | G15: 203 | H15: 215 | I15: 209 | J15: 203 | K15: 206 | L15: 192 | M15: 204 | N15: 187 | O15: 0 | P15: 210 | Q15: 202 | R15: 209 | S15: 209 | T15: 204 | U15: 212 | V15: 197 | W15: 214 | X15: 210 | Y15: 197 | Z15: 201 | AA15: 207 | AB15: 201 | AC15: 202 | AD15: 215 | AE15: 212 | AF15: 206 | AG15: 171 | AH15: 188 | AI15: 178 | AJ15: 181 | AK15: 192 | AL15: 212 | AM15: 192 | AN15: 151 | AO15: 183 | AP15: 201 | AQ15: 215 | AR15: 194 | AS15: 211 | AT15: 209 | AU15: 200 | AV15: 205 | AW15: 185 | AX15: 173 | AY15: 203 | AZ15: 165 | BA15: 166 | BB15: 170 | BC15: 206 | BD15: 185 | BE15: 208 | BF15: 208 | BG15: 207 | BH15: 177 | BI15: 191 | BJ15: 196 | BK15: 186 | BL15: 201 | BM15: 166 | BN15: 201 | BO15: 196 | BP15: 177 | BQ15: 209 | BR15: 209 | BS15: 190 | BT15: 172 | BU15: 201 | BV15: 212 | BW15: 210 | BX15: 196 | BY15: 217 | BZ15: 207 | CA15: 192 | CB15: 215 | CC15: 184 | CD15: 194 | CE15: 214 | CF15: 209 | CG15: 215 | CH15: 207 | CI15: 221 | CJ15: 200 | CK15: 206 | CL15: 185 | CM15: 198 | CN15: 211 | CO15: 190 | CP15: 210 | CQ15: 215 | CR15: 217 | CS15: 205 | CT15: 206 | CU15: 215 | CV15: 208 | CW15: 200 | CX15: 219 | CY15: 219 | CZ15: 221 | DA15: 211 | DB15: 207 | DC15: 187 | DD15: 192 | DE15: 211 | DF15: 204 | DG15: 203 | DH15: 180 | DI15: 187 | DJ15: 198 | DK15: 208 | DL15: 197 | DM15: 211 | DN15: 193 | DO15: 210 | DP15: 169 | DQ15: 169 | DR15: 211 | DS15: 181 | DT15: 206 | DU15: 172 | DV15: 175 | DW15: 190 | DX15: 156 | DY15: 206 | DZ15: 210 | EA15: 174 | EB15: =IF(EB$1=$A15,,EB$2+$B15) -> 171 | EC15: 197 | ED15: 212 | EE15: 133 | EF15: 176 | EG15: 202 | EH15: 183 | EI15: 162 | EJ15: 173 | EK15: 174 | EL15: 195 | EM15: 190 | EN15: 220 | EO15: 205 | EP15: 196 | EQ15: 198 | ER15: 174 | ES15: 184 | ET15: 176 | EU15: 206 | EV15: 180 | EW15: 206 | EX15: 184 | EY15: 202 | EZ15: 183 | FA15: 186 | FB15: 161 | FC15: 186 | FD15: 150 | FE15: 176 | FF15: 161 | FG15: 180 | FH15: 196 | FI15: 190 | FJ15: 181 | FK15: 196 | FL15: 178 | FM15: 192 | FN15: 199 | FO15: 162 | FP15: 188 | FQ15: 176 | FR15: 182 | FS15: 184 | FT15: 149 | FU15: 157 | FV15: 155 | FW15: 187 | FX15: 183 | FY15: 195 | FZ15: 181 | GA15: 201 | GB15: 180 | GC15: 179 | GD15: 156 | GE15: 189 | GF15: 166 | GG15: 153 | GH15: 182 | GI15: 139 | GJ15: 189 | GK15: 196 | GL15: 188 | GM15: 184 | GN15: 198 | GO15: 165 | GP15: 183 | GQ15: 200 | GR15: 187 | GS15: 178 | GT15: 172 | GU15: 168 | GV15: 158 | GW15: 169 | GX15: 180 | GY15: 185 | GZ15: 182 | HA15: 184 | HB15: 194 | HC15: 181 | HD15: 170 | HE15: 192 | HF15: 189 | HG15: 186 | HH15: 208 | HI15: 202 | HJ15: 218 | HK15: 210 | HL15: 210 | HM15: 189 | HN15: 199 | HO15: 174 | HP15: 187 | HQ15: 203 | HR15: 188 | HS15: 206 | HT15: 199 | HU15: 193 | HV15: 211 | HW15: 210 | HX15: 202 | HY15: 176 | HZ15: 200 | IA15: 188 | IB15: 209 | IC15: 207 | ID15: 209 | IE15: 210 | IF15: 213 | IG15: 216 | IH15: 213 | II15: 204 | IJ15: 215 | IK15: 219 | IL15: 219 | IM15: 209 | IN15: 192 | IO15: 206 | IP15: 200 | IQ15: 188 | IR15: 179 | IS15: 198 | IT15: 212 | IU15: 190 | IV15: 172 | IW15: 184 | IX15: 185 | IY15: 191 | IZ15: 185 | JA15: 187 | JB15: 179 | JC15: =IF(JC$1=$A15,,JC$2+$B15) -> 197 | JD15: 183 | JE15: 190 | JF15: 147 | JG15: 170 | JH15: 176 | JI15: 178 | JJ15: 157 | JK15: 213 | JL15: 190 | JM15: 192 | JN15: 202 | JO15: 184 | JP15: 203 | JQ15: 195 | JR15: 196 | JS15: 168 | JT15: 197 | JU15: 194 | JV15: 181 | JW15: 207 | JX15: 197 | JY15: 211 | JZ15: 202 | KA15: 207 | KB15: 199 | KC15: 201 | KD15: 195 | KE15: 206 | KF15: 179 | KG15: 195 | KH15: 191 | KI15: 186 | KJ15: 172 | KK15: 216 | KL15: 201 | KM15: 218 | KN15: 199 | KO15: 214 | KP15: 212 | KQ15: 209 | KR15: 207 | KS15: 218 | KT15: 217 | KU15: 216 | KV15: 218 | KW15: 198 | KX15: 194 | KY15: 190 | KZ15: 177 | LA15: 202 | LB15: 213 | LC15: 211 | LD15: 217 | LE15: 204 | LF15: 197 | LG15: 203 | LH15: 213 | LI15: 200 | LJ15: 199 | LK15: 195 | LL15: 171 | LM15: 189 | LN15: 220 | LO15: 215 | LP15: 201 | LQ15: 165 | LR15: 178 | LS15: 190 | LT15: 168 | LU15: 203 | LV15: 199 | LW15: 201 | LX15: 190 | LY15: 175 | LZ15: 214 | MA15: 193 | MB15: 206 | MC15: 201 | MD15: 198 | ME15: 208 | MF15: 191 | MG15: 204 | MH15: 213 | MI15: 179 | MJ15: 200 | MK15: 213 | ML15: 206 | MM15: 214 | MN15: 213 | MO15: 181 | MP15: 162 | MQ15: 212 | MR15: 194 | MS15: 206 | MT15: 197 | MU15: 200 | MV15: 191 | MW15: 189 | MX15: 201 | MY15: 209 | MZ15: 202 | NA15: 172 | NB15: 192 | NC15: 193 | ND15: 205 | NE15: 216 | NF15: 218 | NG15: 217 | NH15: 213 | NI15: 215 | NJ15: 218 | NK15: 203 | NL15: 188 | NM15: 164 | NN15: 200 | NO15: 185 | NP15: 194 | NQ15: 195 | NR15: 200 | NS15: 208 | NT15: 217 | NU15: 149 | NV15: 173 | NW15: 194 | NX15: 192 | NY15: 181 | NZ15: 206 | OA15: =IF(OA$1=$A15,,OA$2+$B15) -> 200 | OB15: 193 | OC15: 164 | OD15: 160 | OE15: 171 | OF15: 197 | OG15: 195 | OH15: 183 | OI15: 171 | OJ15: 207 | OK15: 161 | OL15: 186 | OM15: 187 | ON15: 173 | OO15: 191 | OP15: 188 | OQ15: 191 | OR15: 192 | OS15: 195 | OT15: 203 | OU15: 186 | OV15: 192 | OW15: 187 | OX15: 209 | OY15: 204 | OZ15: 199 | PA15: 201 | PB15: 190 | PC15: 202 | PD15: 200 | PE15: 188 | PF15: 191 | PG15: 187 | PH15: 194 | PI15: 169 | PJ15: 196 | PK15: 190 | PL15: 181 | PM15: 186 | PN15: 201 | PO15: 185 | PP15: 200 | PQ15: 205 | PR15: 201 | PS15: 211 | PT15: 211 | PU15: 211 | PV15: 207 | PW15: 206 | PX15: 203 | PY15: 218 | PZ15: 212 | QA15: 203 | QB15: 203 | QC15: 207 | QD15: 207 | QE15: 201 | QF15: 205 | QG15: 207 | QH15: 205 | QI15: 215 | QJ15: 215 | QK15: 213 | QL15: 213 | QM15: 208 | QN15: 204 | QO15: 205 | QP15: 208 | QQ15: 214 | QR15: 204 | QS15: 186 | QT15: 209 | QU15: 198 | QV15: 204 | QW15: 209 | QX15: 215 | QY15: 215 | QZ15: 207 | RA15: 210 | RB15: 213 | RC15: 213 | RD15: 215 | RE15: 188 | RF15: 213 | RG15: 208 | RH15: 211 | RI15: 214 | RJ15: 213 | RK15: 210 | RL15: 213 | RM15: 208 | RN15: 199 | RO15: 212 | RP15: 213 | RQ15: 208 | RR15: 199 | RS15: 192 | RT15: 186 | RU15: 214 | RV15: 175 | RW15: 202 | RX15: 198 | RY15: 197 | RZ15: 188 | SA15: 184 | SB15: 200 | SC15: 209 | SD15: 190 | SE15: 192 | SF15: 169 | SG15: 200 | SH15: 192 | SI15: 195 | SJ15: 200 | SK15: 207 | SL15: 191 | SM15: 204 | SN15: 211 | SO15: 212 | SP15: 207 | SQ15: 206 | SR15: 190 | SS15: 184 | ST15: 196 | SU15: 183 | SV15: 213 | SW15: 184 | SX15: 208 | SY15: =IF(SY$1=$A15,,SY$2+$B15) -> 214 | SZ15: 214 | TA15: 173 | TB15: 178 | TC15: 192 | TD15: 197 | TE15: 195 | TF15: 204 | TG15: 208 | TH15: 173 | TI15: 185 | TJ15: 218 | TK15: 177 | TL15: 184 | TM15: 201 | TN15: 193 | TO15: 211 | TP15: 190 | TQ15: 195 | TR15: 202 | TS15: 195 | TT15: 206 | TU15: 202 | TV15: 188 | TW15: 192 | TX15: 186 | TY15: 196 | TZ15: 187 | UA15: 175 | UB15: 183 | UC15: 179 | UD15: 197 | UE15: 186 | UF15: 191 | UG15: 195 | UH15: 213 | UI15: 201 | UJ15: 212 | UK15: 214 | UL15: 216 | UM15: 211 | UN15: 217 | UO15: 218 | UP15: 213 | UQ15: 212 | UR15: 210 | US15: 185 | UT15: 209 | UU15: 215 | UV15: 195 | UW15: 207 | UX15: 212 | UY15: 196 | UZ15: 216 | VA15: 204 | VB15: 207 | VC15: 216 | VD15: 195 | VE15: 161 | VF15: 166 | VG15: 195 | VH15: 195 | VI15: 195 | VJ15: 173 | VK15: 197 | VL15: 201 | VM15: 186 | VN15: 195 | VO15: 204 | VP15: 165 | VQ15: 169 | VR15: 159 | VS15: 172 | VT15: 181 | VU15: 190 | VV15: 165 | VW15: 209 | VX15: 186 | VY15: 207 | VZ15: 205 | WA15: 196 | WB15: 193 | WC15: 212 | WD15: 186 | WE15: 206 | WF15: 191 | WG15: 190 | WH15: 210 | WI15: 214 | WJ15: 190 | WK15: 181 | WL15: 186 | WM15: 182 | WN15: 177 | WO15: 195 | WP15: 166 | WQ15: 174 | WR15: 183 | WS15: 175 | WT15: 154 | WU15: 151 | WV15: 174 | WW15: 171 | WX15: 148 | WY15: 176 | WZ15: 176 | XA15: 161 | XB15: 209 | XC15: 210 | XD15: 212 | XE15: 210 | XF15: 218 | XG15: 211 | XH15: 215 | XI15: 208 | XJ15: 178 | XK15: 204 | XL15: 199 | XM15: 201 | XN15: 198 | XO15: 208 | XP15: 208 | XQ15: 216 | XR15: 201 | XS15: 189 | XT15: 198 | XU15: 207 | XV15: 194 | XW15: =IF(XW$1=$A15,,XW$2+$B15) -> 203 | XX15: 208 | XY15: 204 | XZ15: 206 | YA15: 161 | YB15: 199 | YC15: 186 | YD15: 193 | YE15: 193 | YF15: 185 | YG15: 214 | YH15: 214 | YI15: 215 | YJ15: 190 | YK15: 205 | YL15: 213 | YM15: 217 | YN15: 216 | YO15: 213 | YP15: 197 | YQ15: 200 | YR15: 217 | YS15: 213 | YT15: 192 | YU15: 216 | YV15: 215 | YW15: 212 | YX15: 215 | YY15: 213 | YZ15: 211 | ZA15: 209 | ZB15: 212 | ZC15: 216 | ZD15: 211 | ZE15: 217 | ZF15: 202 | ZG15: 207 | ZH15: 200 | ZI15: 213 | ZJ15: 191 | ZK15: 191 | ZL15: 205 | ZM15: 197 | ZN15: 217 | ZO15: 189 | ZP15: 176 | ZQ15: 201 | ZR15: 155 | ZS15: 208 | ZT15: 207 | ZU15: 210 | ZV15: 186 | ZW15: 192 | ZX15: 179 | ZY15: 191 | ZZ15: 204 | AAA15: 206 | AAB15: 205 | AAC15: 206 | AAD15: 201 | AAE15: 202 | AAF15: 211 | AAG15: 206 | AAH15: 213 | AAI15: 206 | AAJ15: 210 | AAK15: 217 | AAL15: 208 | AAM15: 213 | AAN15: 217 | AAO15: 184 | AAP15: 186 | AAQ15: 208 | AAR15: 184 | AAS15: 215 | AAT15: 208 | AAU15: 215 | AAV15: 213 | AAW15: 214 | AAX15: 208 | AAY15: 185 | AAZ15: 206 | ABA15: 215 | ABB15: 215 | ABC15: 212 | ABD15: 216 | ABE15: 204 | ABF15: 214 | ABG15: 215 | ABH15: 208 | ABI15: 215 | ABJ15: 212 | ABK15: 211 | ABL15: 201 | ABM15: 214 | ABN15: 215 | ABO15: 217 | ABP15: 215 | ABQ15: 205 | ABR15: 210 | ABS15: 193 | ABT15: 215 | ABU15: 213 | ABV15: 210 | ABW15: 208 | ABX15: 216 | ABY15: 213 | ABZ15: 190 | ACA15: 211 | ACB15: 199 | ACC15: 201 | ACD15: 194 | ACE15: 212 | ACF15: 217 | ACG15: 214 | ACH15: 208 | ACI15: 214 | ACJ15: 193 | ACK15: 210 | ACL15: 210 | ACM15: 213 | ACN15: 217 | ACO15: 201 | ACP15: 195 | ACQ15: 195 | ACR15: 206 | ACS15: 158 | ACT15: 148 | ACU15: =IF(ACU$1=$A15,,ACU$2+$B15) -> 164 | ACV15: 167 | ACW15: 194 | ACX15: 179 | ACY15: 209 | ACZ15: 207 | ADA15: 202 | ADB15: 214 | ADC15: 215 | ADD15: 206 | ADE15: 199 | ADF15: 216 | ADG15: 211 | ADH15: 206 | ADI15: 208 | ADJ15: 214 | ADK15: 186 | ADL15: 166 | ADM15: 208 | ADN15: 179 | ADO15: 192 | ADP15: 200 | ADQ15: 203 | ADR15: 209 | ADS15: 201 | ADT15: 197 | ADU15: 182 | ADV15: 194 | ADW15: 190 | ADX15: 197 | ADY15: 206 | ADZ15: 214 | AEA15: 185 | AEB15: 212 | AEC15: 216 | AED15: 198 | AEE15: 205 | AEF15: 204 | AEG15: 207 | AEH15: 204 | AEI15: 206 | AEJ15: 214 | AEK15: 215 | AEL15: 215 | AEM15: 206 | AEN15: 199 | AEO15: 213 | AEP15: 213 | AEQ15: 212 | AER15: 207 | AES15: 187 | AET15: 176 | AEU15: 203 | AEV15: 196 | AEW15: 197 | AEX15: 198 | AEY15: 191 | AEZ15: 196 | AFA15: 218 | AFB15: 205 | AFC15: 220 | AFD15: 218 | AFE15: 216 | AFF15: 211 | AFG15: 214 | AFH15: 216 | AFI15: 205 | AFJ15: 214 | AFK15: 199 | AFL15: 195 | AFM15: 194 | AFN15: 213 | AFO15: 178 | AFP15: 200 | AFQ15: 197 | AFR15: 203 | AFS15: 191 | AFT15: 188 | AFU15: 196 | AFV15: 197 | AFW15: 203 | AFX15: 194 | AFY15: 199 | AFZ15: 194 | AGA15: 194 | AGB15: 214 | AGC15: 206 | AGD15: 179
A16: 0710 | B16: =COUNTIF(Лист1!$B$2:$B$77501,A16) -> 103 | C16: 186 | D16: 203 | E16: 186 | F16: 200 | G16: 199 | H16: 211 | I16: 205 | J16: 199 | K16: 202 | L16: 188 | M16: 200 | N16: 183 | O16: 210 | P16: 0 | Q16: 198 | R16: 205 | S16: 205 | T16: 200 | U16: 208 | V16: 193 | W16: 210 | X16: 206 | Y16: 193 | Z16: 197 | AA16: 203 | AB16: 197 | AC16: 198 | AD16: 211 | AE16: 208 | AF16: 202 | AG16: 167 | AH16: 184 | AI16: 174 | AJ16: 177 | AK16: 188 | AL16: 208 | AM16: 188 | AN16: 147 | AO16: 179 | AP16: 197 | AQ16: 211 | AR16: 190 | AS16: 207 | AT16: 205 | AU16: 196 | AV16: 201 | AW16: 181 | AX16: 169 | AY16: 199 | AZ16: 161 | BA16: 162 | BB16: 166 | BC16: 202 | BD16: 181 | BE16: 204 | BF16: 204 | BG16: 203 | BH16: 173 | BI16: 187 | BJ16: 192 | BK16: 182 | BL16: 197 | BM16: 162 | BN16: 197 | BO16: =IF(BO$1=$A16,,BO$2+$B16) -> 192 | BP16: 173 | BQ16: 205 | BR16: 205 | BS16: 186 | BT16: 168 | BU16: 197 | BV16: 208 | BW16: 206 | BX16: 192 | BY16: 213 | BZ16: 203 | CA16: 188 | CB16: 211 | CC16: 180 | CD16: 190 | CE16: 210 | CF16: 205 | CG16: 211 | CH16: 203 | CI16: 217 | CJ16: 196 | CK16: 202 | CL16: 181 | CM16: 194 | CN16: 207 | CO16: 186 | CP16: 206 | CQ16: 211 | CR16: 213 | CS16: 201 | CT16: 202 | CU16: 211 | CV16: 204 | CW16: 196 | CX16: 215 | CY16: 215 | CZ16: 217 | DA16: 207 | DB16: 203 | DC16: 183 | DD16: 188 | DE16: 207 | DF16: 200 | DG16: 199 | DH16: 176 | DI16: 183 | DJ16: 194 | DK16: 204 | DL16: 193 | DM16: 207 | DN16: 189 | DO16: 206 | DP16: 165 | DQ16: 165 | DR16: 207 | DS16: 177 | DT16: 202 | DU16: 168 | DV16: 171 | DW16: 186 | DX16: 152 | DY16: 202 | DZ16: 206 | EA16: 170 | EB16: 167 | EC16: 193 | ED16: 208 | EE16: 129 | EF16: 172 | EG16: 198 | EH16: 179 | EI16: 158 | EJ16: 169 | EK16: 170 | EL16: 191 | EM16: 186 | EN16: 216 | EO16: 201 | EP16: 192 | EQ16: 194 | ER16: 170 | ES16: 180 | ET16: 172 | EU16: 202 | EV16: 176 | EW16: 202 | EX16: 180 | EY16: 198 | EZ16: 179 | FA16: 182 | FB16: 157 | FC16: 182 | FD16: 146 | FE16: 172 | FF16: 157 | FG16: 176 | FH16: 192 | FI16: 186 | FJ16: 177 | FK16: 192 | FL16: 174 | FM16: 188 | FN16: 195 | FO16: 158 | FP16: 184 | FQ16: 172 | FR16: 178 | FS16: 180 | FT16: 145 | FU16: 153 | FV16: 151 | FW16: 183 | FX16: 179 | FY16: 191 | FZ16: 177 | GA16: 197 | GB16: 176 | GC16: 175 | GD16: 152 | GE16: 185 | GF16: 162 | GG16: 149 | GH16: 178 | GI16: 135 | GJ16: 185 | GK16: 192 | GL16: 184 | GM16: 180 | GN16: 194 | GO16: 161 | GP16: 179 | GQ16: 196 | GR16: 183 | GS16: 174 | GT16: 168 | GU16: 164 | GV16: 154 | GW16: 165 | GX16: 176 | GY16: 181 | GZ16: 178 | HA16: 180 | HB16: 190 | HC16: 177 | HD16: 166 | HE16: 188 | HF16: 185 | HG16: 182 | HH16: 204 | HI16: 198 | HJ16: 214 | HK16: 206 | HL16: 206 | HM16: 185 | HN16: 195 | HO16: 170 | HP16: 183 | HQ16: 199 | HR16: 184 | HS16: 202 | HT16: 195 | HU16: 189 | HV16: 207 | HW16: 206 | HX16: 198 | HY16: 172 | HZ16: 196 | IA16: 184 | IB16: 205 | IC16: 203 | ID16: 205 | IE16: 206 | IF16: 209 | IG16: 212 | IH16: 209 | II16: 200 | IJ16: 211 | IK16: 215 | IL16: 215 | IM16: 205 | IN16: 188 | IO16: 202 | IP16: 196 | IQ16: 184 | IR16: 175 | IS16: 194 | IT16: 208 | IU16: 186 | IV16: 168 | IW16: 180 | IX16: 181 | IY16: 187 | IZ16: 181 | JA16: 183 | JB16: 175 | JC16: 193 | JD16: 179 | JE16: 186 | JF16: 143 | JG16: 166 | JH16: 172 | JI16: 174 | JJ16: 153 | JK16: 209 | JL16: 186 | JM16: 188 | JN16: 198 | JO16: 180 | JP16: 199 | JQ16: 191 | JR16: 192 | JS16: 164 | JT16: 193 | JU16: 190 | JV16: 177 | JW16: 203 | JX16: 193 | JY16: 207 | JZ16: 198 | KA16: 203 | KB16: 195 | KC16: 197 | KD16: 191 | KE16: 202 | KF16: 175 | KG16: 191 | KH16: 187 | KI16: 182 | KJ16: 168 | KK16: 212 | KL16: 197 | KM16: 214 | KN16: 195 | KO16: 210 | KP16: 208 | KQ16: 205 | KR16: 203 | KS16: 214 | KT16: 213 | KU16: 212 | KV16: 214 | KW16: 194 | KX16: 190 | KY16: 186 | KZ16: 173 | LA16: 198 | LB16: 209 | LC16: 207 | LD16: 213 | LE16: 200 | LF16: 193 | LG16: 199 | LH16: 209 | LI16: 196 | LJ16: 195 | LK16: 191 | LL16: 167 | LM16: 185 | LN16: 216 | LO16: 211 | LP16: 197 | LQ16: 161 | LR16: 174 | LS16: 186 | LT16: 164 | LU16: 199 | LV16: =IF(LV$1=$A16,,LV$2+$B16) -> 195 | LW16: 197 | LX16: 186 | LY16: 171 | LZ16: 210 | MA16: 189 | MB16: 202 | MC16: 197 | MD16: 194 | ME16: 204 | MF16: 187 | MG16: 200 | MH16: 209 | MI16: 175 | MJ16: 196 | MK16: 209 | ML16: 202 | MM16: 210 | MN16: 209 | MO16: 177 | MP16: 158 | MQ16: 208 | MR16: 190 | MS16: 202 | MT16: 193 | MU16: 196 | MV16: 187 | MW16: 185 | MX16: 197 | MY16: 205 | MZ16: 198 | NA16: 168 | NB16: 188 | NC16: 189 | ND16: 201 | NE16: 212 | NF16: 214 | NG16: 213 | NH16: 209 | NI16: 211 | NJ16: 214 | NK16: 199 | NL16: 184 | NM16: 160 | NN16: 196 | NO16: 181 | NP16: 190 | NQ16: 191 | NR16: 196 | NS16: 204 | NT16: 213 | NU16: 145 | NV16: 169 | NW16: 190 | NX16: 188 | NY16: 177 | NZ16: 202 | OA16: 196 | OB16: 189 | OC16: 160 | OD16: 156 | OE16: 167 | OF16: 193 | OG16: 191 | OH16: 179 | OI16: 167 | OJ16: 203 | OK16: 157 | OL16: 182 | OM16: 183 | ON16: 169 | OO16: 187 | OP16: 184 | OQ16: 187 | OR16: 188 | OS16: 191 | OT16: 199 | OU16: 182 | OV16: 188 | OW16: 183 | OX16: 205 | OY16: 200 | OZ16: 195 | PA16: 197 | PB16: 186 | PC16: 198 | PD16: 196 | PE16: 184 | PF16: 187 | PG16: 183 | PH16: 190 | PI16: 165 | PJ16: 192 | PK16: 186 | PL16: 177 | PM16: 182 | PN16: 197 | PO16: 181 | PP16: 196 | PQ16: 201 | PR16: 197 | PS16: 207 | PT16: 207 | PU16: 207 | PV16: 203 | PW16: 202 | PX16: 199 | PY16: 214 | PZ16: 208 | QA16: 199 | QB16: 199 | QC16: 203 | QD16: 203 | QE16: 197 | QF16: 201 | QG16: 203 | QH16: 201 | QI16: 211 | QJ16: 211 | QK16: 209 | QL16: 209 | QM16: 204 | QN16: 200 | QO16: 201 | QP16: 204 | QQ16: 210 | QR16: 200 | QS16: 182 | QT16: =IF(QT$1=$A16,,QT$2+$B16) -> 205 | QU16: 194 | QV16: 200 | QW16: 205 | QX16: 211 | QY16: 211 | QZ16: 203 | RA16: 206 | RB16: 209 | RC16: 209 | RD16: 211 | RE16: 184 | RF16: 209 | RG16: 204 | RH16: 207 | RI16: 210 | RJ16: 209 | RK16: 206 | RL16: 209 | RM16: 204 | RN16: 195 | RO16: 208 | RP16: 209 | RQ16: 204 | RR16: 195 | RS16: 188 | RT16: 182 | RU16: 210 | RV16: 171 | RW16: 198 | RX16: 194 | RY16: 193 | RZ16: 184 | SA16: 180 | SB16: 196 | SC16: 205 | SD16: 186 | SE16: 188 | SF16: 165 | SG16: 196 | SH16: 188 | SI16: 191 | SJ16: 196 | SK16: 203 | SL16: 187 | SM16: 200 | SN16: 207 | SO16: 208 | SP16: 203 | SQ16: 202 | SR16: 186 | SS16: 180 | ST16: 192 | SU16: 179 | SV16: 209 | SW16: 180 | SX16: 204 | SY16: 210 | SZ16: 210 | TA16: 169 | TB16: 174 | TC16: 188 | TD16: 193 | TE16: 191 | TF16: 200 | TG16: 204 | TH16: 169 | TI16: 181 | TJ16: 214 | TK16: 173 | TL16: 180 | TM16: 197 | TN16: 189 | TO16: 207 | TP16: 186 | TQ16: 191 | TR16: 198 | TS16: 191 | TT16: 202 | TU16: 198 | TV16: 184 | TW16: 188 | TX16: 182 | TY16: 192 | TZ16: 183 | UA16: 171 | UB16: 179 | UC16: 175 | UD16: 193 | UE16: 182 | UF16: 187 | UG16: 191 | UH16: 209 | UI16: 197 | UJ16: 208 | UK16: 210 | UL16: 212 | UM16: 207 | UN16: 213 | UO16: 214 | UP16: 209 | UQ16: 208 | UR16: 206 | US16: 181 | UT16: 205 | UU16: 211 | UV16: 191 | UW16: 203 | UX16: 208 | UY16: 192 | UZ16: 212 | VA16: 200 | VB16: 203 | VC16: 212 | VD16: 191 | VE16: 157 | VF16: 162 | VG16: 191 | VH16: 191 | VI16: 191 | VJ16: 169 | VK16: 193 | VL16: 197 | VM16: 182 | VN16: 191 | VO16: 200 | VP16: 161 | VQ16: 165 | VR16: =IF(VR$1=$A16,,VR$2+$B16) -> 155 | VS16: 168 | VT16: 177 | VU16: 186 | VV16: 161 | VW16: 205 | VX16: 182 | VY16: 203 | VZ16: 201 | WA16: 192 | WB16: 189 | WC16: 208 | WD16: 182 | WE16: 202 | WF16: 187 | WG16: 186 | WH16: 206 | WI16: 210 | WJ16: 186 | WK16: 177 | WL16: 182 | WM16: 178 | WN16: 173 | WO16: 191 | WP16: 162 | WQ16: 170 | WR16: 179 | WS16: 171 | WT16: 150 | WU16: 147 | WV16: 170 | WW16: 167 | WX16: 144 | WY16: 172 | WZ16: 172 | XA16: 157 | XB16: 205 | XC16: 206 | XD16: 208 | XE16: 206 | XF16: 214 | XG16: 207 | XH16: 211 | XI16: 204 | XJ16: 174 | XK16: 200 | XL16: 195 | XM16: 197 | XN16: 194 | XO16: 204 | XP16: 204 | XQ16: 212 | XR16: 197 | XS16: 185 | XT16: 194 | XU16: 203 | XV16: 190 | XW16: 199 | XX16: 204 | XY16: 200 | XZ16: 202 | YA16: 157 | YB16: 195 | YC16: 182 | YD16: 189 | YE16: 189 | YF16: 181 | YG16: 210 | YH16: 210 | YI16: 211 | YJ16: 186 | YK16: 201 | YL16: 209 | YM16: 213 | YN16: 212 | YO16: 209 | YP16: 193 | YQ16: 196 | YR16: 213 | YS16: 209 | YT16: 188 | YU16: 212 | YV16: 211 | YW16: 208 | YX16: 211 | YY16: 209 | YZ16: 207 | ZA16: 205 | ZB16: 208 | ZC16: 212 | ZD16: 207 | ZE16: 213 | ZF16: 198 | ZG16: 203 | ZH16: 196 | ZI16: 209 | ZJ16: 187 | ZK16: 187 | ZL16: 201 | ZM16: 193 | ZN16: 213 | ZO16: 185 | ZP16: 172 | ZQ16: 197 | ZR16: 151 | ZS16: 204 | ZT16: 203 | ZU16: 206 | ZV16: 182 | ZW16: 188 | ZX16: 175 | ZY16: 187 | ZZ16: 200 | AAA16: 202 | AAB16: 201 | AAC16: 202 | AAD16: 197 | AAE16: 198 | AAF16: 207 | AAG16: 202 | AAH16: 209 | AAI16: 202 | AAJ16: 206 | AAK16: 213 | AAL16: 204 | AAM16: 209 | AAN16: 213 | AAO16: 180 | AAP16: =IF(AAP$1=$A16,,AAP$2+$B16) -> 182 | AAQ16: 204 | AAR16: 180 | AAS16: 211 | AAT16: 204 | AAU16: 211 | AAV16: 209 | AAW16: 210 | AAX16: 204 | AAY16: 181 | AAZ16: 202 | ABA16: 211 | ABB16: 211 | ABC16: 208 | ABD16: 212 | ABE16: 200 | ABF16: 210 | ABG16: 211 | ABH16: 204 | ABI16: 211 | ABJ16: 208 | ABK16: 207 | ABL16: 197 | ABM16: 210 | ABN16: 211 | ABO16: 213 | ABP16: 211 | ABQ16: 201 | ABR16: 206 | ABS16: 189 | ABT16: 211 | ABU16: 209 | ABV16: 206 | ABW16: 204 | ABX16: 212 | ABY16: 209 | ABZ16: 186 | ACA16: 207 | ACB16: 195 | ACC16: 197 | ACD16: 190 | ACE16: 208 | ACF16: 213 | ACG16: 210 | ACH16: 204 | ACI16: 210 | ACJ16: 189 | ACK16: 206 | ACL16: 206 | ACM16: 209 | ACN16: 213 | ACO16: 197 | ACP16: 191 | ACQ16: 191 | ACR16: 202 | ACS16: 154 | ACT16: 144 | ACU16: 160 | ACV16: 163 | ACW16: 190 | ACX16: 175 | ACY16: 205 | ACZ16: 203 | ADA16: 198 | ADB16: 210 | ADC16: 211 | ADD16: 202 | ADE16: 195 | ADF16: 212 | ADG16: 207 | ADH16: 202 | ADI16: 204 | ADJ16: 210 | ADK16: 182 | ADL16: 162 | ADM16: 204 | ADN16: 175 | ADO16: 188 | ADP16: 196 | ADQ16: 199 | ADR16: 205 | ADS16: 197 | ADT16: 193 | ADU16: 178 | ADV16: 190 | ADW16: 186 | ADX16: 193 | ADY16: 202 | ADZ16: 210 | AEA16: 181 | AEB16: 208 | AEC16: 212 | AED16: 194 | AEE16: 201 | AEF16: 200 | AEG16: 203 | AEH16: 200 | AEI16: 202 | AEJ16: 210 | AEK16: 211 | AEL16: 211 | AEM16: 202 | AEN16: 195 | AEO16: 209 | AEP16: 209 | AEQ16: 208 | AER16: 203 | AES16: 183 | AET16: 172 | AEU16: 199 | AEV16: 192 | AEW16: 193 | AEX16: 194 | AEY16: 187 | AEZ16: 192 | AFA16: 214 | AFB16: 201 | AFC16: 216 | AFD16: 214 | AFE16: 212 | AFF16: 207 | AFG16: 210 | AFH16: 212 | AFI16: 201 | AFJ16: 210 | AFK16: 195 | AFL16: 191 | AFM16: 190 | AFN16: =IF(AFN$1=$A16,,AFN$2+$B16) -> 209 | AFO16: 174 | AFP16: 196 | AFQ16: 193 | AFR16: 199 | AFS16: 187 | AFT16: 184 | AFU16: 192 | AFV16: 193 | AFW16: 199 | AFX16: 190 | AFY16: 195 | AFZ16: 190 | AGA16: 190 | AGB16: 210 | AGC16: 202 | AGD16: 175
A17: 0711 | B17: =COUNTIF(Лист1!$B$2:$B$77501,A17) -> 95 | C17: 178 | D17: =IF(D$1=$A17,,D$2+$B17) -> 195 | E17: 178 | F17: 192 | G17: 191 | H17: 203 | I17: 197 | J17: 191 | K17: 194 | L17: 180 | M17: 192 | N17: 175 | O17: 202 | P17: 198 | Q17: 0 | R17: 197 | S17: 197 | T17: 192 | U17: 200 | V17: 185 | W17: 202 | X17: 198 | Y17: 185 | Z17: 189 | AA17: 195 | AB17: 189 | AC17: 190 | AD17: 203 | AE17: 200 | AF17: 194 | AG17: 159 | AH17: 176 | AI17: 166 | AJ17: 169 | AK17: 180 | AL17: 200 | AM17: 180 | AN17: 139 | AO17: 171 | AP17: 189 | AQ17: 203 | AR17: 182 | AS17: 199 | AT17: 197 | AU17: 188 | AV17: 193 | AW17: 173 | AX17: 161 | AY17: 191 | AZ17: 153 | BA17: 154 | BB17: 158 | BC17: 194 | BD17: 173 | BE17: 196 | BF17: 196 | BG17: 195 | BH17: 165 | BI17: 179 | BJ17: 184 | BK17: 174 | BL17: 189 | BM17: 154 | BN17: 189 | BO17: 184 | BP17: 165 | BQ17: 197 | BR17: 197 | BS17: 178 | BT17: 160 | BU17: 189 | BV17: 200 | BW17: 198 | BX17: 184 | BY17: 205 | BZ17: 195 | CA17: 180 | CB17: 203 | CC17: 172 | CD17: 182 | CE17: 202 | CF17: 197 | CG17: 203 | CH17: 195 | CI17: 209 | CJ17: 188 | CK17: 194 | CL17: 173 | CM17: 186 | CN17: 199 | CO17: 178 | CP17: 198 | CQ17: 203 | CR17: 205 | CS17: 193 | CT17: 194 | CU17: 203 | CV17: 196 | CW17: 188 | CX17: 207 | CY17: 207 | CZ17: 209 | DA17: 199 | DB17: 195 | DC17: 175 | DD17: 180 | DE17: 199 | DF17: 192 | DG17: 191 | DH17: 168 | DI17: 175 | DJ17: 186 | DK17: 196 | DL17: 185 | DM17: 199 | DN17: 181 | DO17: 198 | DP17: 157 | DQ17: 157 | DR17: 199 | DS17: 169 | DT17: 194 | DU17: 160 | DV17: 163 | DW17: 178 | DX17: 144 | DY17: 194 | DZ17: 198 | EA17: 162 | EB17: 159 | EC17: 185 | ED17: 200 | EE17: 121 | EF17: 164 | EG17: 190 | EH17: 171 | EI17: 150 | EJ17: 161 | EK17: 162 | EL17: 183 | EM17: 178 | EN17: 208 | EO17: 193 | EP17: 184 | EQ17: 186 | ER17: 162 | ES17: 172 | ET17: 164 | EU17: 194 | EV17: 168 | EW17: 194 | EX17: 172 | EY17: 190 | EZ17: 171 | FA17: 174 | FB17: 149 | FC17: 174 | FD17: 138 | FE17: 164 | FF17: 149 | FG17: 168 | FH17: 184 | FI17: 178 | FJ17: 169 | FK17: 184 | FL17: 166 | FM17: 180 | FN17: 187 | FO17: 150 | FP17: 176 | FQ17: 164 | FR17: 170 | FS17: 172 | FT17: 137 | FU17: 145 | FV17: 143 | FW17: 175 | FX17: 171 | FY17: 183 | FZ17: 169 | GA17: 189 | GB17: 168 | GC17: 167 | GD17: 144 | GE17: 177 | GF17: 154 | GG17: 141 | GH17: 170 | GI17: 127 | GJ17: 177 | GK17: 184 | GL17: 176 | GM17: 172 | GN17: 186 | GO17: 153 | GP17: 171 | GQ17: 188 | GR17: 175 | GS17: 166 | GT17: 160 | GU17: 156 | GV17: 146 | GW17: 157 | GX17: 168 | GY17: 173 | GZ17: 170 | HA17: 172 | HB17: 182 | HC17: 169 | HD17: 158 | HE17: 180 | HF17: 177 | HG17: 174 | HH17: 196 | HI17: 190 | HJ17: 206 | HK17: 198 | HL17: 198 | HM17: 177 | HN17: 187 | HO17: 162 | HP17: 175 | HQ17: 191 | HR17: 176 | HS17: 194 | HT17: 187 | HU17: 181 | HV17: 199 | HW17: 198 | HX17: 190 | HY17: 164 | HZ17: 188 | IA17: 176 | IB17: 197 | IC17: 195 | ID17: 197 | IE17: 198 | IF17: 201 | IG17: 204 | IH17: 201 | II17: 192 | IJ17: 203 | IK17: 207 | IL17: 207 | IM17: 197 | IN17: 180 | IO17: 194 | IP17: 188 | IQ17: 176 | IR17: 167 | IS17: 186 | IT17: 200 | IU17: 178 | IV17: 160 | IW17: 172 | IX17: 173 | IY17: 179 | IZ17: 173 | JA17: 175 | JB17: 167 | JC17: 185 | JD17: 171 | JE17: 178 | JF17: 135 | JG17: 158 | JH17: 164 | JI17: 166 | JJ17: 145 | JK17: 201 | JL17: 178 | JM17: 180 | JN17: 190 | JO17: 172 | JP17: 191 | JQ17: 183 | JR17: 184 | JS17: 156 | JT17: 185 | JU17: 182 | JV17: 169 | JW17: 195 | JX17: 185 | JY17: 199 | JZ17: 190 | KA17: 195 | KB17: 187 | KC17: 189 | KD17: 183 | KE17: 194 | KF17: 167 | KG17: 183 | KH17: 179 | KI17: 174 | KJ17: 160 | KK17: 204 | KL17: 189 | KM17: 206 | KN17: 187 | KO17: 202 | KP17: 200 | KQ17: 197 | KR17: 195 | KS17: 206 | KT17: 205 | KU17: 204 | KV17: 206 | KW17: 186 | KX17: 182 | KY17: 178 | KZ17: 165 | LA17: 190 | LB17: 201 | LC17: 199 | LD17: 205 | LE17: 192 | LF17: 185 | LG17: 191 | LH17: 201 | LI17: 188 | LJ17: 187 | LK17: 183 | LL17: 159 | LM17: 177 | LN17: 208 | LO17: 203 | LP17: 189 | LQ17: =IF(LQ$1=$A17,,LQ$2+$B17) -> 153 | LR17: 166 | LS17: 178 | LT17: 156 | LU17: 191 | LV17: 187 | LW17: 189 | LX17: 178 | LY17: 163 | LZ17: 202 | MA17: 181 | MB17: 194 | MC17: 189 | MD17: 186 | ME17: 196 | MF17: 179 | MG17: 192 | MH17: 201 | MI17: 167 | MJ17: 188 | MK17: 201 | ML17: 194 | MM17: 202 | MN17: 201 | MO17: 169 | MP17: 150 | MQ17: 200 | MR17: 182 | MS17: 194 | MT17: 185 | MU17: 188 | MV17: 179 | MW17: 177 | MX17: 189 | MY17: 197 | MZ17: 190 | NA17: 160 | NB17: 180 | NC17: 181 | ND17: 193 | NE17: 204 | NF17: 206 | NG17: 205 | NH17: 201 | NI17: 203 | NJ17: 206 | NK17: 191 | NL17: 176 | NM17: 152 | NN17: 188 | NO17: 173 | NP17: 182 | NQ17: 183 | NR17: 188 | NS17: 196 | NT17: 205 | NU17: 137 | NV17: 161 | NW17: 182 | NX17: 180 | NY17: 169 | NZ17: 194 | OA17: 188 | OB17: 181 | OC17: 152 | OD17: 148 | OE17: 159 | OF17: 185 | OG17: 183 | OH17: 171 | OI17: 159 | OJ17: 195 | OK17: 149 | OL17: 174 | OM17: 175 | ON17: 161 | OO17: 179 | OP17: 176 | OQ17: 179 | OR17: 180 | OS17: 183 | OT17: 191 | OU17: 174 | OV17: 180 | OW17: 175 | OX17: 197 | OY17: 192 | OZ17: 187 | PA17: 189 | PB17: 178 | PC17: 190 | PD17: 188 | PE17: 176 | PF17: 179 | PG17: 175 | PH17: 182 | PI17: 157 | PJ17: 184 | PK17: 178 | PL17: 169 | PM17: 174 | PN17: 189 | PO17: 173 | PP17: 188 | PQ17: 193 | PR17: 189 | PS17: 199 | PT17: 199 | PU17: 199 | PV17: 195 | PW17: 194 | PX17: 191 | PY17: 206 | PZ17: 200 | QA17: 191 | QB17: 191 | QC17: 195 | QD17: 195 | QE17: 189 | QF17: 193 | QG17: 195 | QH17: 193 | QI17: 203 | QJ17: 203 | QK17: 201 | QL17: 201 | QM17: 196 | QN17: 192 | QO17: =IF(QO$1=$A17,,QO$2+$B17) -> 193 | QP17: 196 | QQ17: 202 | QR17: 192 | QS17: 174 | QT17: 197 | QU17: 186 | QV17: 192 | QW17: 197 | QX17: 203 | QY17: 203 | QZ17: 195 | RA17: 198 | RB17: 201 | RC17: 201 | RD17: 203 | RE17: 176 | RF17: 201 | RG17: 196 | RH17: 199 | RI17: 202 | RJ17: 201 | RK17: 198 | RL17: 201 | RM17: 196 | RN17: 187 | RO17: 200 | RP17: 201 | RQ17: 196 | RR17: 187 | RS17: 180 | RT17: 174 | RU17: 202 | RV17: 163 | RW17: 190 | RX17: 186 | RY17: 185 | RZ17: 176 | SA17: 172 | SB17: 188 | SC17: 197 | SD17: 178 | SE17: 180 | SF17: 157 | SG17: 188 | SH17: 180 | SI17: 183 | SJ17: 188 | SK17: 195 | SL17: 179 | SM17: 192 | SN17: 199 | SO17: 200 | SP17: 195 | SQ17: 194 | SR17: 178 | SS17: 172 | ST17: 184 | SU17: 171 | SV17: 201 | SW17: 172 | SX17: 196 | SY17: 202 | SZ17: 202 | TA17: 161 | TB17: 166 | TC17: 180 | TD17: 185 | TE17: 183 | TF17: 192 | TG17: 196 | TH17: 161 | TI17: 173 | TJ17: 206 | TK17: 165 | TL17: 172 | TM17: 189 | TN17: 181 | TO17: 199 | TP17: 178 | TQ17: 183 | TR17: 190 | TS17: 183 | TT17: 194 | TU17: 190 | TV17: 176 | TW17: 180 | TX17: 174 | TY17: 184 | TZ17: 175 | UA17: 163 | UB17: 171 | UC17: 167 | UD17: 185 | UE17: 174 | UF17: 179 | UG17: 183 | UH17: 201 | UI17: 189 | UJ17: 200 | UK17: 202 | UL17: 204 | UM17: 199 | UN17: 205 | UO17: 206 | UP17: 201 | UQ17: 200 | UR17: 198 | US17: 173 | UT17: 197 | UU17: 203 | UV17: 183 | UW17: 195 | UX17: 200 | UY17: 184 | UZ17: 204 | VA17: 192 | VB17: 195 | VC17: 204 | VD17: 183 | VE17: 149 | VF17: 154 | VG17: 183 | VH17: 183 | VI17: 183 | VJ17: 161 | VK17: 185 | VL17: 189 | VM17: =IF(VM$1=$A17,,VM$2+$B17) -> 174 | VN17: 183 | VO17: 192 | VP17: 153 | VQ17: 157 | VR17: 147 | VS17: 160 | VT17: 169 | VU17: 178 | VV17: 153 | VW17: 197 | VX17: 174 | VY17: 195 | VZ17: 193 | WA17: 184 | WB17: 181 | WC17: 200 | WD17: 174 | WE17: 194 | WF17: 179 | WG17: 178 | WH17: 198 | WI17: 202 | WJ17: 178 | WK17: 169 | WL17: 174 | WM17: 170 | WN17: 165 | WO17: 183 | WP17: 154 | WQ17: 162 | WR17: 171 | WS17: 163 | WT17: 142 | WU17: 139 | WV17: 162 | WW17: 159 | WX17: 136 | WY17: 164 | WZ17: 164 | XA17: 149 | XB17: 197 | XC17: 198 | XD17: 200 | XE17: 198 | XF17: 206 | XG17: 199 | XH17: 203 | XI17: 196 | XJ17: 166 | XK17: 192 | XL17: 187 | XM17: 189 | XN17: 186 | XO17: 196 | XP17: 196 | XQ17: 204 | XR17: 189 | XS17: 177 | XT17: 186 | XU17: 195 | XV17: 182 | XW17: 191 | XX17: 196 | XY17: 192 | XZ17: 194 | YA17: 149 | YB17: 187 | YC17: 174 | YD17: 181 | YE17: 181 | YF17: 173 | YG17: 202 | YH17: 202 | YI17: 203 | YJ17: 178 | YK17: 193 | YL17: 201 | YM17: 205 | YN17: 204 | YO17: 201 | YP17: 185 | YQ17: 188 | YR17: 205 | YS17: 201 | YT17: 180 | YU17: 204 | YV17: 203 | YW17: 200 | YX17: 203 | YY17: 201 | YZ17: 199 | ZA17: 197 | ZB17: 200 | ZC17: 204 | ZD17: 199 | ZE17: 205 | ZF17: 190 | ZG17: 195 | ZH17: 188 | ZI17: 201 | ZJ17: 179 | ZK17: 179 | ZL17: 193 | ZM17: 185 | ZN17: 205 | ZO17: 177 | ZP17: 164 | ZQ17: 189 | ZR17: 143 | ZS17: 196 | ZT17: 195 | ZU17: 198 | ZV17: 174 | ZW17: 180 | ZX17: 167 | ZY17: 179 | ZZ17: 192 | AAA17: 194 | AAB17: 193 | AAC17: 194 | AAD17: 189 | AAE17: 190 | AAF17: 199 | AAG17: 194 | AAH17: 201 | AAI17: 194 | AAJ17: 198 | AAK17: =IF(AAK$1=$A17,,AAK$2+$B17) -> 205 | AAL17: 196 | AAM17: 201 | AAN17: 205 | AAO17: 172 | AAP17: 174 | AAQ17: 196 | AAR17: 172 | AAS17: 203 | AAT17: 196 | AAU17: 203 | AAV17: 201 | AAW17: 202 | AAX17: 196 | AAY17: 173 | AAZ17: 194 | ABA17: 203 | ABB17: 203 | ABC17: 200 | ABD17: 204 | ABE17: 192 | ABF17: 202 | ABG17: 203 | ABH17: 196 | ABI17: 203 | ABJ17: 200 | ABK17: 199 | ABL17: 189 | ABM17: 202 | ABN17: 203 | ABO17: 205 | ABP17: 203 | ABQ17: 193 | ABR17: 198 | ABS17: 181 | ABT17: 203 | ABU17: 201 | ABV17: 198 | ABW17: 196 | ABX17: 204 | ABY17: 201 | ABZ17: 178 | ACA17: 199 | ACB17: 187 | ACC17: 189 | ACD17: 182 | ACE17: 200 | ACF17: 205 | ACG17: 202 | ACH17: 196 | ACI17: 202 | ACJ17: 181 | ACK17: 198 | ACL17: 198 | ACM17: 201 | ACN17: 205 | ACO17: 189 | ACP17: 183 | ACQ17: 183 | ACR17: 194 | ACS17: 146 | ACT17: 136 | ACU17: 152 | ACV17: 155 | ACW17: 182 | ACX17: 167 | ACY17: 197 | ACZ17: 195 | ADA17: 190 | ADB17: 202 | ADC17: 203 | ADD17: 194 | ADE17: 187 | ADF17: 204 | ADG17: 199 | ADH17: 194 | ADI17: 196 | ADJ17: 202 | ADK17: 174 | ADL17: 154 | ADM17: 196 | ADN17: 167 | ADO17: 180 | ADP17: 188 | ADQ17: 191 | ADR17: 197 | ADS17: 189 | ADT17: 185 | ADU17: 170 | ADV17: 182 | ADW17: 178 | ADX17: 185 | ADY17: 194 | ADZ17: 202 | AEA17: 173 | AEB17: 200 | AEC17: 204 | AED17: 186 | AEE17: 193 | AEF17: 192 | AEG17: 195 | AEH17: 192 | AEI17: 194 | AEJ17: 202 | AEK17: 203 | AEL17: 203 | AEM17: 194 | AEN17: 187 | AEO17: 201 | AEP17: 201 | AEQ17: 200 | AER17: 195 | AES17: 175 | AET17: 164 | AEU17: 191 | AEV17: 184 | AEW17: 185 | AEX17: 186 | AEY17: 179 | AEZ17: 184 | AFA17: 206 | AFB17: 193 | AFC17: 208 | AFD17: 206 | AFE17: 204 | AFF17: 199 | AFG17: 202 | AFH17: 204 | AFI17: =IF(AFI$1=$A17,,AFI$2+$B17) -> 193 | AFJ17: 202 | AFK17: 187 | AFL17: 183 | AFM17: 182 | AFN17: 201 | AFO17: 166 | AFP17: 188 | AFQ17: 185 | AFR17: 191 | AFS17: 179 | AFT17: 176 | AFU17: 184 | AFV17: 185 | AFW17: 191 | AFX17: 182 | AFY17: 187 | AFZ17: 182 | AGA17: 182 | AGB17: 202 | AGC17: 194 | AGD17: 167
A18: 0712 | B18: =COUNTIF(Лист1!$B$2:$B$77501,A18) -> 102 | C18: 185 | D18: 202 | E18: 185 | F18: 199 | G18: 198 | H18: 210 | I18: 204 | J18: 198 | K18: 201 | L18: 187 | M18: 199 | N18: 182 | O18: 209 | P18: 205 | Q18: 197 | R18: 0 | S18: 204 | T18: 199 | U18: 207 | V18: 192 | W18: 209 | X18: 205 | Y18: 192 | Z18: 196 | AA18: 202 | AB18: 196 | AC18: 197 | AD18: 210 | AE18: 207 | AF18: 201 | AG18: 166 | AH18: 183 | AI18: 173 | AJ18: 176 | AK18: 187 | AL18: 207 | AM18: 187 | AN18: 146 | AO18: 178 | AP18: 196 | AQ18: 210 | AR18: 189 | AS18: 206 | AT18: 204 | AU18: 195 | AV18: 200 | AW18: 180 | AX18: 168 | AY18: 198 | AZ18: 160 | BA18: 161 | BB18: 165 | BC18: 201 | BD18: 180 | BE18: 203 | BF18: 203 | BG18: 202 | BH18: 172 | BI18: 186 | BJ18: 191 | BK18: 181 | BL18: 196 | BM18: 161 | BN18: 196 | BO18: 191 | BP18: 172 | BQ18: 204 | BR18: 204 | BS18: 185 | BT18: 167 | BU18: 196 | BV18: 207 | BW18: 205 | BX18: 191 | BY18: 212 | BZ18: 202 | CA18: 187 | CB18: 210 | CC18: 179 | CD18: 189 | CE18: 209 | CF18: 204 | CG18: 210 | CH18: 202 | CI18: 216 | CJ18: 195 | CK18: 201 | CL18: 180 | CM18: 193 | CN18: 206 | CO18: 185 | CP18: 205 | CQ18: 210 | CR18: 212 | CS18: 200 | CT18: 201 | CU18: 210 | CV18: 203 | CW18: 195 | CX18: 214 | CY18: 214 | CZ18: 216 | DA18: 206 | DB18: 202 | DC18: 182 | DD18: 187 | DE18: 206 | DF18: 199 | DG18: 198 | DH18: 175 | DI18: 182 | DJ18: 193 | DK18: 203 | DL18: 192 | DM18: 206 | DN18: 188 | DO18: 205 | DP18: 164 | DQ18: 164 | DR18: 206 | DS18: 176 | DT18: 201 | DU18: 167 | DV18: 170 | DW18: 185 | DX18: 151 | DY18: 201 | DZ18: 205 | EA18: 169 | EB18: 166 | EC18: 192 | ED18: 207 | EE18: 128 | EF18: 171 | EG18: 197 | EH18: 178 | EI18: 157 | EJ18: 168 | EK18: 169 | EL18: 190 | EM18: 185 | EN18: 215 | EO18: 200 | EP18: 191 | EQ18: 193 | ER18: 169 | ES18: 179 | ET18: 171 | EU18: 201 | EV18: 175 | EW18: 201 | EX18: 179 | EY18: 197 | EZ18: 178 | FA18: 181 | FB18: 156 | FC18: 181 | FD18: 145 | FE18: 171 | FF18: 156 | FG18: 175 | FH18: 191 | FI18: 185 | FJ18: 176 | FK18: 191 | FL18: 173 | FM18: 187 | FN18: 194 | FO18: 157 | FP18: 183 | FQ18: 171 | FR18: 177 | FS18: 179 | FT18: 144 | FU18: 152 | FV18: 150 | FW18: 182 | FX18: 178 | FY18: 190 | FZ18: 176 | GA18: 196 | GB18: 175 | GC18: 174 | GD18: 151 | GE18: 184 | GF18: 161 | GG18: 148 | GH18: 177 | GI18: 134 | GJ18: 184 | GK18: 191 | GL18: 183 | GM18: =IF(GM$1=$A18,,GM$2+$B18) -> 179 | GN18: 193 | GO18: 160 | GP18: 178 | GQ18: 195 | GR18: 182 | GS18: 173 | GT18: 167 | GU18: 163 | GV18: 153 | GW18: 164 | GX18: 175 | GY18: 180 | GZ18: 177 | HA18: 179 | HB18: 189 | HC18: 176 | HD18: 165 | HE18: 187 | HF18: 184 | HG18: 181 | HH18: 203 | HI18: 197 | HJ18: 213 | HK18: 205 | HL18: 205 | HM18: 184 | HN18: 194 | HO18: 169 | HP18: 182 | HQ18: 198 | HR18: 183 | HS18: 201 | HT18: 194 | HU18: 188 | HV18: 206 | HW18: 205 | HX18: 197 | HY18: 171 | HZ18: 195 | IA18: 183 | IB18: 204 | IC18: 202 | ID18: 204 | IE18: 205 | IF18: 208 | IG18: 211 | IH18: 208 | II18: 199 | IJ18: 210 | IK18: 214 | IL18: 214 | IM18: 204 | IN18: 187 | IO18: 201 | IP18: 195 | IQ18: 183 | IR18: 174 | IS18: 193 | IT18: 207 | IU18: 185 | IV18: 167 | IW18: 179 | IX18: 180 | IY18: 186 | IZ18: 180 | JA18: 182 | JB18: 174 | JC18: 192 | JD18: 178 | JE18: 185 | JF18: 142 | JG18: 165 | JH18: 171 | JI18: 173 | JJ18: 152 | JK18: 208 | JL18: 185 | JM18: 187 | JN18: 197 | JO18: 179 | JP18: 198 | JQ18: 190 | JR18: 191 | JS18: 163 | JT18: 192 | JU18: 189 | JV18: 176 | JW18: 202 | JX18: 192 | JY18: 206 | JZ18: 197 | KA18: 202 | KB18: 194 | KC18: 196 | KD18: 190 | KE18: 201 | KF18: 174 | KG18: 190 | KH18: 186 | KI18: 181 | KJ18: 167 | KK18: 211 | KL18: 196 | KM18: 213 | KN18: 194 | KO18: 209 | KP18: 207 | KQ18: 204 | KR18: 202 | KS18: 213 | KT18: 212 | KU18: 211 | KV18: 213 | KW18: 193 | KX18: 189 | KY18: 185 | KZ18: 172 | LA18: 197 | LB18: 208 | LC18: 206 | LD18: 212 | LE18: 199 | LF18: 192 | LG18: 198 | LH18: 208 | LI18: 195 | LJ18: 194 | LK18: 190 | LL18: 166 | LM18: 184 | LN18: =IF(LN$1=$A18,,LN$2+$B18) -> 215 | LO18: 210 | LP18: 196 | LQ18: 160 | LR18: 173 | LS18: 185 | LT18: 163 | LU18: 198 | LV18: 194 | LW18: 196 | LX18: 185 | LY18: 170 | LZ18: 209 | MA18: 188 | MB18: 201 | MC18: 196 | MD18: 193 | ME18: 203 | MF18: 186 | MG18: 199 | MH18: 208 | MI18: 174 | MJ18: 195 | MK18: 208 | ML18: 201 | MM18: 209 | MN18: 208 | MO18: 176 | MP18: 157 | MQ18: 207 | MR18: 189 | MS18: 201 | MT18: 192 | MU18: 195 | MV18: 186 | MW18: 184 | MX18: 196 | MY18: 204 | MZ18: 197 | NA18: 167 | NB18: 187 | NC18: 188 | ND18: 200 | NE18: 211 | NF18: 213 | NG18: 212 | NH18: 208 | NI18: 210 | NJ18: 213 | NK18: 198 | NL18: 183 | NM18: 159 | NN18: 195 | NO18: 180 | NP18: 189 | NQ18: 190 | NR18: 195 | NS18: 203 | NT18: 212 | NU18: 144 | NV18: 168 | NW18: 189 | NX18: 187 | NY18: 176 | NZ18: 201 | OA18: 195 | OB18: 188 | OC18: 159 | OD18: 155 | OE18: 166 | OF18: 192 | OG18: 190 | OH18: 178 | OI18: 166 | OJ18: 202 | OK18: 156 | OL18: 181 | OM18: 182 | ON18: 168 | OO18: 186 | OP18: 183 | OQ18: 186 | OR18: 187 | OS18: 190 | OT18: 198 | OU18: 181 | OV18: 187 | OW18: 182 | OX18: 204 | OY18: 199 | OZ18: 194 | PA18: 196 | PB18: 185 | PC18: 197 | PD18: 195 | PE18: 183 | PF18: 186 | PG18: 182 | PH18: 189 | PI18: 164 | PJ18: 191 | PK18: 185 | PL18: 176 | PM18: 181 | PN18: 196 | PO18: 180 | PP18: 195 | PQ18: 200 | PR18: 196 | PS18: 206 | PT18: 206 | PU18: 206 | PV18: 202 | PW18: 201 | PX18: 198 | PY18: 213 | PZ18: 207 | QA18: 198 | QB18: 198 | QC18: 202 | QD18: 202 | QE18: 196 | QF18: 200 | QG18: 202 | QH18: 200 | QI18: 210 | QJ18: 210 | QK18: 208 | QL18: 208 | QM18: 203 | QN18: 199 | QO18: 200 | QP18: 203 | QQ18: 209 | QR18: 199 | QS18: 181 | QT18: 204 | QU18: 193 | QV18: 199 | QW18: 204 | QX18: 210 | QY18: 210 | QZ18: 202 | RA18: 205 | RB18: 208 | RC18: 208 | RD18: 210 | RE18: 183 | RF18: 208 | RG18: 203 | RH18: 206 | RI18: 209 | RJ18: 208 | RK18: 205 | RL18: 208 | RM18: 203 | RN18: 194 | RO18: 207 | RP18: 208 | RQ18: 203 | RR18: 194 | RS18: 187 | RT18: 181 | RU18: 209 | RV18: 170 | RW18: 197 | RX18: 193 | RY18: 192 | RZ18: 183 | SA18: 179 | SB18: 195 | SC18: 204 | SD18: 185 | SE18: 187 | SF18: 164 | SG18: 195 | SH18: 187 | SI18: 190 | SJ18: 195 | SK18: 202 | SL18: 186 | SM18: 199 | SN18: 206 | SO18: 207 | SP18: 202 | SQ18: 201 | SR18: 185 | SS18: 179 | ST18: 191 | SU18: 178 | SV18: 208 | SW18: 179 | SX18: 203 | SY18: 209 | SZ18: 209 | TA18: 168 | TB18: 173 | TC18: 187 | TD18: 192 | TE18: 190 | TF18: 199 | TG18: 203 | TH18: 168 | TI18: 180 | TJ18: 213 | TK18: 172 | TL18: 179 | TM18: 196 | TN18: 188 | TO18: 206 | TP18: 185 | TQ18: 190 | TR18: 197 | TS18: 190 | TT18: 201 | TU18: 197 | TV18: 183 | TW18: 187 | TX18: 181 | TY18: 191 | TZ18: 182 | UA18: 170 | UB18: 178 | UC18: 174 | UD18: 192 | UE18: 181 | UF18: 186 | UG18: 190 | UH18: 208 | UI18: 196 | UJ18: 207 | UK18: 209 | UL18: 211 | UM18: 206 | UN18: 212 | UO18: 213 | UP18: 208 | UQ18: 207 | UR18: 205 | US18: 180 | UT18: 204 | UU18: 210 | UV18: 190 | UW18: 202 | UX18: 207 | UY18: 191 | UZ18: 211 | VA18: 199 | VB18: 202 | VC18: 211 | VD18: 190 | VE18: 156 | VF18: 161 | VG18: 190 | VH18: 190 | VI18: 190 | VJ18: 168 | VK18: 192 | VL18: 196 | VM18: 181 | VN18: 190 | VO18: 199 | VP18: 160 | VQ18: 164 | VR18: 154 | VS18: 167 | VT18: 176 | VU18: 185 | VV18: 160 | VW18: 204 | VX18: 181 | VY18: 202 | VZ18: 200 | WA18: 191 | WB18: 188 | WC18: 207 | WD18: 181 | WE18: 201 | WF18: 186 | WG18: 185 | WH18: 205 | WI18: 209 | WJ18: 185 | WK18: 176 | WL18: 181 | WM18: 177 | WN18: 172 | WO18: 190 | WP18: 161 | WQ18: 169 | WR18: 178 | WS18: 170 | WT18: 149 | WU18: 146 | WV18: 169 | WW18: 166 | WX18: 143 | WY18: 171 | WZ18: 171 | XA18: 156 | XB18: 204 | XC18: 205 | XD18: 207 | XE18: 205 | XF18: 213 | XG18: 206 | XH18: 210 | XI18: 203 | XJ18: 173 | XK18: 199 | XL18: 194 | XM18: 196 | XN18: 193 | XO18: 203 | XP18: 203 | XQ18: 211 | XR18: 196 | XS18: 184 | XT18: 193 | XU18: 202 | XV18: 189 | XW18: 198 | XX18: 203 | XY18: 199 | XZ18: 201 | YA18: 156 | YB18: 194 | YC18: 181 | YD18: 188 | YE18: 188 | YF18: 180 | YG18: 209 | YH18: 209 | YI18: 210 | YJ18: 185 | YK18: 200 | YL18: 208 | YM18: 212 | YN18: 211 | YO18: 208 | YP18: 192 | YQ18: 195 | YR18: 212 | YS18: 208 | YT18: 187 | YU18: 211 | YV18: 210 | YW18: 207 | YX18: 210 | YY18: 208 | YZ18: 206 | ZA18: 204 | ZB18: 207 | ZC18: 211 | ZD18: 206 | ZE18: 212 | ZF18: 197 | ZG18: 202 | ZH18: 195 | ZI18: 208 | ZJ18: 186 | ZK18: 186 | ZL18: 200 | ZM18: 192 | ZN18: 212 | ZO18: 184 | ZP18: 171 | ZQ18: 196 | ZR18: 150 | ZS18: 203 | ZT18: 202 | ZU18: 205 | ZV18: 181 | ZW18: 187 | ZX18: 174 | ZY18: 186 | ZZ18: 199 | AAA18: 201 | AAB18: 200 | AAC18: 201 | AAD18: 196 | AAE18: 197 | AAF18: 206 | AAG18: 201 | AAH18: 208 | AAI18: 201 | AAJ18: 205 | AAK18: 212 | AAL18: 203 | AAM18: 208 | AAN18: 212 | AAO18: 179 | AAP18: 181 | AAQ18: 203 | AAR18: 179 | AAS18: 210 | AAT18: 203 | AAU18: 210 | AAV18: 208 | AAW18: 209 | AAX18: 203 | AAY18: 180 | AAZ18: 201 | ABA18: 210 | ABB18: 210 | ABC18: 207 | ABD18: 211 | ABE18: 199 | ABF18: 209 | ABG18: 210 | ABH18: 203 | ABI18: 210 | ABJ18: 207 | ABK18: 206 | ABL18: 196 | ABM18: 209 | ABN18: 210 | ABO18: 212 | ABP18: 210 | ABQ18: 200 | ABR18: 205 | ABS18: 188 | ABT18: 210 | ABU18: 208 | ABV18: 205 | ABW18: 203 | ABX18: 211 | ABY18: 208 | ABZ18: 185 | ACA18: 206 | ACB18: 194 | ACC18: 196 | ACD18: 189 | ACE18: 207 | ACF18: 212 | ACG18: 209 | ACH18: 203 | ACI18: 209 | ACJ18: 188 | ACK18: 205 | ACL18: 205 | ACM18: 208 | ACN18: 212 | ACO18: 196 | ACP18: 190 | ACQ18: 190 | ACR18: 201 | ACS18: 153 | ACT18: 143 | ACU18: 159 | ACV18: 162 | ACW18: 189 | ACX18: 174 | ACY18: 204 | ACZ18: 202 | ADA18: 197 | ADB18: 209 | ADC18: 210 | ADD18: 201 | ADE18: 194 | ADF18: 211 | ADG18: 206 | ADH18: 201 | ADI18: 203 | ADJ18: 209 | ADK18: 181 | ADL18: 161 | ADM18: 203 | ADN18: 174 | ADO18: 187 | ADP18: 195 | ADQ18: 198 | ADR18: 204 | ADS18: 196 | ADT18: 192 | ADU18: 177 | ADV18: 189 | ADW18: 185 | ADX18: 192 | ADY18: 201 | ADZ18: 209 | AEA18: 180 | AEB18: 207 | AEC18: 211 | AED18: 193 | AEE18: 200 | AEF18: 199 | AEG18: 202 | AEH18: 199 | AEI18: 201 | AEJ18: 209 | AEK18: 210 | AEL18: 210 | AEM18: 201 | AEN18: 194 | AEO18: 208 | AEP18: 208 | AEQ18: 207 | AER18: 202 | AES18: 182 | AET18: 171 | AEU18: 198 | AEV18: 191 | AEW18: 192 | AEX18: 193 | AEY18: 186 | AEZ18: 191 | AFA18: 213 | AFB18: 200 | AFC18: 215 | AFD18: 213 | AFE18: 211 | AFF18: 206 | AFG18: 209 | AFH18: 211 | AFI18: 200 | AFJ18: 209 | AFK18: 194 | AFL18: 190 | AFM18: 189 | AFN18: 208 | AFO18: 173 | AFP18: 195 | AFQ18: 192 | AFR18: 198 | AFS18: 186 | AFT18: 183 | AFU18: 191 | AFV18: 192 | AFW18: 198 | AFX18: 189 | AFY18: 194 | AFZ18: 189 | AGA18: 189 | AGB18: 209 | AGC18: 201 | AGD18: 174
A19: 0713 | B19: =COUNTIF(Лист1!$B$2:$B$77501,A19) -> 102 | C19: 185 | D19: 202 | E19: 185 | F19: 199 | G19: 198 | H19: 210 | I19: 204 | J19: 198 | K19: 201 | L19: 187 | M19: 199 | N19: 182 | O19: 209 | P19: 205 | Q19: 197 | R19: 204 | S19: 0 | T19: 199 | U19: 207 | V19: 192 | W19: 209 | X19: 205 | Y19: 192 | Z19: 196 | AA19: 202 | AB19: 196 | AC19: 197 | AD19: 210 | AE19: 207 | AF19: 201 | AG19: 166 | AH19: 183 | AI19: 173 | AJ19: 176 | AK19: 187 | AL19: 207 | AM19: 187 | AN19: 146 | AO19: 178 | AP19: 196 | AQ19: 210 | AR19: 189 | AS19: 206 | AT19: 204 | AU19: 195 | AV19: 200 | AW19: 180 | AX19: 168 | AY19: 198 | AZ19: 160 | BA19: 161 | BB19: 165 | BC19: 201 | BD19: 180 | BE19: 203 | BF19: 203 | BG19: 202 | BH19: 172 | BI19: 186 | BJ19: 191 | BK19: 181 | BL19: 196 | BM19: 161 | BN19: 196 | BO19: 191 | BP19: 172 | BQ19: 204 | BR19: 204 | BS19: 185 | BT19: 167 | BU19: 196 | BV19: 207 | BW19: 205 | BX19: 191 | BY19: 212 | BZ19: 202 | CA19: 187 | CB19: 210 | CC19: 179 | CD19: 189 | CE19: 209 | CF19: 204 | CG19: 210 | CH19: 202 | CI19: 216 | CJ19: 195 | CK19: 201 | CL19: 180 | CM19: 193 | CN19: 206 | CO19: 185 | CP19: 205 | CQ19: 210 | CR19: 212 | CS19: 200 | CT19: 201 | CU19: 210 | CV19: 203 | CW19: 195 | CX19: 214 | CY19: 214 | CZ19: 216 | DA19: 206 | DB19: 202 | DC19: 182 | DD19: 187 | DE19: 206 | DF19: 199 | DG19: 198 | DH19: 175 | DI19: 182 | DJ19: 193 | DK19: 203 | DL19: 192 | DM19: 206 | DN19: 188 | DO19: 205 | DP19: 164 | DQ19: 164 | DR19: 206 | DS19: 176 | DT19: 201 | DU19: 167 | DV19: 170 | DW19: 185 | DX19: 151 | DY19: 201 | DZ19: 205 | EA19: 169 | EB19: =IF(EB$1=$A19,,EB$2+$B19) -> 166 | EC19: 192 | ED19: 207 | EE19: 128 | EF19: 171 | EG19: 197 | EH19: 178 | EI19: 157 | EJ19: 168 | EK19: 169 | EL19: 190 | EM19: 185 | EN19: 215 | EO19: 200 | EP19: 191 | EQ19: 193 | ER19: 169 | ES19: 179 | ET19: 171 | EU19: 201 | EV19: 175 | EW19: 201 | EX19: 179 | EY19: 197 | EZ19: 178 | FA19: 181 | FB19: 156 | FC19: 181 | FD19: 145 | FE19: 171 | FF19: 156 | FG19: 175 | FH19: 191 | FI19: 185 | FJ19: 176 | FK19: 191 | FL19: 173 | FM19: 187 | FN19: 194 | FO19: 157 | FP19: 183 | FQ19: 171 | FR19: 177 | FS19: 179 | FT19: 144 | FU19: 152 | FV19: 150 | FW19: 182 | FX19: 178 | FY19: 190 | FZ19: 176 | GA19: 196 | GB19: 175 | GC19: 174 | GD19: 151 | GE19: 184 | GF19: 161 | GG19: 148 | GH19: 177 | GI19: 134 | GJ19: 184 | GK19: 191 | GL19: 183 | GM19: 179 | GN19: 193 | GO19: 160 | GP19: 178 | GQ19: 195 | GR19: 182 | GS19: 173 | GT19: 167 | GU19: 163 | GV19: 153 | GW19: 164 | GX19: 175 | GY19: 180 | GZ19: 177 | HA19: 179 | HB19: 189 | HC19: 176 | HD19: 165 | HE19: 187 | HF19: 184 | HG19: 181 | HH19: 203 | HI19: 197 | HJ19: 213 | HK19: 205 | HL19: 205 | HM19: 184 | HN19: 194 | HO19: 169 | HP19: 182 | HQ19: 198 | HR19: 183 | HS19: 201 | HT19: 194 | HU19: 188 | HV19: 206 | HW19: 205 | HX19: 197 | HY19: 171 | HZ19: 195 | IA19: 183 | IB19: 204 | IC19: 202 | ID19: 204 | IE19: 205 | IF19: 208 | IG19: 211 | IH19: 208 | II19: 199 | IJ19: 210 | IK19: 214 | IL19: 214 | IM19: 204 | IN19: 187 | IO19: 201 | IP19: 195 | IQ19: 183 | IR19: 174 | IS19: 193 | IT19: 207 | IU19: 185 | IV19: 167 | IW19: 179 | IX19: 180 | IY19: 186 | IZ19: 180 | JA19: 182 | JB19: 174 | JC19: =IF(JC$1=$A19,,JC$2+$B19) -> 192 | JD19: 178 | JE19: 185 | JF19: 142 | JG19: 165 | JH19: 171 | JI19: 173 | JJ19: 152 | JK19: 208 | JL19: 185 | JM19: 187 | JN19: 197 | JO19: 179 | JP19: 198 | JQ19: 190 | JR19: 191 | JS19: 163 | JT19: 192 | JU19: 189 | JV19: 176 | JW19: 202 | JX19: 192 | JY19: 206 | JZ19: 197 | KA19: 202 | KB19: 194 | KC19: 196 | KD19: 190 | KE19: 201 | KF19: 174 | KG19: 190 | KH19: 186 | KI19: 181 | KJ19: 167 | KK19: 211 | KL19: 196 | KM19: 213 | KN19: 194 | KO19: 209 | KP19: 207 | KQ19: 204 | KR19: 202 | KS19: 213 | KT19: 212 | KU19: 211 | KV19: 213 | KW19: 193 | KX19: 189 | KY19: 185 | KZ19: 172 | LA19: 197 | LB19: 208 | LC19: 206 | LD19: 212 | LE19: 199 | LF19: 192 | LG19: 198 | LH19: 208 | LI19: 195 | LJ19: 194 | LK19: 190 | LL19: 166 | LM19: 184 | LN19: 215 | LO19: 210 | LP19: 196 | LQ19: 160 | LR19: 173 | LS19: 185 | LT19: 163 | LU19: 198 | LV19: 194 | LW19: 196 | LX19: 185 | LY19: 170 | LZ19: 209 | MA19: 188 | MB19: 201 | MC19: 196 | MD19: 193 | ME19: 203 | MF19: 186 | MG19: 199 | MH19: 208 | MI19: 174 | MJ19: 195 | MK19: 208 | ML19: 201 | MM19: 209 | MN19: 208 | MO19: 176 | MP19: 157 | MQ19: 207 | MR19: 189 | MS19: 201 | MT19: 192 | MU19: 195 | MV19: 186 | MW19: 184 | MX19: 196 | MY19: 204 | MZ19: 197 | NA19: 167 | NB19: 187 | NC19: 188 | ND19: 200 | NE19: 211 | NF19: 213 | NG19: 212 | NH19: 208 | NI19: 210 | NJ19: 213 | NK19: 198 | NL19: 183 | NM19: 159 | NN19: 195 | NO19: 180 | NP19: 189 | NQ19: 190 | NR19: 195 | NS19: 203 | NT19: 212 | NU19: 144 | NV19: 168 | NW19: 189 | NX19: 187 | NY19: 176 | NZ19: 201 | OA19: 195 | OB19: 188 | OC19: 159 | OD19: 155 | OE19: 166 | OF19: 192 | OG19: 190 | OH19: 178 | OI19: 166 | OJ19: 202 | OK19: 156 | OL19: 181 | OM19: 182 | ON19: 168 | OO19: 186 | OP19: 183 | OQ19: 186 | OR19: 187 | OS19: 190 | OT19: 198 | OU19: 181 | OV19: 187 | OW19: 182 | OX19: 204 | OY19: 199 | OZ19: 194 | PA19: 196 | PB19: =IF(PB$1=$A19,,PB$2+$B19) -> 185 | PC19: 197 | PD19: 195 | PE19: 183 | PF19: 186 | PG19: 182 | PH19: 189 | PI19: 164 | PJ19: 191 | PK19: 185 | PL19: 176 | PM19: 181 | PN19: 196 | PO19: 180 | PP19: 195 | PQ19: 200 | PR19: 196 | PS19: 206 | PT19: 206 | PU19: 206 | PV19: 202 | PW19: 201 | PX19: 198 | PY19: 213 | PZ19: 207 | QA19: 198 | QB19: 198 | QC19: 202 | QD19: 202 | QE19: 196 | QF19: 200 | QG19: 202 | QH19: 200 | QI19: 210 | QJ19: 210 | QK19: 208 | QL19: 208 | QM19: 203 | QN19: 199 | QO19: 200 | QP19: 203 | QQ19: 209 | QR19: 199 | QS19: 181 | QT19: 204 | QU19: 193 | QV19: 199 | QW19: 204 | QX19: 210 | QY19: 210 | QZ19: 202 | RA19: 205 | RB19: 208 | RC19: 208 | RD19: 210 | RE19: 183 | RF19: 208 | RG19: 203 | RH19: 206 | RI19: 209 | RJ19: 208 | RK19: 205 | RL19: 208 | RM19: 203 | RN19: 194 | RO19: 207 | RP19: 208 | RQ19: 203 | RR19: 194 | RS19: 187 | RT19: 181 | RU19: 209 | RV19: 170 | RW19: 197 | RX19: 193 | RY19: 192 | RZ19: 183 | SA19: 179 | SB19: 195 | SC19: 204 | SD19: 185 | SE19: 187 | SF19: 164 | SG19: 195 | SH19: 187 | SI19: 190 | SJ19: 195 | SK19: 202 | SL19: 186 | SM19: 199 | SN19: 206 | SO19: 207 | SP19: 202 | SQ19: 201 | SR19: 185 | SS19: 179 | ST19: 191 | SU19: 178 | SV19: 208 | SW19: 179 | SX19: 203 | SY19: 209 | SZ19: 209 | TA19: 168 | TB19: 173 | TC19: 187 | TD19: 192 | TE19: 190 | TF19: 199 | TG19: 203 | TH19: 168 | TI19: 180 | TJ19: 213 | TK19: 172 | TL19: 179 | TM19: 196 | TN19: 188 | TO19: 206 | TP19: 185 | TQ19: 190 | TR19: 197 | TS19: 190 | TT19: 201 | TU19: 197 | TV19: 183 | TW19: 187 | TX19: 181 | TY19: 191 | TZ19: =IF(TZ$1=$A19,,TZ$2+$B19) -> 182 | UA19: 170 | UB19: 178 | UC19: 174 | UD19: 192 | UE19: 181 | UF19: 186 | UG19: 190 | UH19: 208 | UI19: 196 | UJ19: 207 | UK19: 209 | UL19: 211 | UM19: 206 | UN19: 212 | UO19: 213 | UP19: 208 | UQ19: 207 | UR19: 205 | US19: 180 | UT19: 204 | UU19: 210 | UV19: 190 | UW19: 202 | UX19: 207 | UY19: 191 | UZ19: 211 | VA19: 199 | VB19: 202 | VC19: 211 | VD19: 190 | VE19: 156 | VF19: 161 | VG19: 190 | VH19: 190 | VI19: 190 | VJ19: 168 | VK19: 192 | VL19: 196 | VM19: 181 | VN19: 190 | VO19: 199 | VP19: 160 | VQ19: 164 | VR19: 154 | VS19: 167 | VT19: 176 | VU19: 185 | VV19: 160 | VW19: 204 | VX19: 181 | VY19: 202 | VZ19: 200 | WA19: 191 | WB19: 188 | WC19: 207 | WD19: 181 | WE19: 201 | WF19: 186 | WG19: 185 | WH19: 205 | WI19: 209 | WJ19: 185 | WK19: 176 | WL19: 181 | WM19: 177 | WN19: 172 | WO19: 190 | WP19: 161 | WQ19: 169 | WR19: 178 | WS19: 170 | WT19: 149 | WU19: 146 | WV19: 169 | WW19: 166 | WX19: 143 | WY19: 171 | WZ19: 171 | XA19: 156 | XB19: 204 | XC19: 205 | XD19: 207 | XE19: 205 | XF19: 213 | XG19: 206 | XH19: 210 | XI19: 203 | XJ19: 173 | XK19: 199 | XL19: 194 | XM19: 196 | XN19: 193 | XO19: 203 | XP19: 203 | XQ19: 211 | XR19: 196 | XS19: 184 | XT19: 193 | XU19: 202 | XV19: 189 | XW19: 198 | XX19: 203 | XY19: 199 | XZ19: 201 | YA19: 156 | YB19: 194 | YC19: 181 | YD19: 188 | YE19: 188 | YF19: 180 | YG19: 209 | YH19: 209 | YI19: 210 | YJ19: 185 | YK19: 200 | YL19: 208 | YM19: 212 | YN19: 211 | YO19: 208 | YP19: 192 | YQ19: 195 | YR19: 212 | YS19: 208 | YT19: 187 | YU19: 211 | YV19: 210 | YW19: 207 | YX19: =IF(YX$1=$A19,,YX$2+$B19) -> 210 | YY19: 208 | YZ19: 206 | ZA19: 204 | ZB19: 207 | ZC19: 211 | ZD19: 206 | ZE19: 212 | ZF19: 197 | ZG19: 202 | ZH19: 195 | ZI19: 208 | ZJ19: 186 | ZK19: 186 | ZL19: 200 | ZM19: 192 | ZN19: 212 | ZO19: 184 | ZP19: 171 | ZQ19: 196 | ZR19: 150 | ZS19: 203 | ZT19: 202 | ZU19: 205 | ZV19: 181 | ZW19: 187 | ZX19: 174 | ZY19: 186 | ZZ19: 199 | AAA19: 201 | AAB19: 200 | AAC19: 201 | AAD19: 196 | AAE19: 197 | AAF19: 206 | AAG19: 201 | AAH19: 208 | AAI19: 201 | AAJ19: 205 | AAK19: 212 | AAL19: 203 | AAM19: 208 | AAN19: 212 | AAO19: 179 | AAP19: 181 | AAQ19: 203 | AAR19: 179 | AAS19: 210 | AAT19: 203 | AAU19: 210 | AAV19: 208 | AAW19: 209 | AAX19: 203 | AAY19: 180 | AAZ19: 201 | ABA19: 210 | ABB19: 210 | ABC19: 207 | ABD19: 211 | ABE19: 199 | ABF19: 209 | ABG19: 210 | ABH19: 203 | ABI19: 210 | ABJ19: 207 | ABK19: 206 | ABL19: 196 | ABM19: 209 | ABN19: 210 | ABO19: 212 | ABP19: 210 | ABQ19: 200 | ABR19: 205 | ABS19: 188 | ABT19: 210 | ABU19: 208 | ABV19: 205 | ABW19: 203 | ABX19: 211 | ABY19: 208 | ABZ19: 185 | ACA19: 206 | ACB19: 194 | ACC19: 196 | ACD19: 189 | ACE19: 207 | ACF19: 212 | ACG19: 209 | ACH19: 203 | ACI19: 209 | ACJ19: 188 | ACK19: 205 | ACL19: 205 | ACM19: 208 | ACN19: 212 | ACO19: 196 | ACP19: 190 | ACQ19: 190 | ACR19: 201 | ACS19: 153 | ACT19: 143 | ACU19: 159 | ACV19: 162 | ACW19: 189 | ACX19: 174 | ACY19: 204 | ACZ19: 202 | ADA19: 197 | ADB19: 209 | ADC19: 210 | ADD19: 201 | ADE19: 194 | ADF19: 211 | ADG19: 206 | ADH19: 201 | ADI19: 203 | ADJ19: 209 | ADK19: 181 | ADL19: 161 | ADM19: 203 | ADN19: 174 | ADO19: 187 | ADP19: 195 | ADQ19: 198 | ADR19: 204 | ADS19: 196 | ADT19: 192 | ADU19: 177 | ADV19: =IF(ADV$1=$A19,,ADV$2+$B19) -> 189 | ADW19: 185 | ADX19: 192 | ADY19: 201 | ADZ19: 209 | AEA19: 180 | AEB19: 207 | AEC19: 211 | AED19: 193 | AEE19: 200 | AEF19: 199 | AEG19: 202 | AEH19: 199 | AEI19: 201 | AEJ19: 209 | AEK19: 210 | AEL19: 210 | AEM19: 201 | AEN19: 194 | AEO19: 208 | AEP19: 208 | AEQ19: 207 | AER19: 202 | AES19: 182 | AET19: 171 | AEU19: 198 | AEV19: 191 | AEW19: 192 | AEX19: 193 | AEY19: 186 | AEZ19: 191 | AFA19: 213 | AFB19: 200 | AFC19: 215 | AFD19: 213 | AFE19: 211 | AFF19: 206 | AFG19: 209 | AFH19: 211 | AFI19: 200 | AFJ19: 209 | AFK19: 194 | AFL19: 190 | AFM19: 189 | AFN19: 208 | AFO19: 173 | AFP19: 195 | AFQ19: 192 | AFR19: 198 | AFS19: 186 | AFT19: 183 | AFU19: 191 | AFV19: 192 | AFW19: 198 | AFX19: 189 | AFY19: 194 | AFZ19: 189 | AGA19: 189 | AGB19: 209 | AGC19: 201 | AGD19: 174
A20: 0801 | B20: =COUNTIF(Лист1!$B$2:$B$77501,A20) -> 97 | C20: =IF(C$1=$A20,,C$2+$B20) -> 180 | D20: 197 | E20: 180 | F20: 194 | G20: 193 | H20: 205 | I20: 199 | J20: 193 | K20: 196 | L20: 182 | M20: 194 | N20: 177 | O20: 204 | P20: 200 | Q20: 192 | R20: 199 | S20: 199 | T20: 0 | U20: 202 | V20: 187 | W20: 204 | X20: 200 | Y20: 187 | Z20: 191 | AA20: 197 | AB20: 191 | AC20: 192 | AD20: 205 | AE20: 202 | AF20: 196 | AG20: 161 | AH20: 178 | AI20: 168 | AJ20: 171 | AK20: 182 | AL20: 202 | AM20: 182 | AN20: 141 | AO20: 173 | AP20: 191 | AQ20: 205 | AR20: 184 | AS20: 201 | AT20: 199 | AU20: 190 | AV20: 195 | AW20: 175 | AX20: 163 | AY20: 193 | AZ20: 155 | BA20: 156 | BB20: 160 | BC20: 196 | BD20: 175 | BE20: 198 | BF20: 198 | BG20: 197 | BH20: 167 | BI20: 181 | BJ20: 186 | BK20: 176 | BL20: 191 | BM20: 156 | BN20: 191 | BO20: 186 | BP20: 167 | BQ20: 199 | BR20: =IF(BR$1=$A20,,BR$2+$B20) -> 199 | BS20: 180 | BT20: 162 | BU20: 191 | BV20: 202 | BW20: 200 | BX20: 186 | BY20: 207 | BZ20: 197 | CA20: 182 | CB20: 205 | CC20: 174 | CD20: 184 | CE20: 204 | CF20: 199 | CG20: 205 | CH20: 197 | CI20: 211 | CJ20: 190 | CK20: 196 | CL20: 175 | CM20: 188 | CN20: 201 | CO20: 180 | CP20: 200 | CQ20: 205 | CR20: 207 | CS20: 195 | CT20: 196 | CU20: 205 | CV20: 198 | CW20: 190 | CX20: 209 | CY20: 209 | CZ20: 211 | DA20: 201 | DB20: 197 | DC20: 177 | DD20: 182 | DE20: 201 | DF20: 194 | DG20: 193 | DH20: 170 | DI20: 177 | DJ20: 188 | DK20: 198 | DL20: 187 | DM20: 201 | DN20: 183 | DO20: 200 | DP20: 159 | DQ20: 159 | DR20: 201 | DS20: 171 | DT20: 196 | DU20: 162 | DV20: 165 | DW20: 180 | DX20: 146 | DY20: 196 | DZ20: 200 | EA20: 164 | EB20: 161 | EC20: 187 | ED20: 202 | EE20: 123 | EF20: 166 | EG20: 192 | EH20: 173 | EI20: 152 | EJ20: 163 | EK20: 164 | EL20: 185 | EM20: 180 | EN20: 210 | EO20: 195 | EP20: 186 | EQ20: 188 | ER20: 164 | ES20: 174 | ET20: 166 | EU20: 196 | EV20: 170 | EW20: 196 | EX20: 174 | EY20: 192 | EZ20: 173 | FA20: 176 | FB20: 151 | FC20: 176 | FD20: 140 | FE20: 166 | FF20: 151 | FG20: 170 | FH20: 186 | FI20: 180 | FJ20: 171 | FK20: 186 | FL20: 168 | FM20: 182 | FN20: 189 | FO20: 152 | FP20: 178 | FQ20: 166 | FR20: 172 | FS20: 174 | FT20: 139 | FU20: 147 | FV20: 145 | FW20: 177 | FX20: 173 | FY20: 185 | FZ20: 171 | GA20: 191 | GB20: 170 | GC20: 169 | GD20: 146 | GE20: 179 | GF20: 156 | GG20: 143 | GH20: 172 | GI20: 129 | GJ20: 179 | GK20: 186 | GL20: 178 | GM20: 174 | GN20: 188 | GO20: 155 | GP20: 173 | GQ20: 190 | GR20: 177 | GS20: 168 | GT20: 162 | GU20: 158 | GV20: 148 | GW20: 159 | GX20: 170 | GY20: 175 | GZ20: 172 | HA20: 174 | HB20: 184 | HC20: 171 | HD20: 160 | HE20: 182 | HF20: 179 | HG20: 176 | HH20: 198 | HI20: 192 | HJ20: 208 | HK20: 200 | HL20: 200 | HM20: 179 | HN20: 189 | HO20: 164 | HP20: 177 | HQ20: 193 | HR20: 178 | HS20: 196 | HT20: 189 | HU20: 183 | HV20: 201 | HW20: 200 | HX20: 192 | HY20: 166 | HZ20: 190 | IA20: 178 | IB20: 199 | IC20: 197 | ID20: 199 | IE20: 200 | IF20: 203 | IG20: 206 | IH20: 203 | II20: 194 | IJ20: 205 | IK20: 209 | IL20: 209 | IM20: 199 | IN20: 182 | IO20: 196 | IP20: 190 | IQ20: 178 | IR20: 169 | IS20: 188 | IT20: 202 | IU20: 180 | IV20: 162 | IW20: 174 | IX20: 175 | IY20: 181 | IZ20: 175 | JA20: 177 | JB20: 169 | JC20: 187 | JD20: 173 | JE20: 180 | JF20: 137 | JG20: 160 | JH20: 166 | JI20: 168 | JJ20: 147 | JK20: 203 | JL20: 180 | JM20: 182 | JN20: 192 | JO20: 174 | JP20: 193 | JQ20: 185 | JR20: 186 | JS20: 158 | JT20: 187 | JU20: 184 | JV20: 171 | JW20: 197 | JX20: 187 | JY20: 201 | JZ20: 192 | KA20: 197 | KB20: 189 | KC20: 191 | KD20: 185 | KE20: 196 | KF20: 169 | KG20: 185 | KH20: 181 | KI20: 176 | KJ20: 162 | KK20: 206 | KL20: 191 | KM20: 208 | KN20: 189 | KO20: 204 | KP20: 202 | KQ20: 199 | KR20: 197 | KS20: 208 | KT20: 207 | KU20: 206 | KV20: 208 | KW20: 188 | KX20: 184 | KY20: 180 | KZ20: 167 | LA20: 192 | LB20: 203 | LC20: 201 | LD20: 207 | LE20: 194 | LF20: 187 | LG20: 193 | LH20: 203 | LI20: 190 | LJ20: 189 | LK20: 185 | LL20: 161 | LM20: 179 | LN20: 210 | LO20: 205 | LP20: 191 | LQ20: 155 | LR20: 168 | LS20: 180 | LT20: 158 | LU20: 193 | LV20: 189 | LW20: 191 | LX20: 180 | LY20: 165 | LZ20: 204 | MA20: 183 | MB20: 196 | MC20: 191 | MD20: 188 | ME20: 198 | MF20: 181 | MG20: 194 | MH20: 203 | MI20: 169 | MJ20: 190 | MK20: 203 | ML20: 196 | MM20: 204 | MN20: 203 | MO20: 171 | MP20: 152 | MQ20: 202 | MR20: 184 | MS20: 196 | MT20: 187 | MU20: 190 | MV20: 181 | MW20: 179 | MX20: 191 | MY20: 199 | MZ20: 192 | NA20: 162 | NB20: 182 | NC20: 183 | ND20: 195 | NE20: 206 | NF20: 208 | NG20: 207 | NH20: 203 | NI20: 205 | NJ20: 208 | NK20: 193 | NL20: 178 | NM20: 154 | NN20: 190 | NO20: 175 | NP20: 184 | NQ20: 185 | NR20: 190 | NS20: 198 | NT20: 207 | NU20: 139 | NV20: 163 | NW20: 184 | NX20: 182 | NY20: 171 | NZ20: 196 | OA20: 190 | OB20: 183 | OC20: 154 | OD20: 150 | OE20: 161 | OF20: 187 | OG20: 185 | OH20: =IF(OH$1=$A20,,OH$2+$B20) -> 173 | OI20: 161 | OJ20: 197 | OK20: 151 | OL20: 176 | OM20: 177 | ON20: 163 | OO20: 181 | OP20: 178 | OQ20: 181 | OR20: 182 | OS20: 185 | OT20: 193 | OU20: 176 | OV20: 182 | OW20: 177 | OX20: 199 | OY20: 194 | OZ20: 189 | PA20: 191 | PB20: 180 | PC20: 192 | PD20: 190 | PE20: 178 | PF20: 181 | PG20: 177 | PH20: 184 | PI20: 159 | PJ20: 186 | PK20: 180 | PL20: 171 | PM20: 176 | PN20: 191 | PO20: 175 | PP20: 190 | PQ20: 195 | PR20: 191 | PS20: 201 | PT20: 201 | PU20: 201 | PV20: 197 | PW20: 196 | PX20: 193 | PY20: 208 | PZ20: 202 | QA20: 193 | QB20: 193 | QC20: 197 | QD20: 197 | QE20: 191 | QF20: 195 | QG20: 197 | QH20: 195 | QI20: 205 | QJ20: 205 | QK20: 203 | QL20: 203 | QM20: 198 | QN20: 194 | QO20: 195 | QP20: 198 | QQ20: 204 | QR20: 194 | QS20: 176 | QT20: 199 | QU20: 188 | QV20: 194 | QW20: 199 | QX20: 205 | QY20: 205 | QZ20: 197 | RA20: 200 | RB20: 203 | RC20: 203 | RD20: 205 | RE20: 178 | RF20: 203 | RG20: 198 | RH20: 201 | RI20: 204 | RJ20: 203 | RK20: 200 | RL20: 203 | RM20: 198 | RN20: 189 | RO20: 202 | RP20: 203 | RQ20: 198 | RR20: 189 | RS20: 182 | RT20: 176 | RU20: 204 | RV20: 165 | RW20: 192 | RX20: 188 | RY20: 187 | RZ20: 178 | SA20: 174 | SB20: 190 | SC20: 199 | SD20: 180 | SE20: 182 | SF20: 159 | SG20: 190 | SH20: 182 | SI20: 185 | SJ20: 190 | SK20: 197 | SL20: 181 | SM20: 194 | SN20: 201 | SO20: 202 | SP20: 197 | SQ20: 196 | SR20: 180 | SS20: 174 | ST20: 186 | SU20: 173 | SV20: 203 | SW20: 174 | SX20: 198 | SY20: 204 | SZ20: 204 | TA20: 163 | TB20: 168 | TC20: 182 | TD20: 187 | TE20: 185 | TF20: =IF(TF$1=$A20,,TF$2+$B20) -> 194 | TG20: 198 | TH20: 163 | TI20: 175 | TJ20: 208 | TK20: 167 | TL20: 174 | TM20: 191 | TN20: 183 | TO20: 201 | TP20: 180 | TQ20: 185 | TR20: 192 | TS20: 185 | TT20: 196 | TU20: 192 | TV20: 178 | TW20: 182 | TX20: 176 | TY20: 186 | TZ20: 177 | UA20: 165 | UB20: 173 | UC20: 169 | UD20: 187 | UE20: 176 | UF20: 181 | UG20: 185 | UH20: 203 | UI20: 191 | UJ20: 202 | UK20: 204 | UL20: 206 | UM20: 201 | UN20: 207 | UO20: 208 | UP20: 203 | UQ20: 202 | UR20: 200 | US20: 175 | UT20: 199 | UU20: 205 | UV20: 185 | UW20: 197 | UX20: 202 | UY20: 186 | UZ20: 206 | VA20: 194 | VB20: 197 | VC20: 206 | VD20: 185 | VE20: 151 | VF20: 156 | VG20: 185 | VH20: 185 | VI20: 185 | VJ20: 163 | VK20: 187 | VL20: 191 | VM20: 176 | VN20: 185 | VO20: 194 | VP20: 155 | VQ20: 159 | VR20: 149 | VS20: 162 | VT20: 171 | VU20: 180 | VV20: 155 | VW20: 199 | VX20: 176 | VY20: 197 | VZ20: 195 | WA20: 186 | WB20: 183 | WC20: 202 | WD20: 176 | WE20: 196 | WF20: 181 | WG20: 180 | WH20: 200 | WI20: 204 | WJ20: 180 | WK20: 171 | WL20: 176 | WM20: 172 | WN20: 167 | WO20: 185 | WP20: 156 | WQ20: 164 | WR20: 173 | WS20: 165 | WT20: 144 | WU20: 141 | WV20: 164 | WW20: 161 | WX20: 138 | WY20: 166 | WZ20: 166 | XA20: 151 | XB20: 199 | XC20: 200 | XD20: 202 | XE20: 200 | XF20: 208 | XG20: 201 | XH20: 205 | XI20: 198 | XJ20: 168 | XK20: 194 | XL20: 189 | XM20: 191 | XN20: 188 | XO20: 198 | XP20: 198 | XQ20: 206 | XR20: 191 | XS20: 179 | XT20: 188 | XU20: 197 | XV20: 184 | XW20: 193 | XX20: 198 | XY20: 194 | XZ20: 196 | YA20: 151 | YB20: 189 | YC20: 176 | YD20: =IF(YD$1=$A20,,YD$2+$B20) -> 183 | YE20: 183 | YF20: 175 | YG20: 204 | YH20: 204 | YI20: 205 | YJ20: 180 | YK20: 195 | YL20: 203 | YM20: 207 | YN20: 206 | YO20: 203 | YP20: 187 | YQ20: 190 | YR20: 207 | YS20: 203 | YT20: 182 | YU20: 206 | YV20: 205 | YW20: 202 | YX20: 205 | YY20: 203 | YZ20: 201 | ZA20: 199 | ZB20: 202 | ZC20: 206 | ZD20: 201 | ZE20: 207 | ZF20: 192 | ZG20: 197 | ZH20: 190 | ZI20: 203 | ZJ20: 181 | ZK20: 181 | ZL20: 195 | ZM20: 187 | ZN20: 207 | ZO20: 179 | ZP20: 166 | ZQ20: 191 | ZR20: 145 | ZS20: 198 | ZT20: 197 | ZU20: 200 | ZV20: 176 | ZW20: 182 | ZX20: 169 | ZY20: 181 | ZZ20: 194 | AAA20: 196 | AAB20: 195 | AAC20: 196 | AAD20: 191 | AAE20: 192 | AAF20: 201 | AAG20: 196 | AAH20: 203 | AAI20: 196 | AAJ20: 200 | AAK20: 207 | AAL20: 198 | AAM20: 203 | AAN20: 207 | AAO20: 174 | AAP20: 176 | AAQ20: 198 | AAR20: 174 | AAS20: 205 | AAT20: 198 | AAU20: 205 | AAV20: 203 | AAW20: 204 | AAX20: 198 | AAY20: 175 | AAZ20: 196 | ABA20: 205 | ABB20: 205 | ABC20: 202 | ABD20: 206 | ABE20: 194 | ABF20: 204 | ABG20: 205 | ABH20: 198 | ABI20: 205 | ABJ20: 202 | ABK20: 201 | ABL20: 191 | ABM20: 204 | ABN20: 205 | ABO20: 207 | ABP20: 205 | ABQ20: 195 | ABR20: 200 | ABS20: 183 | ABT20: 205 | ABU20: 203 | ABV20: 200 | ABW20: 198 | ABX20: 206 | ABY20: 203 | ABZ20: 180 | ACA20: 201 | ACB20: 189 | ACC20: 191 | ACD20: 184 | ACE20: 202 | ACF20: 207 | ACG20: 204 | ACH20: 198 | ACI20: 204 | ACJ20: 183 | ACK20: 200 | ACL20: 200 | ACM20: 203 | ACN20: 207 | ACO20: 191 | ACP20: 185 | ACQ20: 185 | ACR20: 196 | ACS20: 148 | ACT20: 138 | ACU20: 154 | ACV20: 157 | ACW20: 184 | ACX20: 169 | ACY20: 199 | ACZ20: 197 | ADA20: 192 | ADB20: =IF(ADB$1=$A20,,ADB$2+$B20) -> 204 | ADC20: 205 | ADD20: 196 | ADE20: 189 | ADF20: 206 | ADG20: 201 | ADH20: 196 | ADI20: 198 | ADJ20: 204 | ADK20: 176 | ADL20: 156 | ADM20: 198 | ADN20: 169 | ADO20: 182 | ADP20: 190 | ADQ20: 193 | ADR20: 199 | ADS20: 191 | ADT20: 187 | ADU20: 172 | ADV20: 184 | ADW20: 180 | ADX20: 187 | ADY20: 196 | ADZ20: 204 | AEA20: 175 | AEB20: 202 | AEC20: 206 | AED20: 188 | AEE20: 195 | AEF20: 194 | AEG20: 197 | AEH20: 194 | AEI20: 196 | AEJ20: 204 | AEK20: 205 | AEL20: 205 | AEM20: 196 | AEN20: 189 | AEO20: 203 | AEP20: 203 | AEQ20: 202 | AER20: 197 | AES20: 177 | AET20: 166 | AEU20: 193 | AEV20: 186 | AEW20: 187 | AEX20: 188 | AEY20: 181 | AEZ20: 186 | AFA20: 208 | AFB20: 195 | AFC20: 210 | AFD20: 208 | AFE20: 206 | AFF20: 201 | AFG20: 204 | AFH20: 206 | AFI20: 195 | AFJ20: 204 | AFK20: 189 | AFL20: 185 | AFM20: 184 | AFN20: 203 | AFO20: 168 | AFP20: 190 | AFQ20: 187 | AFR20: 193 | AFS20: 181 | AFT20: 178 | AFU20: 186 | AFV20: 187 | AFW20: 193 | AFX20: 184 | AFY20: 189 | AFZ20: 184 | AGA20: 184 | AGB20: 204 | AGC20: 196 | AGD20: 169
A21: 0802 | B21: =COUNTIF(Лист1!$B$2:$B$77501,A21) -> 105 | C21: 188 | D21: =IF(D$1=$A21,,D$2+$B21) -> 205 | E21: 188 | F21: 202 | G21: 201 | H21: 213 | I21: 207 | J21: 201 | K21: 204 | L21: 190 | M21: 202 | N21: 185 | O21: 212 | P21: 208 | Q21: 200 | R21: 207 | S21: 207 | T21: 202 | U21: 0 | V21: 195 | W21: 212 | X21: 208 | Y21: 195 | Z21: 199 | AA21: 205 | AB21: 199 | AC21: 200 | AD21: 213 | AE21: 210 | AF21: 204 | AG21: 169 | AH21: 186 | AI21: 176 | AJ21: 179 | AK21: 190 | AL21: 210 | AM21: 190 | AN21: 149 | AO21: 181 | AP21: 199 | AQ21: 213 | AR21: 192 | AS21: 209 | AT21: 207 | AU21: 198 | AV21: 203 | AW21: 183 | AX21: 171 | AY21: 201 | AZ21: 163 | BA21: 164 | BB21: 168 | BC21: 204 | BD21: 183 | BE21: 206 | BF21: 206 | BG21: 205 | BH21: 175 | BI21: 189 | BJ21: 194 | BK21: 184 | BL21: 199 | BM21: 164 | BN21: 199 | BO21: 194 | BP21: =IF(BP$1=$A21,,BP$2+$B21) -> 175 | BQ21: 207 | BR21: 207 | BS21: 188 | BT21: 170 | BU21: 199 | BV21: 210 | BW21: 208 | BX21: 194 | BY21: 215 | BZ21: 205 | CA21: 190 | CB21: 213 | CC21: 182 | CD21: 192 | CE21: 212 | CF21: 207 | CG21: 213 | CH21: 205 | CI21: 219 | CJ21: 198 | CK21: 204 | CL21: 183 | CM21: 196 | CN21: 209 | CO21: 188 | CP21: 208 | CQ21: 213 | CR21: 215 | CS21: 203 | CT21: 204 | CU21: 213 | CV21: 206 | CW21: 198 | CX21: 217 | CY21: 217 | CZ21: 219 | DA21: 209 | DB21: 205 | DC21: 185 | DD21: 190 | DE21: 209 | DF21: 202 | DG21: 201 | DH21: 178 | DI21: 185 | DJ21: 196 | DK21: 206 | DL21: 195 | DM21: 209 | DN21: 191 | DO21: 208 | DP21: 167 | DQ21: 167 | DR21: 209 | DS21: 179 | DT21: 204 | DU21: 170 | DV21: 173 | DW21: 188 | DX21: 154 | DY21: 204 | DZ21: 208 | EA21: 172 | EB21: 169 | EC21: 195 | ED21: 210 | EE21: 131 | EF21: 174 | EG21: 200 | EH21: 181 | EI21: 160 | EJ21: 171 | EK21: 172 | EL21: 193 | EM21: 188 | EN21: 218 | EO21: 203 | EP21: 194 | EQ21: 196 | ER21: 172 | ES21: 182 | ET21: 174 | EU21: 204 | EV21: 178 | EW21: 204 | EX21: 182 | EY21: 200 | EZ21: 181 | FA21: 184 | FB21: 159 | FC21: 184 | FD21: 148 | FE21: 174 | FF21: 159 | FG21: 178 | FH21: 194 | FI21: 188 | FJ21: 179 | FK21: 194 | FL21: 176 | FM21: 190 | FN21: 197 | FO21: 160 | FP21: 186 | FQ21: 174 | FR21: 180 | FS21: 182 | FT21: 147 | FU21: 155 | FV21: 153 | FW21: 185 | FX21: 181 | FY21: 193 | FZ21: 179 | GA21: 199 | GB21: 178 | GC21: 177 | GD21: 154 | GE21: 187 | GF21: 164 | GG21: 151 | GH21: 180 | GI21: 137 | GJ21: 187 | GK21: 194 | GL21: 186 | GM21: 182 | GN21: 196 | GO21: 163 | GP21: 181 | GQ21: 198 | GR21: 185 | GS21: 176 | GT21: 170 | GU21: 166 | GV21: 156 | GW21: 167 | GX21: 178 | GY21: 183 | GZ21: 180 | HA21: 182 | HB21: 192 | HC21: 179 | HD21: 168 | HE21: 190 | HF21: 187 | HG21: 184 | HH21: 206 | HI21: 200 | HJ21: 216 | HK21: 208 | HL21: 208 | HM21: 187 | HN21: 197 | HO21: 172 | HP21: 185 | HQ21: 201 | HR21: 186 | HS21: 204 | HT21: 197 | HU21: 191 | HV21: 209 | HW21: 208 | HX21: 200 | HY21: 174 | HZ21: 198 | IA21: 186 | IB21: 207 | IC21: 205 | ID21: 207 | IE21: 208 | IF21: 211 | IG21: 214 | IH21: 211 | II21: 202 | IJ21: 213 | IK21: 217 | IL21: 217 | IM21: 207 | IN21: 190 | IO21: 204 | IP21: 198 | IQ21: 186 | IR21: 177 | IS21: 196 | IT21: 210 | IU21: 188 | IV21: 170 | IW21: 182 | IX21: 183 | IY21: 189 | IZ21: 183 | JA21: 185 | JB21: 177 | JC21: 195 | JD21: 181 | JE21: 188 | JF21: 145 | JG21: 168 | JH21: 174 | JI21: 176 | JJ21: 155 | JK21: 211 | JL21: 188 | JM21: 190 | JN21: 200 | JO21: 182 | JP21: 201 | JQ21: 193 | JR21: 194 | JS21: 166 | JT21: 195 | JU21: 192 | JV21: 179 | JW21: 205 | JX21: 195 | JY21: 209 | JZ21: 200 | KA21: 205 | KB21: 197 | KC21: 199 | KD21: 193 | KE21: 204 | KF21: 177 | KG21: 193 | KH21: 189 | KI21: 184 | KJ21: 170 | KK21: 214 | KL21: 199 | KM21: 216 | KN21: 197 | KO21: 212 | KP21: 210 | KQ21: 207 | KR21: 205 | KS21: 216 | KT21: 215 | KU21: 214 | KV21: 216 | KW21: 196 | KX21: 192 | KY21: 188 | KZ21: 175 | LA21: 200 | LB21: 211 | LC21: 209 | LD21: 215 | LE21: 202 | LF21: 195 | LG21: 201 | LH21: 211 | LI21: 198 | LJ21: 197 | LK21: 193 | LL21: 169 | LM21: 187 | LN21: 218 | LO21: 213 | LP21: 199 | LQ21: 163 | LR21: 176 | LS21: 188 | LT21: 166 | LU21: 201 | LV21: 197 | LW21: 199 | LX21: 188 | LY21: 173 | LZ21: 212 | MA21: 191 | MB21: 204 | MC21: 199 | MD21: 196 | ME21: 206 | MF21: 189 | MG21: 202 | MH21: 211 | MI21: 177 | MJ21: 198 | MK21: 211 | ML21: 204 | MM21: 212 | MN21: 211 | MO21: 179 | MP21: 160 | MQ21: 210 | MR21: 192 | MS21: 204 | MT21: 195 | MU21: 198 | MV21: 189 | MW21: 187 | MX21: 199 | MY21: 207 | MZ21: 200 | NA21: 170 | NB21: 190 | NC21: 191 | ND21: 203 | NE21: 214 | NF21: 216 | NG21: 215 | NH21: 211 | NI21: 213 | NJ21: 216 | NK21: 201 | NL21: 186 | NM21: 162 | NN21: 198 | NO21: 183 | NP21: 192 | NQ21: 193 | NR21: 198 | NS21: 206 | NT21: 215 | NU21: 147 | NV21: 171 | NW21: 192 | NX21: 190 | NY21: 179 | NZ21: 204 | OA21: 198 | OB21: 191 | OC21: 162 | OD21: 158 | OE21: 169 | OF21: 195 | OG21: 193 | OH21: 181 | OI21: 169 | OJ21: 205 | OK21: 159 | OL21: 184 | OM21: 185 | ON21: 171 | OO21: 189 | OP21: 186 | OQ21: 189 | OR21: 190 | OS21: 193 | OT21: 201 | OU21: 184 | OV21: 190 | OW21: 185 | OX21: 207 | OY21: 202 | OZ21: 197 | PA21: 199 | PB21: 188 | PC21: 200 | PD21: 198 | PE21: 186 | PF21: 189 | PG21: 185 | PH21: 192 | PI21: 167 | PJ21: 194 | PK21: 188 | PL21: 179 | PM21: 184 | PN21: 199 | PO21: 183 | PP21: 198 | PQ21: 203 | PR21: 199 | PS21: 209 | PT21: 209 | PU21: 209 | PV21: 205 | PW21: 204 | PX21: 201 | PY21: 216 | PZ21: 210 | QA21: 201 | QB21: 201 | QC21: 205 | QD21: 205 | QE21: 199 | QF21: 203 | QG21: 205 | QH21: 203 | QI21: 213 | QJ21: 213 | QK21: 211 | QL21: 211 | QM21: 206 | QN21: 202 | QO21: 203 | QP21: 206 | QQ21: 212 | QR21: 202 | QS21: 184 | QT21: 207 | QU21: 196 | QV21: 202 | QW21: 207 | QX21: 213 | QY21: 213 | QZ21: 205 | RA21: 208 | RB21: 211 | RC21: 211 | RD21: 213 | RE21: 186 | RF21: 211 | RG21: 206 | RH21: 209 | RI21: 212 | RJ21: 211 | RK21: 208 | RL21: 211 | RM21: 206 | RN21: 197 | RO21: 210 | RP21: 211 | RQ21: 206 | RR21: 197 | RS21: 190 | RT21: 184 | RU21: 212 | RV21: 173 | RW21: 200 | RX21: 196 | RY21: 195 | RZ21: 186 | SA21: 182 | SB21: 198 | SC21: 207 | SD21: 188 | SE21: 190 | SF21: 167 | SG21: 198 | SH21: 190 | SI21: 193 | SJ21: 198 | SK21: 205 | SL21: 189 | SM21: 202 | SN21: 209 | SO21: 210 | SP21: 205 | SQ21: 204 | SR21: 188 | SS21: 182 | ST21: 194 | SU21: 181 | SV21: 211 | SW21: 182 | SX21: 206 | SY21: 212 | SZ21: 212 | TA21: 171 | TB21: 176 | TC21: 190 | TD21: 195 | TE21: 193 | TF21: 202 | TG21: 206 | TH21: 171 | TI21: 183 | TJ21: 216 | TK21: 175 | TL21: 182 | TM21: 199 | TN21: 191 | TO21: 209 | TP21: 188 | TQ21: 193 | TR21: 200 | TS21: 193 | TT21: 204 | TU21: 200 | TV21: 186 | TW21: 190 | TX21: 184 | TY21: 194 | TZ21: 185 | UA21: 173 | UB21: 181 | UC21: 177 | UD21: 195 | UE21: 184 | UF21: 189 | UG21: 193 | UH21: 211 | UI21: 199 | UJ21: 210 | UK21: 212 | UL21: 214 | UM21: 209 | UN21: 215 | UO21: 216 | UP21: 211 | UQ21: 210 | UR21: 208 | US21: 183 | UT21: 207 | UU21: 213 | UV21: 193 | UW21: 205 | UX21: 210 | UY21: 194 | UZ21: 214 | VA21: 202 | VB21: 205 | VC21: 214 | VD21: 193 | VE21: 159 | VF21: 164 | VG21: 193 | VH21: 193 | VI21: 193 | VJ21: 171 | VK21: 195 | VL21: 199 | VM21: 184 | VN21: 193 | VO21: 202 | VP21: 163 | VQ21: 167 | VR21: 157 | VS21: 170 | VT21: 179 | VU21: 188 | VV21: 163 | VW21: 207 | VX21: 184 | VY21: 205 | VZ21: 203 | WA21: 194 | WB21: 191 | WC21: 210 | WD21: 184 | WE21: 204 | WF21: 189 | WG21: 188 | WH21: 208 | WI21: 212 | WJ21: 188 | WK21: 179 | WL21: 184 | WM21: 180 | WN21: 175 | WO21: 193 | WP21: 164 | WQ21: 172 | WR21: 181 | WS21: 173 | WT21: 152 | WU21: 149 | WV21: 172 | WW21: 169 | WX21: 146 | WY21: 174 | WZ21: 174 | XA21: 159 | XB21: 207 | XC21: 208 | XD21: 210 | XE21: 208 | XF21: 216 | XG21: 209 | XH21: 213 | XI21: 206 | XJ21: 176 | XK21: 202 | XL21: 197 | XM21: 199 | XN21: 196 | XO21: 206 | XP21: 206 | XQ21: 214 | XR21: 199 | XS21: 187 | XT21: 196 | XU21: 205 | XV21: 192 | XW21: 201 | XX21: 206 | XY21: 202 | XZ21: 204 | YA21: 159 | YB21: 197 | YC21: 184 | YD21: 191 | YE21: 191 | YF21: 183 | YG21: 212 | YH21: 212 | YI21: 213 | YJ21: 188 | YK21: 203 | YL21: 211 | YM21: 215 | YN21: 214 | YO21: 211 | YP21: 195 | YQ21: 198 | YR21: 215 | YS21: 211 | YT21: 190 | YU21: 214 | YV21: 213 | YW21: 210 | YX21: 213 | YY21: 211 | YZ21: 209 | ZA21: 207 | ZB21: 210 | ZC21: 214 | ZD21: 209 | ZE21: 215 | ZF21: 200 | ZG21: 205 | ZH21: 198 | ZI21: 211 | ZJ21: 189 | ZK21: 189 | ZL21: 203 | ZM21: 195 | ZN21: 215 | ZO21: 187 | ZP21: 174 | ZQ21: 199 | ZR21: 153 | ZS21: 206 | ZT21: 205 | ZU21: 208 | ZV21: 184 | ZW21: 190 | ZX21: 177 | ZY21: 189 | ZZ21: 202 | AAA21: 204 | AAB21: 203 | AAC21: 204 | AAD21: 199 | AAE21: 200 | AAF21: 209 | AAG21: 204 | AAH21: 211 | AAI21: 204 | AAJ21: 208 | AAK21: 215 | AAL21: 206 | AAM21: 211 | AAN21: 215 | AAO21: 182 | AAP21: 184 | AAQ21: 206 | AAR21: 182 | AAS21: 213 | AAT21: 206 | AAU21: 213 | AAV21: 211 | AAW21: 212 | AAX21: 206 | AAY21: 183 | AAZ21: 204 | ABA21: 213 | ABB21: 213 | ABC21: 210 | ABD21: 214 | ABE21: 202 | ABF21: 212 | ABG21: 213 | ABH21: 206 | ABI21: 213 | ABJ21: 210 | ABK21: 209 | ABL21: 199 | ABM21: 212 | ABN21: 213 | ABO21: 215 | ABP21: 213 | ABQ21: 203 | ABR21: 208 | ABS21: 191 | ABT21: 213 | ABU21: 211 | ABV21: 208 | ABW21: 206 | ABX21: 214 | ABY21: 211 | ABZ21: 188 | ACA21: 209 | ACB21: 197 | ACC21: 199 | ACD21: 192 | ACE21: 210 | ACF21: 215 | ACG21: 212 | ACH21: 206 | ACI21: 212 | ACJ21: 191 | ACK21: 208 | ACL21: 208 | ACM21: 211 | ACN21: 215 | ACO21: 199 | ACP21: 193 | ACQ21: 193 | ACR21: 204 | ACS21: 156 | ACT21: 146 | ACU21: 162 | ACV21: 165 | ACW21: 192 | ACX21: 177 | ACY21: 207 | ACZ21: 205 | ADA21: 200 | ADB21: 212 | ADC21: 213 | ADD21: 204 | ADE21: 197 | ADF21: 214 | ADG21: 209 | ADH21: 204 | ADI21: 206 | ADJ21: 212 | ADK21: 184 | ADL21: 164 | ADM21: 206 | ADN21: 177 | ADO21: 190 | ADP21: 198 | ADQ21: 201 | ADR21: 207 | ADS21: 199 | ADT21: 195 | ADU21: 180 | ADV21: 192 | ADW21: 188 | ADX21: 195 | ADY21: 204 | ADZ21: 212 | AEA21: 183 | AEB21: 210 | AEC21: 214 | AED21: 196 | AEE21: 203 | AEF21: 202 | AEG21: 205 | AEH21: 202 | AEI21: 204 | AEJ21: 212 | AEK21: 213 | AEL21: 213 | AEM21: 204 | AEN21: 197 | AEO21: 211 | AEP21: 211 | AEQ21: 210 | AER21: 205 | AES21: 185 | AET21: 174 | AEU21: 201 | AEV21: 194 | AEW21: 195 | AEX21: 196 | AEY21: 189 | AEZ21: 194 | AFA21: 216 | AFB21: 203 | AFC21: 218 | AFD21: 216 | AFE21: 214 | AFF21: 209 | AFG21: 212 | AFH21: 214 | AFI21: 203 | AFJ21: 212 | AFK21: 197 | AFL21: 193 | AFM21: 192 | AFN21: 211 | AFO21: 176 | AFP21: 198 | AFQ21: 195 | AFR21: 201 | AFS21: 189 | AFT21: 186 | AFU21: 194 | AFV21: 195 | AFW21: 201 | AFX21: 192 | AFY21: 197 | AFZ21: 192 | AGA21: 192 | AGB21: 212 | AGC21: 204 | AGD21: 177
A22: 0803 | B22: =COUNTIF(Лист1!$B$2:$B$77501,A22) -> 90 | C22: 173 | D22: 190 | E22: 173 | F22: 187 | G22: 186 | H22: 198 | I22: 192 | J22: 186 | K22: 189 | L22: 175 | M22: 187 | N22: 170 | O22: 197 | P22: 193 | Q22: 185 | R22: 192 | S22: 192 | T22: 187 | U22: 195 | V22: 0 | W22: 197 | X22: 193 | Y22: 180 | Z22: 184 | AA22: 190 | AB22: 184 | AC22: 185 | AD22: 198 | AE22: 195 | AF22: 189 | AG22: 154 | AH22: 171 | AI22: 161 | AJ22: 164 | AK22: 175 | AL22: 195 | AM22: 175 | AN22: 134 | AO22: 166 | AP22: 184 | AQ22: 198 | AR22: 177 | AS22: 194 | AT22: 192 | AU22: 183 | AV22: 188 | AW22: 168 | AX22: 156 | AY22: 186 | AZ22: 148 | BA22: 149 | BB22: 153 | BC22: 189 | BD22: 168 | BE22: 191 | BF22: 191 | BG22: 190 | BH22: 160 | BI22: 174 | BJ22: 179 | BK22: 169 | BL22: 184 | BM22: 149 | BN22: 184 | BO22: 179 | BP22: 160 | BQ22: 192 | BR22: 192 | BS22: 173 | BT22: 155 | BU22: 184 | BV22: 195 | BW22: 193 | BX22: 179 | BY22: 200 | BZ22: 190 | CA22: 175 | CB22: 198 | CC22: 167 | CD22: 177 | CE22: 197 | CF22: 192 | CG22: 198 | CH22: 190 | CI22: 204 | CJ22: 183 | CK22: 189 | CL22: 168 | CM22: 181 | CN22: 194 | CO22: 173 | CP22: 193 | CQ22: 198 | CR22: 200 | CS22: 188 | CT22: 189 | CU22: 198 | CV22: 191 | CW22: 183 | CX22: 202 | CY22: 202 | CZ22: 204 | DA22: 194 | DB22: 190 | DC22: 170 | DD22: 175 | DE22: 194 | DF22: 187 | DG22: 186 | DH22: 163 | DI22: 170 | DJ22: 181 | DK22: 191 | DL22: 180 | DM22: 194 | DN22: 176 | DO22: 193 | DP22: 152 | DQ22: 152 | DR22: 194 | DS22: 164 | DT22: 189 | DU22: 155 | DV22: 158 | DW22: 173 | DX22: 139 | DY22: 189 | DZ22: 193 | EA22: 157 | EB22: 154 | EC22: 180 | ED22: 195 | EE22: 116 | EF22: 159 | EG22: 185 | EH22: 166 | EI22: 145 | EJ22: 156 | EK22: 157 | EL22: 178 | EM22: 173 | EN22: 203 | EO22: 188 | EP22: 179 | EQ22: 181 | ER22: 157 | ES22: 167 | ET22: 159 | EU22: 189 | EV22: 163 | EW22: 189 | EX22: 167 | EY22: 185 | EZ22: 166 | FA22: 169 | FB22: 144 | FC22: 169 | FD22: 133 | FE22: 159 | FF22: 144 | FG22: 163 | FH22: 179 | FI22: 173 | FJ22: 164 | FK22: 179 | FL22: 161 | FM22: 175 | FN22: 182 | FO22: 145 | FP22: 171 | FQ22: 159 | FR22: 165 | FS22: 167 | FT22: 132 | FU22: 140 | FV22: 138 | FW22: 170 | FX22: 166 | FY22: 178 | FZ22: 164 | GA22: 184 | GB22: 163 | GC22: 162 | GD22: 139 | GE22: 172 | GF22: 149 | GG22: 136 | GH22: 165 | GI22: 122 | GJ22: 172 | GK22: 179 | GL22: 171 | GM22: 167 | GN22: 181 | GO22: 148 | GP22: =IF(GP$1=$A22,,GP$2+$B22) -> 166 | GQ22: 183 | GR22: 170 | GS22: 161 | GT22: 155 | GU22: 151 | GV22: 141 | GW22: 152 | GX22: 163 | GY22: 168 | GZ22: 165 | HA22: 167 | HB22: 177 | HC22: 164 | HD22: 153 | HE22: 175 | HF22: 172 | HG22: 169 | HH22: 191 | HI22: 185 | HJ22: 201 | HK22: 193 | HL22: 193 | HM22: 172 | HN22: 182 | HO22: 157 | HP22: 170 | HQ22: 186 | HR22: 171 | HS22: 189 | HT22: 182 | HU22: 176 | HV22: 194 | HW22: 193 | HX22: 185 | HY22: 159 | HZ22: 183 | IA22: 171 | IB22: 192 | IC22: 190 | ID22: 192 | IE22: 193 | IF22: 196 | IG22: 199 | IH22: 196 | II22: 187 | IJ22: 198 | IK22: 202 | IL22: 202 | IM22: 192 | IN22: 175 | IO22: 189 | IP22: 183 | IQ22: 171 | IR22: 162 | IS22: 181 | IT22: 195 | IU22: 173 | IV22: 155 | IW22: 167 | IX22: 168 | IY22: 174 | IZ22: 168 | JA22: 170 | JB22: 162 | JC22: 180 | JD22: 166 | JE22: 173 | JF22: 130 | JG22: 153 | JH22: 159 | JI22: 161 | JJ22: 140 | JK22: 196 | JL22: 173 | JM22: 175 | JN22: 185 | JO22: 167 | JP22: 186 | JQ22: 178 | JR22: 179 | JS22: 151 | JT22: 180 | JU22: 177 | JV22: 164 | JW22: 190 | JX22: 180 | JY22: 194 | JZ22: 185 | KA22: 190 | KB22: 182 | KC22: 184 | KD22: 178 | KE22: 189 | KF22: 162 | KG22: 178 | KH22: 174 | KI22: 169 | KJ22: 155 | KK22: 199 | KL22: 184 | KM22: 201 | KN22: 182 | KO22: 197 | KP22: 195 | KQ22: 192 | KR22: 190 | KS22: 201 | KT22: 200 | KU22: 199 | KV22: 201 | KW22: 181 | KX22: 177 | KY22: 173 | KZ22: 160 | LA22: 185 | LB22: 196 | LC22: 194 | LD22: 200 | LE22: 187 | LF22: 180 | LG22: 186 | LH22: 196 | LI22: 183 | LJ22: 182 | LK22: 178 | LL22: 154 | LM22: 172 | LN22: =IF(LN$1=$A22,,LN$2+$B22) -> 203 | LO22: 198 | LP22: 184 | LQ22: 148 | LR22: 161 | LS22: 173 | LT22: 151 | LU22: 186 | LV22: 182 | LW22: 184 | LX22: 173 | LY22: 158 | LZ22: 197 | MA22: 176 | MB22: 189 | MC22: 184 | MD22: 181 | ME22: 191 | MF22: 174 | MG22: 187 | MH22: 196 | MI22: 162 | MJ22: 183 | MK22: 196 | ML22: 189 | MM22: 197 | MN22: 196 | MO22: 164 | MP22: 145 | MQ22: 195 | MR22: 177 | MS22: 189 | MT22: 180 | MU22: 183 | MV22: 174 | MW22: 172 | MX22: 184 | MY22: 192 | MZ22: 185 | NA22: 155 | NB22: 175 | NC22: 176 | ND22: 188 | NE22: 199 | NF22: 201 | NG22: 200 | NH22: 196 | NI22: 198 | NJ22: 201 | NK22: 186 | NL22: 171 | NM22: 147 | NN22: 183 | NO22: 168 | NP22: 177 | NQ22: 178 | NR22: 183 | NS22: 191 | NT22: 200 | NU22: 132 | NV22: 156 | NW22: 177 | NX22: 175 | NY22: 164 | NZ22: 189 | OA22: 183 | OB22: 176 | OC22: 147 | OD22: 143 | OE22: 154 | OF22: 180 | OG22: 178 | OH22: 166 | OI22: 154 | OJ22: 190 | OK22: 144 | OL22: 169 | OM22: 170 | ON22: 156 | OO22: 174 | OP22: 171 | OQ22: 174 | OR22: 175 | OS22: 178 | OT22: 186 | OU22: 169 | OV22: 175 | OW22: 170 | OX22: 192 | OY22: 187 | OZ22: 182 | PA22: 184 | PB22: 173 | PC22: 185 | PD22: 183 | PE22: 171 | PF22: 174 | PG22: 170 | PH22: 177 | PI22: 152 | PJ22: 179 | PK22: 173 | PL22: 164 | PM22: 169 | PN22: 184 | PO22: 168 | PP22: 183 | PQ22: 188 | PR22: 184 | PS22: 194 | PT22: 194 | PU22: 194 | PV22: 190 | PW22: 189 | PX22: 186 | PY22: 201 | PZ22: 195 | QA22: 186 | QB22: 186 | QC22: 190 | QD22: 190 | QE22: 184 | QF22: 188 | QG22: 190 | QH22: 188 | QI22: 198 | QJ22: 198 | QK22: 196 | QL22: 196 | QM22: 191 | QN22: 187 | QO22: 188 | QP22: 191 | QQ22: 197 | QR22: 187 | QS22: 169 | QT22: 192 | QU22: 181 | QV22: 187 | QW22: 192 | QX22: 198 | QY22: 198 | QZ22: 190 | RA22: 193 | RB22: 196 | RC22: 196 | RD22: 198 | RE22: 171 | RF22: 196 | RG22: 191 | RH22: 194 | RI22: 197 | RJ22: 196 | RK22: 193 | RL22: 196 | RM22: 191 | RN22: 182 | RO22: 195 | RP22: 196 | RQ22: 191 | RR22: 182 | RS22: 175 | RT22: 169 | RU22: 197 | RV22: 158 | RW22: 185 | RX22: =IF(RX$1=$A22,,RX$2+$B22) -> 181 | RY22: 180 | RZ22: 171 | SA22: 167 | SB22: 183 | SC22: 192 | SD22: 173 | SE22: 175 | SF22: 152 | SG22: 183 | SH22: 175 | SI22: 178 | SJ22: 183 | SK22: 190 | SL22: 174 | SM22: 187 | SN22: 194 | SO22: 195 | SP22: 190 | SQ22: 189 | SR22: 173 | SS22: 167 | ST22: 179 | SU22: 166 | SV22: 196 | SW22: 167 | SX22: 191 | SY22: 197 | SZ22: 197 | TA22: 156 | TB22: 161 | TC22: 175 | TD22: 180 | TE22: 178 | TF22: 187 | TG22: 191 | TH22: 156 | TI22: 168 | TJ22: 201 | TK22: 160 | TL22: 167 | TM22: 184 | TN22: 176 | TO22: 194 | TP22: 173 | TQ22: 178 | TR22: 185 | TS22: 178 | TT22: 189 | TU22: 185 | TV22: 171 | TW22: 175 | TX22: 169 | TY22: 179 | TZ22: 170 | UA22: 158 | UB22: 166 | UC22: 162 | UD22: 180 | UE22: 169 | UF22: 174 | UG22: 178 | UH22: 196 | UI22: 184 | UJ22: 195 | UK22: 197 | UL22: 199 | UM22: 194 | UN22: 200 | UO22: 201 | UP22: 196 | UQ22: 195 | UR22: 193 | US22: 168 | UT22: 192 | UU22: 198 | UV22: 178 | UW22: 190 | UX22: 195 | UY22: 179 | UZ22: 199 | VA22: 187 | VB22: 190 | VC22: 199 | VD22: 178 | VE22: 144 | VF22: 149 | VG22: 178 | VH22: 178 | VI22: 178 | VJ22: 156 | VK22: 180 | VL22: 184 | VM22: 169 | VN22: 178 | VO22: 187 | VP22: 148 | VQ22: 152 | VR22: 142 | VS22: 155 | VT22: 164 | VU22: 173 | VV22: 148 | VW22: 192 | VX22: 169 | VY22: 190 | VZ22: 188 | WA22: 179 | WB22: 176 | WC22: 195 | WD22: 169 | WE22: 189 | WF22: 174 | WG22: 173 | WH22: 193 | WI22: 197 | WJ22: 173 | WK22: 164 | WL22: 169 | WM22: 165 | WN22: 160 | WO22: 178 | WP22: 149 | WQ22: 157 | WR22: 166 | WS22: 158 | WT22: 137 | WU22: 134 | WV22: =IF(WV$1=$A22,,WV$2+$B22) -> 157 | WW22: 154 | WX22: 131 | WY22: 159 | WZ22: 159 | XA22: 144 | XB22: 192 | XC22: 193 | XD22: 195 | XE22: 193 | XF22: 201 | XG22: 194 | XH22: 198 | XI22: 191 | XJ22: 161 | XK22: 187 | XL22: 182 | XM22: 184 | XN22: 181 | XO22: 191 | XP22: 191 | XQ22: 199 | XR22: 184 | XS22: 172 | XT22: 181 | XU22: 190 | XV22: 177 | XW22: 186 | XX22: 191 | XY22: 187 | XZ22: 189 | YA22: 144 | YB22: 182 | YC22: 169 | YD22: 176 | YE22: 176 | YF22: 168 | YG22: 197 | YH22: 197 | YI22: 198 | YJ22: 173 | YK22: 188 | YL22: 196 | YM22: 200 | YN22: 199 | YO22: 196 | YP22: 180 | YQ22: 183 | YR22: 200 | YS22: 196 | YT22: 175 | YU22: 199 | YV22: 198 | YW22: 195 | YX22: 198 | YY22: 196 | YZ22: 194 | ZA22: 192 | ZB22: 195 | ZC22: 199 | ZD22: 194 | ZE22: 200 | ZF22: 185 | ZG22: 190 | ZH22: 183 | ZI22: 196 | ZJ22: 174 | ZK22: 174 | ZL22: 188 | ZM22: 180 | ZN22: 200 | ZO22: 172 | ZP22: 159 | ZQ22: 184 | ZR22: 138 | ZS22: 191 | ZT22: 190 | ZU22: 193 | ZV22: 169 | ZW22: 175 | ZX22: 162 | ZY22: 174 | ZZ22: 187 | AAA22: 189 | AAB22: 188 | AAC22: 189 | AAD22: 184 | AAE22: 185 | AAF22: 194 | AAG22: 189 | AAH22: 196 | AAI22: 189 | AAJ22: 193 | AAK22: 200 | AAL22: 191 | AAM22: 196 | AAN22: 200 | AAO22: 167 | AAP22: 169 | AAQ22: 191 | AAR22: 167 | AAS22: 198 | AAT22: 191 | AAU22: 198 | AAV22: 196 | AAW22: 197 | AAX22: 191 | AAY22: 168 | AAZ22: 189 | ABA22: 198 | ABB22: 198 | ABC22: 195 | ABD22: 199 | ABE22: 187 | ABF22: 197 | ABG22: 198 | ABH22: 191 | ABI22: 198 | ABJ22: 195 | ABK22: 194 | ABL22: 184 | ABM22: 197 | ABN22: 198 | ABO22: 200 | ABP22: 198 | ABQ22: 188 | ABR22: 193 | ABS22: 176 | ABT22: =IF(ABT$1=$A22,,ABT$2+$B22) -> 198 | ABU22: 196 | ABV22: 193 | ABW22: 191 | ABX22: 199 | ABY22: 196 | ABZ22: 173 | ACA22: 194 | ACB22: 182 | ACC22: 184 | ACD22: 177 | ACE22: 195 | ACF22: 200 | ACG22: 197 | ACH22: 191 | ACI22: 197 | ACJ22: 176 | ACK22: 193 | ACL22: 193 | ACM22: 196 | ACN22: 200 | ACO22: 184 | ACP22: 178 | ACQ22: 178 | ACR22: 189 | ACS22: 141 | ACT22: 131 | ACU22: 147 | ACV22: 150 | ACW22: 177 | ACX22: 162 | ACY22: 192 | ACZ22: 190 | ADA22: 185 | ADB22: 197 | ADC22: 198 | ADD22: 189 | ADE22: 182 | ADF22: 199 | ADG22: 194 | ADH22: 189 | ADI22: 191 | ADJ22: 197 | ADK22: 169 | ADL22: 149 | ADM22: 191 | ADN22: 162 | ADO22: 175 | ADP22: 183 | ADQ22: 186 | ADR22: 192 | ADS22: 184 | ADT22: 180 | ADU22: 165 | ADV22: 177 | ADW22: 173 | ADX22: 180 | ADY22: 189 | ADZ22: 197 | AEA22: 168 | AEB22: 195 | AEC22: 199 | AED22: 181 | AEE22: 188 | AEF22: 187 | AEG22: 190 | AEH22: 187 | AEI22: 189 | AEJ22: 197 | AEK22: 198 | AEL22: 198 | AEM22: 189 | AEN22: 182 | AEO22: 196 | AEP22: 196 | AEQ22: 195 | AER22: 190 | AES22: 170 | AET22: 159 | AEU22: 186 | AEV22: 179 | AEW22: 180 | AEX22: 181 | AEY22: 174 | AEZ22: 179 | AFA22: 201 | AFB22: 188 | AFC22: 203 | AFD22: 201 | AFE22: 199 | AFF22: 194 | AFG22: 197 | AFH22: 199 | AFI22: 188 | AFJ22: 197 | AFK22: 182 | AFL22: 178 | AFM22: 177 | AFN22: 196 | AFO22: 161 | AFP22: 183 | AFQ22: 180 | AFR22: 186 | AFS22: 174 | AFT22: 171 | AFU22: 179 | AFV22: 180 | AFW22: 186 | AFX22: 177 | AFY22: 182 | AFZ22: 177 | AGA22: 177 | AGB22: 197 | AGC22: 189 | AGD22: 162
A23: 0804 | B23: =COUNTIF(Лист1!$B$2:$B$77501,A23) -> 107 | C23: 190 | D23: 207 | E23: 190 | F23: 204 | G23: 203 | H23: 215 | I23: 209 | J23: 203 | K23: 206 | L23: 192 | M23: 204 | N23: 187 | O23: 214 | P23: 210 | Q23: 202 | R23: 209 | S23: 209 | T23: 204 | U23: 212 | V23: 197 | W23: 0 | X23: 210 | Y23: 197 | Z23: 201 | AA23: 207 | AB23: 201 | AC23: 202 | AD23: 215 | AE23: 212 | AF23: 206 | AG23: 171 | AH23: 188 | AI23: 178 | AJ23: 181 | AK23: 192 | AL23: 212 | AM23: 192 | AN23: 151 | AO23: 183 | AP23: 201 | AQ23: 215 | AR23: 194 | AS23: 211 | AT23: 209 | AU23: 200 | AV23: 205 | AW23: 185 | AX23: 173 | AY23: 203 | AZ23: 165 | BA23: 166 | BB23: 170 | BC23: 206 | BD23: 185 | BE23: 208 | BF23: 208 | BG23: 207 | BH23: 177 | BI23: 191 | BJ23: 196 | BK23: 186 | BL23: 201 | BM23: 166 | BN23: 201 | BO23: 196 | BP23: 177 | BQ23: 209 | BR23: 209 | BS23: 190 | BT23: 172 | BU23: 201 | BV23: 212 | BW23: 210 | BX23: 196 | BY23: 217 | BZ23: 207 | CA23: 192 | CB23: 215 | CC23: 184 | CD23: 194 | CE23: 214 | CF23: 209 | CG23: 215 | CH23: 207 | CI23: 221 | CJ23: 200 | CK23: 206 | CL23: 185 | CM23: 198 | CN23: 211 | CO23: 190 | CP23: 210 | CQ23: 215 | CR23: 217 | CS23: 205 | CT23: 206 | CU23: 215 | CV23: 208 | CW23: 200 | CX23: 219 | CY23: 219 | CZ23: 221 | DA23: 211 | DB23: 207 | DC23: 187 | DD23: 192 | DE23: 211 | DF23: 204 | DG23: 203 | DH23: 180 | DI23: 187 | DJ23: 198 | DK23: 208 | DL23: 197 | DM23: 211 | DN23: 193 | DO23: 210 | DP23: 169 | DQ23: 169 | DR23: 211 | DS23: 181 | DT23: 206 | DU23: 172 | DV23: 175 | DW23: 190 | DX23: 156 | DY23: 206 | DZ23: 210 | EA23: 174 | EB23: 171 | EC23: 197 | ED23: 212 | EE23: 133 | EF23: 176 | EG23: 202 | EH23: 183 | EI23: =IF(EI$1=$A23,,EI$2+$B23) -> 162 | EJ23: 173 | EK23: 174 | EL23: 195 | EM23: 190 | EN23: 220 | EO23: 205 | EP23: 196 | EQ23: 198 | ER23: 174 | ES23: 184 | ET23: 176 | EU23: 206 | EV23: 180 | EW23: 206 | EX23: 184 | EY23: 202 | EZ23: 183 | FA23: 186 | FB23: 161 | FC23: 186 | FD23: 150 | FE23: 176 | FF23: 161 | FG23: 180 | FH23: 196 | FI23: 190 | FJ23: 181 | FK23: 196 | FL23: 178 | FM23: 192 | FN23: 199 | FO23: 162 | FP23: 188 | FQ23: 176 | FR23: 182 | FS23: 184 | FT23: 149 | FU23: 157 | FV23: 155 | FW23: 187 | FX23: 183 | FY23: 195 | FZ23: 181 | GA23: 201 | GB23: 180 | GC23: 179 | GD23: 156 | GE23: 189 | GF23: 166 | GG23: 153 | GH23: 182 | GI23: 139 | GJ23: 189 | GK23: 196 | GL23: 188 | GM23: 184 | GN23: 198 | GO23: 165 | GP23: 183 | GQ23: 200 | GR23: 187 | GS23: 178 | GT23: 172 | GU23: 168 | GV23: 158 | GW23: 169 | GX23: 180 | GY23: 185 | GZ23: 182 | HA23: 184 | HB23: 194 | HC23: 181 | HD23: 170 | HE23: 192 | HF23: 189 | HG23: 186 | HH23: 208 | HI23: 202 | HJ23: 218 | HK23: 210 | HL23: 210 | HM23: 189 | HN23: 199 | HO23: 174 | HP23: 187 | HQ23: 203 | HR23: 188 | HS23: 206 | HT23: 199 | HU23: 193 | HV23: 211 | HW23: 210 | HX23: 202 | HY23: 176 | HZ23: 200 | IA23: 188 | IB23: 209 | IC23: 207 | ID23: 209 | IE23: 210 | IF23: 213 | IG23: 216 | IH23: 213 | II23: 204 | IJ23: 215 | IK23: 219 | IL23: 219 | IM23: 209 | IN23: 192 | IO23: 206 | IP23: 200 | IQ23: 188 | IR23: 179 | IS23: 198 | IT23: 212 | IU23: 190 | IV23: 172 | IW23: 184 | IX23: 185 | IY23: 191 | IZ23: 185 | JA23: 187 | JB23: 179 | JC23: =IF(JC$1=$A23,,JC$2+$B23) -> 197 | JD23: 183 | JE23: 190 | JF23: 147 | JG23: 170 | JH23: 176 | JI23: 178 | JJ23: 157 | JK23: 213 | JL23: 190 | JM23: 192 | JN23: 202 | JO23: 184 | JP23: 203 | JQ23: 195 | JR23: 196 | JS23: 168 | JT23: 197 | JU23: 194 | JV23: 181 | JW23: 207 | JX23: 197 | JY23: 211 | JZ23: 202 | KA23: 207 | KB23: 199 | KC23: 201 | KD23: 195 | KE23: 206 | KF23: 179 | KG23: 195 | KH23: 191 | KI23: 186 | KJ23: 172 | KK23: 216 | KL23: 201 | KM23: 218 | KN23: 199 | KO23: 214 | KP23: 212 | KQ23: 209 | KR23: 207 | KS23: 218 | KT23: 217 | KU23: 216 | KV23: 218 | KW23: 198 | KX23: 194 | KY23: 190 | KZ23: 177 | LA23: 202 | LB23: 213 | LC23: 211 | LD23: 217 | LE23: 204 | LF23: 197 | LG23: 203 | LH23: 213 | LI23: 200 | LJ23: 199 | LK23: 195 | LL23: 171 | LM23: 189 | LN23: 220 | LO23: 215 | LP23: 201 | LQ23: 165 | LR23: 178 | LS23: 190 | LT23: 168 | LU23: 203 | LV23: 199 | LW23: 201 | LX23: 190 | LY23: 175 | LZ23: 214 | MA23: 193 | MB23: 206 | MC23: 201 | MD23: 198 | ME23: 208 | MF23: 191 | MG23: 204 | MH23: 213 | MI23: 179 | MJ23: 200 | MK23: 213 | ML23: 206 | MM23: 214 | MN23: 213 | MO23: 181 | MP23: 162 | MQ23: 212 | MR23: 194 | MS23: 206 | MT23: 197 | MU23: 200 | MV23: 191 | MW23: 189 | MX23: 201 | MY23: 209 | MZ23: 202 | NA23: 172 | NB23: 192 | NC23: 193 | ND23: 205 | NE23: 216 | NF23: 218 | NG23: 217 | NH23: 213 | NI23: 215 | NJ23: 218 | NK23: 203 | NL23: 188 | NM23: 164 | NN23: 200 | NO23: 185 | NP23: 194 | NQ23: 195 | NR23: 200 | NS23: 208 | NT23: 217 | NU23: 149 | NV23: 173 | NW23: 194 | NX23: 192 | NY23: 181 | NZ23: 206 | OA23: 200 | OB23: 193 | OC23: 164 | OD23: 160 | OE23: 171 | OF23: 197 | OG23: 195 | OH23: 183 | OI23: 171 | OJ23: 207 | OK23: 161 | OL23: 186 | OM23: 187 | ON23: 173 | OO23: 191 | OP23: 188 | OQ23: 191 | OR23: 192 | OS23: 195 | OT23: 203 | OU23: 186 | OV23: 192 | OW23: 187 | OX23: 209 | OY23: 204 | OZ23: 199 | PA23: 201 | PB23: 190 | PC23: 202 | PD23: 200 | PE23: 188 | PF23: 191 | PG23: 187 | PH23: 194 | PI23: 169 | PJ23: 196 | PK23: 190 | PL23: 181 | PM23: 186 | PN23: 201 | PO23: 185 | PP23: 200 | PQ23: 205 | PR23: 201 | PS23: 211 | PT23: 211 | PU23: 211 | PV23: 207 | PW23: 206 | PX23: 203 | PY23: 218 | PZ23: 212 | QA23: 203 | QB23: 203 | QC23: 207 | QD23: 207 | QE23: 201 | QF23: 205 | QG23: 207 | QH23: 205 | QI23: 215 | QJ23: 215 | QK23: 213 | QL23: 213 | QM23: 208 | QN23: 204 | QO23: 205 | QP23: 208 | QQ23: 214 | QR23: 204 | QS23: =IF(QS$1=$A23,,QS$2+$B23) -> 186 | QT23: 209 | QU23: 198 | QV23: 204 | QW23: 209 | QX23: 215 | QY23: 215 | QZ23: 207 | RA23: 210 | RB23: 213 | RC23: 213 | RD23: 215 | RE23: 188 | RF23: 213 | RG23: 208 | RH23: 211 | RI23: 214 | RJ23: 213 | RK23: 210 | RL23: 213 | RM23: 208 | RN23: 199 | RO23: 212 | RP23: 213 | RQ23: 208 | RR23: 199 | RS23: 192 | RT23: 186 | RU23: 214 | RV23: 175 | RW23: 202 | RX23: 198 | RY23: 197 | RZ23: 188 | SA23: 184 | SB23: 200 | SC23: 209 | SD23: 190 | SE23: 192 | SF23: 169 | SG23: 200 | SH23: 192 | SI23: 195 | SJ23: 200 | SK23: 207 | SL23: 191 | SM23: 204 | SN23: 211 | SO23: 212 | SP23: 207 | SQ23: 206 | SR23: 190 | SS23: 184 | ST23: 196 | SU23: 183 | SV23: 213 | SW23: 184 | SX23: 208 | SY23: 214 | SZ23: 214 | TA23: 173 | TB23: 178 | TC23: 192 | TD23: 197 | TE23: 195 | TF23: 204 | TG23: 208 | TH23: 173 | TI23: 185 | TJ23: 218 | TK23: 177 | TL23: 184 | TM23: 201 | TN23: 193 | TO23: 211 | TP23: 190 | TQ23: 195 | TR23: 202 | TS23: 195 | TT23: 206 | TU23: 202 | TV23: 188 | TW23: 192 | TX23: 186 | TY23: 196 | TZ23: 187 | UA23: 175 | UB23: 183 | UC23: 179 | UD23: 197 | UE23: 186 | UF23: 191 | UG23: 195 | UH23: 213 | UI23: 201 | UJ23: 212 | UK23: 214 | UL23: 216 | UM23: 211 | UN23: 217 | UO23: 218 | UP23: 213 | UQ23: 212 | UR23: 210 | US23: 185 | UT23: 209 | UU23: 215 | UV23: 195 | UW23: 207 | UX23: 212 | UY23: 196 | UZ23: 216 | VA23: 204 | VB23: 207 | VC23: 216 | VD23: 195 | VE23: 161 | VF23: 166 | VG23: 195 | VH23: 195 | VI23: 195 | VJ23: 173 | VK23: 197 | VL23: 201 | VM23: 186 | VN23: 195 | VO23: 204 | VP23: 165 | VQ23: 169 | VR23: 159 | VS23: 172 | VT23: 181 | VU23: 190 | VV23: 165 | VW23: 209 | VX23: 186 | VY23: 207 | VZ23: 205 | WA23: 196 | WB23: 193 | WC23: 212 | WD23: 186 | WE23: 206 | WF23: 191 | WG23: 190 | WH23: 210 | WI23: 214 | WJ23: 190 | WK23: 181 | WL23: =IF(WL$1=$A23,,WL$2+$B23) -> 186 | WM23: 182 | WN23: 177 | WO23: 195 | WP23: 166 | WQ23: 174 | WR23: 183 | WS23: 175 | WT23: 154 | WU23: 151 | WV23: 174 | WW23: 171 | WX23: 148 | WY23: 176 | WZ23: 176 | XA23: 161 | XB23: 209 | XC23: 210 | XD23: 212 | XE23: 210 | XF23: 218 | XG23: 211 | XH23: 215 | XI23: 208 | XJ23: 178 | XK23: 204 | XL23: 199 | XM23: 201 | XN23: 198 | XO23: 208 | XP23: 208 | XQ23: 216 | XR23: 201 | XS23: 189 | XT23: 198 | XU23: 207 | XV23: 194 | XW23: 203 | XX23: 208 | XY23: 204 | XZ23: 206 | YA23: 161 | YB23: 199 | YC23: 186 | YD23: 193 | YE23: 193 | YF23: 185 | YG23: 214 | YH23: 214 | YI23: 215 | YJ23: 190 | YK23: 205 | YL23: 213 | YM23: 217 | YN23: 216 | YO23: 213 | YP23: 197 | YQ23: 200 | YR23: 217 | YS23: 213 | YT23: 192 | YU23: 216 | YV23: 215 | YW23: 212 | YX23: 215 | YY23: 213 | YZ23: 211 | ZA23: 209 | ZB23: 212 | ZC23: 216 | ZD23: 211 | ZE23: 217 | ZF23: 202 | ZG23: 207 | ZH23: 200 | ZI23: 213 | ZJ23: 191 | ZK23: 191 | ZL23: 205 | ZM23: 197 | ZN23: 217 | ZO23: 189 | ZP23: 176 | ZQ23: 201 | ZR23: 155 | ZS23: 208 | ZT23: 207 | ZU23: 210 | ZV23: 186 | ZW23: 192 | ZX23: 179 | ZY23: 191 | ZZ23: 204 | AAA23: 206 | AAB23: 205 | AAC23: 206 | AAD23: 201 | AAE23: 202 | AAF23: 211 | AAG23: 206 | AAH23: 213 | AAI23: 206 | AAJ23: 210 | AAK23: 217 | AAL23: 208 | AAM23: 213 | AAN23: 217 | AAO23: 184 | AAP23: 186 | AAQ23: 208 | AAR23: 184 | AAS23: 215 | AAT23: 208 | AAU23: 215 | AAV23: 213 | AAW23: 214 | AAX23: 208 | AAY23: 185 | AAZ23: 206 | ABA23: 215 | ABB23: 215 | ABC23: 212 | ABD23: 216 | ABE23: 204 | ABF23: 214 | ABG23: 215 | ABH23: 208 | ABI23: 215 | ABJ23: =IF(ABJ$1=$A23,,ABJ$2+$B23) -> 212 | ABK23: 211 | ABL23: 201 | ABM23: 214 | ABN23: 215 | ABO23: 217 | ABP23: 215 | ABQ23: 205 | ABR23: 210 | ABS23: 193 | ABT23: 215 | ABU23: 213 | ABV23: 210 | ABW23: 208 | ABX23: 216 | ABY23: 213 | ABZ23: 190 | ACA23: 211 | ACB23: 199 | ACC23: 201 | ACD23: 194 | ACE23: 212 | ACF23: 217 | ACG23: 214 | ACH23: 208 | ACI23: 214 | ACJ23: 193 | ACK23: 210 | ACL23: 210 | ACM23: 213 | ACN23: 217 | ACO23: 201 | ACP23: 195 | ACQ23: 195 | ACR23: 206 | ACS23: 158 | ACT23: 148 | ACU23: 164 | ACV23: 167 | ACW23: 194 | ACX23: 179 | ACY23: 209 | ACZ23: 207 | ADA23: 202 | ADB23: 214 | ADC23: 215 | ADD23: 206 | ADE23: 199 | ADF23: 216 | ADG23: 211 | ADH23: 206 | ADI23: 208 | ADJ23: 214 | ADK23: 186 | ADL23: 166 | ADM23: 208 | ADN23: 179 | ADO23: 192 | ADP23: 200 | ADQ23: 203 | ADR23: 209 | ADS23: 201 | ADT23: 197 | ADU23: 182 | ADV23: 194 | ADW23: 190 | ADX23: 197 | ADY23: 206 | ADZ23: 214 | AEA23: 185 | AEB23: 212 | AEC23: 216 | AED23: 198 | AEE23: 205 | AEF23: 204 | AEG23: 207 | AEH23: 204 | AEI23: 206 | AEJ23: 214 | AEK23: 215 | AEL23: 215 | AEM23: 206 | AEN23: 199 | AEO23: 213 | AEP23: 213 | AEQ23: 212 | AER23: 207 | AES23: 187 | AET23: 176 | AEU23: 203 | AEV23: 196 | AEW23: 197 | AEX23: 198 | AEY23: 191 | AEZ23: 196 | AFA23: 218 | AFB23: 205 | AFC23: 220 | AFD23: 218 | AFE23: 216 | AFF23: 211 | AFG23: 214 | AFH23: 216 | AFI23: 205 | AFJ23: 214 | AFK23: 199 | AFL23: 195 | AFM23: 194 | AFN23: 213 | AFO23: 178 | AFP23: 200 | AFQ23: 197 | AFR23: 203 | AFS23: 191 | AFT23: 188 | AFU23: 196 | AFV23: 197 | AFW23: 203 | AFX23: 194 | AFY23: 199 | AFZ23: 194 | AGA23: 194 | AGB23: 214 | AGC23: 206 | AGD23: 179
A24: 0805 | B24: =COUNTIF(Лист1!$B$2:$B$77501,A24) -> 103 | C24: 186 | D24: 203 | E24: 186 | F24: 200 | G24: 199 | H24: 211 | I24: 205 | J24: 199 | K24: 202 | L24: 188 | M24: 200 | N24: 183 | O24: 210 | P24: 206 | Q24: 198 | R24: 205 | S24: 205 | T24: 200 | U24: 208 | V24: 193 | W24: 210 | X24: 0 | Y24: 193 | Z24: 197 | AA24: 203 | AB24: 197 | AC24: 198 | AD24: 211 | AE24: 208 | AF24: 202 | AG24: 167 | AH24: 184 | AI24: 174 | AJ24: 177 | AK24: 188 | AL24: 208 | AM24: 188 | AN24: 147 | AO24: 179 | AP24: 197 | AQ24: 211 | AR24: 190 | AS24: 207 | AT24: 205 | AU24: 196 | AV24: 201 | AW24: 181 | AX24: 169 | AY24: 199 | AZ24: 161 | BA24: 162 | BB24: 166 | BC24: 202 | BD24: 181 | BE24: 204 | BF24: 204 | BG24: 203 | BH24: 173 | BI24: 187 | BJ24: 192 | BK24: 182 | BL24: 197 | BM24: 162 | BN24: 197 | BO24: =IF(BO$1=$A24,,BO$2+$B24) -> 192 | BP24: 173 | BQ24: 205 | BR24: 205 | BS24: 186 | BT24: 168 | BU24: 197 | BV24: 208 | BW24: 206 | BX24: 192 | BY24: 213 | BZ24: 203 | CA24: 188 | CB24: 211 | CC24: 180 | CD24: 190 | CE24: 210 | CF24: 205 | CG24: 211 | CH24: 203 | CI24: 217 | CJ24: 196 | CK24: 202 | CL24: 181 | CM24: 194 | CN24: 207 | CO24: 186 | CP24: 206 | CQ24: 211 | CR24: 213 | CS24: 201 | CT24: 202 | CU24: 211 | CV24: 204 | CW24: 196 | CX24: 215 | CY24: 215 | CZ24: 217 | DA24: 207 | DB24: 203 | DC24: 183 | DD24: 188 | DE24: 207 | DF24: 200 | DG24: 199 | DH24: 176 | DI24: 183 | DJ24: 194 | DK24: 204 | DL24: 193 | DM24: 207 | DN24: 189 | DO24: 206 | DP24: 165 | DQ24: 165 | DR24: 207 | DS24: 177 | DT24: 202 | DU24: 168 | DV24: 171 | DW24: 186 | DX24: 152 | DY24: 202 | DZ24: 206 | EA24: 170 | EB24: 167 | EC24: 193 | ED24: =IF(ED$1=$A24,,ED$2+$B24) -> 208 | EE24: 129 | EF24: 172 | EG24: 198 | EH24: 179 | EI24: 158 | EJ24: 169 | EK24: 170 | EL24: 191 | EM24: 186 | EN24: 216 | EO24: 201 | EP24: 192 | EQ24: 194 | ER24: 170 | ES24: 180 | ET24: 172 | EU24: 202 | EV24: 176 | EW24: 202 | EX24: 180 | EY24: 198 | EZ24: 179 | FA24: 182 | FB24: 157 | FC24: 182 | FD24: 146 | FE24: 172 | FF24: 157 | FG24: 176 | FH24: 192 | FI24: 186 | FJ24: 177 | FK24: 192 | FL24: 174 | FM24: 188 | FN24: 195 | FO24: 158 | FP24: 184 | FQ24: 172 | FR24: 178 | FS24: 180 | FT24: 145 | FU24: 153 | FV24: 151 | FW24: 183 | FX24: 179 | FY24: 191 | FZ24: 177 | GA24: 197 | GB24: 176 | GC24: 175 | GD24: 152 | GE24: 185 | GF24: 162 | GG24: 149 | GH24: 178 | GI24: 135 | GJ24: 185 | GK24: 192 | GL24: 184 | GM24: 180 | GN24: 194 | GO24: 161 | GP24: 179 | GQ24: 196 | GR24: 183 | GS24: 174 | GT24: 168 | GU24: 164 | GV24: 154 | GW24: 165 | GX24: 176 | GY24: 181 | GZ24: 178 | HA24: 180 | HB24: 190 | HC24: 177 | HD24: 166 | HE24: 188 | HF24: 185 | HG24: 182 | HH24: 204 | HI24: 198 | HJ24: 214 | HK24: 206 | HL24: 206 | HM24: 185 | HN24: 195 | HO24: 170 | HP24: 183 | HQ24: 199 | HR24: 184 | HS24: 202 | HT24: 195 | HU24: 189 | HV24: 207 | HW24: 206 | HX24: 198 | HY24: 172 | HZ24: 196 | IA24: 184 | IB24: 205 | IC24: 203 | ID24: 205 | IE24: 206 | IF24: 209 | IG24: 212 | IH24: 209 | II24: 200 | IJ24: 211 | IK24: 215 | IL24: 215 | IM24: 205 | IN24: 188 | IO24: 202 | IP24: 196 | IQ24: 184 | IR24: 175 | IS24: 194 | IT24: 208 | IU24: 186 | IV24: 168 | IW24: 180 | IX24: 181 | IY24: 187 | IZ24: 181 | JA24: 183 | JB24: 175 | JC24: 193 | JD24: 179 | JE24: 186 | JF24: 143 | JG24: 166 | JH24: 172 | JI24: 174 | JJ24: 153 | JK24: 209 | JL24: 186 | JM24: 188 | JN24: 198 | JO24: 180 | JP24: 199 | JQ24: 191 | JR24: 192 | JS24: 164 | JT24: 193 | JU24: 190 | JV24: 177 | JW24: 203 | JX24: 193 | JY24: 207 | JZ24: 198 | KA24: 203 | KB24: 195 | KC24: 197 | KD24: 191 | KE24: 202 | KF24: 175 | KG24: 191 | KH24: 187 | KI24: 182 | KJ24: 168 | KK24: 212 | KL24: 197 | KM24: 214 | KN24: 195 | KO24: 210 | KP24: 208 | KQ24: 205 | KR24: 203 | KS24: 214 | KT24: 213 | KU24: 212 | KV24: 214 | KW24: 194 | KX24: 190 | KY24: 186 | KZ24: 173 | LA24: 198 | LB24: 209 | LC24: 207 | LD24: 213 | LE24: 200 | LF24: 193 | LG24: 199 | LH24: 209 | LI24: 196 | LJ24: 195 | LK24: 191 | LL24: 167 | LM24: 185 | LN24: 216 | LO24: 211 | LP24: 197 | LQ24: 161 | LR24: 174 | LS24: 186 | LT24: 164 | LU24: 199 | LV24: 195 | LW24: 197 | LX24: 186 | LY24: 171 | LZ24: 210 | MA24: 189 | MB24: 202 | MC24: 197 | MD24: 194 | ME24: 204 | MF24: 187 | MG24: 200 | MH24: 209 | MI24: 175 | MJ24: 196 | MK24: 209 | ML24: 202 | MM24: 210 | MN24: 209 | MO24: 177 | MP24: 158 | MQ24: 208 | MR24: 190 | MS24: 202 | MT24: 193 | MU24: 196 | MV24: 187 | MW24: 185 | MX24: 197 | MY24: 205 | MZ24: 198 | NA24: 168 | NB24: 188 | NC24: 189 | ND24: 201 | NE24: 212 | NF24: 214 | NG24: 213 | NH24: 209 | NI24: 211 | NJ24: 214 | NK24: 199 | NL24: 184 | NM24: 160 | NN24: 196 | NO24: 181 | NP24: 190 | NQ24: 191 | NR24: 196 | NS24: 204 | NT24: 213 | NU24: 145 | NV24: 169 | NW24: 190 | NX24: 188 | NY24: 177 | NZ24: 202 | OA24: 196 | OB24: 189 | OC24: 160 | OD24: 156 | OE24: 167 | OF24: 193 | OG24: 191 | OH24: =IF(OH$1=$A24,,OH$2+$B24) -> 179 | OI24: 167 | OJ24: 203 | OK24: 157 | OL24: 182 | OM24: 183 | ON24: 169 | OO24: 187 | OP24: 184 | OQ24: 187 | OR24: 188 | OS24: 191 | OT24: 199 | OU24: 182 | OV24: 188 | OW24: 183 | OX24: 205 | OY24: 200 | OZ24: 195 | PA24: 197 | PB24: 186 | PC24: 198 | PD24: 196 | PE24: 184 | PF24: 187 | PG24: 183 | PH24: 190 | PI24: 165 | PJ24: 192 | PK24: 186 | PL24: 177 | PM24: 182 | PN24: 197 | PO24: 181 | PP24: 196 | PQ24: 201 | PR24: 197 | PS24: 207 | PT24: 207 | PU24: 207 | PV24: 203 | PW24: 202 | PX24: 199 | PY24: 214 | PZ24: 208 | QA24: 199 | QB24: 199 | QC24: 203 | QD24: 203 | QE24: 197 | QF24: 201 | QG24: 203 | QH24: 201 | QI24: 211 | QJ24: 211 | QK24: 209 | QL24: 209 | QM24: 204 | QN24: 200 | QO24: 201 | QP24: 204 | QQ24: 210 | QR24: 200 | QS24: 182 | QT24: 205 | QU24: 194 | QV24: 200 | QW24: 205 | QX24: 211 | QY24: 211 | QZ24: 203 | RA24: 206 | RB24: 209 | RC24: 209 | RD24: 211 | RE24: 184 | RF24: 209 | RG24: 204 | RH24: 207 | RI24: 210 | RJ24: 209 | RK24: 206 | RL24: 209 | RM24: 204 | RN24: 195 | RO24: 208 | RP24: 209 | RQ24: 204 | RR24: 195 | RS24: 188 | RT24: 182 | RU24: 210 | RV24: 171 | RW24: 198 | RX24: 194 | RY24: 193 | RZ24: 184 | SA24: 180 | SB24: 196 | SC24: 205 | SD24: 186 | SE24: 188 | SF24: 165 | SG24: 196 | SH24: 188 | SI24: 191 | SJ24: 196 | SK24: 203 | SL24: 187 | SM24: 200 | SN24: 207 | SO24: 208 | SP24: 203 | SQ24: 202 | SR24: 186 | SS24: 180 | ST24: 192 | SU24: 179 | SV24: 209 | SW24: 180 | SX24: 204 | SY24: 210 | SZ24: 210 | TA24: 169 | TB24: 174 | TC24: 188 | TD24: 193 | TE24: 191 | TF24: 200 | TG24: 204 | TH24: 169 | TI24: 181 | TJ24: 214 | TK24: 173 | TL24: 180 | TM24: 197 | TN24: 189 | TO24: 207 | TP24: 186 | TQ24: 191 | TR24: 198 | TS24: 191 | TT24: 202 | TU24: 198 | TV24: 184 | TW24: 188 | TX24: 182 | TY24: 192 | TZ24: 183 | UA24: 171 | UB24: 179 | UC24: 175 | UD24: 193 | UE24: 182 | UF24: 187 | UG24: 191 | UH24: 209 | UI24: 197 | UJ24: 208 | UK24: 210 | UL24: 212 | UM24: 207 | UN24: 213 | UO24: 214 | UP24: 209 | UQ24: 208 | UR24: 206 | US24: 181 | UT24: 205 | UU24: 211 | UV24: 191 | UW24: 203 | UX24: 208 | UY24: 192 | UZ24: 212 | VA24: 200 | VB24: 203 | VC24: 212 | VD24: 191 | VE24: 157 | VF24: 162 | VG24: 191 | VH24: 191 | VI24: 191 | VJ24: 169 | VK24: 193 | VL24: 197 | VM24: 182 | VN24: 191 | VO24: 200 | VP24: 161 | VQ24: 165 | VR24: 155 | VS24: 168 | VT24: 177 | VU24: 186 | VV24: 161 | VW24: 205 | VX24: 182 | VY24: 203 | VZ24: 201 | WA24: 192 | WB24: 189 | WC24: 208 | WD24: 182 | WE24: 202 | WF24: 187 | WG24: 186 | WH24: 206 | WI24: 210 | WJ24: 186 | WK24: 177 | WL24: 182 | WM24: 178 | WN24: 173 | WO24: 191 | WP24: 162 | WQ24: 170 | WR24: 179 | WS24: 171 | WT24: 150 | WU24: 147 | WV24: 170 | WW24: 167 | WX24: 144 | WY24: 172 | WZ24: 172 | XA24: 157 | XB24: 205 | XC24: 206 | XD24: 208 | XE24: 206 | XF24: 214 | XG24: 207 | XH24: 211 | XI24: 204 | XJ24: 174 | XK24: 200 | XL24: 195 | XM24: 197 | XN24: 194 | XO24: 204 | XP24: 204 | XQ24: 212 | XR24: 197 | XS24: 185 | XT24: 194 | XU24: 203 | XV24: 190 | XW24: 199 | XX24: 204 | XY24: 200 | XZ24: 202 | YA24: 157 | YB24: 195 | YC24: 182 | YD24: 189 | YE24: 189 | YF24: 181 | YG24: 210 | YH24: 210 | YI24: 211 | YJ24: 186 | YK24: 201 | YL24: 209 | YM24: 213 | YN24: 212 | YO24: 209 | YP24: 193 | YQ24: 196 | YR24: 213 | YS24: 209 | YT24: 188 | YU24: 212 | YV24: 211 | YW24: 208 | YX24: 211 | YY24: 209 | YZ24: 207 | ZA24: 205 | ZB24: 208 | ZC24: 212 | ZD24: 207 | ZE24: 213 | ZF24: 198 | ZG24: 203 | ZH24: 196 | ZI24: 209 | ZJ24: 187 | ZK24: 187 | ZL24: 201 | ZM24: 193 | ZN24: 213 | ZO24: 185 | ZP24: 172 | ZQ24: 197 | ZR24: 151 | ZS24: 204 | ZT24: 203 | ZU24: 206 | ZV24: 182 | ZW24: 188 | ZX24: 175 | ZY24: 187 | ZZ24: 200 | AAA24: 202 | AAB24: 201 | AAC24: 202 | AAD24: 197 | AAE24: 198 | AAF24: 207 | AAG24: 202 | AAH24: 209 | AAI24: 202 | AAJ24: 206 | AAK24: 213 | AAL24: 204 | AAM24: 209 | AAN24: 213 | AAO24: 180 | AAP24: 182 | AAQ24: 204 | AAR24: 180 | AAS24: 211 | AAT24: 204 | AAU24: 211 | AAV24: 209 | AAW24: 210 | AAX24: 204 | AAY24: 181 | AAZ24: 202 | ABA24: 211 | ABB24: 211 | ABC24: 208 | ABD24: 212 | ABE24: 200 | ABF24: 210 | ABG24: 211 | ABH24: 204 | ABI24: 211 | ABJ24: 208 | ABK24: 207 | ABL24: 197 | ABM24: 210 | ABN24: 211 | ABO24: 213 | ABP24: 211 | ABQ24: 201 | ABR24: 206 | ABS24: 189 | ABT24: 211 | ABU24: 209 | ABV24: 206 | ABW24: 204 | ABX24: 212 | ABY24: 209 | ABZ24: 186 | ACA24: 207 | ACB24: 195 | ACC24: 197 | ACD24: 190 | ACE24: 208 | ACF24: 213 | ACG24: 210 | ACH24: 204 | ACI24: 210 | ACJ24: 189 | ACK24: 206 | ACL24: 206 | ACM24: 209 | ACN24: 213 | ACO24: 197 | ACP24: 191 | ACQ24: 191 | ACR24: 202 | ACS24: 154 | ACT24: 144 | ACU24: 160 | ACV24: 163 | ACW24: 190 | ACX24: 175 | ACY24: 205 | ACZ24: 203 | ADA24: 198 | ADB24: 210 | ADC24: 211 | ADD24: 202 | ADE24: 195 | ADF24: 212 | ADG24: 207 | ADH24: 202 | ADI24: 204 | ADJ24: 210 | ADK24: 182 | ADL24: 162 | ADM24: 204 | ADN24: 175 | ADO24: 188 | ADP24: 196 | ADQ24: 199 | ADR24: 205 | ADS24: 197 | ADT24: 193 | ADU24: 178 | ADV24: 190 | ADW24: 186 | ADX24: 193 | ADY24: 202 | ADZ24: 210 | AEA24: 181 | AEB24: 208 | AEC24: 212 | AED24: 194 | AEE24: 201 | AEF24: 200 | AEG24: 203 | AEH24: 200 | AEI24: 202 | AEJ24: 210 | AEK24: 211 | AEL24: 211 | AEM24: 202 | AEN24: 195 | AEO24: 209 | AEP24: 209 | AEQ24: 208 | AER24: 203 | AES24: 183 | AET24: 172 | AEU24: 199 | AEV24: 192 | AEW24: 193 | AEX24: 194 | AEY24: 187 | AEZ24: 192 | AFA24: 214 | AFB24: 201 | AFC24: 216 | AFD24: 214 | AFE24: 212 | AFF24: 207 | AFG24: 210 | AFH24: 212 | AFI24: 201 | AFJ24: 210 | AFK24: 195 | AFL24: 191 | AFM24: 190 | AFN24: 209 | AFO24: 174 | AFP24: 196 | AFQ24: 193 | AFR24: 199 | AFS24: 187 | AFT24: 184 | AFU24: 192 | AFV24: 193 | AFW24: 199 | AFX24: 190 | AFY24: 195 | AFZ24: 190 | AGA24: 190 | AGB24: 210 | AGC24: 202 | AGD24: 175
A25: 0806 | B25: =COUNTIF(Лист1!$B$2:$B$77501,A25) -> 90 | C25: 173 | D25: =IF(D$1=$A25,,D$2+$B25) -> 190 | E25: 173 | F25: 187 | G25: 186 | H25: 198 | I25: 192 | J25: 186 | K25: 189 | L25: 175 | M25: 187 | N25: 170 | O25: 197 | P25: 193 | Q25: 185 | R25: 192 | S25: 192 | T25: 187 | U25: 195 | V25: 180 | W25: 197 | X25: 193 | Y25: 0 | Z25: 184 | AA25: 190 | AB25: 184 | AC25: 185 | AD25: 198 | AE25: 195 | AF25: 189 | AG25: 154 | AH25: 171 | AI25: 161 | AJ25: 164 | AK25: 175 | AL25: 195 | AM25: 175 | AN25: 134 | AO25: 166 | AP25: 184 | AQ25: 198 | AR25: 177 | AS25: 194 | AT25: 192 | AU25: 183 | AV25: 188 | AW25: 168 | AX25: 156 | AY25: 186 | AZ25: 148 | BA25: 149 | BB25: 153 | BC25: 189 | BD25: 168 | BE25: 191 | BF25: 191 | BG25: 190 | BH25: 160 | BI25: 174 | BJ25: 179 | BK25: 169 | BL25: 184 | BM25: 149 | BN25: 184 | BO25: 179 | BP25: 160 | BQ25: 192 | BR25: 192 | BS25: 173 | BT25: 155 | BU25: 184 | BV25: 195 | BW25: 193 | BX25: 179 | BY25: 200 | BZ25: 190 | CA25: 175 | CB25: 198 | CC25: 167 | CD25: 177 | CE25: 197 | CF25: 192 | CG25: 198 | CH25: 190 | CI25: 204 | CJ25: 183 | CK25: 189 | CL25: 168 | CM25: 181 | CN25: 194 | CO25: 173 | CP25: 193 | CQ25: 198 | CR25: 200 | CS25: 188 | CT25: 189 | CU25: 198 | CV25: 191 | CW25: 183 | CX25: 202 | CY25: 202 | CZ25: 204 | DA25: 194 | DB25: 190 | DC25: 170 | DD25: 175 | DE25: 194 | DF25: 187 | DG25: 186 | DH25: 163 | DI25: 170 | DJ25: 181 | DK25: 191 | DL25: 180 | DM25: 194 | DN25: 176 | DO25: 193 | DP25: 152 | DQ25: 152 | DR25: 194 | DS25: 164 | DT25: 189 | DU25: 155 | DV25: 158 | DW25: 173 | DX25: 139 | DY25: 189 | DZ25: 193 | EA25: 157 | EB25: 154 | EC25: 180 | ED25: 195 | EE25: 116 | EF25: 159 | EG25: 185 | EH25: 166 | EI25: 145 | EJ25: 156 | EK25: 157 | EL25: 178 | EM25: 173 | EN25: 203 | EO25: 188 | EP25: 179 | EQ25: 181 | ER25: 157 | ES25: 167 | ET25: 159 | EU25: 189 | EV25: 163 | EW25: 189 | EX25: 167 | EY25: 185 | EZ25: 166 | FA25: 169 | FB25: 144 | FC25: 169 | FD25: 133 | FE25: 159 | FF25: 144 | FG25: 163 | FH25: 179 | FI25: 173 | FJ25: 164 | FK25: 179 | FL25: 161 | FM25: 175 | FN25: 182 | FO25: 145 | FP25: 171 | FQ25: 159 | FR25: 165 | FS25: 167 | FT25: 132 | FU25: 140 | FV25: 138 | FW25: 170 | FX25: 166 | FY25: 178 | FZ25: 164 | GA25: 184 | GB25: 163 | GC25: 162 | GD25: 139 | GE25: 172 | GF25: 149 | GG25: 136 | GH25: 165 | GI25: 122 | GJ25: 172 | GK25: 179 | GL25: 171 | GM25: 167 | GN25: 181 | GO25: 148 | GP25: 166 | GQ25: 183 | GR25: 170 | GS25: 161 | GT25: 155 | GU25: 151 | GV25: 141 | GW25: 152 | GX25: 163 | GY25: 168 | GZ25: 165 | HA25: 167 | HB25: 177 | HC25: 164 | HD25: 153 | HE25: 175 | HF25: 172 | HG25: 169 | HH25: 191 | HI25: 185 | HJ25: 201 | HK25: 193 | HL25: 193 | HM25: 172 | HN25: 182 | HO25: 157 | HP25: 170 | HQ25: 186 | HR25: 171 | HS25: 189 | HT25: 182 | HU25: 176 | HV25: 194 | HW25: 193 | HX25: 185 | HY25: 159 | HZ25: 183 | IA25: 171 | IB25: 192 | IC25: 190 | ID25: 192 | IE25: 193 | IF25: 196 | IG25: 199 | IH25: 196 | II25: 187 | IJ25: 198 | IK25: 202 | IL25: 202 | IM25: 192 | IN25: 175 | IO25: 189 | IP25: 183 | IQ25: 171 | IR25: 162 | IS25: 181 | IT25: 195 | IU25: 173 | IV25: 155 | IW25: 167 | IX25: 168 | IY25: 174 | IZ25: 168 | JA25: 170 | JB25: 162 | JC25: 180 | JD25: 166 | JE25: 173 | JF25: 130 | JG25: 153 | JH25: 159 | JI25: 161 | JJ25: 140 | JK25: 196 | JL25: 173 | JM25: 175 | JN25: 185 | JO25: 167 | JP25: 186 | JQ25: 178 | JR25: 179 | JS25: 151 | JT25: 180 | JU25: 177 | JV25: 164 | JW25: 190 | JX25: 180 | JY25: 194 | JZ25: 185 | KA25: 190 | KB25: 182 | KC25: 184 | KD25: 178 | KE25: 189 | KF25: 162 | KG25: 178 | KH25: 174 | KI25: 169 | KJ25: 155 | KK25: 199 | KL25: 184 | KM25: 201 | KN25: 182 | KO25: 197 | KP25: 195 | KQ25: 192 | KR25: 190 | KS25: 201 | KT25: 200 | KU25: 199 | KV25: 201 | KW25: 181 | KX25: 177 | KY25: 173 | KZ25: 160 | LA25: 185 | LB25: 196 | LC25: 194 | LD25: 200 | LE25: 187 | LF25: 180 | LG25: 186 | LH25: 196 | LI25: 183 | LJ25: 182 | LK25: 178 | LL25: 154 | LM25: 172 | LN25: 203 | LO25: 198 | LP25: 184 | LQ25: 148 | LR25: 161 | LS25: 173 | LT25: 151 | LU25: 186 | LV25: 182 | LW25: 184 | LX25: 173 | LY25: 158 | LZ25: 197 | MA25: 176 | MB25: 189 | MC25: 184 | MD25: 181 | ME25: 191 | MF25: 174 | MG25: 187 | MH25: 196 | MI25: 162 | MJ25: 183 | MK25: 196 | ML25: 189 | MM25: 197 | MN25: 196 | MO25: 164 | MP25: 145 | MQ25: 195 | MR25: 177 | MS25: 189 | MT25: 180 | MU25: 183 | MV25: 174 | MW25: 172 | MX25: 184 | MY25: 192 | MZ25: 185 | NA25: 155 | NB25: 175 | NC25: 176 | ND25: 188 | NE25: 199 | NF25: 201 | NG25: 200 | NH25: 196 | NI25: 198 | NJ25: 201 | NK25: 186 | NL25: 171 | NM25: 147 | NN25: 183 | NO25: 168 | NP25: 177 | NQ25: 178 | NR25: 183 | NS25: 191 | NT25: 200 | NU25: 132 | NV25: 156 | NW25: 177 | NX25: 175 | NY25: 164 | NZ25: 189 | OA25: 183 | OB25: 176 | OC25: 147 | OD25: 143 | OE25: 154 | OF25: 180 | OG25: 178 | OH25: 166 | OI25: 154 | OJ25: 190 | OK25: 144 | OL25: 169 | OM25: 170 | ON25: 156 | OO25: 174 | OP25: 171 | OQ25: 174 | OR25: 175 | OS25: 178 | OT25: 186 | OU25: 169 | OV25: 175 | OW25: 170 | OX25: 192 | OY25: 187 | OZ25: 182 | PA25: 184 | PB25: 173 | PC25: 185 | PD25: 183 | PE25: 171 | PF25: 174 | PG25: 170 | PH25: 177 | PI25: 152 | PJ25: 179 | PK25: 173 | PL25: 164 | PM25: 169 | PN25: 184 | PO25: 168 | PP25: 183 | PQ25: 188 | PR25: 184 | PS25: 194 | PT25: 194 | PU25: 194 | PV25: 190 | PW25: 189 | PX25: 186 | PY25: 201 | PZ25: 195 | QA25: 186 | QB25: 186 | QC25: 190 | QD25: 190 | QE25: 184 | QF25: 188 | QG25: 190 | QH25: 188 | QI25: 198 | QJ25: 198 | QK25: 196 | QL25: 196 | QM25: 191 | QN25: 187 | QO25: 188 | QP25: 191 | QQ25: 197 | QR25: 187 | QS25: 169 | QT25: 192 | QU25: 181 | QV25: 187 | QW25: 192 | QX25: 198 | QY25: 198 | QZ25: 190 | RA25: 193 | RB25: 196 | RC25: 196 | RD25: 198 | RE25: 171 | RF25: 196 | RG25: 191 | RH25: 194 | RI25: 197 | RJ25: 196 | RK25: 193 | RL25: 196 | RM25: 191 | RN25: 182 | RO25: 195 | RP25: 196 | RQ25: 191 | RR25: 182 | RS25: 175 | RT25: 169 | RU25: 197 | RV25: 158 | RW25: 185 | RX25: 181 | RY25: 180 | RZ25: 171 | SA25: 167 | SB25: 183 | SC25: 192 | SD25: 173 | SE25: 175 | SF25: 152 | SG25: 183 | SH25: 175 | SI25: 178 | SJ25: 183 | SK25: 190 | SL25: 174 | SM25: 187 | SN25: 194 | SO25: 195 | SP25: 190 | SQ25: 189 | SR25: 173 | SS25: 167 | ST25: 179 | SU25: 166 | SV25: 196 | SW25: 167 | SX25: 191 | SY25: 197 | SZ25: 197 | TA25: 156 | TB25: 161 | TC25: 175 | TD25: 180 | TE25: 178 | TF25: 187 | TG25: 191 | TH25: 156 | TI25: 168 | TJ25: 201 | TK25: 160 | TL25: 167 | TM25: 184 | TN25: 176 | TO25: 194 | TP25: 173 | TQ25: 178 | TR25: 185 | TS25: 178 | TT25: 189 | TU25: 185 | TV25: 171 | TW25: 175 | TX25: 169 | TY25: 179 | TZ25: 170 | UA25: 158 | UB25: 166 | UC25: 162 | UD25: 180 | UE25: 169 | UF25: 174 | UG25: 178 | UH25: 196 | UI25: 184 | UJ25: 195 | UK25: 197 | UL25: 199 | UM25: 194 | UN25: 200 | UO25: 201 | UP25: 196 | UQ25: 195 | UR25: 193 | US25: 168 | UT25: 192 | UU25: 198 | UV25: 178 | UW25: 190 | UX25: 195 | UY25: 179 | UZ25: 199 | VA25: 187 | VB25: 190 | VC25: 199 | VD25: 178 | VE25: 144 | VF25: 149 | VG25: 178 | VH25: 178 | VI25: =IF(VI$1=$A25,,VI$2+$B25) -> 178 | VJ25: 156 | VK25: 180 | VL25: 184 | VM25: 169 | VN25: 178 | VO25: 187 | VP25: 148 | VQ25: 152 | VR25: 142 | VS25: 155 | VT25: 164 | VU25: 173 | VV25: 148 | VW25: 192 | VX25: 169 | VY25: 190 | VZ25: 188 | WA25: 179 | WB25: 176 | WC25: 195 | WD25: 169 | WE25: 189 | WF25: 174 | WG25: 173 | WH25: 193 | WI25: 197 | WJ25: 173 | WK25: 164 | WL25: 169 | WM25: 165 | WN25: 160 | WO25: 178 | WP25: 149 | WQ25: 157 | WR25: 166 | WS25: 158 | WT25: 137 | WU25: 134 | WV25: 157 | WW25: 154 | WX25: 131 | WY25: 159 | WZ25: 159 | XA25: 144 | XB25: 192 | XC25: 193 | XD25: 195 | XE25: 193 | XF25: 201 | XG25: 194 | XH25: 198 | XI25: 191 | XJ25: 161 | XK25: 187 | XL25: 182 | XM25: 184 | XN25: 181 | XO25: 191 | XP25: 191 | XQ25: 199 | XR25: 184 | XS25: 172 | XT25: 181 | XU25: 190 | XV25: 177 | XW25: 186 | XX25: 191 | XY25: 187 | XZ25: 189 | YA25: 144 | YB25: 182 | YC25: 169 | YD25: 176 | YE25: 176 | YF25: 168 | YG25: 197 | YH25: 197 | YI25: 198 | YJ25: 173 | YK25: 188 | YL25: 196 | YM25: 200 | YN25: 199 | YO25: 196 | YP25: 180 | YQ25: 183 | YR25: 200 | YS25: 196 | YT25: 175 | YU25: 199 | YV25: 198 | YW25: 195 | YX25: 198 | YY25: 196 | YZ25: 194 | ZA25: 192 | ZB25: 195 | ZC25: 199 | ZD25: 194 | ZE25: 200 | ZF25: 185 | ZG25: 190 | ZH25: 183 | ZI25: 196 | ZJ25: 174 | ZK25: 174 | ZL25: 188 | ZM25: 180 | ZN25: 200 | ZO25: 172 | ZP25: 159 | ZQ25: 184 | ZR25: 138 | ZS25: 191 | ZT25: 190 | ZU25: 193 | ZV25: 169 | ZW25: 175 | ZX25: 162 | ZY25: 174 | ZZ25: 187 | AAA25: 189 | AAB25: 188 | AAC25: 189 | AAD25: 184 | AAE25: 185 | AAF25: 194 | AAG25: =IF(AAG$1=$A25,,AAG$2+$B25) -> 189 | AAH25: 196 | AAI25: 189 | AAJ25: 193 | AAK25: 200 | AAL25: 191 | AAM25: 196 | AAN25: 200 | AAO25: 167 | AAP25: 169 | AAQ25: 191 | AAR25: 167 | AAS25: 198 | AAT25: 191 | AAU25: 198 | AAV25: 196 | AAW25: 197 | AAX25: 191 | AAY25: 168 | AAZ25: 189 | ABA25: 198 | ABB25: 198 | ABC25: 195 | ABD25: 199 | ABE25: 187 | ABF25: 197 | ABG25: 198 | ABH25: 191 | ABI25: 198 | ABJ25: 195 | ABK25: 194 | ABL25: 184 | ABM25: 197 | ABN25: 198 | ABO25: 200 | ABP25: 198 | ABQ25: 188 | ABR25: 193 | ABS25: 176 | ABT25: 198 | ABU25: 196 | ABV25: 193 | ABW25: 191 | ABX25: 199 | ABY25: 196 | ABZ25: 173 | ACA25: 194 | ACB25: 182 | ACC25: 184 | ACD25: 177 | ACE25: 195 | ACF25: 200 | ACG25: 197 | ACH25: 191 | ACI25: 197 | ACJ25: 176 | ACK25: 193 | ACL25: 193 | ACM25: 196 | ACN25: 200 | ACO25: 184 | ACP25: 178 | ACQ25: 178 | ACR25: 189 | ACS25: 141 | ACT25: 131 | ACU25: 147 | ACV25: 150 | ACW25: 177 | ACX25: 162 | ACY25: 192 | ACZ25: 190 | ADA25: 185 | ADB25: 197 | ADC25: 198 | ADD25: 189 | ADE25: 182 | ADF25: 199 | ADG25: 194 | ADH25: 189 | ADI25: 191 | ADJ25: 197 | ADK25: 169 | ADL25: 149 | ADM25: 191 | ADN25: 162 | ADO25: 175 | ADP25: 183 | ADQ25: 186 | ADR25: 192 | ADS25: 184 | ADT25: 180 | ADU25: 165 | ADV25: 177 | ADW25: 173 | ADX25: 180 | ADY25: 189 | ADZ25: 197 | AEA25: 168 | AEB25: 195 | AEC25: 199 | AED25: 181 | AEE25: 188 | AEF25: 187 | AEG25: 190 | AEH25: 187 | AEI25: 189 | AEJ25: 197 | AEK25: 198 | AEL25: 198 | AEM25: 189 | AEN25: 182 | AEO25: 196 | AEP25: 196 | AEQ25: 195 | AER25: 190 | AES25: 170 | AET25: 159 | AEU25: 186 | AEV25: 179 | AEW25: 180 | AEX25: 181 | AEY25: 174 | AEZ25: 179 | AFA25: 201 | AFB25: 188 | AFC25: 203 | AFD25: 201 | AFE25: =IF(AFE$1=$A25,,AFE$2+$B25) -> 199 | AFF25: 194 | AFG25: 197 | AFH25: 199 | AFI25: 188 | AFJ25: 197 | AFK25: 182 | AFL25: 178 | AFM25: 177 | AFN25: 196 | AFO25: 161 | AFP25: 183 | AFQ25: 180 | AFR25: 186 | AFS25: 174 | AFT25: 171 | AFU25: 179 | AFV25: 180 | AFW25: 186 | AFX25: 177 | AFY25: 182 | AFZ25: 177 | AGA25: 177 | AGB25: 197 | AGC25: 189 | AGD25: 162
